Workbook

Sheet 00 Alimenta (hidden)
A2: PRG | B2: 4
A4: SP | B4: Conto | C4: Descrizione conto | D4: Esercizio 2015 | E4: Incrementi 2016 | F4: Decrementi 2016 | G4: Esercizio 2016 | H4: Incrementi 2017 | I4: Decrementi 2017
A5: AAA140 | B5: 0101010602 | C5: Licenze d'uso software | D5: 1810825.53 | E5: 181030.9 | F5: 6424.06 | G5: 1985432.37 | H5: 209841.59 | I5: 7129.38
A6: AAA300 | B6: 0101020102 | C6: Terreni indisponibili | D6: 942655.12 | E6: 0 | F6: 0 | G6: 942655.12 | H6: 0 | I6: 0
A7: AAA360 | B7: 0101020301 | C7: Fabbricati strumentali (indisponibili) | D7: 169096559.2 | E7: 0 | F7: 0 | G7: 169096559.2 | H7: 0 | I7: 0
A8: AAA390 | B8: 0101020404 | C8: Macchinari generici | D8: 5772528.84 | E8: 183106.44 | F8: 8604.8 | G8: 5947030.48 | H8: 219918.7 | I8: 171.65
A9: AAA420 | B9: 0101020502 | C9: Attrezzature generiche | D9: 75106075.78 | E9: 6743296.67 | F9: 2797670.18 | G9: 79051702.27 | H9: 5812839.07 | I9: 146692.8
A10: AAA450 | B10: 0101020601 | C10: Mobili e arredi | D10: 10177663.42 | E10: 374325.51 | F10: 183191.51 | G10: 10368797.42 | H10: 241394.07 | I10: 12215.84
A11: AAA480 | B11: 0101020703 | C11: Altri mezzi di trasporto | D11: 1758814.75 | E11: 144301.6 | F11: 63157.24 | G11: 1839959.11 | H11: 123029.66 | I11: 0
A12: AAA520 | B12: 0101020903 | C12: Computer e macchinari elettronici | D12: 5279391.75 | E12: 103690.13 | F12: 152910.96 | G12: 5230170.92 | H12: 261895.29 | I12: 2012.8
A13: AAA520 | B13: 0101020904 | C13: Altri beni materiali | D13: 421246.02 | E13: 7740.63 | F13: 5066.79 | G13: 423919.86 | H13: 4021.71 | I13: 0
A14: AAA540 | B14: 0101021001 | C14: Fabbricati in costruzione | D14: 7302928.54 | E14: 1381793.22 | F14: 61951.49 | G14: 8622770.27 | H14: 950522.09 | I14: 102440.22
A15: AAA540 | B15: 0101021005 | C15: Acconti su future acquisizioni di immobilizzazioni materiali | D15: 263368.81 | E15: 127357.75 | F15: 248601.25 | G15: 142125.31 | H15: 1527272.03 | I15: 142296.91
A16: AAA690 | B16: 0101030404 | C16: Depositi cauzionali | D16: 12379.7 | E16: 1656.75 | F16: 0 | G16: 14036.45 | H16: 0 | I16: 0
A17: ABA020 | B17: 0102010101 | C17: Medicinali con AIC | D17: 5274714.12 | E17: 4636666.55 | F17: 5274714.12 | G17: 4636666.55 | H17: 4388956 | I17: 4636666.55
A18: ABA020 | B18: 0102010102 | C18: Soluzioni infusionali con AIC | D18: 3117.21 | E18: 1437.61 | F18: 3117.21 | G18: 1437.61 | H18: 1398.76 | I18: 1437.61
A19: ABA020 | B19: 0102010103 | C19: Ossigeno con AIC | D19: 11934.33 | E19: 10294.49 | F19: 11934.33 | G19: 10294.49 | H19: 1633.04 | I19: 10294.49
A20: ABA020 | B20: 0102010104 | C20: Altri gas medicali con AIC | D20: 8360.19 | E20: 2368.85 | F20: 8360.19 | G20: 2368.85 | H20: 9993.46 | I20: 2368.85
A21: ABA020 | B21: 0102010105 | C21: Emoderivati con AIC | D21: 546577.01 | E21: 298115.4 | F21: 546577.01 | G21: 298115.4 | H21: 415087.34 | I21: 298115.4
A22: ABA020 | B22: 0102010106 | C22: Medicinali senza AIC | D22: 111611.93 | E22: 126880.91 | F22: 111611.93 | G22: 126880.91 | H22: 220505.73 | I22: 126880.91
A23: ABA020 | B23: 0102010108 | C23: Farmaci innovativi | D23: 0 | E23: 406045.08 | F23: 0 | G23: 406045.08 | H23: 796557.79 | I23: 406045.08
A24: ABA040 | B24: 0102010301 | C24: Strumentazione per bioimmagini e radioterapia | D24: 29748.48 | E24: 0 | F24: 29748.48 | G24: 0 | H24: 22325.73 | I24: 0
A25: ABA040 | B25: 0102010302 | C25: Materiale per sterilizzazione | D25: 10623.87 | E25: 13554.18 | F25: 10623.87 | G25: 13554.18 | H25: 44744.42 | I25: 13554.18
A26: ABA040 | B26: 0102010303 | C26: Dispositivi per chirurgia mini-invasiva ed elettrochirurgia | D26: 170169.05 | E26: 174192.21 | F26: 170169.05 | G26: 174192.21 | H26: 191192.48 | I26: 174192.21
A27: ABA040 | B27: 0102010304 | C27: Protesi ortopediche e mezzi per osteosintesi e sintesi tendineo-legamentosa | D27: 65233.45 | E27: 50150.67 | F27: 65233.45 | G27: 50150.67 | H27: 156988.5 | I27: 50150.67
A28: ABA040 | B28: 0102010305 | C28: Protesi oculistiche | D28: 4357.6 | E28: 24968.06 | F28: 4357.6 | G28: 24968.06 | H28: 21294.52 | I28: 24968.06
A29: ABA040 | B29: 0102010306 | C29: Protesi vascolari e cardiache | D29: 0 | E29: 1839.24 | F29: 0 | G29: 1839.24 | H29: 7516.08 | I29: 1839.24
A30: ABA040 | B30: 0102010307 | C30: Altri dispositivi protesici impiantabili e prodotti per osteosintesi | D30: 29566.72 | E30: 10862.72 | F30: 29566.72 | G30: 10862.72 | H30: 15680.73 | I30: 10862.72
A31: ABA040 | B31: 0102010308 | C31: Supporti e ausili tecnici per persone disabili | D31: 10313.98 | E31: 21594.97 | F31: 10313.98 | G31: 21594.97 | H31: 32718.44 | I31: 21594.97
A32: ABA040 | B32: 0102010309 | C32: Dispositivi per emotrasfusione ed ematologia | D32: 32946.33 | E32: 45796.36 | F32: 32946.33 | G32: 45796.36 | H32: 58519.51 | I32: 45796.36
A33: ABA040 | B33: 0102010310 | C33: Dispositivi per dialisi | D33: 192658.67 | E33: 179690.46 | F33: 192658.67 | G33: 179690.46 | H33: 78184.86 | I33: 179690.46
A34: ABA040 | B34: 0102010311 | C34: Dispositivi medico-diagnostici in vitro (D.Lgs. 332/2000) | D34: 1199655.32 | E34: 1255177.4 | F34: 1199655.32 | G34: 1255177.4 | H34: 1482372.12 | I34: 1255177.4
A35: ABA040 | B35: 0102010312 | C35: Strumentazione per esplorazioni funzionali ed interventi terapeutici | D35: 287035.21 | E35: 104045.91 | F35: 287035.21 | G35: 104045.91 | H35: 270520.31 | I35: 104045.91
A36: ABA040 | B36: 0102010313 | C36: Strumentazione per radiologia diagnostica ed interventistica | D36: 3035.37 | E36: 589.26 | F36: 3035.37 | G36: 589.26 | H36: 712.51 | I36: 589.26
A37: ABA040 | B37: 0102010314 | C37: Strumentario chirurgico pluriuso o riusabile | D37: 94988.55 | E37: 55549.76 | F37: 94988.55 | G37: 55549.76 | H37: 92097.5 | I37: 55549.76
A38: ABA040 | B38: 0102010315 | C38: Dispositivi protesici impiantabili - vari | D38: 62849.41 | E38: 28003.05 | F38: 62849.41 | G38: 28003.05 | H38: 80004.3 | I38: 28003.05
A39: ABA040 | B39: 0102010316 | C39: Dispositivi per sistema artero-venoso | D39: 111809.84 | E39: 132460.47 | F39: 111809.84 | G39: 132460.47 | H39: 196661.87 | I39: 132460.47
A40: ABA040 | B40: 0102010317 | C40: Guide per apparato cardiocircolatorio | D40: 27401.68 | E40: 9174.4 | F40: 27401.68 | G40: 9174.4 | H40: 16525.53 | I40: 9174.4
A41: ABA040 | B41: 0102010318 | C41: Altri dispositivi per apparato cardiocircolatorio | D41: 79721.49 | E41: 124428.45 | F41: 79721.49 | G41: 124428.45 | H41: 123103.54 | I41: 124428.45
A42: ABA040 | B42: 0102010319 | C42: Disinfettanti, antisettici e proteolitici (D.Lgs. 46/97) | D42: 26457.53 | E42: 29235.99 | F42: 26457.53 | G42: 29235.99 | H42: 22348.48 | I42: 29235.99
A43: ABA040 | B43: 0102010320 | C43: Dispositivi per apparato gastrointestinale | D43: 50926.03 | E43: 59952.07 | F43: 50926.03 | G43: 59952.07 | H43: 83693.42 | I43: 59952.07
A44: ABA040 | B44: 0102010321 | C44: Dispositivi da sutura | D44: 306526.84 | E44: 396218.06 | F44: 306526.84 | G44: 396218.06 | H44: 349748.67 | I44: 396218.06
A45: ABA040 | B45: 0102010322 | C45: Dispositivi per sistema nervoso e midollare | D45: 9075.2 | E45: 12511.97 | F45: 9075.2 | G45: 12511.97 | H45: 28260.43 | I45: 12511.97
A46: ABA040 | B46: 0102010323 | C46: Dispositivi per odontoiatria, oftalmologoa e otorinolaringoiatria | D46: 141685.25 | E46: 105207.2 | F46: 141685.25 | G46: 105207.2 | H46: 71817.28 | I46: 105207.2
A47: ABA040 | B47: 0102010324 | C47: Dispositivi per apparato respiratorio e anestesia | D47: 174448.95 | E47: 125642.41 | F47: 174448.95 | G47: 125642.41 | H47: 182238.66 | I47: 125642.41
A48: ABA040 | B48: 0102010325 | C48: Dispositivi di protezione e ausili per incontinenza (D.Lgs. 46/97) | D48: 199194.51 | E48: 212601.7 | F48: 199194.51 | G48: 212601.7 | H48: 196921.3 | I48: 212601.7
A49: ABA040 | B49: 0102010326 | C49: Dispositivi per apparato urogenitale | D49: 42691.15 | E49: 65964.79 | F49: 42691.15 | G49: 65964.79 | H49: 51126.59 | I49: 65964.79
A50: ABA040 | B50: 0102010327 | C50: Dispositivi vari | D50: 300627.01 | E50: 234985.3 | F50: 300627.01 | G50: 234985.3 | H50: 304842.72 | I50: 234985.3
A51: ABA040 | B51: 0102010328 | C51: Dispositivi da somministrazione, prelievo e raccolta | D51: 573626.02 | E51: 559635.57 | F51: 573626.02 | G51: 559635.57 | H51: 569117.95 | I51: 559635.57
A52: ABA040 | B52: 0102010329 | C52: Dispositivi per medicazioni generali e specialistiche | D52: 383456.26 | E52: 312836.58 | F52: 383456.26 | G52: 312836.58 | H52: 357449.92 | I52: 312836.58
A53: ABA040 | B53: 0102010330 | C53: Dispositivi impiantabili attivi | D53: 16290.36 | E53: 58041 | F53: 16290.36 | G53: 58041 | H53: 30319.56 | I53: 58041
A54: ABA050 | B54: 0102010401 | C54: Prodotti dietetici | D54: 8105.46 | E54: 4508.83 | F54: 8105.46 | G54: 4508.83 | H54: 5615.65 | I54: 4508.83
A55: ABA050 | B55: 0102010402 | C55: Alimenti per nutrizione artificiale senza AIC | D55: 68589.69 | E55: 63760.33 | F55: 68589.69 | G55: 63760.33 | H55: 58004.47 | I55: 63760.33
A56: ABA060 | B56: 0102010503 | C56: Altri Vaccini | D56: 0 | E56: 0 | F56: 0 | G56: 0 | H56: 1112.76 | I56: 0
A57: ABA080 | B57: 0102010701 | C57: Medicinali ad uso veterinario | D57: 192 | E57: 0 | F57: 192 | G57: 0 | H57: 0 | I57: 0
A58: ABA090 | B58: 0102010801 | C58: Vetrerie e materiale plastico per laboratorio | D58: 15533.26 | E58: 26506.58 | F58: 15533.26 | G58: 26506.58 | H58: 42717.86 | I58: 26506.58
A59: ABA090 | B59: 0102010802 | C59: Materiali di consumo non specifici per strumentazione diagnostica | D59: 103201 | E59: 82188.66 | F59: 103201 | G59: 82188.66 | H59: 125485.73 | I59: 82188.66
A60: ABA090 | B60: 0102010803 | C60: Altri beni e prodotti sanitari | D60: 87747.66 | E60: 102717.74 | F60: 87747.66 | G60: 102717.74 | H60: 127988.56 | I60: 102717.74
A61: ABA130 | B61: 0102011101 | C61: Materiali di guardaroba, di pulizia, e di convivenza in genere | D61: 44097.34 | E61: 35073.03 | F61: 44097.34 | G61: 35073.03 | H61: 29727.94 | I61: 35073.03
A62: ABA140 | B62: 0102011201 | C62: Combustibili, carburanti e lubrificanti | D62: 364.21 | E62: 0 | F62: 364.21 | G62: 0 | H62: 0 | I62: 0
A63: ABA150 | B63: 0102011301 | C63: Supporti informatici | D63: 182140.26 | E63: 171772.85 | F63: 182140.26 | G63: 171772.85 | H63: 192555.39 | I63: 171772.85
A64: ABA150 | B64: 0102011302 | C64: Cancelleria e stampati | D64: 183602.38 | E64: 161363.28 | F64: 183602.38 | G64: 161363.28 | H64: 169734.96 | I64: 161363.28
A65: ABA160 | B65: 0102011401 | C65: Materiale per la manutenzione di immobili e loro pertinenze | D65: 99725.34 | E65: 55250.31 | F65: 99725.34 | G65: 55250.31 | H65: 85875.45 | I65: 55250.31
A66: ABA160 | B66: 0102011403 | C66: Materiale per la manutenzione di attrezzature tecnico scientifiche sanitarie | D66: 37640.72 | E66: 25964.41 | F66: 37640.72 | G66: 25964.41 | H66: 26463.29 | I66: 25964.41
A67: ABA160 | B67: 0102011405 | C67: Materiale per la manutenzione di altro | D67: 5697.59 | E67: 3934.22 | F67: 5697.59 | G67: 3934.22 | H67: 5031.4 | I67: 3934.22
A68: ABA170 | B68: 0102011501 | C68: Altri beni e prodotti non sanitari | D68: 3445.61 | E68: 2869.46 | F68: 3445.61 | G68: 2869.46 | H68: 1229.74 | I68: 2869.46
A69: ABA210 | B69: 0102020101 | C69: Crediti v/Stato per spesa corrente - Integrazione a norma del D.L.vo 56/2000 | D69: 0 | E69: 19655.01 | F69: 13684.75 | G69: 5970.26 | H69: 12202.45 | I69: 18172.71
A70: ABA270 | B70: 0102020701 | C70: Crediti v/Stato per spesa corrente - altro | D70: 566.88 | E70: 0 | F70: 566.88 | G70: 0 | H70: 0 | I70: 0
A71: ABA310 | B71: 0102020902 | C71: Crediti v/Stato per ricerca finalizzata - Ministero della Salute | D71: 10300 | E71: 10220 | F71: 15900 | G71: 4620 | H71: 0 | I71: 0
A72: ABA340 | B72: 0102021001 | C72: Crediti v/prefetture | D72: 0 | E72: 93462.74 | F72: 0 | G72: 93462.74 | H72: 0 | I72: 0
A73: ABA390 | B73: 0102021103 | C73: Crediti v/Regione o Provincia Autonoma per quota FSR | D73: 115726464.3 | E73: 620609320.6 | F73: 586865386.7 | G73: 149470398.2 | H73: 611234256.9 | I73: 641777089
A74: ABA400 | B74: 0102021104 | C74: Crediti v/Regione o Provincia Autonoma per mobilità attiva intraregionale | D74: 1714216.77 | E74: 94245672.53 | F74: 94615942.91 | G74: 1343946.39 | H74: 98488215.59 | I74: 98575322.59
A75: ABA410 | B75: 0102021107 | C75: Crediti v/Regione o Provincia Autonoma per mobilità attiva extraregionale | D75: 19005500.29 | E75: 0 | F75: 0 | G75: 19005500.29 | H75: 17628432.4 | I75: 17628432.4
A76: ABA420 | B76: 0102021109 | C76: Crediti v/Regione o Provincia Autonoma per acconto quota FSR | D76: 0 | E76: 533673541 | F76: 533673541 | G76: 0 | H76: 546891755 | I76: 546891755
A77: ABA430 | B77: 0102021111 | C77: Crediti v/Regione o Provincia Autonoma per finanziamento sanitario aggiuntivo corrente LEA | D77: 8949031.21 | E77: 4734312.81 | F77: 1814869.13 | G77: 11868474.89 | H77: 5146816.37 | I77: 6631200.24
A78: ABA400 | B78: 0102021115 | C78: Netting mobilità intraregionale ante 2007 | D78: 15592903.99 | E78: 0 | F78: 0 | G78: 15592903.99 | H78: 0 | I78: 0
A79: ABA480 | B79: 0102021201 | C79: Crediti v/Regione o Provincia Autonoma per finanziamenti per investimenti | D79: 38255 | E79: 0 | F79: 0 | G79: 38255 | H79: 0 | I79: 0
A80: ABA500 | B80: 0102021203 | C80: Crediti v/Regione o Provincia Autonoma per ripiano perdite | D80: 0 | E80: 30778127.57 | F80: 9176068 | G80: 21602059.57 | H80: 14264710 | I80: 21602059.57
A81: ABA530 | B81: 0102021301 | C81: Crediti v/Comuni | D81: 104638.16 | E81: 30692.07 | F81: 52528.41 | G81: 82801.82 | H81: 115218.01 | I81: 34661.25
A82: ABA530 | B82: 0102021302 | C82: Fatture da emettere v/Comuni | D82: 1960.74 | E82: 5505.16 | F82: 1960.74 | G82: 5505.16 | H82: 58770.9 | I82: 5505.16
A83: ABA580 | B83: 0102021418 | C83: Crediti v/ASL Avezzano Sulmona L'Aquila per altre prestazioni | D83: 402921.36 | E83: 336718.25 | F83: 62226.18 | G83: 677413.43 | H83: 4655668.13 | I83: 4847041.6
A84: ABA580 | B84: 0102021419 | C84: Fatture da emettere v/ASL Avezzano Sulmona L'Aquila per altre prestazioni | D84: 53218.85 | E84: 18535.41 | F84: 53218.85 | G84: 18535.41 | H84: 8143.77 | I84: 18535.41
A85: ABA580 | B85: 0102021420 | C85: Crediti v/ASL Lanciano Vasto Chieti per altre prestazioni | D85: 169755.63 | E85: 113434.63 | F85: 1305.1 | G85: 281885.16 | H85: 127601.11 | I85: 175640.8
A86: ABA580 | B86: 0102021421 | C86: Fatture da emettere v/ASL Lanciano Vasto Chieti per altre prestazioni | D86: 53059.69 | E86: 5700.13 | F86: 53059.69 | G86: 5700.13 | H86: 1282.71 | I86: 5700.13
A87: ABA580 | B87: 0102021424 | C87: Crediti v/ASL Teramo per altre prestazioni | D87: 3993311.28 | E87: 18039.36 | F87: 5653.6 | G87: 4005697.04 | H87: 62418.61 | I87: 212668.34
A88: ABA580 | B88: 0102021425 | C88: Fatture da emettere v/ASL Teramo per altre prestazioni | D88: 868.42 | E88: 563.75 | F88: 868.42 | G88: 563.75 | H88: 5559.81 | I88: 563.75
A89: ABA600 | B89: 0102021601 | C89: Crediti v/Aziende sanitarie pubbliche Extraregione | D89: 138252.07 | E89: 192761.59 | F89: 177714.87 | G89: 153298.79 | H89: 161597.98 | I89: 186310.75
A90: ABA600 | B90: 0102021602 | C90: Fatture da emettere v/Aziende Sanitarie Pubbliche Extraregione | D90: 38052.37 | E90: 47833.03 | F90: 38052.37 | G90: 47833.03 | H90: 85649.52 | I90: 47833.03
A91: ABA620 | B91: 0102021701 | C91: Crediti v/ARTA | D91: 5931.31 | E91: 0 | F91: 0 | G91: 5931.31 | H91: 0 | I91: 0
A92: ABA650 | B92: 0102022001 | C92: Erario c/Ires | D92: 236 | E92: 0 | F92: 0 | G92: 236 | H92: 0 | I92: 236
A93: ABA650 | B93: 0102022002 | C93: Erario c/Ires per acconti versati | D93: 0 | E93: 426818 | F93: 426818 | G93: 0 | H93: 490066 | I93: 490066
A94: ABA650 | B94: 0102022003 | C94: Erario c/ritenute | D94: 70.45 | E94: 63.5 | F94: 0 | G94: 133.95 | H94: 6.45 | I94: 140.4
A95: ABA650 | B95: 0102022005 | C95: Erario c/Iva per acconti versati | D95: 41334 | E95: 10317 | F95: 41334 | G95: 10317 | H95: 6806 | I95: 10209
A96: ABA650 | B96: 0102022006 | C96: Erario c/Iva chiesta a rimborso | D96: 1295.04 | E96: 0 | F96: 0 | G96: 1295.04 | H96: 0 | I96: 0
A97: ABA650 | B97: 0102022011 | C97: Altri crediti verso Erario | D97: 25.17 | E97: 0 | F97: 0 | G97: 25.17 | H97: 0 | I97: 25.17
A98: ABA670 | B98: 0102022101 | C98: Crediti v/clienti privati | D98: 3799215.37 | E98: 10285829.43 | F98: 9602979.23 | G98: 4482065.57 | H98: 7010533.39 | I98: 6901036.57
A99: ABA670 | B99: 0102022102 | C99: Fatture da emettere v/clienti privati | D99: 249158.82 | E99: 434714.74 | F99: 249158.82 | G99: 434714.74 | H99: 190888.78 | I99: 434714.74
A100: ABA670 | B100: 0102022103 | C100: Crediti v/utenza per proventi da ticket | D100: 20248.17 | E100: 8062344.63 | F100: 8051830.96 | G100: 30761.84 | H100: 8483861.84 | I100: 8476602.5
A101: ABA670 | B101: 0102022109 | C101: Crediti v/dipendenti | D101: 145428.01 | E101: 40351.68 | F101: 72851.4 | G101: 112928.29 | H101: 168312.19 | I101: 203256.06
A102: ABA670 | B102: 0102022111 | C102: Acconti verso altri fornitori | D102: 0 | E102: 3094.45 | F102: 785.45 | G102: 2309 | H102: 0 | I102: 2309
A103: ABA690 | B103: 0102022301 | C103: Crediti v/altri soggetti pubblici | D103: 299742.47 | E103: 335927.17 | F103: 258538.24 | G103: 377131.4 | H103: 421422.51 | I103: 404603.36
A104: ABA690 | B104: 0102022302 | C104: Fatture da emettere v/altri soggetti pubblici | D104: 27160.09 | E104: 75.28 | F104: 27160.09 | G104: 75.28 | H104: 585.44 | I104: 75.28
A105: ABA710 | B105: 0102022501 | C105: Altri Crediti diversi | D105: 911358.57 | E105: 3934140.24 | F105: 3964361.76 | G105: 881137.05 | H105: 1921398.5 | I105: 1616680.59
A106: ABA710 | B106: 0102022502 | C106: Fatture da emettere v/Altri Crediti diversi | D106: 450 | E106: 0 | F106: 450 | G106: 0 | H106: 0 | I106: 0
A107: PDA220 | B107: 0102022626 | C107: Note credito da ricevere v/Aziende sanitarie pubbliche Extraregione | D107: 202 | E107: 60.85 | F107: 202 | G107: 60.85 | H107: 0 | I107: 60.85
A108: PDA290 | B108: 0102022634 | C108: Note di credito v/IRCCS privati e Policlinici | D108: 0 | E108: 130.68 | F108: 0 | G108: 130.68 | H108: 0 | I108: 130.68
A109: PDA290 | B109: 0102022636 | C109: Note credito da ricevere v/Case di Cura | D109: 59323.38 | E109: 11856.03 | F109: 59323.38 | G109: 11856.03 | H109: 1930071.03 | I109: 11856.03
A110: PDA290 | B110: 0102022637 | C110: Note credito da ricevere v/altri erogatori di prestazioni sanitarie - intraregione | D110: 41981477.01 | E110: 737669.4 | F110: 10253994.99 | G110: 32465151.42 | H110: 101316.42 | I110: 5232350.32
A111: PDA300 | B111: 0102022638 | C111: Note credito da ricevere verso altri fornitori nazionali | D111: 1364285.7 | E111: 1988690.31 | F111: 1364285.7 | G111: 1988690.31 | H111: 1123439.08 | I111: 1988690.31
A112: PDA300 | B112: 0102022639 | C112: Note credito da ricevere verso altri fornitori esteri | D112: 0 | E112: 0 | F112: 0 | G112: 0 | H112: 6362 | I112: 0
A113: PDA380 | B113: 0102022641 | C113: Note credito da ricevere per altri debiti diversi | D113: 1873.25 | E113: 295.04 | F113: 1873.25 | G113: 295.04 | H113: 5013.58 | I113: 295.04
A114: ABA760 | B114: 0102040101 | C114: Cassa ticket | D114: 15000 | E114: 5000 | F114: 0 | G114: 20000 | H114: 0 | I114: 0
A115: ABA760 | B115: 0102040102 | C115: Cassa economale | D115: 0 | E115: 46151.06 | F115: 46151.06 | G115: 0 | H115: 90884.92 | I115: 90884.92
A116: ABA770 | B116: 0102040201 | C116: Istituto Tesoriere | D116: 94407697.02 | E116: 560795482.8 | F116: 628313295.5 | G116: 26889884.4 | H116: 674025083 | I116: 631356001
A117: ABA790 | B117: 0102040401 | C117: Conto corrente postale | D117: 274575.8 | E117: 1897097.44 | F117: 601666.5 | G117: 1570006.74 | H117: 1732809.77 | I117: 75200.34
A118: ACA040 | B118: 0103020101 | C118: Risconti attivi | D118: 1890279.2 | E118: 1502862.22 | F118: 1890279.2 | G118: 1502862.22 | H118: 8698.51 | I118: 1502862.22
A119: ADA000 | B119: 0104010101 | C119: Canoni di leasing ancora da pagare | D119: 986370 | E119: 0 | F119: 986370 | G119: 0 | H119: 0 | I119: 0
A120: PAA020 | B120: 0201020101 | C120: Finanziamenti per beni di prima dotazione | D120: 70863817.6 | E120: 0 | F120: 3577467.93 | G120: 67286349.67 | H120: 0 | I120: 3577467.93
A121: PAA070 | B121: 0201020501 | C121: Finanziamenti da Regione per investimenti | D121: 40355049.81 | E121: 122240 | F121: 1574332.01 | G121: 38902957.8 | H121: 122252.5 | I121: 1468544.84
A122: PAA090 | B122: 0201020701 | C122: Finanziamenti per investimenti da rettifica contributi in conto esercizio | D122: 10633348.64 | E122: 8787559.11 | F122: 3299309.48 | G122: 16121598.27 | H122: 6506318.89 | I122: 4730694.31
A123: PAA100 | B123: 0201030101 | C123: Riserve da donazioni e lasciti vincolati ad investimenti | D123: 205856.51 | E123: 20519.15 | F123: 55380.81 | G123: 170994.85 | H123: 78486.47 | I123: 48286.07
A124: PAA160 | B124: 0201040501 | C124: Riserve diverse | D124: 0 | E124: 2730000 | F124: 0 | G124: 2730000 | H124: 0 | I124: 0
A125: PAA200 | B125: 0201050301 | C125: Altro - contributi per ripiano perdite | D125: 0 | E125: 30778127.57 | F125: 0 | G125: 30778127.57 | H125: 14264710 | I125: 30778127.57
A126: PAA210 | B126: 0201060101 | C126: UTILI PORTATI A NUOVO | D126: 17537176.26 | E126: 0 | F126: 17537176.26 | G126: 0 | H126: 0 | I126: 0
A127: PAA210 | B127: 0201060102 | C127: PERDITE PORTATI A NUOVO | D127: 0 | E127: 0 | F127: 30778127.57 | G127: -30778127.57 | H127: 30778127.57 | I127: 14264709.56
A128: PAA220 | B128: 0201070102 | C128: PERDITA D'ESERCIZIO | D128: -30778127.57 | E128: 30778127.57 | F128: 14264709.56 | G128: -14264709.56 | H128: 14264709.56 | I128: 13609624.26
A129: AAA150 | B129: 0202010601 | C129: F.do Amm.to licenze d'uso software | D129: -1459747.82 | E129: -105301.39 | F129: -6424.06 | G129: -1558625.15 | H129: -136552.39 | I129: 0
A130: AAA370 | B130: 0202020301 | C130: F.do Amm.to Fabbricati strumentali (indisponibili) | D130: -80941200.24 | E130: -4970287.05 | F130: 0 | G130: -85911487.29 | H130: -4970287.05 | I130: 0
A131: AAA400 | B131: 0202020701 | C131: F.do ammortamento macchinari generici | D131: -4631648.04 | E131: -256690.95 | F131: -244.8 | G131: -4888094.19 | H131: -263002.39 | I131: 0
A132: AAA430 | B132: 0202021001 | C132: F.do Amm.to Attrezzature generiche | D132: -66200383.81 | E132: -2925362.99 | F132: -2791997.79 | G132: -66333749.01 | H132: -4163720.13 | I132: -70.78
A133: AAA460 | B133: 0202021201 | C133: F.do Amm.to mobili e arredi | D133: -8512357.85 | E133: -363135.86 | F133: -152898.04 | G133: -8722595.67 | H133: -361188.29 | I133: 0
A134: AAA490 | B134: 0202021701 | C134: F.do Amm.to Altri mezzi di trasporto | D134: -1566393 | E134: -102573.35 | F134: -63157.24 | G134: -1605809.11 | H134: -122740.86 | I134: 0
A135: AAA530 | B135: 0202022001 | C135: F.do Amm.to computer e macchinari elettronici | D135: -4553005.97 | E135: -232801.69 | F135: -152751.62 | G135: -4633056.04 | H135: -228512.78 | I135: -2012.8
A136: AAA530 | B136: 0202022101 | C136: F.do Amm.to altri beni materiali | D136: -363569.19 | E136: -21260.63 | F136: -5066.79 | G136: -379763.03 | H136: -16373.87 | I136: 0
A137: ABA580 | B137: 0202030518 | C137: F.do svalutazione Crediti v/Aziende sanitarie pubbliche della Regione | D137: -3259926.7 | E137: 0 | F137: 0 | G137: -3259926.7 | H137: 0 | I137: 0
A138: ABA670 | B138: 0202030524 | C138: F.do svalutazione crediti verso clienti privati | D138: -2874726.99 | E138: 0 | F138: 0 | G138: -2874726.99 | H138: 0 | I138: 0
A139: ABA710 | B139: 0202030528 | C139: F.do svalutazione altri crediti diversi | D139: 0 | E139: 0 | F139: 0 | G139: 0 | H139: -300000 | I139: 0
A140: ABA390 | B140: 0202030529 | C140: F.do svalutazione crediti v/Regione o Provincia Autonoma per quota FSR | D140: -3047520.97 | E140: 0 | F140: 0 | G140: -3047520.97 | H140: 0 | I140: 0
A141: PBA000 | B141: 0203010101 | C141: Fondi per imposte, anche differite | D141: -205513.69 | E141: 0 | F141: -205513.69 | G141: 0 | H141: 0 | I141: 0
A142: PBA020 | B142: 0203020101 | C142: Fondo rischi per cause civili ed oneri processuali | D142: -7400000 | E142: -2008370.76 | F142: -2258370.76 | G142: -7150000 | H142: -9280260.16 | I142: -165038.16
A143: PBA030 | B143: 0203020201 | C143: Fondo rischi per contenzioso personale dipendente | D143: -1000000 | E143: -666865.78 | F143: -416865.78 | G143: -1250000 | H143: -563110.28 | I143: -563110.28
A144: PBA040 | B144: 0203020301 | C144: Fondo rischi connessi all'acquisto di prestazioni sanitarie da privato | D144: -29269594.19 | E144: 0 | F144: -6639211.85 | G144: -22630382.34 | H144: -4358962 | I144: -3664507.83
A145: PBA050 | B145: 0203020401 | C145: Fondo rischi per copertura diretta dei rischi (autoassicurazione) | D145: -4500000 | E145: -3681140.26 | F145: -2681140.26 | G145: -5500000 | H145: -3111381.31 | I145: -3111381.31
A146: PBA160 | B146: 0203040101 | C146: Quote inutilizzate contributi da Regione o Prov. Aut. per quota F.S. vincolato | D146: -841520.06 | E146: 0 | F146: -841520.06 | G146: 0 | H146: 0 | I146: 0
A147: PBA160 | B147: 0203040113 | C147: Quote inutilizzate contributi da Regione per Progetti di PSN L 662/96 | D147: -29027060.89 | E147: -4021566.65 | F147: -2738576.76 | G147: -30310050.78 | H147: -7206482.55 | I147: -5006728.56
A148: PBA160 | B148: 0203040118 | C148: Quote inutilizzate contributi da Regione per quota gioco d'azzardo Patologico (GAP) Legge 190/2014 e ss.mm.ii. | D148: 0 | E148: 0 | F148: 0 | G148: 0 | H148: -220805 | I148: 0
A149: PBA170 | B149: 0203040201 | C149: Quote inutilizzate contributi vincolati da soggetti pubblici (extra fondo) | D149: -299262.65 | E149: -180605.96 | F149: -299262.65 | G149: -180605.96 | H149: -50302.4 | I149: -92452.46
A150: PBA210 | B150: 0203050101 | C150: Fondi integrativi pensione | D150: 0 | E150: 0 | F150: 0 | G150: 0 | H150: 0 | I150: 0
A151: PBA230 | B151: 0203050201 | C151: Fondo rinnovi contrattuali personale dipendente | D151: 0 | E151: -675624 | F151: 0 | G151: -675624 | H151: -1841073 | I151: 0
A152: PBA240 | B152: 0203050301 | C152: Fondo rinnovi convenzioni MMG/PLS/MCA | D152: -2746621.15 | E152: -407348 | F152: 0 | G152: -3153969.15 | H152: -653733 | I152: 0
A153: PBA250 | B153: 0203050401 | C153: Fondo rinnovi convenzioni medici Sumai | D153: -87267 | E153: -48849 | F153: 0 | G153: -136116 | H153: -82934 | I153: 0
A154: PCA000 | B154: 0204010101 | C154: Fondo per premi operosità medici SUMAI | D154: -2082932.89 | E154: -225172.71 | F154: -112162.58 | G154: -2195943.02 | H154: -223015.56 | I154: -217866.17
A155: PDA090 | B155: 0205030201 | C155: Debiti v/Regione o Provincia Autonoma per mobilità passiva intraregionale | D155: -21161062.01 | E155: -51326737.91 | F155: -51721455.34 | G155: -20766344.58 | H155: -51271679.93 | I155: -51272368.93
A156: PDA100 | B156: 0205030301 | C156: Debiti v/Regione o Provincia Autonoma per mobilità passiva extraregionale | D156: -9530548.09 | E156: 0 | F156: 0 | G156: -9530548.09 | H156: -57173157.46 | I156: -57173157.46
A157: PDA110 | B157: 0205030401 | C157: Acconto quota FSR da Regione o Provincia Autonoma | D157: 0 | E157: -533673541 | F157: -533673541 | G157: 0 | H157: -546891755 | I157: -546891755
A158: PDA120 | B158: 0205030501 | C158: Altri debiti v/Regione o Provincia Autonoma | D158: -9176068.75 | E158: -17537176 | F158: -26713244.75 | G158: 0 | H158: -983421148.7 | I158: -983421148.7
A159: PDA130 | B159: 0205040101 | C159: Debiti v/Comuni | D159: -150000 | E159: 0 | F159: 0 | G159: -150000 | H159: 0 | I159: 0
A160: PDA210 | B160: 0205050601 | C160: Debiti v/ASL Avezzano Sulmona L'Aquila per altre prestazioni | D160: -180212.98 | E160: -227138.82 | F160: -340225.52 | G160: -67126.28 | H160: -272401.8 | I160: -74123.62
A161: PDA210 | B161: 0205050602 | C161: Fatture da ricevere v/ASL Avezzano Sulmona L'Aquila per altre prestazioni | D161: -75971.99 | E161: -198130.85 | F161: -75971.99 | G161: -198130.85 | H161: -84346.32 | I161: -198130.85
A162: PDA210 | B162: 0205050603 | C162: Debiti v/ASL Lanciano Vasto Chieti per altre prestazioni | D162: -38840.86 | E162: -114253.79 | F162: -82872.25 | G162: -70222.4 | H162: -58278.06 | I162: -69229.15
A163: PDA210 | B163: 0205050604 | C163: Fatture da ricevere v/ASL Lanciano Vasto Chieti per altre prestazioni | D163: -26285.81 | E163: -27859.87 | F163: -26285.81 | G163: -27859.87 | H163: -23505.12 | I163: -27859.87
A164: PDA210 | B164: 0205050607 | C164: Debiti v/ASL Teramo per altre prestazioni | D164: -1613366.91 | E164: -150282.8 | F164: -22760.93 | G164: -1740888.78 | H164: -280639.09 | I164: -94079
A165: PDA210 | B165: 0205050608 | C165: Fatture da ricevere v/ASL Teramo per altre prestazioni | D165: -140054.33 | E165: -32310.93 | F165: -140054.33 | G165: -32310.93 | H165: -29786 | I165: -32310.93
A166: PDA220 | B166: 0205050701 | C166: Debiti v/Aziende sanitarie pubbliche Extraregione | D166: -124910.91 | E166: -405823.74 | F166: -378069.99 | G166: -152664.66 | H166: -207261.11 | I166: -265226.41
A167: PDA220 | B167: 0205050702 | C167: Fatture da ricevere v/Aziende sanitarie pubbliche Extraregione | D167: -34471.89 | E167: -36898.55 | F167: -34471.89 | G167: -36898.55 | H167: -15263.65 | I167: -36898.55
A168: PDA220 | B168: 0205050703 | C168: Debiti v/Aziende Ospedaliere, IRCCS, Policlinici, Fondazioni Extraregione | D168: -55493 | E168: -61987.95 | F168: -87165.31 | G168: -30315.64 | H168: -81219.11 | I168: -54298.28
A169: PDA220 | B169: 0205050704 | C169: Fatture da ricevere v/Aziende Ospedaliere, IRCCS, Policlinici, Fondazioni Extraregione | D169: -23282.01 | E169: -35195.34 | F169: -23282.01 | G169: -35195.34 | H169: -33826.42 | I169: -35195.34
A170: PDA250 | B170: 0205060105 | C170: Debiti v/altri enti regionali | D170: -7311.52 | E170: -13241.9 | F170: -20553.42 | G170: 0 | H170: 0 | I170: 0
A171: PDA290 | B171: 0205070101 | C171: Debiti v/medici di base | D171: -1904301.11 | E171: -22756730.2 | F171: -22774999.76 | G171: -1886031.55 | H171: -22027402.87 | I171: -22164628.67
A172: PDA290 | B172: 0205070102 | C172: Debiti v/farmacie | D172: -6852235.67 | E172: -52586498.33 | F172: -51738705.24 | G172: -7700028.76 | H172: -52286610.91 | I172: -56980917.47
A173: PDA290 | B173: 0205070103 | C173: Debiti v/medici SUMAI | D173: 0 | E173: -2882899.79 | F173: -2882899.79 | G173: 0 | H173: -2870787.24 | I173: -2870787.23
A174: PDA290 | B174: 0205070107 | C174: Fatture da ricevere v/Ospedali Classificati | D174: 0 | E174: 0 | F174: 0 | G174: 0 | H174: -9382.08 | I174: 0
A175: PDA290 | B175: 0205070108 | C175: Debiti v/Case di Cura | D175: -24298118.51 | E175: -92785612.48 | F175: -90370658.53 | G175: -26713072.46 | H175: -90789013.55 | I175: -88317822.11
A176: PDA290 | B176: 0205070109 | C176: Fatture da ricevere v/Case di Cura | D176: -11479360.48 | E176: -7968416.62 | F176: -11479360.48 | G176: -7968416.62 | H176: -7390453.02 | I176: -7968416.62
A177: PDA290 | B177: 0205070110 | C177: Debiti v/altri erogatori di prestazioni sanitarie - intraregione | D177: -83694158.01 | E177: -31669823.2 | F177: -39064390.72 | G177: -76299590.49 | H177: -29383017.21 | I177: -46042284.13
A178: PDA290 | B178: 0205070111 | C178: Fatture da ricevere v/altri erogatori di prestazioni sanitarie - intraregione | D178: -3007372.21 | E178: -2785600.51 | F178: -3007372.21 | G178: -2785600.51 | H178: -2195879.32 | I178: -2785600.51
A179: PDA300 | B179: 0205070201 | C179: Debiti verso altri fornitori nazionali | D179: -27726601.77 | E179: -277859292.9 | F179: -271296475.9 | G179: -34289418.84 | H179: -287511239.1 | I179: -283661530.7
A180: PDA300 | B180: 0205070202 | C180: Fatture da ricevere verso altri fornitori nazionali | D180: -13625295.27 | E180: -9359359.11 | F180: -13625295.27 | G180: -9359359.11 | H180: -14638757.89 | I180: -9359359.11
A181: PDA300 | B181: 0205070203 | C181: Debiti verso altri fornitori esteri | D181: -51597.87 | E181: -1409173.81 | F181: -1427106.84 | G181: -33664.84 | H181: -1046725.94 | I181: -1025764.24
A182: PDA300 | B182: 0205070204 | C182: Fatture da ricevere verso altri fornitori esteri | D182: -78709.97 | E182: -127330.11 | F182: -78709.97 | G182: -127330.11 | H182: -51772.21 | I182: -127330.11
A183: PDA300 | B183: 0205070205 | C183: Debiti verso professionisti e collaboratori (ad esclusione degli organi diretti) | D183: -28474.26 | E183: -548603.25 | F183: -562683.36 | G183: -14394.15 | H183: -416392.57 | I183: -350886.89
A184: PDA310 | B184: 0205080101 | C184: Debiti v/istituto tesoriere | D184: 0 | E184: 0 | F184: 0 | G184: 0 | H184: 0 | I184: 0
A185: PDA320 | B185: 0205090101 | C185: Erario c/Ires | D185: 0 | E185: -498944 | F185: -498944 | G185: 0 | H185: -557806.42 | I185: -557806.42
A186: PDA320 | B186: 0205090102 | C186: Erario c/ritenute su lavoro autonomo | D186: -489322.42 | E186: -6270491.08 | F186: -6266548.26 | G186: -493265.24 | H186: -6154670.93 | I186: -6175742
A187: PDA320 | B187: 0205090103 | C187: Erario c/ritenute su lavoro dipendente | D187: -798354.68 | E187: -34359982.07 | F187: -34314336.01 | G187: -844000.74 | H187: -33463877.68 | I187: -33517252.37
A188: PDA320 | B188: 0205090104 | C188: Erario c/I.V.A. | D188: -1935344.73 | E188: -24544141.04 | F188: -23689436.31 | G188: -2790049.46 | H188: -24692527.18 | I188: -25900361.96
A189: PDA320 | B189: 0205090105 | C189: Erario c/Irap | D189: -232110.74 | E189: -12684805.15 | F189: -12699204.4 | G189: -217711.49 | H189: -12241857.25 | I189: -12229581.37
A190: PDA320 | B190: 0205090106 | C190: Altre imposte e tasse | D190: -900174 | E190: -63004.93 | F190: -934399 | G190: -28779.93 | H190: 0 | I190: -28779.93
A191: PDA330 | B191: 0205100101 | C191: Debiti verso INPDAP | D191: -593629.72 | E191: -49155510.62 | F191: -49037732.73 | G191: -711407.61 | H191: -48238495.86 | I191: -48109591.21
A192: PDA330 | B192: 0205100102 | C192: Debiti verso INPS lavoratori dipendenti | D192: -346.95 | E192: -252187.59 | F192: -251748.95 | G192: -785.59 | H192: -253039.95 | I192: -253200.01
A193: PDA330 | B193: 0205100104 | C193: Debiti verso INAIL | D193: 0 | E193: -1624419.64 | F193: -1620242.19 | G193: -4177.45 | H193: -1695871.72 | I193: -1700049.17
A194: PDA330 | B194: 0205100105 | C194: Debiti verso ENPAM | D194: -477449.09 | E194: -8415311.9 | F194: -8382252.45 | G194: -510508.54 | H194: -8593062.7 | I194: -8554648.12
A195: PDA330 | B195: 0205100106 | C195: Debiti verso ONAOSI | D195: -55836.55 | E195: -113386.95 | F195: -114361.03 | G195: -54862.47 | H195: -111905.78 | I195: -112752.96
A196: PDA330 | B196: 0205100107 | C196: Debiti verso altri Istituti Previdenziali | D196: -130579.01 | E196: -646160.81 | F196: -665933.77 | G196: -110806.05 | H196: -646338.15 | I196: -682489.79
A197: PDA360 | B197: 0205110203 | C197: Debiti verso personale retribuzioni esercizi precedenti | D197: 0 | E197: -283633.54 | F197: 0 | G197: -283633.54 | H197: -447192.1 | I197: -143843.88
A198: PDA360 | B198: 0205110204 | C198: Debiti verso il personale dipendente per fondi aziendali esercizi precedenti | D198: -12933734.98 | E198: -9641244.13 | F198: -9920312.63 | G198: -12654666.48 | H198: -8508847.99 | I198: -10201928.81
A199: PDA360 | B199: 0205110206 | C199: Altri debiti verso il personale per ferie maturate e non godute | D199: -20739.9 | E199: -35585.98 | F199: -34325.88 | G199: -22000 | H199: -75182.12 | I199: -22000
A200: PDA360 | B200: 0205110207 | C200: Altri debiti verso il personale dipendente | D200: -2195984.29 | E200: -2335769699 | F200: -2335907552 | G200: -2058131.25 | H200: -87054195.27 | I200: -86880830.62
A201: PDA370 | B201: 0205110301 | C201: Debiti v/gestioni liquidatorie | D201: -19594.54 | E201: 0 | F201: -19594.54 | G201: 0 | H201: 0 | I201: 0
A202: PDA380 | B202: 0205110402 | C202: Debiti verso organi direttivi e istituzionali | D202: 0 | E202: -213370.93 | F202: -206506.85 | G202: -6864.08 | H202: -191036.95 | I202: -195883.3
... 8 more rows

Sheet 00 PDC SP
C2: ANNO | F2: 2017
A4: Aggr | C4: Cod SP 2012 | D4: RF | E4: TIPO | F4: Conto | G4: Descrizione Conto | H4: =IF($F$2="","Saldo SP T-2","Esercizio "&F2-2) -> Esercizio 2015 | I4: =IF($F$2="","Incrementi T-1","Incrementi "&$F$2-1) -> Incrementi 2016 | J4: =IF($F$2="","Decrementi T-1","Decrementi "&$F$2-1) -> Decrementi 2016 | K4: =IF($F$2="","Saldo SP T-1","Esercizio "&$F$2-1) -> Esercizio 2016 | L4: =IF($F$2="","Incrementi T","Incrementi "&$F$2) -> Incrementi 2017 | M4: =IF($F$2="","Decrementi T","Decrementi "&$F$2) -> Decrementi 2017 | N4: =IF($F$2="","Saldo SP T","Esercizio "&$F$2) -> Esercizio 2017
A5: =IF(E5="",C5,C5&E5) -> AAA020 | B5: =LEFT(C5,2) -> AA | C5: AAA020 | D5: 34 | F5: 0101010101 | G5: Costi di impianto e di ampliamento | H5: =SUMIF('00 Alimenta'!$B:$B,'00 PDC SP'!$F5,'00 Alimenta'!D:D) -> 0 | I5: =SUMIF('00 Alimenta'!$B:$B,'00 PDC SP'!$F5,'00 Alimenta'!E:E) -> 0 | J5: =SUMIF('00 Alimenta'!$B:$B,'00 PDC SP'!$F5,'00 Alimenta'!F:F) -> 0 | K5: =SUMIF('00 Alimenta'!$B:$B,'00 PDC SP'!$F5,'00 Alimenta'!G:G) -> 0 | L5: =SUMIF('00 Alimenta'!$B:$B,'00 PDC SP'!$F5,'00 Alimenta'!H:H) -> 0 | M5: =SUMIF('00 Alimenta'!$B:$B,'00 PDC SP'!$F5,'00 Alimenta'!I:I) -> 0 | N5: =K5+L5-M5 -> 0
A6: =IF(E6="",C6,C6&E6) -> AAA050 | B6: =LEFT(C6,2) -> AA | C6: AAA050 | D6: 35 | F6: 0101010201 | G6: Costi di ricerca e sviluppo | H6: =SUMIF('00 Alimenta'!$B:$B,'00 PDC SP'!$F6,'00 Alimenta'!D:D) -> 0 | I6: =SUMIF('00 Alimenta'!$B:$B,'00 PDC SP'!$F6,'00 Alimenta'!E:E) -> 0 | J6: =SUMIF('00 Alimenta'!$B:$B,'00 PDC SP'!$F6,'00 Alimenta'!F:F) -> 0 | K6: =SUMIF('00 Alimenta'!$B:$B,'00 PDC SP'!$F6,'00 Alimenta'!G:G) -> 0 | L6: =SUMIF('00 Alimenta'!$B:$B,'00 PDC SP'!$F6,'00 Alimenta'!H:H) -> 0 | M6: =SUMIF('00 Alimenta'!$B:$B,'00 PDC SP'!$F6,'00 Alimenta'!I:I) -> 0 | N6: =K6+L6-M6 -> 0
A7: AAA080 | B7: AA | C7: AAA080 | D7: 36 | F7: 0101010301 | G7: Diritti di brevetto e diritti di utilizzazione delle opere d'ingegno - derivanti dall'attività di ricerca | H7: =SUMIF('00 Alimenta'!$B:$B,'00 PDC SP'!$F7,'00 Alimenta'!D:D) -> 0 | I7: =SUMIF('00 Alimenta'!$B:$B,'00 PDC SP'!$F7,'00 Alimenta'!E:E) -> 0 | J7: =SUMIF('00 Alimenta'!$B:$B,'00 PDC SP'!$F7,'00 Alimenta'!F:F) -> 0 | K7: =SUMIF('00 Alimenta'!$B:$B,'00 PDC SP'!$F7,'00 Alimenta'!G:G) -> 0 | L7: =SUMIF('00 Alimenta'!$B:$B,'00 PDC SP'!$F7,'00 Alimenta'!H:H) -> 0 | M7: =SUMIF('00 Alimenta'!$B:$B,'00 PDC SP'!$F7,'00 Alimenta'!I:I) -> 0 | N7: 0
A8: AAA100 | B8: AA | C8: AAA100 | D8: 36 | F8: 0101010401 | G8: Diritti di brevetto e diritti di utilizzazione delle opere d'ingegno - altri | H8: =SUMIF('00 Alimenta'!$B:$B,'00 PDC SP'!$F8,'00 Alimenta'!D:D) -> 0 | I8: =SUMIF('00 Alimenta'!$B:$B,'00 PDC SP'!$F8,'00 Alimenta'!E:E) -> 0 | J8: =SUMIF('00 Alimenta'!$B:$B,'00 PDC SP'!$F8,'00 Alimenta'!F:F) -> 0 | K8: =SUMIF('00 Alimenta'!$B:$B,'00 PDC SP'!$F8,'00 Alimenta'!G:G) -> 0 | L8: =SUMIF('00 Alimenta'!$B:$B,'00 PDC SP'!$F8,'00 Alimenta'!H:H) -> 0 | M8: =SUMIF('00 Alimenta'!$B:$B,'00 PDC SP'!$F8,'00 Alimenta'!I:I) -> 0 | N8: 0
A9: AAA120 | B9: AA | C9: AAA120 | D9: 37 | F9: 0101010501 | G9: Immobilizzazioni immateriali in corso | H9: =SUMIF('00 Alimenta'!$B:$B,'00 PDC SP'!$F9,'00 Alimenta'!D:D) -> 0 | I9: =SUMIF('00 Alimenta'!$B:$B,'00 PDC SP'!$F9,'00 Alimenta'!E:E) -> 0 | J9: =SUMIF('00 Alimenta'!$B:$B,'00 PDC SP'!$F9,'00 Alimenta'!F:F) -> 0 | K9: =SUMIF('00 Alimenta'!$B:$B,'00 PDC SP'!$F9,'00 Alimenta'!G:G) -> 0 | L9: =SUMIF('00 Alimenta'!$B:$B,'00 PDC SP'!$F9,'00 Alimenta'!H:H) -> 0 | M9: =SUMIF('00 Alimenta'!$B:$B,'00 PDC SP'!$F9,'00 Alimenta'!I:I) -> 0 | N9: 0
A10: AAA120 | B10: AA | C10: AAA120 | D10: 37 | F10: 0101010502 | G10: Acconti su future acquisizioni immobilizzazioni immateriali | H10: =SUMIF('00 Alimenta'!$B:$B,'00 PDC SP'!$F10,'00 Alimenta'!D:D) -> 0 | I10: =SUMIF('00 Alimenta'!$B:$B,'00 PDC SP'!$F10,'00 Alimenta'!E:E) -> 0 | J10: =SUMIF('00 Alimenta'!$B:$B,'00 PDC SP'!$F10,'00 Alimenta'!F:F) -> 0 | K10: =SUMIF('00 Alimenta'!$B:$B,'00 PDC SP'!$F10,'00 Alimenta'!G:G) -> 0 | L10: =SUMIF('00 Alimenta'!$B:$B,'00 PDC SP'!$F10,'00 Alimenta'!H:H) -> 0 | M10: =SUMIF('00 Alimenta'!$B:$B,'00 PDC SP'!$F10,'00 Alimenta'!I:I) -> 0 | N10: 0
A11: AAA140 | B11: AA | C11: AAA140 | D11: 38 | F11: 0101010601 | G11: Concessioni pluriennali | H11: =SUMIF('00 Alimenta'!$B:$B,'00 PDC SP'!$F11,'00 Alimenta'!D:D) -> 0 | I11: =SUMIF('00 Alimenta'!$B:$B,'00 PDC SP'!$F11,'00 Alimenta'!E:E) -> 0 | J11: =SUMIF('00 Alimenta'!$B:$B,'00 PDC SP'!$F11,'00 Alimenta'!F:F) -> 0 | K11: =SUMIF('00 Alimenta'!$B:$B,'00 PDC SP'!$F11,'00 Alimenta'!G:G) -> 0 | L11: =SUMIF('00 Alimenta'!$B:$B,'00 PDC SP'!$F11,'00 Alimenta'!H:H) -> 0 | M11: =SUMIF('00 Alimenta'!$B:$B,'00 PDC SP'!$F11,'00 Alimenta'!I:I) -> 0 | N11: 0
A12: AAA140 | B12: AA | C12: AAA140 | D12: 38 | F12: 0101010602 | G12: Licenze d'uso software | H12: =SUMIF('00 Alimenta'!$B:$B,'00 PDC SP'!$F12,'00 Alimenta'!D:D) -> 1810825.53 | I12: =SUMIF('00 Alimenta'!$B:$B,'00 PDC SP'!$F12,'00 Alimenta'!E:E) -> 181030.9 | J12: =SUMIF('00 Alimenta'!$B:$B,'00 PDC SP'!$F12,'00 Alimenta'!F:F) -> 6424.06 | K12: =SUMIF('00 Alimenta'!$B:$B,'00 PDC SP'!$F12,'00 Alimenta'!G:G) -> 1985432.37 | L12: =SUMIF('00 Alimenta'!$B:$B,'00 PDC SP'!$F12,'00 Alimenta'!H:H) -> 209841.59 | M12: =SUMIF('00 Alimenta'!$B:$B,'00 PDC SP'!$F12,'00 Alimenta'!I:I) -> 7129.38 | N12: 2188144.58
A13: AAA140 | B13: AA | C13: AAA140 | D13: 38 | F13: 0101010603 | G13: Marchi e diritti simili | H13: =SUMIF('00 Alimenta'!$B:$B,'00 PDC SP'!$F13,'00 Alimenta'!D:D) -> 0 | I13: =SUMIF('00 Alimenta'!$B:$B,'00 PDC SP'!$F13,'00 Alimenta'!E:E) -> 0 | J13: =SUMIF('00 Alimenta'!$B:$B,'00 PDC SP'!$F13,'00 Alimenta'!F:F) -> 0 | K13: =SUMIF('00 Alimenta'!$B:$B,'00 PDC SP'!$F13,'00 Alimenta'!G:G) -> 0 | L13: =SUMIF('00 Alimenta'!$B:$B,'00 PDC SP'!$F13,'00 Alimenta'!H:H) -> 0 | M13: =SUMIF('00 Alimenta'!$B:$B,'00 PDC SP'!$F13,'00 Alimenta'!I:I) -> 0 | N13: 0
A14: AAA160 | B14: AA | C14: AAA160 | D14: 38 | F14: 0101010701 | G14: Migliorie su beni di terzi | H14: =SUMIF('00 Alimenta'!$B:$B,'00 PDC SP'!$F14,'00 Alimenta'!D:D) -> 0 | I14: =SUMIF('00 Alimenta'!$B:$B,'00 PDC SP'!$F14,'00 Alimenta'!E:E) -> 0 | J14: =SUMIF('00 Alimenta'!$B:$B,'00 PDC SP'!$F14,'00 Alimenta'!F:F) -> 0 | K14: =SUMIF('00 Alimenta'!$B:$B,'00 PDC SP'!$F14,'00 Alimenta'!G:G) -> 0 | L14: =SUMIF('00 Alimenta'!$B:$B,'00 PDC SP'!$F14,'00 Alimenta'!H:H) -> 0 | M14: =SUMIF('00 Alimenta'!$B:$B,'00 PDC SP'!$F14,'00 Alimenta'!I:I) -> 0 | N14: 0
A15: AAA180 | B15: AA | C15: AAA180 | D15: 38 | F15: 0101010801 | G15: Pubblicità | H15: =SUMIF('00 Alimenta'!$B:$B,'00 PDC SP'!$F15,'00 Alimenta'!D:D) -> 0 | I15: =SUMIF('00 Alimenta'!$B:$B,'00 PDC SP'!$F15,'00 Alimenta'!E:E) -> 0 | J15: =SUMIF('00 Alimenta'!$B:$B,'00 PDC SP'!$F15,'00 Alimenta'!F:F) -> 0 | K15: =SUMIF('00 Alimenta'!$B:$B,'00 PDC SP'!$F15,'00 Alimenta'!G:G) -> 0 | L15: =SUMIF('00 Alimenta'!$B:$B,'00 PDC SP'!$F15,'00 Alimenta'!H:H) -> 0 | M15: =SUMIF('00 Alimenta'!$B:$B,'00 PDC SP'!$F15,'00 Alimenta'!I:I) -> 0 | N15: 0
A16: AAA200 | B16: AA | C16: AAA200 | D16: 38 | F16: 0101010901 | G16: Altre immobilizzazioni immateriali | H16: =SUMIF('00 Alimenta'!$B:$B,'00 PDC SP'!$F16,'00 Alimenta'!D:D) -> 0 | I16: =SUMIF('00 Alimenta'!$B:$B,'00 PDC SP'!$F16,'00 Alimenta'!E:E) -> 0 | J16: =SUMIF('00 Alimenta'!$B:$B,'00 PDC SP'!$F16,'00 Alimenta'!F:F) -> 0 | K16: =SUMIF('00 Alimenta'!$B:$B,'00 PDC SP'!$F16,'00 Alimenta'!G:G) -> 0 | L16: =SUMIF('00 Alimenta'!$B:$B,'00 PDC SP'!$F16,'00 Alimenta'!H:H) -> 0 | M16: =SUMIF('00 Alimenta'!$B:$B,'00 PDC SP'!$F16,'00 Alimenta'!I:I) -> 0 | N16: 0
A17: AAA290 | B17: AA | C17: AAA290 | D17: 39 | F17: 0101020101 | G17: Terreni disponibili | H17: =SUMIF('00 Alimenta'!$B:$B,'00 PDC SP'!$F17,'00 Alimenta'!D:D) -> 0 | I17: =SUMIF('00 Alimenta'!$B:$B,'00 PDC SP'!$F17,'00 Alimenta'!E:E) -> 0 | J17: =SUMIF('00 Alimenta'!$B:$B,'00 PDC SP'!$F17,'00 Alimenta'!F:F) -> 0 | K17: =SUMIF('00 Alimenta'!$B:$B,'00 PDC SP'!$F17,'00 Alimenta'!G:G) -> 0 | L17: =SUMIF('00 Alimenta'!$B:$B,'00 PDC SP'!$F17,'00 Alimenta'!H:H) -> 0 | M17: =SUMIF('00 Alimenta'!$B:$B,'00 PDC SP'!$F17,'00 Alimenta'!I:I) -> 0 | N17: 0
A18: AAA300 | B18: AA | C18: AAA300 | D18: 39 | F18: 0101020102 | G18: Terreni indisponibili | H18: =SUMIF('00 Alimenta'!$B:$B,'00 PDC SP'!$F18,'00 Alimenta'!D:D) -> 942655.12 | I18: =SUMIF('00 Alimenta'!$B:$B,'00 PDC SP'!$F18,'00 Alimenta'!E:E) -> 0 | J18: =SUMIF('00 Alimenta'!$B:$B,'00 PDC SP'!$F18,'00 Alimenta'!F:F) -> 0 | K18: =SUMIF('00 Alimenta'!$B:$B,'00 PDC SP'!$F18,'00 Alimenta'!G:G) -> 942655.12 | L18: =SUMIF('00 Alimenta'!$B:$B,'00 PDC SP'!$F18,'00 Alimenta'!H:H) -> 0 | M18: =SUMIF('00 Alimenta'!$B:$B,'00 PDC SP'!$F18,'00 Alimenta'!I:I) -> 0 | N18: 942655.12
A19: AAA330 | B19: AA | C19: AAA330 | D19: 40 | F19: 0101020201 | G19: Fabbricati non strumentali (disponibili) | H19: =SUMIF('00 Alimenta'!$B:$B,'00 PDC SP'!$F19,'00 Alimenta'!D:D) -> 0 | I19: =SUMIF('00 Alimenta'!$B:$B,'00 PDC SP'!$F19,'00 Alimenta'!E:E) -> 0 | J19: =SUMIF('00 Alimenta'!$B:$B,'00 PDC SP'!$F19,'00 Alimenta'!F:F) -> 0 | K19: =SUMIF('00 Alimenta'!$B:$B,'00 PDC SP'!$F19,'00 Alimenta'!G:G) -> 0 | L19: =SUMIF('00 Alimenta'!$B:$B,'00 PDC SP'!$F19,'00 Alimenta'!H:H) -> 0 | M19: =SUMIF('00 Alimenta'!$B:$B,'00 PDC SP'!$F19,'00 Alimenta'!I:I) -> 0 | N19: 0
A20: AAA330 | B20: AA | C20: AAA330 | D20: 40 | F20: 0101020202 | G20: Costruzioni leggere | H20: =SUMIF('00 Alimenta'!$B:$B,'00 PDC SP'!$F20,'00 Alimenta'!D:D) -> 0 | I20: =SUMIF('00 Alimenta'!$B:$B,'00 PDC SP'!$F20,'00 Alimenta'!E:E) -> 0 | J20: =SUMIF('00 Alimenta'!$B:$B,'00 PDC SP'!$F20,'00 Alimenta'!F:F) -> 0 | K20: =SUMIF('00 Alimenta'!$B:$B,'00 PDC SP'!$F20,'00 Alimenta'!G:G) -> 0 | L20: =SUMIF('00 Alimenta'!$B:$B,'00 PDC SP'!$F20,'00 Alimenta'!H:H) -> 0 | M20: =SUMIF('00 Alimenta'!$B:$B,'00 PDC SP'!$F20,'00 Alimenta'!I:I) -> 0 | N20: 0
A21: AAA330 | B21: AA | C21: AAA330 | D21: 40 | F21: 0101020203 | G21: Manutenzioni e riparazioni straordinarie capitalizzabili fabbricati disponibili | H21: =SUMIF('00 Alimenta'!$B:$B,'00 PDC SP'!$F21,'00 Alimenta'!D:D) -> 0 | I21: =SUMIF('00 Alimenta'!$B:$B,'00 PDC SP'!$F21,'00 Alimenta'!E:E) -> 0 | J21: =SUMIF('00 Alimenta'!$B:$B,'00 PDC SP'!$F21,'00 Alimenta'!F:F) -> 0 | K21: =SUMIF('00 Alimenta'!$B:$B,'00 PDC SP'!$F21,'00 Alimenta'!G:G) -> 0 | L21: =SUMIF('00 Alimenta'!$B:$B,'00 PDC SP'!$F21,'00 Alimenta'!H:H) -> 0 | M21: =SUMIF('00 Alimenta'!$B:$B,'00 PDC SP'!$F21,'00 Alimenta'!I:I) -> 0 | N21: 0
A22: AAA360 | B22: AA | C22: AAA360 | D22: 40 | F22: 0101020301 | G22: Fabbricati strumentali (indisponibili) | H22: =SUMIF('00 Alimenta'!$B:$B,'00 PDC SP'!$F22,'00 Alimenta'!D:D) -> 169096559.2 | I22: =SUMIF('00 Alimenta'!$B:$B,'00 PDC SP'!$F22,'00 Alimenta'!E:E) -> 0 | J22: =SUMIF('00 Alimenta'!$B:$B,'00 PDC SP'!$F22,'00 Alimenta'!F:F) -> 0 | K22: =SUMIF('00 Alimenta'!$B:$B,'00 PDC SP'!$F22,'00 Alimenta'!G:G) -> 169096559.2 | L22: =SUMIF('00 Alimenta'!$B:$B,'00 PDC SP'!$F22,'00 Alimenta'!H:H) -> 0 | M22: =SUMIF('00 Alimenta'!$B:$B,'00 PDC SP'!$F22,'00 Alimenta'!I:I) -> 0 | N22: 169096559.2
A23: AAA360 | B23: AA | C23: AAA360 | D23: 40 | F23: 0101020302 | G23: Manutenzioni e riparazioni straordinarie capitalizzabili fabbricati indisponibili | H23: =SUMIF('00 Alimenta'!$B:$B,'00 PDC SP'!$F23,'00 Alimenta'!D:D) -> 0 | I23: =SUMIF('00 Alimenta'!$B:$B,'00 PDC SP'!$F23,'00 Alimenta'!E:E) -> 0 | J23: =SUMIF('00 Alimenta'!$B:$B,'00 PDC SP'!$F23,'00 Alimenta'!F:F) -> 0 | K23: =SUMIF('00 Alimenta'!$B:$B,'00 PDC SP'!$F23,'00 Alimenta'!G:G) -> 0 | L23: =SUMIF('00 Alimenta'!$B:$B,'00 PDC SP'!$F23,'00 Alimenta'!H:H) -> 0 | M23: =SUMIF('00 Alimenta'!$B:$B,'00 PDC SP'!$F23,'00 Alimenta'!I:I) -> 0 | N23: 0
A24: AAA390 | B24: AA | C24: AAA390 | D24: 41 | F24: 0101020401 | G24: Impianti sanitari | H24: =SUMIF('00 Alimenta'!$B:$B,'00 PDC SP'!$F24,'00 Alimenta'!D:D) -> 0 | I24: =SUMIF('00 Alimenta'!$B:$B,'00 PDC SP'!$F24,'00 Alimenta'!E:E) -> 0 | J24: =SUMIF('00 Alimenta'!$B:$B,'00 PDC SP'!$F24,'00 Alimenta'!F:F) -> 0 | K24: =SUMIF('00 Alimenta'!$B:$B,'00 PDC SP'!$F24,'00 Alimenta'!G:G) -> 0 | L24: =SUMIF('00 Alimenta'!$B:$B,'00 PDC SP'!$F24,'00 Alimenta'!H:H) -> 0 | M24: =SUMIF('00 Alimenta'!$B:$B,'00 PDC SP'!$F24,'00 Alimenta'!I:I) -> 0 | N24: 0
A25: AAA390 | B25: AA | C25: AAA390 | D25: 41 | F25: 0101020402 | G25: Impianti generici | H25: =SUMIF('00 Alimenta'!$B:$B,'00 PDC SP'!$F25,'00 Alimenta'!D:D) -> 0 | I25: =SUMIF('00 Alimenta'!$B:$B,'00 PDC SP'!$F25,'00 Alimenta'!E:E) -> 0 | J25: =SUMIF('00 Alimenta'!$B:$B,'00 PDC SP'!$F25,'00 Alimenta'!F:F) -> 0 | K25: =SUMIF('00 Alimenta'!$B:$B,'00 PDC SP'!$F25,'00 Alimenta'!G:G) -> 0 | L25: =SUMIF('00 Alimenta'!$B:$B,'00 PDC SP'!$F25,'00 Alimenta'!H:H) -> 0 | M25: =SUMIF('00 Alimenta'!$B:$B,'00 PDC SP'!$F25,'00 Alimenta'!I:I) -> 0 | N25: 0
A26: AAA390 | B26: AA | C26: AAA390 | D26: 41 | F26: 0101020403 | G26: Macchinari sanitari | H26: =SUMIF('00 Alimenta'!$B:$B,'00 PDC SP'!$F26,'00 Alimenta'!D:D) -> 0 | I26: =SUMIF('00 Alimenta'!$B:$B,'00 PDC SP'!$F26,'00 Alimenta'!E:E) -> 0 | J26: =SUMIF('00 Alimenta'!$B:$B,'00 PDC SP'!$F26,'00 Alimenta'!F:F) -> 0 | K26: =SUMIF('00 Alimenta'!$B:$B,'00 PDC SP'!$F26,'00 Alimenta'!G:G) -> 0 | L26: =SUMIF('00 Alimenta'!$B:$B,'00 PDC SP'!$F26,'00 Alimenta'!H:H) -> 0 | M26: =SUMIF('00 Alimenta'!$B:$B,'00 PDC SP'!$F26,'00 Alimenta'!I:I) -> 0 | N26: 0
A27: AAA390 | B27: AA | C27: AAA390 | D27: 41 | F27: 0101020404 | G27: Macchinari generici | H27: =SUMIF('00 Alimenta'!$B:$B,'00 PDC SP'!$F27,'00 Alimenta'!D:D) -> 5772528.84 | I27: =SUMIF('00 Alimenta'!$B:$B,'00 PDC SP'!$F27,'00 Alimenta'!E:E) -> 183106.44 | J27: =SUMIF('00 Alimenta'!$B:$B,'00 PDC SP'!$F27,'00 Alimenta'!F:F) -> 8604.8 | K27: =SUMIF('00 Alimenta'!$B:$B,'00 PDC SP'!$F27,'00 Alimenta'!G:G) -> 5947030.48 | L27: =SUMIF('00 Alimenta'!$B:$B,'00 PDC SP'!$F27,'00 Alimenta'!H:H) -> 219918.7 | M27: =SUMIF('00 Alimenta'!$B:$B,'00 PDC SP'!$F27,'00 Alimenta'!I:I) -> 171.65 | N27: 6166777.53
A28: AAA390 | B28: AA | C28: AAA390 | D28: 41 | F28: 0101020405 | G28: Impianti e macchinari < 516 euro | H28: =SUMIF('00 Alimenta'!$B:$B,'00 PDC SP'!$F28,'00 Alimenta'!D:D) -> 0 | I28: =SUMIF('00 Alimenta'!$B:$B,'00 PDC SP'!$F28,'00 Alimenta'!E:E) -> 0 | J28: =SUMIF('00 Alimenta'!$B:$B,'00 PDC SP'!$F28,'00 Alimenta'!F:F) -> 0 | K28: =SUMIF('00 Alimenta'!$B:$B,'00 PDC SP'!$F28,'00 Alimenta'!G:G) -> 0 | L28: =SUMIF('00 Alimenta'!$B:$B,'00 PDC SP'!$F28,'00 Alimenta'!H:H) -> 0 | M28: =SUMIF('00 Alimenta'!$B:$B,'00 PDC SP'!$F28,'00 Alimenta'!I:I) -> 0 | N28: 0
A29: AAA420 | B29: AA | C29: AAA420 | D29: 42 | F29: 0101020501 | G29: Attrezzature sanitarie e scientifiche | H29: =SUMIF('00 Alimenta'!$B:$B,'00 PDC SP'!$F29,'00 Alimenta'!D:D) -> 0 | I29: =SUMIF('00 Alimenta'!$B:$B,'00 PDC SP'!$F29,'00 Alimenta'!E:E) -> 0 | J29: =SUMIF('00 Alimenta'!$B:$B,'00 PDC SP'!$F29,'00 Alimenta'!F:F) -> 0 | K29: =SUMIF('00 Alimenta'!$B:$B,'00 PDC SP'!$F29,'00 Alimenta'!G:G) -> 0 | L29: =SUMIF('00 Alimenta'!$B:$B,'00 PDC SP'!$F29,'00 Alimenta'!H:H) -> 0 | M29: =SUMIF('00 Alimenta'!$B:$B,'00 PDC SP'!$F29,'00 Alimenta'!I:I) -> 0 | N29: 0
A30: AAA420 | B30: AA | C30: AAA420 | D30: 42 | F30: 0101020502 | G30: Attrezzature generiche | H30: =SUMIF('00 Alimenta'!$B:$B,'00 PDC SP'!$F30,'00 Alimenta'!D:D) -> 75106075.78 | I30: =SUMIF('00 Alimenta'!$B:$B,'00 PDC SP'!$F30,'00 Alimenta'!E:E) -> 6743296.67 | J30: =SUMIF('00 Alimenta'!$B:$B,'00 PDC SP'!$F30,'00 Alimenta'!F:F) -> 2797670.18 | K30: =SUMIF('00 Alimenta'!$B:$B,'00 PDC SP'!$F30,'00 Alimenta'!G:G) -> 79051702.27 | L30: =SUMIF('00 Alimenta'!$B:$B,'00 PDC SP'!$F30,'00 Alimenta'!H:H) -> 5812839.07 | M30: =SUMIF('00 Alimenta'!$B:$B,'00 PDC SP'!$F30,'00 Alimenta'!I:I) -> 146692.8 | N30: 84717848.54
A31: AAA420 | B31: AA | C31: AAA420 | D31: 42 | F31: 0101020503 | G31: Attrezzature sanitarie e scientifiche < 516 euro | H31: =SUMIF('00 Alimenta'!$B:$B,'00 PDC SP'!$F31,'00 Alimenta'!D:D) -> 0 | I31: =SUMIF('00 Alimenta'!$B:$B,'00 PDC SP'!$F31,'00 Alimenta'!E:E) -> 0 | J31: =SUMIF('00 Alimenta'!$B:$B,'00 PDC SP'!$F31,'00 Alimenta'!F:F) -> 0 | K31: =SUMIF('00 Alimenta'!$B:$B,'00 PDC SP'!$F31,'00 Alimenta'!G:G) -> 0 | L31: =SUMIF('00 Alimenta'!$B:$B,'00 PDC SP'!$F31,'00 Alimenta'!H:H) -> 0 | M31: =SUMIF('00 Alimenta'!$B:$B,'00 PDC SP'!$F31,'00 Alimenta'!I:I) -> 0 | N31: 0
A32: AAA450 | B32: AA | C32: AAA450 | D32: 43 | F32: 0101020601 | G32: Mobili e arredi | H32: =SUMIF('00 Alimenta'!$B:$B,'00 PDC SP'!$F32,'00 Alimenta'!D:D) -> 10177663.42 | I32: =SUMIF('00 Alimenta'!$B:$B,'00 PDC SP'!$F32,'00 Alimenta'!E:E) -> 374325.51 | J32: =SUMIF('00 Alimenta'!$B:$B,'00 PDC SP'!$F32,'00 Alimenta'!F:F) -> 183191.51 | K32: =SUMIF('00 Alimenta'!$B:$B,'00 PDC SP'!$F32,'00 Alimenta'!G:G) -> 10368797.42 | L32: =SUMIF('00 Alimenta'!$B:$B,'00 PDC SP'!$F32,'00 Alimenta'!H:H) -> 241394.07 | M32: =SUMIF('00 Alimenta'!$B:$B,'00 PDC SP'!$F32,'00 Alimenta'!I:I) -> 12215.84 | N32: 10597975.65
A33: AAA450 | B33: AA | C33: AAA450 | D33: 43 | F33: 0101020602 | G33: Mobili d'ufficio | H33: =SUMIF('00 Alimenta'!$B:$B,'00 PDC SP'!$F33,'00 Alimenta'!D:D) -> 0 | I33: =SUMIF('00 Alimenta'!$B:$B,'00 PDC SP'!$F33,'00 Alimenta'!E:E) -> 0 | J33: =SUMIF('00 Alimenta'!$B:$B,'00 PDC SP'!$F33,'00 Alimenta'!F:F) -> 0 | K33: =SUMIF('00 Alimenta'!$B:$B,'00 PDC SP'!$F33,'00 Alimenta'!G:G) -> 0 | L33: =SUMIF('00 Alimenta'!$B:$B,'00 PDC SP'!$F33,'00 Alimenta'!H:H) -> 0 | M33: =SUMIF('00 Alimenta'!$B:$B,'00 PDC SP'!$F33,'00 Alimenta'!I:I) -> 0 | N33: 0
A34: AAA450 | B34: AA | C34: AAA450 | D34: 43 | F34: 0101020603 | G34: Mobili d'ufficio < 516 euro | H34: =SUMIF('00 Alimenta'!$B:$B,'00 PDC SP'!$F34,'00 Alimenta'!D:D) -> 0 | I34: =SUMIF('00 Alimenta'!$B:$B,'00 PDC SP'!$F34,'00 Alimenta'!E:E) -> 0 | J34: =SUMIF('00 Alimenta'!$B:$B,'00 PDC SP'!$F34,'00 Alimenta'!F:F) -> 0 | K34: =SUMIF('00 Alimenta'!$B:$B,'00 PDC SP'!$F34,'00 Alimenta'!G:G) -> 0 | L34: =SUMIF('00 Alimenta'!$B:$B,'00 PDC SP'!$F34,'00 Alimenta'!H:H) -> 0 | M34: =SUMIF('00 Alimenta'!$B:$B,'00 PDC SP'!$F34,'00 Alimenta'!I:I) -> 0 | N34: 0
A35: AAA480 | B35: AA | C35: AAA480 | D35: 44 | F35: 0101020701 | G35: Elicotteri | H35: =SUMIF('00 Alimenta'!$B:$B,'00 PDC SP'!$F35,'00 Alimenta'!D:D) -> 0 | I35: =SUMIF('00 Alimenta'!$B:$B,'00 PDC SP'!$F35,'00 Alimenta'!E:E) -> 0 | J35: =SUMIF('00 Alimenta'!$B:$B,'00 PDC SP'!$F35,'00 Alimenta'!F:F) -> 0 | K35: =SUMIF('00 Alimenta'!$B:$B,'00 PDC SP'!$F35,'00 Alimenta'!G:G) -> 0 | L35: =SUMIF('00 Alimenta'!$B:$B,'00 PDC SP'!$F35,'00 Alimenta'!H:H) -> 0 | M35: =SUMIF('00 Alimenta'!$B:$B,'00 PDC SP'!$F35,'00 Alimenta'!I:I) -> 0 | N35: 0
A36: AAA480 | B36: AA | C36: AAA480 | D36: 44 | F36: 0101020702 | G36: Ambulanze | H36: =SUMIF('00 Alimenta'!$B:$B,'00 PDC SP'!$F36,'00 Alimenta'!D:D) -> 0 | I36: =SUMIF('00 Alimenta'!$B:$B,'00 PDC SP'!$F36,'00 Alimenta'!E:E) -> 0 | J36: =SUMIF('00 Alimenta'!$B:$B,'00 PDC SP'!$F36,'00 Alimenta'!F:F) -> 0 | K36: =SUMIF('00 Alimenta'!$B:$B,'00 PDC SP'!$F36,'00 Alimenta'!G:G) -> 0 | L36: =SUMIF('00 Alimenta'!$B:$B,'00 PDC SP'!$F36,'00 Alimenta'!H:H) -> 0 | M36: =SUMIF('00 Alimenta'!$B:$B,'00 PDC SP'!$F36,'00 Alimenta'!I:I) -> 0 | N36: 0
A37: AAA480 | B37: AA | C37: AAA480 | D37: 44 | F37: 0101020703 | G37: Altri mezzi di trasporto | H37: =SUMIF('00 Alimenta'!$B:$B,'00 PDC SP'!$F37,'00 Alimenta'!D:D) -> 1758814.75 | I37: =SUMIF('00 Alimenta'!$B:$B,'00 PDC SP'!$F37,'00 Alimenta'!E:E) -> 144301.6 | J37: =SUMIF('00 Alimenta'!$B:$B,'00 PDC SP'!$F37,'00 Alimenta'!F:F) -> 63157.24 | K37: =SUMIF('00 Alimenta'!$B:$B,'00 PDC SP'!$F37,'00 Alimenta'!G:G) -> 1839959.11 | L37: =SUMIF('00 Alimenta'!$B:$B,'00 PDC SP'!$F37,'00 Alimenta'!H:H) -> 123029.66 | M37: =SUMIF('00 Alimenta'!$B:$B,'00 PDC SP'!$F37,'00 Alimenta'!I:I) -> 0 | N37: 1962988.77
A38: AAA500 | B38: AA | C38: AAA500 | D38: 45 | F38: 0101020801 | G38: Oggetti d'arte | H38: =SUMIF('00 Alimenta'!$B:$B,'00 PDC SP'!$F38,'00 Alimenta'!D:D) -> 0 | I38: =SUMIF('00 Alimenta'!$B:$B,'00 PDC SP'!$F38,'00 Alimenta'!E:E) -> 0 | J38: =SUMIF('00 Alimenta'!$B:$B,'00 PDC SP'!$F38,'00 Alimenta'!F:F) -> 0 | K38: =SUMIF('00 Alimenta'!$B:$B,'00 PDC SP'!$F38,'00 Alimenta'!G:G) -> 0 | L38: =SUMIF('00 Alimenta'!$B:$B,'00 PDC SP'!$F38,'00 Alimenta'!H:H) -> 0 | M38: =SUMIF('00 Alimenta'!$B:$B,'00 PDC SP'!$F38,'00 Alimenta'!I:I) -> 0 | N38: 0
A39: AAA520 | B39: AA | C39: AAA520 | D39: 45 | F39: 0101020901 | G39: Attrezzature e macchine d'ufficio | H39: =SUMIF('00 Alimenta'!$B:$B,'00 PDC SP'!$F39,'00 Alimenta'!D:D) -> 0 | I39: =SUMIF('00 Alimenta'!$B:$B,'00 PDC SP'!$F39,'00 Alimenta'!E:E) -> 0 | J39: =SUMIF('00 Alimenta'!$B:$B,'00 PDC SP'!$F39,'00 Alimenta'!F:F) -> 0 | K39: =SUMIF('00 Alimenta'!$B:$B,'00 PDC SP'!$F39,'00 Alimenta'!G:G) -> 0 | L39: =SUMIF('00 Alimenta'!$B:$B,'00 PDC SP'!$F39,'00 Alimenta'!H:H) -> 0 | M39: =SUMIF('00 Alimenta'!$B:$B,'00 PDC SP'!$F39,'00 Alimenta'!I:I) -> 0 | N39: 0
A40: AAA520 | B40: AA | C40: AAA520 | D40: 45 | F40: 0101020902 | G40: Attrezzature tecnico - economali | H40: =SUMIF('00 Alimenta'!$B:$B,'00 PDC SP'!$F40,'00 Alimenta'!D:D) -> 0 | I40: =SUMIF('00 Alimenta'!$B:$B,'00 PDC SP'!$F40,'00 Alimenta'!E:E) -> 0 | J40: =SUMIF('00 Alimenta'!$B:$B,'00 PDC SP'!$F40,'00 Alimenta'!F:F) -> 0 | K40: =SUMIF('00 Alimenta'!$B:$B,'00 PDC SP'!$F40,'00 Alimenta'!G:G) -> 0 | L40: =SUMIF('00 Alimenta'!$B:$B,'00 PDC SP'!$F40,'00 Alimenta'!H:H) -> 0 | M40: =SUMIF('00 Alimenta'!$B:$B,'00 PDC SP'!$F40,'00 Alimenta'!I:I) -> 0 | N40: 0
A41: AAA520 | B41: AA | C41: AAA520 | D41: 45 | F41: 0101020903 | G41: Computer e macchinari elettronici | H41: =SUMIF('00 Alimenta'!$B:$B,'00 PDC SP'!$F41,'00 Alimenta'!D:D) -> 5279391.75 | I41: =SUMIF('00 Alimenta'!$B:$B,'00 PDC SP'!$F41,'00 Alimenta'!E:E) -> 103690.13 | J41: =SUMIF('00 Alimenta'!$B:$B,'00 PDC SP'!$F41,'00 Alimenta'!F:F) -> 152910.96 | K41: =SUMIF('00 Alimenta'!$B:$B,'00 PDC SP'!$F41,'00 Alimenta'!G:G) -> 5230170.92 | L41: =SUMIF('00 Alimenta'!$B:$B,'00 PDC SP'!$F41,'00 Alimenta'!H:H) -> 261895.29 | M41: =SUMIF('00 Alimenta'!$B:$B,'00 PDC SP'!$F41,'00 Alimenta'!I:I) -> 2012.8 | N41: 5490053.41
A42: AAA520 | B42: AA | C42: AAA520 | D42: 45 | F42: 0101020904 | G42: Altri beni materiali | H42: =SUMIF('00 Alimenta'!$B:$B,'00 PDC SP'!$F42,'00 Alimenta'!D:D) -> 421246.02 | I42: =SUMIF('00 Alimenta'!$B:$B,'00 PDC SP'!$F42,'00 Alimenta'!E:E) -> 7740.63 | J42: =SUMIF('00 Alimenta'!$B:$B,'00 PDC SP'!$F42,'00 Alimenta'!F:F) -> 5066.79 | K42: =SUMIF('00 Alimenta'!$B:$B,'00 PDC SP'!$F42,'00 Alimenta'!G:G) -> 423919.86 | L42: =SUMIF('00 Alimenta'!$B:$B,'00 PDC SP'!$F42,'00 Alimenta'!H:H) -> 4021.71 | M42: =SUMIF('00 Alimenta'!$B:$B,'00 PDC SP'!$F42,'00 Alimenta'!I:I) -> 0 | N42: 427941.57
A43: AAA520 | B43: AA | C43: AAA520 | D43: 45 | F43: 0101020905 | G43: Altri beni < 516 euro | H43: =SUMIF('00 Alimenta'!$B:$B,'00 PDC SP'!$F43,'00 Alimenta'!D:D) -> 0 | I43: =SUMIF('00 Alimenta'!$B:$B,'00 PDC SP'!$F43,'00 Alimenta'!E:E) -> 0 | J43: =SUMIF('00 Alimenta'!$B:$B,'00 PDC SP'!$F43,'00 Alimenta'!F:F) -> 0 | K43: =SUMIF('00 Alimenta'!$B:$B,'00 PDC SP'!$F43,'00 Alimenta'!G:G) -> 0 | L43: =SUMIF('00 Alimenta'!$B:$B,'00 PDC SP'!$F43,'00 Alimenta'!H:H) -> 0 | M43: =SUMIF('00 Alimenta'!$B:$B,'00 PDC SP'!$F43,'00 Alimenta'!I:I) -> 0 | N43: 0
A44: AAA540 | B44: AA | C44: AAA540 | D44: 45 | F44: 0101021001 | G44: Fabbricati in costruzione | H44: =SUMIF('00 Alimenta'!$B:$B,'00 PDC SP'!$F44,'00 Alimenta'!D:D) -> 7302928.54 | I44: =SUMIF('00 Alimenta'!$B:$B,'00 PDC SP'!$F44,'00 Alimenta'!E:E) -> 1381793.22 | J44: =SUMIF('00 Alimenta'!$B:$B,'00 PDC SP'!$F44,'00 Alimenta'!F:F) -> 61951.49 | K44: =SUMIF('00 Alimenta'!$B:$B,'00 PDC SP'!$F44,'00 Alimenta'!G:G) -> 8622770.27 | L44: =SUMIF('00 Alimenta'!$B:$B,'00 PDC SP'!$F44,'00 Alimenta'!H:H) -> 950522.09 | M44: =SUMIF('00 Alimenta'!$B:$B,'00 PDC SP'!$F44,'00 Alimenta'!I:I) -> 102440.22 | N44: 9470852.14
A45: AAA540 | B45: AA | C45: AAA540 | D45: 45 | F45: 0101021002 | G45: Impianti e macchinari in costruzione | H45: =SUMIF('00 Alimenta'!$B:$B,'00 PDC SP'!$F45,'00 Alimenta'!D:D) -> 0 | I45: =SUMIF('00 Alimenta'!$B:$B,'00 PDC SP'!$F45,'00 Alimenta'!E:E) -> 0 | J45: =SUMIF('00 Alimenta'!$B:$B,'00 PDC SP'!$F45,'00 Alimenta'!F:F) -> 0 | K45: =SUMIF('00 Alimenta'!$B:$B,'00 PDC SP'!$F45,'00 Alimenta'!G:G) -> 0 | L45: =SUMIF('00 Alimenta'!$B:$B,'00 PDC SP'!$F45,'00 Alimenta'!H:H) -> 0 | M45: =SUMIF('00 Alimenta'!$B:$B,'00 PDC SP'!$F45,'00 Alimenta'!I:I) -> 0 | N45: 0
A46: AAA540 | B46: AA | C46: AAA540 | D46: 45 | F46: 0101021003 | G46: Attrezzature sanitarie e scientifiche in costruzione | H46: =SUMIF('00 Alimenta'!$B:$B,'00 PDC SP'!$F46,'00 Alimenta'!D:D) -> 0 | I46: =SUMIF('00 Alimenta'!$B:$B,'00 PDC SP'!$F46,'00 Alimenta'!E:E) -> 0 | J46: =SUMIF('00 Alimenta'!$B:$B,'00 PDC SP'!$F46,'00 Alimenta'!F:F) -> 0 | K46: =SUMIF('00 Alimenta'!$B:$B,'00 PDC SP'!$F46,'00 Alimenta'!G:G) -> 0 | L46: =SUMIF('00 Alimenta'!$B:$B,'00 PDC SP'!$F46,'00 Alimenta'!H:H) -> 0 | M46: =SUMIF('00 Alimenta'!$B:$B,'00 PDC SP'!$F46,'00 Alimenta'!I:I) -> 0 | N46: 0
A47: AAA540 | B47: AA | C47: AAA540 | D47: 45 | F47: 0101021004 | G47: Altre immobilizzazioni materiali in costruzione | H47: =SUMIF('00 Alimenta'!$B:$B,'00 PDC SP'!$F47,'00 Alimenta'!D:D) -> 0 | I47: =SUMIF('00 Alimenta'!$B:$B,'00 PDC SP'!$F47,'00 Alimenta'!E:E) -> 0 | J47: =SUMIF('00 Alimenta'!$B:$B,'00 PDC SP'!$F47,'00 Alimenta'!F:F) -> 0 | K47: =SUMIF('00 Alimenta'!$B:$B,'00 PDC SP'!$F47,'00 Alimenta'!G:G) -> 0 | L47: =SUMIF('00 Alimenta'!$B:$B,'00 PDC SP'!$F47,'00 Alimenta'!H:H) -> 0 | M47: =SUMIF('00 Alimenta'!$B:$B,'00 PDC SP'!$F47,'00 Alimenta'!I:I) -> 0 | N47: 0
A48: AAA540 | B48: AA | C48: AAA540 | D48: 45 | F48: 0101021005 | G48: Acconti su future acquisizioni di immobilizzazioni materiali | H48: =SUMIF('00 Alimenta'!$B:$B,'00 PDC SP'!$F48,'00 Alimenta'!D:D) -> 263368.81 | I48: =SUMIF('00 Alimenta'!$B:$B,'00 PDC SP'!$F48,'00 Alimenta'!E:E) -> 127357.75 | J48: =SUMIF('00 Alimenta'!$B:$B,'00 PDC SP'!$F48,'00 Alimenta'!F:F) -> 248601.25 | K48: =SUMIF('00 Alimenta'!$B:$B,'00 PDC SP'!$F48,'00 Alimenta'!G:G) -> 142125.31 | L48: =SUMIF('00 Alimenta'!$B:$B,'00 PDC SP'!$F48,'00 Alimenta'!H:H) -> 1527272.03 | M48: =SUMIF('00 Alimenta'!$B:$B,'00 PDC SP'!$F48,'00 Alimenta'!I:I) -> 142296.91 | N48: 1527100.43
A49: AAA660 | B49: AA | C49: AAA660 | D49: 46 | F49: 0101030101 | G49: Crediti finanziari v/Stato | H49: =SUMIF('00 Alimenta'!$B:$B,'00 PDC SP'!$F49,'00 Alimenta'!D:D) -> 0 | I49: =SUMIF('00 Alimenta'!$B:$B,'00 PDC SP'!$F49,'00 Alimenta'!E:E) -> 0 | J49: =SUMIF('00 Alimenta'!$B:$B,'00 PDC SP'!$F49,'00 Alimenta'!F:F) -> 0 | K49: =SUMIF('00 Alimenta'!$B:$B,'00 PDC SP'!$F49,'00 Alimenta'!G:G) -> 0 | L49: =SUMIF('00 Alimenta'!$B:$B,'00 PDC SP'!$F49,'00 Alimenta'!H:H) -> 0 | M49: =SUMIF('00 Alimenta'!$B:$B,'00 PDC SP'!$F49,'00 Alimenta'!I:I) -> 0 | N49: 0
A50: AAA670 | B50: AA | C50: AAA670 | D50: 46 | F50: 0101030201 | G50: Crediti finanziari v/Regione | H50: =SUMIF('00 Alimenta'!$B:$B,'00 PDC SP'!$F50,'00 Alimenta'!D:D) -> 0 | I50: =SUMIF('00 Alimenta'!$B:$B,'00 PDC SP'!$F50,'00 Alimenta'!E:E) -> 0 | J50: =SUMIF('00 Alimenta'!$B:$B,'00 PDC SP'!$F50,'00 Alimenta'!F:F) -> 0 | K50: =SUMIF('00 Alimenta'!$B:$B,'00 PDC SP'!$F50,'00 Alimenta'!G:G) -> 0 | L50: =SUMIF('00 Alimenta'!$B:$B,'00 PDC SP'!$F50,'00 Alimenta'!H:H) -> 0 | M50: =SUMIF('00 Alimenta'!$B:$B,'00 PDC SP'!$F50,'00 Alimenta'!I:I) -> 0 | N50: 0
A51: AAA680 | B51: AA | C51: AAA680 | D51: 46 | F51: 0101030301 | G51: Crediti finanziari v/imprese controllate | H51: =SUMIF('00 Alimenta'!$B:$B,'00 PDC SP'!$F51,'00 Alimenta'!D:D) -> 0 | I51: =SUMIF('00 Alimenta'!$B:$B,'00 PDC SP'!$F51,'00 Alimenta'!E:E) -> 0 | J51: =SUMIF('00 Alimenta'!$B:$B,'00 PDC SP'!$F51,'00 Alimenta'!F:F) -> 0 | K51: =SUMIF('00 Alimenta'!$B:$B,'00 PDC SP'!$F51,'00 Alimenta'!G:G) -> 0 | L51: =SUMIF('00 Alimenta'!$B:$B,'00 PDC SP'!$F51,'00 Alimenta'!H:H) -> 0 | M51: =SUMIF('00 Alimenta'!$B:$B,'00 PDC SP'!$F51,'00 Alimenta'!I:I) -> 0 | N51: 0
A52: AAA680 | B52: AA | C52: AAA680 | D52: 46 | F52: 0101030302 | G52: Crediti finanziari v/imprese collegate | H52: =SUMIF('00 Alimenta'!$B:$B,'00 PDC SP'!$F52,'00 Alimenta'!D:D) -> 0 | I52: =SUMIF('00 Alimenta'!$B:$B,'00 PDC SP'!$F52,'00 Alimenta'!E:E) -> 0 | J52: =SUMIF('00 Alimenta'!$B:$B,'00 PDC SP'!$F52,'00 Alimenta'!F:F) -> 0 | K52: =SUMIF('00 Alimenta'!$B:$B,'00 PDC SP'!$F52,'00 Alimenta'!G:G) -> 0 | L52: =SUMIF('00 Alimenta'!$B:$B,'00 PDC SP'!$F52,'00 Alimenta'!H:H) -> 0 | M52: =SUMIF('00 Alimenta'!$B:$B,'00 PDC SP'!$F52,'00 Alimenta'!I:I) -> 0 | N52: 0
A53: AAA690 | B53: AA | C53: AAA690 | D53: 46 | F53: 0101030401 | G53: Crediti finanziari v/Provincia | H53: =SUMIF('00 Alimenta'!$B:$B,'00 PDC SP'!$F53,'00 Alimenta'!D:D) -> 0 | I53: =SUMIF('00 Alimenta'!$B:$B,'00 PDC SP'!$F53,'00 Alimenta'!E:E) -> 0 | J53: =SUMIF('00 Alimenta'!$B:$B,'00 PDC SP'!$F53,'00 Alimenta'!F:F) -> 0 | K53: =SUMIF('00 Alimenta'!$B:$B,'00 PDC SP'!$F53,'00 Alimenta'!G:G) -> 0 | L53: =SUMIF('00 Alimenta'!$B:$B,'00 PDC SP'!$F53,'00 Alimenta'!H:H) -> 0 | M53: =SUMIF('00 Alimenta'!$B:$B,'00 PDC SP'!$F53,'00 Alimenta'!I:I) -> 0 | N53: 0
A54: AAA690 | B54: AA | C54: AAA690 | D54: 46 | F54: 0101030402 | G54: Crediti finanziari v/Comuni | H54: =SUMIF('00 Alimenta'!$B:$B,'00 PDC SP'!$F54,'00 Alimenta'!D:D) -> 0 | I54: =SUMIF('00 Alimenta'!$B:$B,'00 PDC SP'!$F54,'00 Alimenta'!E:E) -> 0 | J54: =SUMIF('00 Alimenta'!$B:$B,'00 PDC SP'!$F54,'00 Alimenta'!F:F) -> 0 | K54: =SUMIF('00 Alimenta'!$B:$B,'00 PDC SP'!$F54,'00 Alimenta'!G:G) -> 0 | L54: =SUMIF('00 Alimenta'!$B:$B,'00 PDC SP'!$F54,'00 Alimenta'!H:H) -> 0 | M54: =SUMIF('00 Alimenta'!$B:$B,'00 PDC SP'!$F54,'00 Alimenta'!I:I) -> 0 | N54: 0
A55: AAA690 | B55: AA | C55: AAA690 | D55: 46 | F55: 0101030403 | G55: Crediti finanziari v/altri | H55: =SUMIF('00 Alimenta'!$B:$B,'00 PDC SP'!$F55,'00 Alimenta'!D:D) -> 0 | I55: =SUMIF('00 Alimenta'!$B:$B,'00 PDC SP'!$F55,'00 Alimenta'!E:E) -> 0 | J55: =SUMIF('00 Alimenta'!$B:$B,'00 PDC SP'!$F55,'00 Alimenta'!F:F) -> 0 | K55: =SUMIF('00 Alimenta'!$B:$B,'00 PDC SP'!$F55,'00 Alimenta'!G:G) -> 0 | L55: =SUMIF('00 Alimenta'!$B:$B,'00 PDC SP'!$F55,'00 Alimenta'!H:H) -> 0 | M55: =SUMIF('00 Alimenta'!$B:$B,'00 PDC SP'!$F55,'00 Alimenta'!I:I) -> 0 | N55: 0
A56: AAA690 | B56: AA | C56: AAA690 | D56: 46 | F56: 0101030404 | G56: Depositi cauzionali | H56: =SUMIF('00 Alimenta'!$B:$B,'00 PDC SP'!$F56,'00 Alimenta'!D:D) -> 12379.7 | I56: =SUMIF('00 Alimenta'!$B:$B,'00 PDC SP'!$F56,'00 Alimenta'!E:E) -> 1656.75 | J56: =SUMIF('00 Alimenta'!$B:$B,'00 PDC SP'!$F56,'00 Alimenta'!F:F) -> 0 | K56: =SUMIF('00 Alimenta'!$B:$B,'00 PDC SP'!$F56,'00 Alimenta'!G:G) -> 14036.45 | L56: =SUMIF('00 Alimenta'!$B:$B,'00 PDC SP'!$F56,'00 Alimenta'!H:H) -> 0 | M56: =SUMIF('00 Alimenta'!$B:$B,'00 PDC SP'!$F56,'00 Alimenta'!I:I) -> 0 | N56: 14036.45
A57: AAA710CN | B57: AA | C57: AAA710 | D57: 47 | E57: CN | F57: 0101030501 | G57: Partecipazioni in imprese controllate | H57: =SUMIF('00 Alimenta'!$B:$B,'00 PDC SP'!$F57,'00 Alimenta'!D:D) -> 0 | I57: =SUMIF('00 Alimenta'!$B:$B,'00 PDC SP'!$F57,'00 Alimenta'!E:E) -> 0 | J57: =SUMIF('00 Alimenta'!$B:$B,'00 PDC SP'!$F57,'00 Alimenta'!F:F) -> 0 | K57: =SUMIF('00 Alimenta'!$B:$B,'00 PDC SP'!$F57,'00 Alimenta'!G:G) -> 0 | L57: =SUMIF('00 Alimenta'!$B:$B,'00 PDC SP'!$F57,'00 Alimenta'!H:H) -> 0 | M57: =SUMIF('00 Alimenta'!$B:$B,'00 PDC SP'!$F57,'00 Alimenta'!I:I) -> 0 | N57: 0
A58: AAA710CL | B58: AA | C58: AAA710 | D58: 47 | E58: CL | F58: 0101030502 | G58: Partecipazioni in imprese collegate | H58: =SUMIF('00 Alimenta'!$B:$B,'00 PDC SP'!$F58,'00 Alimenta'!D:D) -> 0 | I58: =SUMIF('00 Alimenta'!$B:$B,'00 PDC SP'!$F58,'00 Alimenta'!E:E) -> 0 | J58: =SUMIF('00 Alimenta'!$B:$B,'00 PDC SP'!$F58,'00 Alimenta'!F:F) -> 0 | K58: =SUMIF('00 Alimenta'!$B:$B,'00 PDC SP'!$F58,'00 Alimenta'!G:G) -> 0 | L58: =SUMIF('00 Alimenta'!$B:$B,'00 PDC SP'!$F58,'00 Alimenta'!H:H) -> 0 | M58: =SUMIF('00 Alimenta'!$B:$B,'00 PDC SP'!$F58,'00 Alimenta'!I:I) -> 0 | N58: 0
A59: AAA710AI | B59: AA | C59: AAA710 | D59: 47 | E59: AI | F59: 0101030503 | G59: Partecipazioni in altre imprese | H59: =SUMIF('00 Alimenta'!$B:$B,'00 PDC SP'!$F59,'00 Alimenta'!D:D) -> 0 | I59: =SUMIF('00 Alimenta'!$B:$B,'00 PDC SP'!$F59,'00 Alimenta'!E:E) -> 0 | J59: =SUMIF('00 Alimenta'!$B:$B,'00 PDC SP'!$F59,'00 Alimenta'!F:F) -> 0 | K59: =SUMIF('00 Alimenta'!$B:$B,'00 PDC SP'!$F59,'00 Alimenta'!G:G) -> 0 | L59: =SUMIF('00 Alimenta'!$B:$B,'00 PDC SP'!$F59,'00 Alimenta'!H:H) -> 0 | M59: =SUMIF('00 Alimenta'!$B:$B,'00 PDC SP'!$F59,'00 Alimenta'!I:I) -> 0 | N59: 0
A60: AAA730 | B60: AA | C60: AAA730 | D60: 47 | F60: 0101030601 | G60: Titoli di Stato | H60: =SUMIF('00 Alimenta'!$B:$B,'00 PDC SP'!$F60,'00 Alimenta'!D:D) -> 0 | I60: =SUMIF('00 Alimenta'!$B:$B,'00 PDC SP'!$F60,'00 Alimenta'!E:E) -> 0 | J60: =SUMIF('00 Alimenta'!$B:$B,'00 PDC SP'!$F60,'00 Alimenta'!F:F) -> 0 | K60: =SUMIF('00 Alimenta'!$B:$B,'00 PDC SP'!$F60,'00 Alimenta'!G:G) -> 0 | L60: =SUMIF('00 Alimenta'!$B:$B,'00 PDC SP'!$F60,'00 Alimenta'!H:H) -> 0 | M60: =SUMIF('00 Alimenta'!$B:$B,'00 PDC SP'!$F60,'00 Alimenta'!I:I) -> 0 | N60: 0
A61: AAA740 | B61: AA | C61: AAA740 | D61: 47 | F61: 0101030602 | G61: Altre Obbligazioni | H61: =SUMIF('00 Alimenta'!$B:$B,'00 PDC SP'!$F61,'00 Alimenta'!D:D) -> 0 | I61: =SUMIF('00 Alimenta'!$B:$B,'00 PDC SP'!$F61,'00 Alimenta'!E:E) -> 0 | J61: =SUMIF('00 Alimenta'!$B:$B,'00 PDC SP'!$F61,'00 Alimenta'!F:F) -> 0 | K61: =SUMIF('00 Alimenta'!$B:$B,'00 PDC SP'!$F61,'00 Alimenta'!G:G) -> 0 | L61: =SUMIF('00 Alimenta'!$B:$B,'00 PDC SP'!$F61,'00 Alimenta'!H:H) -> 0 | M61: =SUMIF('00 Alimenta'!$B:$B,'00 PDC SP'!$F61,'00 Alimenta'!I:I) -> 0 | N61: 0
A62: AAA750 | B62: AA | C62: AAA750 | D62: 47 | F62: 0101030603 | G62: Titoli azionari quotati in Borsa | H62: =SUMIF('00 Alimenta'!$B:$B,'00 PDC SP'!$F62,'00 Alimenta'!D:D) -> 0 | I62: =SUMIF('00 Alimenta'!$B:$B,'00 PDC SP'!$F62,'00 Alimenta'!E:E) -> 0 | J62: =SUMIF('00 Alimenta'!$B:$B,'00 PDC SP'!$F62,'00 Alimenta'!F:F) -> 0 | K62: =SUMIF('00 Alimenta'!$B:$B,'00 PDC SP'!$F62,'00 Alimenta'!G:G) -> 0 | L62: =SUMIF('00 Alimenta'!$B:$B,'00 PDC SP'!$F62,'00 Alimenta'!H:H) -> 0 | M62: =SUMIF('00 Alimenta'!$B:$B,'00 PDC SP'!$F62,'00 Alimenta'!I:I) -> 0 | N62: 0
A63: AAA760 | B63: AA | C63: AAA760 | D63: 47 | F63: 0101030604 | G63: Titoli diversi | H63: =SUMIF('00 Alimenta'!$B:$B,'00 PDC SP'!$F63,'00 Alimenta'!D:D) -> 0 | I63: =SUMIF('00 Alimenta'!$B:$B,'00 PDC SP'!$F63,'00 Alimenta'!E:E) -> 0 | J63: =SUMIF('00 Alimenta'!$B:$B,'00 PDC SP'!$F63,'00 Alimenta'!F:F) -> 0 | K63: =SUMIF('00 Alimenta'!$B:$B,'00 PDC SP'!$F63,'00 Alimenta'!G:G) -> 0 | L63: =SUMIF('00 Alimenta'!$B:$B,'00 PDC SP'!$F63,'00 Alimenta'!H:H) -> 0 | M63: =SUMIF('00 Alimenta'!$B:$B,'00 PDC SP'!$F63,'00 Alimenta'!I:I) -> 0 | N63: 0
A64: ABA020 | B64: AB | C64: ABA020 | D64: 31 | F64: 0102010101 | G64: Medicinali con AIC | H64: =SUMIF('00 Alimenta'!$B:$B,'00 PDC SP'!$F64,'00 Alimenta'!D:D) -> 5274714.12 | I64: =SUMIF('00 Alimenta'!$B:$B,'00 PDC SP'!$F64,'00 Alimenta'!E:E) -> 4636666.55 | J64: =SUMIF('00 Alimenta'!$B:$B,'00 PDC SP'!$F64,'00 Alimenta'!F:F) -> 5274714.12 | K64: =SUMIF('00 Alimenta'!$B:$B,'00 PDC SP'!$F64,'00 Alimenta'!G:G) -> 4636666.55 | L64: =SUMIF('00 Alimenta'!$B:$B,'00 PDC SP'!$F64,'00 Alimenta'!H:H) -> 4388956 | M64: =SUMIF('00 Alimenta'!$B:$B,'00 PDC SP'!$F64,'00 Alimenta'!I:I) -> 4636666.55 | N64: 4388956
A65: ABA020 | B65: AB | C65: ABA020 | D65: 31 | F65: 0102010102 | G65: Soluzioni infusionali con AIC | H65: =SUMIF('00 Alimenta'!$B:$B,'00 PDC SP'!$F65,'00 Alimenta'!D:D) -> 3117.21 | I65: =SUMIF('00 Alimenta'!$B:$B,'00 PDC SP'!$F65,'00 Alimenta'!E:E) -> 1437.61 | J65: =SUMIF('00 Alimenta'!$B:$B,'00 PDC SP'!$F65,'00 Alimenta'!F:F) -> 3117.21 | K65: =SUMIF('00 Alimenta'!$B:$B,'00 PDC SP'!$F65,'00 Alimenta'!G:G) -> 1437.61 | L65: =SUMIF('00 Alimenta'!$B:$B,'00 PDC SP'!$F65,'00 Alimenta'!H:H) -> 1398.76 | M65: =SUMIF('00 Alimenta'!$B:$B,'00 PDC SP'!$F65,'00 Alimenta'!I:I) -> 1437.61 | N65: 1398.76
A66: ABA020 | B66: AB | C66: ABA020 | D66: 31 | F66: 0102010103 | G66: Ossigeno con AIC | H66: =SUMIF('00 Alimenta'!$B:$B,'00 PDC SP'!$F66,'00 Alimenta'!D:D) -> 11934.33 | I66: =SUMIF('00 Alimenta'!$B:$B,'00 PDC SP'!$F66,'00 Alimenta'!E:E) -> 10294.49 | J66: =SUMIF('00 Alimenta'!$B:$B,'00 PDC SP'!$F66,'00 Alimenta'!F:F) -> 11934.33 | K66: =SUMIF('00 Alimenta'!$B:$B,'00 PDC SP'!$F66,'00 Alimenta'!G:G) -> 10294.49 | L66: =SUMIF('00 Alimenta'!$B:$B,'00 PDC SP'!$F66,'00 Alimenta'!H:H) -> 1633.04 | M66: =SUMIF('00 Alimenta'!$B:$B,'00 PDC SP'!$F66,'00 Alimenta'!I:I) -> 10294.49 | N66: 1633.04
A67: ABA020 | B67: AB | C67: ABA020 | D67: 31 | F67: 0102010104 | G67: Altri gas medicali con AIC | H67: =SUMIF('00 Alimenta'!$B:$B,'00 PDC SP'!$F67,'00 Alimenta'!D:D) -> 8360.19 | I67: =SUMIF('00 Alimenta'!$B:$B,'00 PDC SP'!$F67,'00 Alimenta'!E:E) -> 2368.85 | J67: =SUMIF('00 Alimenta'!$B:$B,'00 PDC SP'!$F67,'00 Alimenta'!F:F) -> 8360.19 | K67: =SUMIF('00 Alimenta'!$B:$B,'00 PDC SP'!$F67,'00 Alimenta'!G:G) -> 2368.85 | L67: =SUMIF('00 Alimenta'!$B:$B,'00 PDC SP'!$F67,'00 Alimenta'!H:H) -> 9993.46 | M67: =SUMIF('00 Alimenta'!$B:$B,'00 PDC SP'!$F67,'00 Alimenta'!I:I) -> 2368.85 | N67: 9993.46
A68: ABA020 | B68: AB | C68: ABA020 | D68: 31 | F68: 0102010105 | G68: Emoderivati con AIC | H68: =SUMIF('00 Alimenta'!$B:$B,'00 PDC SP'!$F68,'00 Alimenta'!D:D) -> 546577.01 | I68: =SUMIF('00 Alimenta'!$B:$B,'00 PDC SP'!$F68,'00 Alimenta'!E:E) -> 298115.4 | J68: =SUMIF('00 Alimenta'!$B:$B,'00 PDC SP'!$F68,'00 Alimenta'!F:F) -> 546577.01 | K68: =SUMIF('00 Alimenta'!$B:$B,'00 PDC SP'!$F68,'00 Alimenta'!G:G) -> 298115.4 | L68: =SUMIF('00 Alimenta'!$B:$B,'00 PDC SP'!$F68,'00 Alimenta'!H:H) -> 415087.34 | M68: =SUMIF('00 Alimenta'!$B:$B,'00 PDC SP'!$F68,'00 Alimenta'!I:I) -> 298115.4 | N68: 415087.34
A69: ABA020 | B69: AB | C69: ABA020 | D69: 31 | F69: 0102010106 | G69: Medicinali senza AIC | H69: =SUMIF('00 Alimenta'!$B:$B,'00 PDC SP'!$F69,'00 Alimenta'!D:D) -> 111611.93 | I69: =SUMIF('00 Alimenta'!$B:$B,'00 PDC SP'!$F69,'00 Alimenta'!E:E) -> 126880.91 | J69: =SUMIF('00 Alimenta'!$B:$B,'00 PDC SP'!$F69,'00 Alimenta'!F:F) -> 111611.93 | K69: =SUMIF('00 Alimenta'!$B:$B,'00 PDC SP'!$F69,'00 Alimenta'!G:G) -> 126880.91 | L69: =SUMIF('00 Alimenta'!$B:$B,'00 PDC SP'!$F69,'00 Alimenta'!H:H) -> 220505.73 | M69: =SUMIF('00 Alimenta'!$B:$B,'00 PDC SP'!$F69,'00 Alimenta'!I:I) -> 126880.91 | N69: 220505.73
A70: =IF(E70="",C70,C70&E70) -> ABA020 | B70: =LEFT(C70,2) -> AB | C70: ABA020 | D70: 31 | F70: 0102010107 | G70: Emoderivati di produzione regionale | H70: =SUMIF('00 Alimenta'!$B:$B,'00 PDC SP'!$F70,'00 Alimenta'!D:D) -> 0 | I70: =SUMIF('00 Alimenta'!$B:$B,'00 PDC SP'!$F70,'00 Alimenta'!E:E) -> 0 | J70: =SUMIF('00 Alimenta'!$B:$B,'00 PDC SP'!$F70,'00 Alimenta'!F:F) -> 0 | K70: =SUMIF('00 Alimenta'!$B:$B,'00 PDC SP'!$F70,'00 Alimenta'!G:G) -> 0 | L70: =SUMIF('00 Alimenta'!$B:$B,'00 PDC SP'!$F70,'00 Alimenta'!H:H) -> 0 | M70: =SUMIF('00 Alimenta'!$B:$B,'00 PDC SP'!$F70,'00 Alimenta'!I:I) -> 0 | N70: =K70+L70-M70 -> 0
A71: =IF(E71="",C71,C71&E71) -> ABA020 | B71: =LEFT(C71,2) -> AB | C71: ABA020 | D71: 31 | F71: 0102010108 | G71: Farmaci innovativi | H71: =SUMIF('00 Alimenta'!$B:$B,'00 PDC SP'!$F71,'00 Alimenta'!D:D) -> 0 | I71: =SUMIF('00 Alimenta'!$B:$B,'00 PDC SP'!$F71,'00 Alimenta'!E:E) -> 406045.08 | J71: =SUMIF('00 Alimenta'!$B:$B,'00 PDC SP'!$F71,'00 Alimenta'!F:F) -> 0 | K71: =SUMIF('00 Alimenta'!$B:$B,'00 PDC SP'!$F71,'00 Alimenta'!G:G) -> 406045.08 | L71: =SUMIF('00 Alimenta'!$B:$B,'00 PDC SP'!$F71,'00 Alimenta'!H:H) -> 796557.79 | M71: =SUMIF('00 Alimenta'!$B:$B,'00 PDC SP'!$F71,'00 Alimenta'!I:I) -> 406045.08 | N71: =K71+L71-M71 -> 796557.79
A72: ABA030 | B72: AB | C72: ABA030 | D72: 31 | F72: 0102010201 | G72: Sangue ed emocomponenti | H72: =SUMIF('00 Alimenta'!$B:$B,'00 PDC SP'!$F72,'00 Alimenta'!D:D) -> 0 | I72: =SUMIF('00 Alimenta'!$B:$B,'00 PDC SP'!$F72,'00 Alimenta'!E:E) -> 0 | J72: =SUMIF('00 Alimenta'!$B:$B,'00 PDC SP'!$F72,'00 Alimenta'!F:F) -> 0 | K72: =SUMIF('00 Alimenta'!$B:$B,'00 PDC SP'!$F72,'00 Alimenta'!G:G) -> 0 | L72: =SUMIF('00 Alimenta'!$B:$B,'00 PDC SP'!$F72,'00 Alimenta'!H:H) -> 0 | M72: =SUMIF('00 Alimenta'!$B:$B,'00 PDC SP'!$F72,'00 Alimenta'!I:I) -> 0 | N72: 0
A73: ABA040 | B73: AB | C73: ABA040 | D73: 31 | F73: 0102010301 | G73: Strumentazione per bioimmagini e radioterapia | H73: =SUMIF('00 Alimenta'!$B:$B,'00 PDC SP'!$F73,'00 Alimenta'!D:D) -> 29748.48 | I73: =SUMIF('00 Alimenta'!$B:$B,'00 PDC SP'!$F73,'00 Alimenta'!E:E) -> 0 | J73: =SUMIF('00 Alimenta'!$B:$B,'00 PDC SP'!$F73,'00 Alimenta'!F:F) -> 29748.48 | K73: =SUMIF('00 Alimenta'!$B:$B,'00 PDC SP'!$F73,'00 Alimenta'!G:G) -> 0 | L73: =SUMIF('00 Alimenta'!$B:$B,'00 PDC SP'!$F73,'00 Alimenta'!H:H) -> 22325.73 | M73: =SUMIF('00 Alimenta'!$B:$B,'00 PDC SP'!$F73,'00 Alimenta'!I:I) -> 0 | N73: 22325.73
A74: ABA040 | B74: AB | C74: ABA040 | D74: 31 | F74: 0102010302 | G74: Materiale per sterilizzazione | H74: =SUMIF('00 Alimenta'!$B:$B,'00 PDC SP'!$F74,'00 Alimenta'!D:D) -> 10623.87 | I74: =SUMIF('00 Alimenta'!$B:$B,'00 PDC SP'!$F74,'00 Alimenta'!E:E) -> 13554.18 | J74: =SUMIF('00 Alimenta'!$B:$B,'00 PDC SP'!$F74,'00 Alimenta'!F:F) -> 10623.87 | K74: =SUMIF('00 Alimenta'!$B:$B,'00 PDC SP'!$F74,'00 Alimenta'!G:G) -> 13554.18 | L74: =SUMIF('00 Alimenta'!$B:$B,'00 PDC SP'!$F74,'00 Alimenta'!H:H) -> 44744.42 | M74: =SUMIF('00 Alimenta'!$B:$B,'00 PDC SP'!$F74,'00 Alimenta'!I:I) -> 13554.18 | N74: 44744.42
A75: ABA040 | B75: AB | C75: ABA040 | D75: 31 | F75: 0102010303 | G75: Dispositivi per chirurgia mini-invasiva ed elettrochirurgia | H75: =SUMIF('00 Alimenta'!$B:$B,'00 PDC SP'!$F75,'00 Alimenta'!D:D) -> 170169.05 | I75: =SUMIF('00 Alimenta'!$B:$B,'00 PDC SP'!$F75,'00 Alimenta'!E:E) -> 174192.21 | J75: =SUMIF('00 Alimenta'!$B:$B,'00 PDC SP'!$F75,'00 Alimenta'!F:F) -> 170169.05 | K75: =SUMIF('00 Alimenta'!$B:$B,'00 PDC SP'!$F75,'00 Alimenta'!G:G) -> 174192.21 | L75: =SUMIF('00 Alimenta'!$B:$B,'00 PDC SP'!$F75,'00 Alimenta'!H:H) -> 191192.48 | M75: =SUMIF('00 Alimenta'!$B:$B,'00 PDC SP'!$F75,'00 Alimenta'!I:I) -> 174192.21 | N75: 191192.48
A76: ABA040 | B76: AB | C76: ABA040 | D76: 31 | F76: 0102010304 | G76: Protesi ortopediche e mezzi per osteosintesi e sintesi tendineo-legamentosa | H76: =SUMIF('00 Alimenta'!$B:$B,'00 PDC SP'!$F76,'00 Alimenta'!D:D) -> 65233.45 | I76: =SUMIF('00 Alimenta'!$B:$B,'00 PDC SP'!$F76,'00 Alimenta'!E:E) -> 50150.67 | J76: =SUMIF('00 Alimenta'!$B:$B,'00 PDC SP'!$F76,'00 Alimenta'!F:F) -> 65233.45 | K76: =SUMIF('00 Alimenta'!$B:$B,'00 PDC SP'!$F76,'00 Alimenta'!G:G) -> 50150.67 | L76: =SUMIF('00 Alimenta'!$B:$B,'00 PDC SP'!$F76,'00 Alimenta'!H:H) -> 156988.5 | M76: =SUMIF('00 Alimenta'!$B:$B,'00 PDC SP'!$F76,'00 Alimenta'!I:I) -> 50150.67 | N76: 156988.5
A77: ABA040 | B77: AB | C77: ABA040 | D77: 31 | F77: 0102010305 | G77: Protesi oculistiche | H77: =SUMIF('00 Alimenta'!$B:$B,'00 PDC SP'!$F77,'00 Alimenta'!D:D) -> 4357.6 | I77: =SUMIF('00 Alimenta'!$B:$B,'00 PDC SP'!$F77,'00 Alimenta'!E:E) -> 24968.06 | J77: =SUMIF('00 Alimenta'!$B:$B,'00 PDC SP'!$F77,'00 Alimenta'!F:F) -> 4357.6 | K77: =SUMIF('00 Alimenta'!$B:$B,'00 PDC SP'!$F77,'00 Alimenta'!G:G) -> 24968.06 | L77: =SUMIF('00 Alimenta'!$B:$B,'00 PDC SP'!$F77,'00 Alimenta'!H:H) -> 21294.52 | M77: =SUMIF('00 Alimenta'!$B:$B,'00 PDC SP'!$F77,'00 Alimenta'!I:I) -> 24968.06 | N77: 21294.52
A78: ABA040 | B78: AB | C78: ABA040 | D78: 31 | F78: 0102010306 | G78: Protesi vascolari e cardiache | H78: =SUMIF('00 Alimenta'!$B:$B,'00 PDC SP'!$F78,'00 Alimenta'!D:D) -> 0 | I78: =SUMIF('00 Alimenta'!$B:$B,'00 PDC SP'!$F78,'00 Alimenta'!E:E) -> 1839.24 | J78: =SUMIF('00 Alimenta'!$B:$B,'00 PDC SP'!$F78,'00 Alimenta'!F:F) -> 0 | K78: =SUMIF('00 Alimenta'!$B:$B,'00 PDC SP'!$F78,'00 Alimenta'!G:G) -> 1839.24 | L78: =SUMIF('00 Alimenta'!$B:$B,'00 PDC SP'!$F78,'00 Alimenta'!H:H) -> 7516.08 | M78: =SUMIF('00 Alimenta'!$B:$B,'00 PDC SP'!$F78,'00 Alimenta'!I:I) -> 1839.24 | N78: 7516.08
A79: ABA040 | B79: AB | C79: ABA040 | D79: 31 | F79: 0102010307 | G79: Altri dispositivi protesici impiantabili e prodotti per osteosintesi | H79: =SUMIF('00 Alimenta'!$B:$B,'00 PDC SP'!$F79,'00 Alimenta'!D:D) -> 29566.72 | I79: =SUMIF('00 Alimenta'!$B:$B,'00 PDC SP'!$F79,'00 Alimenta'!E:E) -> 10862.72 | J79: =SUMIF('00 Alimenta'!$B:$B,'00 PDC SP'!$F79,'00 Alimenta'!F:F) -> 29566.72 | K79: =SUMIF('00 Alimenta'!$B:$B,'00 PDC SP'!$F79,'00 Alimenta'!G:G) -> 10862.72 | L79: =SUMIF('00 Alimenta'!$B:$B,'00 PDC SP'!$F79,'00 Alimenta'!H:H) -> 15680.73 | M79: =SUMIF('00 Alimenta'!$B:$B,'00 PDC SP'!$F79,'00 Alimenta'!I:I) -> 10862.72 | N79: 15680.73
A80: ABA040 | B80: AB | C80: ABA040 | D80: 31 | F80: 0102010308 | G80: Supporti e ausili tecnici per persone disabili | H80: =SUMIF('00 Alimenta'!$B:$B,'00 PDC SP'!$F80,'00 Alimenta'!D:D) -> 10313.98 | I80: =SUMIF('00 Alimenta'!$B:$B,'00 PDC SP'!$F80,'00 Alimenta'!E:E) -> 21594.97 | J80: =SUMIF('00 Alimenta'!$B:$B,'00 PDC SP'!$F80,'00 Alimenta'!F:F) -> 10313.98 | K80: =SUMIF('00 Alimenta'!$B:$B,'00 PDC SP'!$F80,'00 Alimenta'!G:G) -> 21594.97 | L80: =SUMIF('00 Alimenta'!$B:$B,'00 PDC SP'!$F80,'00 Alimenta'!H:H) -> 32718.44 | M80: =SUMIF('00 Alimenta'!$B:$B,'00 PDC SP'!$F80,'00 Alimenta'!I:I) -> 21594.97 | N80: 32718.44
A81: ABA040 | B81: AB | C81: ABA040 | D81: 31 | F81: 0102010309 | G81: Dispositivi per emotrasfusione ed ematologia | H81: =SUMIF('00 Alimenta'!$B:$B,'00 PDC SP'!$F81,'00 Alimenta'!D:D) -> 32946.33 | I81: =SUMIF('00 Alimenta'!$B:$B,'00 PDC SP'!$F81,'00 Alimenta'!E:E) -> 45796.36 | J81: =SUMIF('00 Alimenta'!$B:$B,'00 PDC SP'!$F81,'00 Alimenta'!F:F) -> 32946.33 | K81: =SUMIF('00 Alimenta'!$B:$B,'00 PDC SP'!$F81,'00 Alimenta'!G:G) -> 45796.36 | L81: =SUMIF('00 Alimenta'!$B:$B,'00 PDC SP'!$F81,'00 Alimenta'!H:H) -> 58519.51 | M81: =SUMIF('00 Alimenta'!$B:$B,'00 PDC SP'!$F81,'00 Alimenta'!I:I) -> 45796.36 | N81: 58519.51
A82: ABA040 | B82: AB | C82: ABA040 | D82: 31 | F82: 0102010310 | G82: Dispositivi per dialisi | H82: =SUMIF('00 Alimenta'!$B:$B,'00 PDC SP'!$F82,'00 Alimenta'!D:D) -> 192658.67 | I82: =SUMIF('00 Alimenta'!$B:$B,'00 PDC SP'!$F82,'00 Alimenta'!E:E) -> 179690.46 | J82: =SUMIF('00 Alimenta'!$B:$B,'00 PDC SP'!$F82,'00 Alimenta'!F:F) -> 192658.67 | K82: =SUMIF('00 Alimenta'!$B:$B,'00 PDC SP'!$F82,'00 Alimenta'!G:G) -> 179690.46 | L82: =SUMIF('00 Alimenta'!$B:$B,'00 PDC SP'!$F82,'00 Alimenta'!H:H) -> 78184.86 | M82: =SUMIF('00 Alimenta'!$B:$B,'00 PDC SP'!$F82,'00 Alimenta'!I:I) -> 179690.46 | N82: 78184.86
A83: ABA040 | B83: AB | C83: ABA040 | D83: 31 | F83: 0102010311 | G83: Dispositivi medico-diagnostici in vitro (D.Lgs. 332/2000) | H83: =SUMIF('00 Alimenta'!$B:$B,'00 PDC SP'!$F83,'00 Alimenta'!D:D) -> 1199655.32 | I83: =SUMIF('00 Alimenta'!$B:$B,'00 PDC SP'!$F83,'00 Alimenta'!E:E) -> 1255177.4 | J83: =SUMIF('00 Alimenta'!$B:$B,'00 PDC SP'!$F83,'00 Alimenta'!F:F) -> 1199655.32 | K83: =SUMIF('00 Alimenta'!$B:$B,'00 PDC SP'!$F83,'00 Alimenta'!G:G) -> 1255177.4 | L83: =SUMIF('00 Alimenta'!$B:$B,'00 PDC SP'!$F83,'00 Alimenta'!H:H) -> 1482372.12 | M83: =SUMIF('00 Alimenta'!$B:$B,'00 PDC SP'!$F83,'00 Alimenta'!I:I) -> 1255177.4 | N83: 1482372.12
A84: ABA040 | B84: AB | C84: ABA040 | D84: 31 | F84: 0102010312 | G84: Strumentazione per esplorazioni funzionali ed interventi terapeutici | H84: =SUMIF('00 Alimenta'!$B:$B,'00 PDC SP'!$F84,'00 Alimenta'!D:D) -> 287035.21 | I84: =SUMIF('00 Alimenta'!$B:$B,'00 PDC SP'!$F84,'00 Alimenta'!E:E) -> 104045.91 | J84: =SUMIF('00 Alimenta'!$B:$B,'00 PDC SP'!$F84,'00 Alimenta'!F:F) -> 287035.21 | K84: =SUMIF('00 Alimenta'!$B:$B,'00 PDC SP'!$F84,'00 Alimenta'!G:G) -> 104045.91 | L84: =SUMIF('00 Alimenta'!$B:$B,'00 PDC SP'!$F84,'00 Alimenta'!H:H) -> 270520.31 | M84: =SUMIF('00 Alimenta'!$B:$B,'00 PDC SP'!$F84,'00 Alimenta'!I:I) -> 104045.91 | N84: 270520.31
A85: ABA040 | B85: AB | C85: ABA040 | D85: 31 | F85: 0102010313 | G85: Strumentazione per radiologia diagnostica ed interventistica | H85: =SUMIF('00 Alimenta'!$B:$B,'00 PDC SP'!$F85,'00 Alimenta'!D:D) -> 3035.37 | I85: =SUMIF('00 Alimenta'!$B:$B,'00 PDC SP'!$F85,'00 Alimenta'!E:E) -> 589.26 | J85: =SUMIF('00 Alimenta'!$B:$B,'00 PDC SP'!$F85,'00 Alimenta'!F:F) -> 3035.37 | K85: =SUMIF('00 Alimenta'!$B:$B,'00 PDC SP'!$F85,'00 Alimenta'!G:G) -> 589.26 | L85: =SUMIF('00 Alimenta'!$B:$B,'00 PDC SP'!$F85,'00 Alimenta'!H:H) -> 712.51 | M85: =SUMIF('00 Alimenta'!$B:$B,'00 PDC SP'!$F85,'00 Alimenta'!I:I) -> 589.26 | N85: 712.51
A86: ABA040 | B86: AB | C86: ABA040 | D86: 31 | F86: 0102010314 | G86: Strumentario chirurgico pluriuso o riusabile | H86: =SUMIF('00 Alimenta'!$B:$B,'00 PDC SP'!$F86,'00 Alimenta'!D:D) -> 94988.55 | I86: =SUMIF('00 Alimenta'!$B:$B,'00 PDC SP'!$F86,'00 Alimenta'!E:E) -> 55549.76 | J86: =SUMIF('00 Alimenta'!$B:$B,'00 PDC SP'!$F86,'00 Alimenta'!F:F) -> 94988.55 | K86: =SUMIF('00 Alimenta'!$B:$B,'00 PDC SP'!$F86,'00 Alimenta'!G:G) -> 55549.76 | L86: =SUMIF('00 Alimenta'!$B:$B,'00 PDC SP'!$F86,'00 Alimenta'!H:H) -> 92097.5 | M86: =SUMIF('00 Alimenta'!$B:$B,'00 PDC SP'!$F86,'00 Alimenta'!I:I) -> 55549.76 | N86: 92097.5
A87: ABA040 | B87: AB | C87: ABA040 | D87: 31 | F87: 0102010315 | G87: Dispositivi protesici impiantabili - vari | H87: =SUMIF('00 Alimenta'!$B:$B,'00 PDC SP'!$F87,'00 Alimenta'!D:D) -> 62849.41 | I87: =SUMIF('00 Alimenta'!$B:$B,'00 PDC SP'!$F87,'00 Alimenta'!E:E) -> 28003.05 | J87: =SUMIF('00 Alimenta'!$B:$B,'00 PDC SP'!$F87,'00 Alimenta'!F:F) -> 62849.41 | K87: =SUMIF('00 Alimenta'!$B:$B,'00 PDC SP'!$F87,'00 Alimenta'!G:G) -> 28003.05 | L87: =SUMIF('00 Alimenta'!$B:$B,'00 PDC SP'!$F87,'00 Alimenta'!H:H) -> 80004.3 | M87: =SUMIF('00 Alimenta'!$B:$B,'00 PDC SP'!$F87,'00 Alimenta'!I:I) -> 28003.05 | N87: 80004.3
A88: ABA040 | B88: AB | C88: ABA040 | D88: 31 | F88: 0102010316 | G88: Dispositivi per sistema artero-venoso | H88: =SUMIF('00 Alimenta'!$B:$B,'00 PDC SP'!$F88,'00 Alimenta'!D:D) -> 111809.84 | I88: =SUMIF('00 Alimenta'!$B:$B,'00 PDC SP'!$F88,'00 Alimenta'!E:E) -> 132460.47 | J88: =SUMIF('00 Alimenta'!$B:$B,'00 PDC SP'!$F88,'00 Alimenta'!F:F) -> 111809.84 | K88: =SUMIF('00 Alimenta'!$B:$B,'00 PDC SP'!$F88,'00 Alimenta'!G:G) -> 132460.47 | L88: =SUMIF('00 Alimenta'!$B:$B,'00 PDC SP'!$F88,'00 Alimenta'!H:H) -> 196661.87 | M88: =SUMIF('00 Alimenta'!$B:$B,'00 PDC SP'!$F88,'00 Alimenta'!I:I) -> 132460.47 | N88: 196661.87
A89: ABA040 | B89: AB | C89: ABA040 | D89: 31 | F89: 0102010317 | G89: Guide per apparato cardiocircolatorio | H89: =SUMIF('00 Alimenta'!$B:$B,'00 PDC SP'!$F89,'00 Alimenta'!D:D) -> 27401.68 | I89: =SUMIF('00 Alimenta'!$B:$B,'00 PDC SP'!$F89,'00 Alimenta'!E:E) -> 9174.4 | J89: =SUMIF('00 Alimenta'!$B:$B,'00 PDC SP'!$F89,'00 Alimenta'!F:F) -> 27401.68 | K89: =SUMIF('00 Alimenta'!$B:$B,'00 PDC SP'!$F89,'00 Alimenta'!G:G) -> 9174.4 | L89: =SUMIF('00 Alimenta'!$B:$B,'00 PDC SP'!$F89,'00 Alimenta'!H:H) -> 16525.53 | M89: =SUMIF('00 Alimenta'!$B:$B,'00 PDC SP'!$F89,'00 Alimenta'!I:I) -> 9174.4 | N89: 16525.53
A90: ABA040 | B90: AB | C90: ABA040 | D90: 31 | F90: 0102010318 | G90: Altri dispositivi per apparato cardiocircolatorio | H90: =SUMIF('00 Alimenta'!$B:$B,'00 PDC SP'!$F90,'00 Alimenta'!D:D) -> 79721.49 | I90: =SUMIF('00 Alimenta'!$B:$B,'00 PDC SP'!$F90,'00 Alimenta'!E:E) -> 124428.45 | J90: =SUMIF('00 Alimenta'!$B:$B,'00 PDC SP'!$F90,'00 Alimenta'!F:F) -> 79721.49 | K90: =SUMIF('00 Alimenta'!$B:$B,'00 PDC SP'!$F90,'00 Alimenta'!G:G) -> 124428.45 | L90: =SUMIF('00 Alimenta'!$B:$B,'00 PDC SP'!$F90,'00 Alimenta'!H:H) -> 123103.54 | M90: =SUMIF('00 Alimenta'!$B:$B,'00 PDC SP'!$F90,'00 Alimenta'!I:I) -> 124428.45 | N90: 123103.54
A91: ABA040 | B91: AB | C91: ABA040 | D91: 31 | F91: 0102010319 | G91: Disinfettanti, antisettici e proteolitici (D.Lgs. 46/97) | H91: =SUMIF('00 Alimenta'!$B:$B,'00 PDC SP'!$F91,'00 Alimenta'!D:D) -> 26457.53 | I91: =SUMIF('00 Alimenta'!$B:$B,'00 PDC SP'!$F91,'00 Alimenta'!E:E) -> 29235.99 | J91: =SUMIF('00 Alimenta'!$B:$B,'00 PDC SP'!$F91,'00 Alimenta'!F:F) -> 26457.53 | K91: =SUMIF('00 Alimenta'!$B:$B,'00 PDC SP'!$F91,'00 Alimenta'!G:G) -> 29235.99 | L91: =SUMIF('00 Alimenta'!$B:$B,'00 PDC SP'!$F91,'00 Alimenta'!H:H) -> 22348.48 | M91: =SUMIF('00 Alimenta'!$B:$B,'00 PDC SP'!$F91,'00 Alimenta'!I:I) -> 29235.99 | N91: 22348.48
A92: ABA040 | B92: AB | C92: ABA040 | D92: 31 | F92: 0102010320 | G92: Dispositivi per apparato gastrointestinale | H92: =SUMIF('00 Alimenta'!$B:$B,'00 PDC SP'!$F92,'00 Alimenta'!D:D) -> 50926.03 | I92: =SUMIF('00 Alimenta'!$B:$B,'00 PDC SP'!$F92,'00 Alimenta'!E:E) -> 59952.07 | J92: =SUMIF('00 Alimenta'!$B:$B,'00 PDC SP'!$F92,'00 Alimenta'!F:F) -> 50926.03 | K92: =SUMIF('00 Alimenta'!$B:$B,'00 PDC SP'!$F92,'00 Alimenta'!G:G) -> 59952.07 | L92: =SUMIF('00 Alimenta'!$B:$B,'00 PDC SP'!$F92,'00 Alimenta'!H:H) -> 83693.42 | M92: =SUMIF('00 Alimenta'!$B:$B,'00 PDC SP'!$F92,'00 Alimenta'!I:I) -> 59952.07 | N92: 83693.42
A93: ABA040 | B93: AB | C93: ABA040 | D93: 31 | F93: 0102010321 | G93: Dispositivi da sutura | H93: =SUMIF('00 Alimenta'!$B:$B,'00 PDC SP'!$F93,'00 Alimenta'!D:D) -> 306526.84 | I93: =SUMIF('00 Alimenta'!$B:$B,'00 PDC SP'!$F93,'00 Alimenta'!E:E) -> 396218.06 | J93: =SUMIF('00 Alimenta'!$B:$B,'00 PDC SP'!$F93,'00 Alimenta'!F:F) -> 306526.84 | K93: =SUMIF('00 Alimenta'!$B:$B,'00 PDC SP'!$F93,'00 Alimenta'!G:G) -> 396218.06 | L93: =SUMIF('00 Alimenta'!$B:$B,'00 PDC SP'!$F93,'00 Alimenta'!H:H) -> 349748.67 | M93: =SUMIF('00 Alimenta'!$B:$B,'00 PDC SP'!$F93,'00 Alimenta'!I:I) -> 396218.06 | N93: 349748.67
A94: ABA040 | B94: AB | C94: ABA040 | D94: 31 | F94: 0102010322 | G94: Dispositivi per sistema nervoso e midollare | H94: =SUMIF('00 Alimenta'!$B:$B,'00 PDC SP'!$F94,'00 Alimenta'!D:D) -> 9075.2 | I94: =SUMIF('00 Alimenta'!$B:$B,'00 PDC SP'!$F94,'00 Alimenta'!E:E) -> 12511.97 | J94: =SUMIF('00 Alimenta'!$B:$B,'00 PDC SP'!$F94,'00 Alimenta'!F:F) -> 9075.2 | K94: =SUMIF('00 Alimenta'!$B:$B,'00 PDC SP'!$F94,'00 Alimenta'!G:G) -> 12511.97 | L94: =SUMIF('00 Alimenta'!$B:$B,'00 PDC SP'!$F94,'00 Alimenta'!H:H) -> 28260.43 | M94: =SUMIF('00 Alimenta'!$B:$B,'00 PDC SP'!$F94,'00 Alimenta'!I:I) -> 12511.97 | N94: 28260.43
A95: ABA040 | B95: AB | C95: ABA040 | D95: 31 | F95: 0102010323 | G95: Dispositivi per odontoiatria, oftalmologoa e otorinolaringoiatria | H95: =SUMIF('00 Alimenta'!$B:$B,'00 PDC SP'!$F95,'00 Alimenta'!D:D) -> 141685.25 | I95: =SUMIF('00 Alimenta'!$B:$B,'00 PDC SP'!$F95,'00 Alimenta'!E:E) -> 105207.2 | J95: =SUMIF('00 Alimenta'!$B:$B,'00 PDC SP'!$F95,'00 Alimenta'!F:F) -> 141685.25 | K95: =SUMIF('00 Alimenta'!$B:$B,'00 PDC SP'!$F95,'00 Alimenta'!G:G) -> 105207.2 | L95: =SUMIF('00 Alimenta'!$B:$B,'00 PDC SP'!$F95,'00 Alimenta'!H:H) -> 71817.28 | M95: =SUMIF('00 Alimenta'!$B:$B,'00 PDC SP'!$F95,'00 Alimenta'!I:I) -> 105207.2 | N95: 71817.28
A96: ABA040 | B96: AB | C96: ABA040 | D96: 31 | F96: 0102010324 | G96: Dispositivi per apparato respiratorio e anestesia | H96: =SUMIF('00 Alimenta'!$B:$B,'00 PDC SP'!$F96,'00 Alimenta'!D:D) -> 174448.95 | I96: =SUMIF('00 Alimenta'!$B:$B,'00 PDC SP'!$F96,'00 Alimenta'!E:E) -> 125642.41 | J96: =SUMIF('00 Alimenta'!$B:$B,'00 PDC SP'!$F96,'00 Alimenta'!F:F) -> 174448.95 | K96: =SUMIF('00 Alimenta'!$B:$B,'00 PDC SP'!$F96,'00 Alimenta'!G:G) -> 125642.41 | L96: =SUMIF('00 Alimenta'!$B:$B,'00 PDC SP'!$F96,'00 Alimenta'!H:H) -> 182238.66 | M96: =SUMIF('00 Alimenta'!$B:$B,'00 PDC SP'!$F96,'00 Alimenta'!I:I) -> 125642.41 | N96: 182238.66
A97: ABA040 | B97: AB | C97: ABA040 | D97: 31 | F97: 0102010325 | G97: Dispositivi di protezione e ausili per incontinenza (D.Lgs. 46/97) | H97: =SUMIF('00 Alimenta'!$B:$B,'00 PDC SP'!$F97,'00 Alimenta'!D:D) -> 199194.51 | I97: =SUMIF('00 Alimenta'!$B:$B,'00 PDC SP'!$F97,'00 Alimenta'!E:E) -> 212601.7 | J97: =SUMIF('00 Alimenta'!$B:$B,'00 PDC SP'!$F97,'00 Alimenta'!F:F) -> 199194.51 | K97: =SUMIF('00 Alimenta'!$B:$B,'00 PDC SP'!$F97,'00 Alimenta'!G:G) -> 212601.7 | L97: =SUMIF('00 Alimenta'!$B:$B,'00 PDC SP'!$F97,'00 Alimenta'!H:H) -> 196921.3 | M97: =SUMIF('00 Alimenta'!$B:$B,'00 PDC SP'!$F97,'00 Alimenta'!I:I) -> 212601.7 | N97: 196921.3
A98: ABA040 | B98: AB | C98: ABA040 | D98: 31 | F98: 0102010326 | G98: Dispositivi per apparato urogenitale | H98: =SUMIF('00 Alimenta'!$B:$B,'00 PDC SP'!$F98,'00 Alimenta'!D:D) -> 42691.15 | I98: =SUMIF('00 Alimenta'!$B:$B,'00 PDC SP'!$F98,'00 Alimenta'!E:E) -> 65964.79 | J98: =SUMIF('00 Alimenta'!$B:$B,'00 PDC SP'!$F98,'00 Alimenta'!F:F) -> 42691.15 | K98: =SUMIF('00 Alimenta'!$B:$B,'00 PDC SP'!$F98,'00 Alimenta'!G:G) -> 65964.79 | L98: =SUMIF('00 Alimenta'!$B:$B,'00 PDC SP'!$F98,'00 Alimenta'!H:H) -> 51126.59 | M98: =SUMIF('00 Alimenta'!$B:$B,'00 PDC SP'!$F98,'00 Alimenta'!I:I) -> 65964.79 | N98: 51126.59
A99: ABA040 | B99: AB | C99: ABA040 | D99: 31 | F99: 0102010327 | G99: Dispositivi vari | H99: =SUMIF('00 Alimenta'!$B:$B,'00 PDC SP'!$F99,'00 Alimenta'!D:D) -> 300627.01 | I99: =SUMIF('00 Alimenta'!$B:$B,'00 PDC SP'!$F99,'00 Alimenta'!E:E) -> 234985.3 | J99: =SUMIF('00 Alimenta'!$B:$B,'00 PDC SP'!$F99,'00 Alimenta'!F:F) -> 300627.01 | K99: =SUMIF('00 Alimenta'!$B:$B,'00 PDC SP'!$F99,'00 Alimenta'!G:G) -> 234985.3 | L99: =SUMIF('00 Alimenta'!$B:$B,'00 PDC SP'!$F99,'00 Alimenta'!H:H) -> 304842.72 | M99: =SUMIF('00 Alimenta'!$B:$B,'00 PDC SP'!$F99,'00 Alimenta'!I:I) -> 234985.3 | N99: 304842.72
A100: ABA040 | B100: AB | C100: ABA040 | D100: 31 | F100: 0102010328 | G100: Dispositivi da somministrazione, prelievo e raccolta | H100: =SUMIF('00 Alimenta'!$B:$B,'00 PDC SP'!$F100,'00 Alimenta'!D:D) -> 573626.02 | I100: =SUMIF('00 Alimenta'!$B:$B,'00 PDC SP'!$F100,'00 Alimenta'!E:E) -> 559635.57 | J100: =SUMIF('00 Alimenta'!$B:$B,'00 PDC SP'!$F100,'00 Alimenta'!F:F) -> 573626.02 | K100: =SUMIF('00 Alimenta'!$B:$B,'00 PDC SP'!$F100,'00 Alimenta'!G:G) -> 559635.57 | L100: =SUMIF('00 Alimenta'!$B:$B,'00 PDC SP'!$F100,'00 Alimenta'!H:H) -> 569117.95 | M100: =SUMIF('00 Alimenta'!$B:$B,'00 PDC SP'!$F100,'00 Alimenta'!I:I) -> 559635.57 | N100: 569117.95
A101: ABA040 | B101: AB | C101: ABA040 | D101: 31 | F101: 0102010329 | G101: Dispositivi per medicazioni generali e specialistiche | H101: =SUMIF('00 Alimenta'!$B:$B,'00 PDC SP'!$F101,'00 Alimenta'!D:D) -> 383456.26 | I101: =SUMIF('00 Alimenta'!$B:$B,'00 PDC SP'!$F101,'00 Alimenta'!E:E) -> 312836.58 | J101: =SUMIF('00 Alimenta'!$B:$B,'00 PDC SP'!$F101,'00 Alimenta'!F:F) -> 383456.26 | K101: =SUMIF('00 Alimenta'!$B:$B,'00 PDC SP'!$F101,'00 Alimenta'!G:G) -> 312836.58 | L101: =SUMIF('00 Alimenta'!$B:$B,'00 PDC SP'!$F101,'00 Alimenta'!H:H) -> 357449.92 | M101: =SUMIF('00 Alimenta'!$B:$B,'00 PDC SP'!$F101,'00 Alimenta'!I:I) -> 312836.58 | N101: 357449.92
A102: ABA040 | B102: AB | C102: ABA040 | D102: 31 | F102: 0102010330 | G102: Dispositivi impiantabili attivi | H102: =SUMIF('00 Alimenta'!$B:$B,'00 PDC SP'!$F102,'00 Alimenta'!D:D) -> 16290.36 | I102: =SUMIF('00 Alimenta'!$B:$B,'00 PDC SP'!$F102,'00 Alimenta'!E:E) -> 58041 | J102: =SUMIF('00 Alimenta'!$B:$B,'00 PDC SP'!$F102,'00 Alimenta'!F:F) -> 16290.36 | K102: =SUMIF('00 Alimenta'!$B:$B,'00 PDC SP'!$F102,'00 Alimenta'!G:G) -> 58041 | L102: =SUMIF('00 Alimenta'!$B:$B,'00 PDC SP'!$F102,'00 Alimenta'!H:H) -> 30319.56 | M102: =SUMIF('00 Alimenta'!$B:$B,'00 PDC SP'!$F102,'00 Alimenta'!I:I) -> 58041 | N102: 30319.56
A103: ABA050 | B103: AB | C103: ABA050 | D103: 31 | F103: 0102010401 | G103: Prodotti dietetici | H103: =SUMIF('00 Alimenta'!$B:$B,'00 PDC SP'!$F103,'00 Alimenta'!D:D) -> 8105.46 | I103: =SUMIF('00 Alimenta'!$B:$B,'00 PDC SP'!$F103,'00 Alimenta'!E:E) -> 4508.83 | J103: =SUMIF('00 Alimenta'!$B:$B,'00 PDC SP'!$F103,'00 Alimenta'!F:F) -> 8105.46 | K103: =SUMIF('00 Alimenta'!$B:$B,'00 PDC SP'!$F103,'00 Alimenta'!G:G) -> 4508.83 | L103: =SUMIF('00 Alimenta'!$B:$B,'00 PDC SP'!$F103,'00 Alimenta'!H:H) -> 5615.65 | M103: =SUMIF('00 Alimenta'!$B:$B,'00 PDC SP'!$F103,'00 Alimenta'!I:I) -> 4508.83 | N103: 5615.65
A104: ABA050 | B104: AB | C104: ABA050 | D104: 31 | F104: 0102010402 | G104: Alimenti per nutrizione artificiale senza AIC | H104: =SUMIF('00 Alimenta'!$B:$B,'00 PDC SP'!$F104,'00 Alimenta'!D:D) -> 68589.69 | I104: =SUMIF('00 Alimenta'!$B:$B,'00 PDC SP'!$F104,'00 Alimenta'!E:E) -> 63760.33 | J104: =SUMIF('00 Alimenta'!$B:$B,'00 PDC SP'!$F104,'00 Alimenta'!F:F) -> 68589.69 | K104: =SUMIF('00 Alimenta'!$B:$B,'00 PDC SP'!$F104,'00 Alimenta'!G:G) -> 63760.33 | L104: =SUMIF('00 Alimenta'!$B:$B,'00 PDC SP'!$F104,'00 Alimenta'!H:H) -> 58004.47 | M104: =SUMIF('00 Alimenta'!$B:$B,'00 PDC SP'!$F104,'00 Alimenta'!I:I) -> 63760.33 | N104: 58004.47
A105: ABA060 | B105: AB | C105: ABA060 | D105: 31 | F105: 0102010501 | G105: Sieri | H105: =SUMIF('00 Alimenta'!$B:$B,'00 PDC SP'!$F105,'00 Alimenta'!D:D) -> 0 | I105: =SUMIF('00 Alimenta'!$B:$B,'00 PDC SP'!$F105,'00 Alimenta'!E:E) -> 0 | J105: =SUMIF('00 Alimenta'!$B:$B,'00 PDC SP'!$F105,'00 Alimenta'!F:F) -> 0 | K105: =SUMIF('00 Alimenta'!$B:$B,'00 PDC SP'!$F105,'00 Alimenta'!G:G) -> 0 | L105: =SUMIF('00 Alimenta'!$B:$B,'00 PDC SP'!$F105,'00 Alimenta'!H:H) -> 0 | M105: =SUMIF('00 Alimenta'!$B:$B,'00 PDC SP'!$F105,'00 Alimenta'!I:I) -> 0 | N105: 0
A106: ABA060 | B106: AB | C106: ABA060 | D106: 31 | F106: 0102010502 | G106: Vaccini obbligatori | H106: =SUMIF('00 Alimenta'!$B:$B,'00 PDC SP'!$F106,'00 Alimenta'!D:D) -> 0 | I106: =SUMIF('00 Alimenta'!$B:$B,'00 PDC SP'!$F106,'00 Alimenta'!E:E) -> 0 | J106: =SUMIF('00 Alimenta'!$B:$B,'00 PDC SP'!$F106,'00 Alimenta'!F:F) -> 0 | K106: =SUMIF('00 Alimenta'!$B:$B,'00 PDC SP'!$F106,'00 Alimenta'!G:G) -> 0 | L106: =SUMIF('00 Alimenta'!$B:$B,'00 PDC SP'!$F106,'00 Alimenta'!H:H) -> 0 | M106: =SUMIF('00 Alimenta'!$B:$B,'00 PDC SP'!$F106,'00 Alimenta'!I:I) -> 0 | N106: 0
A107: ABA060 | B107: AB | C107: ABA060 | D107: 31 | F107: 0102010503 | G107: Altri Vaccini | H107: =SUMIF('00 Alimenta'!$B:$B,'00 PDC SP'!$F107,'00 Alimenta'!D:D) -> 0 | I107: =SUMIF('00 Alimenta'!$B:$B,'00 PDC SP'!$F107,'00 Alimenta'!E:E) -> 0 | J107: =SUMIF('00 Alimenta'!$B:$B,'00 PDC SP'!$F107,'00 Alimenta'!F:F) -> 0 | K107: =SUMIF('00 Alimenta'!$B:$B,'00 PDC SP'!$F107,'00 Alimenta'!G:G) -> 0 | L107: =SUMIF('00 Alimenta'!$B:$B,'00 PDC SP'!$F107,'00 Alimenta'!H:H) -> 1112.76 | M107: =SUMIF('00 Alimenta'!$B:$B,'00 PDC SP'!$F107,'00 Alimenta'!I:I) -> 0 | N107: 1112.76
A108: ABA060 | B108: AB | C108: ABA060 | D108: 31 | F108: 0102010504 | G108: Altri materiali per la profilassi | H108: =SUMIF('00 Alimenta'!$B:$B,'00 PDC SP'!$F108,'00 Alimenta'!D:D) -> 0 | I108: =SUMIF('00 Alimenta'!$B:$B,'00 PDC SP'!$F108,'00 Alimenta'!E:E) -> 0 | J108: =SUMIF('00 Alimenta'!$B:$B,'00 PDC SP'!$F108,'00 Alimenta'!F:F) -> 0 | K108: =SUMIF('00 Alimenta'!$B:$B,'00 PDC SP'!$F108,'00 Alimenta'!G:G) -> 0 | L108: =SUMIF('00 Alimenta'!$B:$B,'00 PDC SP'!$F108,'00 Alimenta'!H:H) -> 0 | M108: =SUMIF('00 Alimenta'!$B:$B,'00 PDC SP'!$F108,'00 Alimenta'!I:I) -> 0 | N108: 0
A109: ABA070 | B109: AB | C109: ABA070 | D109: 31 | F109: 0102010601 | G109: Prodotti chimici | H109: =SUMIF('00 Alimenta'!$B:$B,'00 PDC SP'!$F109,'00 Alimenta'!D:D) -> 0 | I109: =SUMIF('00 Alimenta'!$B:$B,'00 PDC SP'!$F109,'00 Alimenta'!E:E) -> 0 | J109: =SUMIF('00 Alimenta'!$B:$B,'00 PDC SP'!$F109,'00 Alimenta'!F:F) -> 0 | K109: =SUMIF('00 Alimenta'!$B:$B,'00 PDC SP'!$F109,'00 Alimenta'!G:G) -> 0 | L109: =SUMIF('00 Alimenta'!$B:$B,'00 PDC SP'!$F109,'00 Alimenta'!H:H) -> 0 | M109: =SUMIF('00 Alimenta'!$B:$B,'00 PDC SP'!$F109,'00 Alimenta'!I:I) -> 0 | N109: 0
A110: ABA080 | B110: AB | C110: ABA080 | D110: 31 | F110: 0102010701 | G110: Medicinali ad uso veterinario | H110: =SUMIF('00 Alimenta'!$B:$B,'00 PDC SP'!$F110,'00 Alimenta'!D:D) -> 192 | I110: =SUMIF('00 Alimenta'!$B:$B,'00 PDC SP'!$F110,'00 Alimenta'!E:E) -> 0 | J110: =SUMIF('00 Alimenta'!$B:$B,'00 PDC SP'!$F110,'00 Alimenta'!F:F) -> 192 | K110: =SUMIF('00 Alimenta'!$B:$B,'00 PDC SP'!$F110,'00 Alimenta'!G:G) -> 0 | L110: =SUMIF('00 Alimenta'!$B:$B,'00 PDC SP'!$F110,'00 Alimenta'!H:H) -> 0 | M110: =SUMIF('00 Alimenta'!$B:$B,'00 PDC SP'!$F110,'00 Alimenta'!I:I) -> 0 | N110: 0
A111: ABA080 | B111: AB | C111: ABA080 | D111: 31 | F111: 0102010702 | G111: Materiali chirurgici, sanitari e diagnostici per uso veterinario | H111: =SUMIF('00 Alimenta'!$B:$B,'00 PDC SP'!$F111,'00 Alimenta'!D:D) -> 0 | I111: =SUMIF('00 Alimenta'!$B:$B,'00 PDC SP'!$F111,'00 Alimenta'!E:E) -> 0 | J111: =SUMIF('00 Alimenta'!$B:$B,'00 PDC SP'!$F111,'00 Alimenta'!F:F) -> 0 | K111: =SUMIF('00 Alimenta'!$B:$B,'00 PDC SP'!$F111,'00 Alimenta'!G:G) -> 0 | L111: =SUMIF('00 Alimenta'!$B:$B,'00 PDC SP'!$F111,'00 Alimenta'!H:H) -> 0 | M111: =SUMIF('00 Alimenta'!$B:$B,'00 PDC SP'!$F111,'00 Alimenta'!I:I) -> 0 | N111: 0
A112: ABA080 | B112: AB | C112: ABA080 | D112: 31 | F112: 0102010703 | G112: Altri materiali e beni sanitari per uso veterinario | H112: =SUMIF('00 Alimenta'!$B:$B,'00 PDC SP'!$F112,'00 Alimenta'!D:D) -> 0 | I112: =SUMIF('00 Alimenta'!$B:$B,'00 PDC SP'!$F112,'00 Alimenta'!E:E) -> 0 | J112: =SUMIF('00 Alimenta'!$B:$B,'00 PDC SP'!$F112,'00 Alimenta'!F:F) -> 0 | K112: =SUMIF('00 Alimenta'!$B:$B,'00 PDC SP'!$F112,'00 Alimenta'!G:G) -> 0 | L112: =SUMIF('00 Alimenta'!$B:$B,'00 PDC SP'!$F112,'00 Alimenta'!H:H) -> 0 | M112: =SUMIF('00 Alimenta'!$B:$B,'00 PDC SP'!$F112,'00 Alimenta'!I:I) -> 0 | N112: 0
A113: ABA090 | B113: AB | C113: ABA090 | D113: 31 | F113: 0102010801 | G113: Vetrerie e materiale plastico per laboratorio | H113: =SUMIF('00 Alimenta'!$B:$B,'00 PDC SP'!$F113,'00 Alimenta'!D:D) -> 15533.26 | I113: =SUMIF('00 Alimenta'!$B:$B,'00 PDC SP'!$F113,'00 Alimenta'!E:E) -> 26506.58 | J113: =SUMIF('00 Alimenta'!$B:$B,'00 PDC SP'!$F113,'00 Alimenta'!F:F) -> 15533.26 | K113: =SUMIF('00 Alimenta'!$B:$B,'00 PDC SP'!$F113,'00 Alimenta'!G:G) -> 26506.58 | L113: =SUMIF('00 Alimenta'!$B:$B,'00 PDC SP'!$F113,'00 Alimenta'!H:H) -> 42717.86 | M113: =SUMIF('00 Alimenta'!$B:$B,'00 PDC SP'!$F113,'00 Alimenta'!I:I) -> 26506.58 | N113: 42717.86
A114: ABA090 | B114: AB | C114: ABA090 | D114: 31 | F114: 0102010802 | G114: Materiali di consumo non specifici per strumentazione diagnostica | H114: =SUMIF('00 Alimenta'!$B:$B,'00 PDC SP'!$F114,'00 Alimenta'!D:D) -> 103201 | I114: =SUMIF('00 Alimenta'!$B:$B,'00 PDC SP'!$F114,'00 Alimenta'!E:E) -> 82188.66 | J114: =SUMIF('00 Alimenta'!$B:$B,'00 PDC SP'!$F114,'00 Alimenta'!F:F) -> 103201 | K114: =SUMIF('00 Alimenta'!$B:$B,'00 PDC SP'!$F114,'00 Alimenta'!G:G) -> 82188.66 | L114: =SUMIF('00 Alimenta'!$B:$B,'00 PDC SP'!$F114,'00 Alimenta'!H:H) -> 125485.73 | M114: =SUMIF('00 Alimenta'!$B:$B,'00 PDC SP'!$F114,'00 Alimenta'!I:I) -> 82188.66 | N114: 125485.73
A115: ABA090 | B115: AB | C115: ABA090 | D115: 31 | F115: 0102010803 | G115: Altri beni e prodotti sanitari | H115: =SUMIF('00 Alimenta'!$B:$B,'00 PDC SP'!$F115,'00 Alimenta'!D:D) -> 87747.66 | I115: =SUMIF('00 Alimenta'!$B:$B,'00 PDC SP'!$F115,'00 Alimenta'!E:E) -> 102717.74 | J115: =SUMIF('00 Alimenta'!$B:$B,'00 PDC SP'!$F115,'00 Alimenta'!F:F) -> 87747.66 | K115: =SUMIF('00 Alimenta'!$B:$B,'00 PDC SP'!$F115,'00 Alimenta'!G:G) -> 102717.74 | L115: =SUMIF('00 Alimenta'!$B:$B,'00 PDC SP'!$F115,'00 Alimenta'!H:H) -> 127988.56 | M115: =SUMIF('00 Alimenta'!$B:$B,'00 PDC SP'!$F115,'00 Alimenta'!I:I) -> 102717.74 | N115: 127988.56
A116: ABA100 | B116: AB | C116: ABA100 | D116: 32 | F116: 0102010901 | G116: Acconti per acquisto di beni e prodotti sanitari | H116: =SUMIF('00 Alimenta'!$B:$B,'00 PDC SP'!$F116,'00 Alimenta'!D:D) -> 0 | I116: =SUMIF('00 Alimenta'!$B:$B,'00 PDC SP'!$F116,'00 Alimenta'!E:E) -> 0 | J116: =SUMIF('00 Alimenta'!$B:$B,'00 PDC SP'!$F116,'00 Alimenta'!F:F) -> 0 | K116: =SUMIF('00 Alimenta'!$B:$B,'00 PDC SP'!$F116,'00 Alimenta'!G:G) -> 0 | L116: =SUMIF('00 Alimenta'!$B:$B,'00 PDC SP'!$F116,'00 Alimenta'!H:H) -> 0 | M116: =SUMIF('00 Alimenta'!$B:$B,'00 PDC SP'!$F116,'00 Alimenta'!I:I) -> 0 | N116: 0
A117: ABA120 | B117: AB | C117: ABA120 | D117: 31 | F117: 0102011001 | G117: Prodotti alimentari | H117: =SUMIF('00 Alimenta'!$B:$B,'00 PDC SP'!$F117,'00 Alimenta'!D:D) -> 0 | I117: =SUMIF('00 Alimenta'!$B:$B,'00 PDC SP'!$F117,'00 Alimenta'!E:E) -> 0 | J117: =SUMIF('00 Alimenta'!$B:$B,'00 PDC SP'!$F117,'00 Alimenta'!F:F) -> 0 | K117: =SUMIF('00 Alimenta'!$B:$B,'00 PDC SP'!$F117,'00 Alimenta'!G:G) -> 0 | L117: =SUMIF('00 Alimenta'!$B:$B,'00 PDC SP'!$F117,'00 Alimenta'!H:H) -> 0 | M117: =SUMIF('00 Alimenta'!$B:$B,'00 PDC SP'!$F117,'00 Alimenta'!I:I) -> 0 | N117: 0
A118: ABA130 | B118: AB | C118: ABA130 | D118: 31 | F118: 0102011101 | G118: Materiali di guardaroba, di pulizia, e di convivenza in genere | H118: =SUMIF('00 Alimenta'!$B:$B,'00 PDC SP'!$F118,'00 Alimenta'!D:D) -> 44097.34 | I118: =SUMIF('00 Alimenta'!$B:$B,'00 PDC SP'!$F118,'00 Alimenta'!E:E) -> 35073.03 | J118: =SUMIF('00 Alimenta'!$B:$B,'00 PDC SP'!$F118,'00 Alimenta'!F:F) -> 44097.34 | K118: =SUMIF('00 Alimenta'!$B:$B,'00 PDC SP'!$F118,'00 Alimenta'!G:G) -> 35073.03 | L118: =SUMIF('00 Alimenta'!$B:$B,'00 PDC SP'!$F118,'00 Alimenta'!H:H) -> 29727.94 | M118: =SUMIF('00 Alimenta'!$B:$B,'00 PDC SP'!$F118,'00 Alimenta'!I:I) -> 35073.03 | N118: 29727.94
A119: ABA140 | B119: AB | C119: ABA140 | D119: 31 | F119: 0102011201 | G119: Combustibili, carburanti e lubrificanti | H119: =SUMIF('00 Alimenta'!$B:$B,'00 PDC SP'!$F119,'00 Alimenta'!D:D) -> 364.21 | I119: =SUMIF('00 Alimenta'!$B:$B,'00 PDC SP'!$F119,'00 Alimenta'!E:E) -> 0 | J119: =SUMIF('00 Alimenta'!$B:$B,'00 PDC SP'!$F119,'00 Alimenta'!F:F) -> 364.21 | K119: =SUMIF('00 Alimenta'!$B:$B,'00 PDC SP'!$F119,'00 Alimenta'!G:G) -> 0 | L119: =SUMIF('00 Alimenta'!$B:$B,'00 PDC SP'!$F119,'00 Alimenta'!H:H) -> 0 | M119: =SUMIF('00 Alimenta'!$B:$B,'00 PDC SP'!$F119,'00 Alimenta'!I:I) -> 0 | N119: 0
A120: ABA150 | B120: AB | C120: ABA150 | D120: 31 | F120: 0102011301 | G120: Supporti informatici | H120: =SUMIF('00 Alimenta'!$B:$B,'00 PDC SP'!$F120,'00 Alimenta'!D:D) -> 182140.26 | I120: =SUMIF('00 Alimenta'!$B:$B,'00 PDC SP'!$F120,'00 Alimenta'!E:E) -> 171772.85 | J120: =SUMIF('00 Alimenta'!$B:$B,'00 PDC SP'!$F120,'00 Alimenta'!F:F) -> 182140.26 | K120: =SUMIF('00 Alimenta'!$B:$B,'00 PDC SP'!$F120,'00 Alimenta'!G:G) -> 171772.85 | L120: =SUMIF('00 Alimenta'!$B:$B,'00 PDC SP'!$F120,'00 Alimenta'!H:H) -> 192555.39 | M120: =SUMIF('00 Alimenta'!$B:$B,'00 PDC SP'!$F120,'00 Alimenta'!I:I) -> 171772.85 | N120: 192555.39
A121: ABA150 | B121: AB | C121: ABA150 | D121: 31 | F121: 0102011302 | G121: Cancelleria e stampati | H121: =SUMIF('00 Alimenta'!$B:$B,'00 PDC SP'!$F121,'00 Alimenta'!D:D) -> 183602.38 | I121: =SUMIF('00 Alimenta'!$B:$B,'00 PDC SP'!$F121,'00 Alimenta'!E:E) -> 161363.28 | J121: =SUMIF('00 Alimenta'!$B:$B,'00 PDC SP'!$F121,'00 Alimenta'!F:F) -> 183602.38 | K121: =SUMIF('00 Alimenta'!$B:$B,'00 PDC SP'!$F121,'00 Alimenta'!G:G) -> 161363.28 | L121: =SUMIF('00 Alimenta'!$B:$B,'00 PDC SP'!$F121,'00 Alimenta'!H:H) -> 169734.96 | M121: =SUMIF('00 Alimenta'!$B:$B,'00 PDC SP'!$F121,'00 Alimenta'!I:I) -> 161363.28 | N121: 169734.96
A122: ABA160 | B122: AB | C122: ABA160 | D122: 31 | F122: 0102011401 | G122: Materiale per la manutenzione di immobili e loro pertinenze | H122: =SUMIF('00 Alimenta'!$B:$B,'00 PDC SP'!$F122,'00 Alimenta'!D:D) -> 99725.34 | I122: =SUMIF('00 Alimenta'!$B:$B,'00 PDC SP'!$F122,'00 Alimenta'!E:E) -> 55250.31 | J122: =SUMIF('00 Alimenta'!$B:$B,'00 PDC SP'!$F122,'00 Alimenta'!F:F) -> 99725.34 | K122: =SUMIF('00 Alimenta'!$B:$B,'00 PDC SP'!$F122,'00 Alimenta'!G:G) -> 55250.31 | L122: =SUMIF('00 Alimenta'!$B:$B,'00 PDC SP'!$F122,'00 Alimenta'!H:H) -> 85875.45 | M122: =SUMIF('00 Alimenta'!$B:$B,'00 PDC SP'!$F122,'00 Alimenta'!I:I) -> 55250.31 | N122: 85875.45
A123: ABA160 | B123: AB | C123: ABA160 | D123: 31 | F123: 0102011402 | G123: Materiale per la manutenzione di mobili e macchine | H123: =SUMIF('00 Alimenta'!$B:$B,'00 PDC SP'!$F123,'00 Alimenta'!D:D) -> 0 | I123: =SUMIF('00 Alimenta'!$B:$B,'00 PDC SP'!$F123,'00 Alimenta'!E:E) -> 0 | J123: =SUMIF('00 Alimenta'!$B:$B,'00 PDC SP'!$F123,'00 Alimenta'!F:F) -> 0 | K123: =SUMIF('00 Alimenta'!$B:$B,'00 PDC SP'!$F123,'00 Alimenta'!G:G) -> 0 | L123: =SUMIF('00 Alimenta'!$B:$B,'00 PDC SP'!$F123,'00 Alimenta'!H:H) -> 0 | M123: =SUMIF('00 Alimenta'!$B:$B,'00 PDC SP'!$F123,'00 Alimenta'!I:I) -> 0 | N123: 0
A124: ABA160 | B124: AB | C124: ABA160 | D124: 31 | F124: 0102011403 | G124: Materiale per la manutenzione di attrezzature tecnico scientifiche sanitarie | H124: =SUMIF('00 Alimenta'!$B:$B,'00 PDC SP'!$F124,'00 Alimenta'!D:D) -> 37640.72 | I124: =SUMIF('00 Alimenta'!$B:$B,'00 PDC SP'!$F124,'00 Alimenta'!E:E) -> 25964.41 | J124: =SUMIF('00 Alimenta'!$B:$B,'00 PDC SP'!$F124,'00 Alimenta'!F:F) -> 37640.72 | K124: =SUMIF('00 Alimenta'!$B:$B,'00 PDC SP'!$F124,'00 Alimenta'!G:G) -> 25964.41 | L124: =SUMIF('00 Alimenta'!$B:$B,'00 PDC SP'!$F124,'00 Alimenta'!H:H) -> 26463.29 | M124: =SUMIF('00 Alimenta'!$B:$B,'00 PDC SP'!$F124,'00 Alimenta'!I:I) -> 25964.41 | N124: 26463.29
A125: ABA160 | B125: AB | C125: ABA160 | D125: 31 | F125: 0102011404 | G125: Materiale per la manutenzione di automezzi | H125: =SUMIF('00 Alimenta'!$B:$B,'00 PDC SP'!$F125,'00 Alimenta'!D:D) -> 0 | I125: =SUMIF('00 Alimenta'!$B:$B,'00 PDC SP'!$F125,'00 Alimenta'!E:E) -> 0 | J125: =SUMIF('00 Alimenta'!$B:$B,'00 PDC SP'!$F125,'00 Alimenta'!F:F) -> 0 | K125: =SUMIF('00 Alimenta'!$B:$B,'00 PDC SP'!$F125,'00 Alimenta'!G:G) -> 0 | L125: =SUMIF('00 Alimenta'!$B:$B,'00 PDC SP'!$F125,'00 Alimenta'!H:H) -> 0 | M125: =SUMIF('00 Alimenta'!$B:$B,'00 PDC SP'!$F125,'00 Alimenta'!I:I) -> 0 | N125: 0
A126: ABA160 | B126: AB | C126: ABA160 | D126: 31 | F126: 0102011405 | G126: Materiale per la manutenzione di altro | H126: =SUMIF('00 Alimenta'!$B:$B,'00 PDC SP'!$F126,'00 Alimenta'!D:D) -> 5697.59 | I126: =SUMIF('00 Alimenta'!$B:$B,'00 PDC SP'!$F126,'00 Alimenta'!E:E) -> 3934.22 | J126: =SUMIF('00 Alimenta'!$B:$B,'00 PDC SP'!$F126,'00 Alimenta'!F:F) -> 5697.59 | K126: =SUMIF('00 Alimenta'!$B:$B,'00 PDC SP'!$F126,'00 Alimenta'!G:G) -> 3934.22 | L126: =SUMIF('00 Alimenta'!$B:$B,'00 PDC SP'!$F126,'00 Alimenta'!H:H) -> 5031.4 | M126: =SUMIF('00 Alimenta'!$B:$B,'00 PDC SP'!$F126,'00 Alimenta'!I:I) -> 3934.22 | N126: 5031.4
A127: ABA170 | B127: AB | C127: ABA170 | D127: 31 | F127: 0102011501 | G127: Altri beni e prodotti non sanitari | H127: =SUMIF('00 Alimenta'!$B:$B,'00 PDC SP'!$F127,'00 Alimenta'!D:D) -> 3445.61 | I127: =SUMIF('00 Alimenta'!$B:$B,'00 PDC SP'!$F127,'00 Alimenta'!E:E) -> 2869.46 | J127: =SUMIF('00 Alimenta'!$B:$B,'00 PDC SP'!$F127,'00 Alimenta'!F:F) -> 3445.61 | K127: =SUMIF('00 Alimenta'!$B:$B,'00 PDC SP'!$F127,'00 Alimenta'!G:G) -> 2869.46 | L127: =SUMIF('00 Alimenta'!$B:$B,'00 PDC SP'!$F127,'00 Alimenta'!H:H) -> 1229.74 | M127: =SUMIF('00 Alimenta'!$B:$B,'00 PDC SP'!$F127,'00 Alimenta'!I:I) -> 2869.46 | N127: 1229.74
A128: ABA180 | B128: AB | C128: ABA180 | D128: 32 | F128: 0102011601 | G128: Acconti per acquisto di beni e prodotti non sanitari | H128: =SUMIF('00 Alimenta'!$B:$B,'00 PDC SP'!$F128,'00 Alimenta'!D:D) -> 0 | I128: =SUMIF('00 Alimenta'!$B:$B,'00 PDC SP'!$F128,'00 Alimenta'!E:E) -> 0 | J128: =SUMIF('00 Alimenta'!$B:$B,'00 PDC SP'!$F128,'00 Alimenta'!F:F) -> 0 | K128: =SUMIF('00 Alimenta'!$B:$B,'00 PDC SP'!$F128,'00 Alimenta'!G:G) -> 0 | L128: =SUMIF('00 Alimenta'!$B:$B,'00 PDC SP'!$F128,'00 Alimenta'!H:H) -> 0 | M128: =SUMIF('00 Alimenta'!$B:$B,'00 PDC SP'!$F128,'00 Alimenta'!I:I) -> 0 | N128: 0
A129: ABA210CR | B129: AB | C129: ABA210 | D129: 21 | E129: CR | F129: 0102020101 | G129: Crediti v/Stato per spesa corrente - Integrazione a norma del D.L.vo 56/2000 | H129: =SUMIF('00 Alimenta'!$B:$B,'00 PDC SP'!$F129,'00 Alimenta'!D:D) -> 0 | I129: =SUMIF('00 Alimenta'!$B:$B,'00 PDC SP'!$F129,'00 Alimenta'!E:E) -> 19655.01 | J129: =SUMIF('00 Alimenta'!$B:$B,'00 PDC SP'!$F129,'00 Alimenta'!F:F) -> 13684.75 | K129: =SUMIF('00 Alimenta'!$B:$B,'00 PDC SP'!$F129,'00 Alimenta'!G:G) -> 5970.26 | L129: =SUMIF('00 Alimenta'!$B:$B,'00 PDC SP'!$F129,'00 Alimenta'!H:H) -> 12202.45 | M129: =SUMIF('00 Alimenta'!$B:$B,'00 PDC SP'!$F129,'00 Alimenta'!I:I) -> 18172.71 | N129: 0
A130: ABA220CR | B130: AB | C130: ABA220 | D130: 21 | E130: CR | F130: 0102020201 | G130: Crediti v/Stato per spesa corrente - FSN | H130: =SUMIF('00 Alimenta'!$B:$B,'00 PDC SP'!$F130,'00 Alimenta'!D:D) -> 0 | I130: =SUMIF('00 Alimenta'!$B:$B,'00 PDC SP'!$F130,'00 Alimenta'!E:E) -> 0 | J130: =SUMIF('00 Alimenta'!$B:$B,'00 PDC SP'!$F130,'00 Alimenta'!F:F) -> 0 | K130: =SUMIF('00 Alimenta'!$B:$B,'00 PDC SP'!$F130,'00 Alimenta'!G:G) -> 0 | L130: =SUMIF('00 Alimenta'!$B:$B,'00 PDC SP'!$F130,'00 Alimenta'!H:H) -> 0 | M130: =SUMIF('00 Alimenta'!$B:$B,'00 PDC SP'!$F130,'00 Alimenta'!I:I) -> 0 | N130: 0
A131: ABA230CR | B131: AB | C131: ABA230 | D131: 21 | E131: CR | F131: 0102020301 | G131: Crediti v/Stato per mobilità attiva pubblica extraregionale | H131: =SUMIF('00 Alimenta'!$B:$B,'00 PDC SP'!$F131,'00 Alimenta'!D:D) -> 0 | I131: =SUMIF('00 Alimenta'!$B:$B,'00 PDC SP'!$F131,'00 Alimenta'!E:E) -> 0 | J131: =SUMIF('00 Alimenta'!$B:$B,'00 PDC SP'!$F131,'00 Alimenta'!F:F) -> 0 | K131: =SUMIF('00 Alimenta'!$B:$B,'00 PDC SP'!$F131,'00 Alimenta'!G:G) -> 0 | L131: =SUMIF('00 Alimenta'!$B:$B,'00 PDC SP'!$F131,'00 Alimenta'!H:H) -> 0 | M131: =SUMIF('00 Alimenta'!$B:$B,'00 PDC SP'!$F131,'00 Alimenta'!I:I) -> 0 | N131: 0
A132: ABA230CR | B132: AB | C132: ABA230 | D132: 21 | E132: CR | F132: 0102020302 | G132: Crediti v/Stato per mobilità attiva privata extraregionale | H132: =SUMIF('00 Alimenta'!$B:$B,'00 PDC SP'!$F132,'00 Alimenta'!D:D) -> 0 | I132: =SUMIF('00 Alimenta'!$B:$B,'00 PDC SP'!$F132,'00 Alimenta'!E:E) -> 0 | J132: =SUMIF('00 Alimenta'!$B:$B,'00 PDC SP'!$F132,'00 Alimenta'!F:F) -> 0 | K132: =SUMIF('00 Alimenta'!$B:$B,'00 PDC SP'!$F132,'00 Alimenta'!G:G) -> 0 | L132: =SUMIF('00 Alimenta'!$B:$B,'00 PDC SP'!$F132,'00 Alimenta'!H:H) -> 0 | M132: =SUMIF('00 Alimenta'!$B:$B,'00 PDC SP'!$F132,'00 Alimenta'!I:I) -> 0 | N132: 0
A133: ABA240CR | B133: AB | C133: ABA240 | D133: 21 | E133: CR | F133: 0102020401 | G133: Crediti v/Stato per mobilità attiva internazionale | H133: =SUMIF('00 Alimenta'!$B:$B,'00 PDC SP'!$F133,'00 Alimenta'!D:D) -> 0 | I133: =SUMIF('00 Alimenta'!$B:$B,'00 PDC SP'!$F133,'00 Alimenta'!E:E) -> 0 | J133: =SUMIF('00 Alimenta'!$B:$B,'00 PDC SP'!$F133,'00 Alimenta'!F:F) -> 0 | K133: =SUMIF('00 Alimenta'!$B:$B,'00 PDC SP'!$F133,'00 Alimenta'!G:G) -> 0 | L133: =SUMIF('00 Alimenta'!$B:$B,'00 PDC SP'!$F133,'00 Alimenta'!H:H) -> 0 | M133: =SUMIF('00 Alimenta'!$B:$B,'00 PDC SP'!$F133,'00 Alimenta'!I:I) -> 0 | N133: 0
A134: ABA250CR | B134: AB | C134: ABA250 | D134: 21 | E134: CR | F134: 0102020501 | G134: Crediti v/Stato per acconto quota fabbisogno sanitario regionale standard | H134: =SUMIF('00 Alimenta'!$B:$B,'00 PDC SP'!$F134,'00 Alimenta'!D:D) -> 0 | I134: =SUMIF('00 Alimenta'!$B:$B,'00 PDC SP'!$F134,'00 Alimenta'!E:E) -> 0 | J134: =SUMIF('00 Alimenta'!$B:$B,'00 PDC SP'!$F134,'00 Alimenta'!F:F) -> 0 | K134: =SUMIF('00 Alimenta'!$B:$B,'00 PDC SP'!$F134,'00 Alimenta'!G:G) -> 0 | L134: =SUMIF('00 Alimenta'!$B:$B,'00 PDC SP'!$F134,'00 Alimenta'!H:H) -> 0 | M134: =SUMIF('00 Alimenta'!$B:$B,'00 PDC SP'!$F134,'00 Alimenta'!I:I) -> 0 | N134: 0
A135: =IF(E135="",C135,C135&E135) -> ABA260CR | B135: =LEFT(C135,2) -> AB | C135: ABA260 | D135: 21 | E135: CR | F135: 0102020601 | G135: Crediti v/Stato per finanziamento sanitario aggiuntivo corrente | H135: =SUMIF('00 Alimenta'!$B:$B,'00 PDC SP'!$F135,'00 Alimenta'!D:D) -> 0 | I135: =SUMIF('00 Alimenta'!$B:$B,'00 PDC SP'!$F135,'00 Alimenta'!E:E) -> 0 | J135: =SUMIF('00 Alimenta'!$B:$B,'00 PDC SP'!$F135,'00 Alimenta'!F:F) -> 0 | K135: =SUMIF('00 Alimenta'!$B:$B,'00 PDC SP'!$F135,'00 Alimenta'!G:G) -> 0 | L135: =SUMIF('00 Alimenta'!$B:$B,'00 PDC SP'!$F135,'00 Alimenta'!H:H) -> 0 | M135: =SUMIF('00 Alimenta'!$B:$B,'00 PDC SP'!$F135,'00 Alimenta'!I:I) -> 0 | N135: =K135+L135-M135 -> 0
A136: ABA270CR | B136: AB | C136: ABA270 | D136: 21 | E136: CR | F136: 0102020701 | G136: Crediti v/Stato per spesa corrente - altro | H136: =SUMIF('00 Alimenta'!$B:$B,'00 PDC SP'!$F136,'00 Alimenta'!D:D) -> 566.88 | I136: =SUMIF('00 Alimenta'!$B:$B,'00 PDC SP'!$F136,'00 Alimenta'!E:E) -> 0 | J136: =SUMIF('00 Alimenta'!$B:$B,'00 PDC SP'!$F136,'00 Alimenta'!F:F) -> 566.88 | K136: =SUMIF('00 Alimenta'!$B:$B,'00 PDC SP'!$F136,'00 Alimenta'!G:G) -> 0 | L136: =SUMIF('00 Alimenta'!$B:$B,'00 PDC SP'!$F136,'00 Alimenta'!H:H) -> 0 | M136: =SUMIF('00 Alimenta'!$B:$B,'00 PDC SP'!$F136,'00 Alimenta'!I:I) -> 0 | N136: 0
A137: ABA280CR | B137: AB | C137: ABA280 | D137: 48 | E137: CR | F137: 0102020801 | G137: Crediti v/Stato per finanziamenti per investimenti | H137: =SUMIF('00 Alimenta'!$B:$B,'00 PDC SP'!$F137,'00 Alimenta'!D:D) -> 0 | I137: =SUMIF('00 Alimenta'!$B:$B,'00 PDC SP'!$F137,'00 Alimenta'!E:E) -> 0 | J137: =SUMIF('00 Alimenta'!$B:$B,'00 PDC SP'!$F137,'00 Alimenta'!F:F) -> 0 | K137: =SUMIF('00 Alimenta'!$B:$B,'00 PDC SP'!$F137,'00 Alimenta'!G:G) -> 0 | L137: =SUMIF('00 Alimenta'!$B:$B,'00 PDC SP'!$F137,'00 Alimenta'!H:H) -> 0 | M137: =SUMIF('00 Alimenta'!$B:$B,'00 PDC SP'!$F137,'00 Alimenta'!I:I) -> 0 | N137: 0
A138: ABA300CR | B138: AB | C138: ABA300 | D138: 21 | E138: CR | F138: 0102020901 | G138: Crediti v/Stato per ricerca corrente - Ministero della Salute | H138: =SUMIF('00 Alimenta'!$B:$B,'00 PDC SP'!$F138,'00 Alimenta'!D:D) -> 0 | I138: =SUMIF('00 Alimenta'!$B:$B,'00 PDC SP'!$F138,'00 Alimenta'!E:E) -> 0 | J138: =SUMIF('00 Alimenta'!$B:$B,'00 PDC SP'!$F138,'00 Alimenta'!F:F) -> 0 | K138: =SUMIF('00 Alimenta'!$B:$B,'00 PDC SP'!$F138,'00 Alimenta'!G:G) -> 0 | L138: =SUMIF('00 Alimenta'!$B:$B,'00 PDC SP'!$F138,'00 Alimenta'!H:H) -> 0 | M138: =SUMIF('00 Alimenta'!$B:$B,'00 PDC SP'!$F138,'00 Alimenta'!I:I) -> 0 | N138: 0
A139: ABA310CR | B139: AB | C139: ABA310 | D139: 21 | E139: CR | F139: 0102020902 | G139: Crediti v/Stato per ricerca finalizzata - Ministero della Salute | H139: =SUMIF('00 Alimenta'!$B:$B,'00 PDC SP'!$F139,'00 Alimenta'!D:D) -> 10300 | I139: =SUMIF('00 Alimenta'!$B:$B,'00 PDC SP'!$F139,'00 Alimenta'!E:E) -> 10220 | J139: =SUMIF('00 Alimenta'!$B:$B,'00 PDC SP'!$F139,'00 Alimenta'!F:F) -> 15900 | K139: =SUMIF('00 Alimenta'!$B:$B,'00 PDC SP'!$F139,'00 Alimenta'!G:G) -> 4620 | L139: =SUMIF('00 Alimenta'!$B:$B,'00 PDC SP'!$F139,'00 Alimenta'!H:H) -> 0 | M139: =SUMIF('00 Alimenta'!$B:$B,'00 PDC SP'!$F139,'00 Alimenta'!I:I) -> 0 | N139: 4620
A140: ABA320CR | B140: AB | C140: ABA320 | D140: 21 | E140: CR | F140: 0102020903 | G140: Crediti v/Stato per ricerca - altre Amministrazioni centrali | H140: =SUMIF('00 Alimenta'!$B:$B,'00 PDC SP'!$F140,'00 Alimenta'!D:D) -> 0 | I140: =SUMIF('00 Alimenta'!$B:$B,'00 PDC SP'!$F140,'00 Alimenta'!E:E) -> 0 | J140: =SUMIF('00 Alimenta'!$B:$B,'00 PDC SP'!$F140,'00 Alimenta'!F:F) -> 0 | K140: =SUMIF('00 Alimenta'!$B:$B,'00 PDC SP'!$F140,'00 Alimenta'!G:G) -> 0 | L140: =SUMIF('00 Alimenta'!$B:$B,'00 PDC SP'!$F140,'00 Alimenta'!H:H) -> 0 | M140: =SUMIF('00 Alimenta'!$B:$B,'00 PDC SP'!$F140,'00 Alimenta'!I:I) -> 0 | N140: 0
A141: ABA330CR | B141: AB | C141: ABA330 | D141: 21 | E141: CR | F141: 0102020904 | G141: Crediti v/Stato per ricerca - finanziamenti per investimenti | H141: =SUMIF('00 Alimenta'!$B:$B,'00 PDC SP'!$F141,'00 Alimenta'!D:D) -> 0 | I141: =SUMIF('00 Alimenta'!$B:$B,'00 PDC SP'!$F141,'00 Alimenta'!E:E) -> 0 | J141: =SUMIF('00 Alimenta'!$B:$B,'00 PDC SP'!$F141,'00 Alimenta'!F:F) -> 0 | K141: =SUMIF('00 Alimenta'!$B:$B,'00 PDC SP'!$F141,'00 Alimenta'!G:G) -> 0 | L141: =SUMIF('00 Alimenta'!$B:$B,'00 PDC SP'!$F141,'00 Alimenta'!H:H) -> 0 | M141: =SUMIF('00 Alimenta'!$B:$B,'00 PDC SP'!$F141,'00 Alimenta'!I:I) -> 0 | N141: 0
A142: ABA340CR | B142: AB | C142: ABA340 | D142: 21 | E142: CR | F142: 0102021001 | G142: Crediti v/prefetture | H142: =SUMIF('00 Alimenta'!$B:$B,'00 PDC SP'!$F142,'00 Alimenta'!D:D) -> 0 | I142: =SUMIF('00 Alimenta'!$B:$B,'00 PDC SP'!$F142,'00 Alimenta'!E:E) -> 93462.74 | J142: =SUMIF('00 Alimenta'!$B:$B,'00 PDC SP'!$F142,'00 Alimenta'!F:F) -> 0 | K142: =SUMIF('00 Alimenta'!$B:$B,'00 PDC SP'!$F142,'00 Alimenta'!G:G) -> 93462.74 | L142: =SUMIF('00 Alimenta'!$B:$B,'00 PDC SP'!$F142,'00 Alimenta'!H:H) -> 0 | M142: =SUMIF('00 Alimenta'!$B:$B,'00 PDC SP'!$F142,'00 Alimenta'!I:I) -> 0 | N142: 93462.74
A143: ABA370CR | B143: AB | C143: ABA370 | D143: 25 | E143: CR | F143: 0102021101 | G143: Crediti v/Regione o Provincia Autonoma per spesa corrente - IRAP | H143: =SUMIF('00 Alimenta'!$B:$B,'00 PDC SP'!$F143,'00 Alimenta'!D:D) -> 0 | I143: =SUMIF('00 Alimenta'!$B:$B,'00 PDC SP'!$F143,'00 Alimenta'!E:E) -> 0 | J143: =SUMIF('00 Alimenta'!$B:$B,'00 PDC SP'!$F143,'00 Alimenta'!F:F) -> 0 | K143: =SUMIF('00 Alimenta'!$B:$B,'00 PDC SP'!$F143,'00 Alimenta'!G:G) -> 0 | L143: =SUMIF('00 Alimenta'!$B:$B,'00 PDC SP'!$F143,'00 Alimenta'!H:H) -> 0 | M143: =SUMIF('00 Alimenta'!$B:$B,'00 PDC SP'!$F143,'00 Alimenta'!I:I) -> 0 | N143: 0
A144: ABA380CR | B144: AB | C144: ABA380 | D144: 25 | E144: CR | F144: 0102021102 | G144: Crediti v/Regione o Provincia Autonoma per spesa corrente - Addizionale IRPEF | H144: =SUMIF('00 Alimenta'!$B:$B,'00 PDC SP'!$F144,'00 Alimenta'!D:D) -> 0 | I144: =SUMIF('00 Alimenta'!$B:$B,'00 PDC SP'!$F144,'00 Alimenta'!E:E) -> 0 | J144: =SUMIF('00 Alimenta'!$B:$B,'00 PDC SP'!$F144,'00 Alimenta'!F:F) -> 0 | K144: =SUMIF('00 Alimenta'!$B:$B,'00 PDC SP'!$F144,'00 Alimenta'!G:G) -> 0 | L144: =SUMIF('00 Alimenta'!$B:$B,'00 PDC SP'!$F144,'00 Alimenta'!H:H) -> 0 | M144: =SUMIF('00 Alimenta'!$B:$B,'00 PDC SP'!$F144,'00 Alimenta'!I:I) -> 0 | N144: 0
A145: ABA390CR | B145: AB | C145: ABA390 | D145: 25 | E145: CR | F145: 0102021103 | G145: Crediti v/Regione o Provincia Autonoma per quota FSR | H145: =SUMIF('00 Alimenta'!$B:$B,'00 PDC SP'!$F145,'00 Alimenta'!D:D) -> 115726464.3 | I145: =SUMIF('00 Alimenta'!$B:$B,'00 PDC SP'!$F145,'00 Alimenta'!E:E) -> 620609320.6 | J145: =SUMIF('00 Alimenta'!$B:$B,'00 PDC SP'!$F145,'00 Alimenta'!F:F) -> 586865386.7 | K145: =SUMIF('00 Alimenta'!$B:$B,'00 PDC SP'!$F145,'00 Alimenta'!G:G) -> 149470398.2 | L145: =SUMIF('00 Alimenta'!$B:$B,'00 PDC SP'!$F145,'00 Alimenta'!H:H) -> 611234256.9 | M145: =SUMIF('00 Alimenta'!$B:$B,'00 PDC SP'!$F145,'00 Alimenta'!I:I) -> 641777089 | N145: 118927566.1
A146: ABA400CR | B146: AB | C146: ABA400 | D146: 25 | E146: CR | F146: 0102021104 | G146: Crediti v/Regione o Provincia Autonoma per mobilità attiva intraregionale | H146: =SUMIF('00 Alimenta'!$B:$B,'00 PDC SP'!$F146,'00 Alimenta'!D:D) -> 1714216.77 | I146: =SUMIF('00 Alimenta'!$B:$B,'00 PDC SP'!$F146,'00 Alimenta'!E:E) -> 94245672.53 | J146: =SUMIF('00 Alimenta'!$B:$B,'00 PDC SP'!$F146,'00 Alimenta'!F:F) -> 94615942.91 | K146: =SUMIF('00 Alimenta'!$B:$B,'00 PDC SP'!$F146,'00 Alimenta'!G:G) -> 1343946.39 | L146: =SUMIF('00 Alimenta'!$B:$B,'00 PDC SP'!$F146,'00 Alimenta'!H:H) -> 98488215.59 | M146: =SUMIF('00 Alimenta'!$B:$B,'00 PDC SP'!$F146,'00 Alimenta'!I:I) -> 98575322.59 | N146: 1256839.39
A147: ABA400FE | B147: AB | C147: ABA400 | D147: 25 | E147: FE | F147: 0102021105 | G147: Fatture da emettere v/Regione per mobilità attiva intraregionale | H147: =SUMIF('00 Alimenta'!$B:$B,'00 PDC SP'!$F147,'00 Alimenta'!D:D) -> 0 | I147: =SUMIF('00 Alimenta'!$B:$B,'00 PDC SP'!$F147,'00 Alimenta'!E:E) -> 0 | J147: =SUMIF('00 Alimenta'!$B:$B,'00 PDC SP'!$F147,'00 Alimenta'!F:F) -> 0 | K147: =SUMIF('00 Alimenta'!$B:$B,'00 PDC SP'!$F147,'00 Alimenta'!G:G) -> 0 | L147: =SUMIF('00 Alimenta'!$B:$B,'00 PDC SP'!$F147,'00 Alimenta'!H:H) -> 0 | M147: =SUMIF('00 Alimenta'!$B:$B,'00 PDC SP'!$F147,'00 Alimenta'!I:I) -> 0 | N147: 0
A148: ABA400FE | B148: AB | C148: ABA400 | D148: 25 | E148: FE | F148: 0102021106 | G148: Fatture da emettere v/Regione per mobilità attiva intraregionale da privato | H148: =SUMIF('00 Alimenta'!$B:$B,'00 PDC SP'!$F148,'00 Alimenta'!D:D) -> 0 | I148: =SUMIF('00 Alimenta'!$B:$B,'00 PDC SP'!$F148,'00 Alimenta'!E:E) -> 0 | J148: =SUMIF('00 Alimenta'!$B:$B,'00 PDC SP'!$F148,'00 Alimenta'!F:F) -> 0 | K148: =SUMIF('00 Alimenta'!$B:$B,'00 PDC SP'!$F148,'00 Alimenta'!G:G) -> 0 | L148: =SUMIF('00 Alimenta'!$B:$B,'00 PDC SP'!$F148,'00 Alimenta'!H:H) -> 0 | M148: =SUMIF('00 Alimenta'!$B:$B,'00 PDC SP'!$F148,'00 Alimenta'!I:I) -> 0 | N148: 0
A149: ABA410CR | B149: AB | C149: ABA410 | D149: 25 | E149: CR | F149: 0102021107 | G149: Crediti v/Regione o Provincia Autonoma per mobilità attiva extraregionale | H149: =SUMIF('00 Alimenta'!$B:$B,'00 PDC SP'!$F149,'00 Alimenta'!D:D) -> 19005500.29 | I149: =SUMIF('00 Alimenta'!$B:$B,'00 PDC SP'!$F149,'00 Alimenta'!E:E) -> 0 | J149: =SUMIF('00 Alimenta'!$B:$B,'00 PDC SP'!$F149,'00 Alimenta'!F:F) -> 0 | K149: =SUMIF('00 Alimenta'!$B:$B,'00 PDC SP'!$F149,'00 Alimenta'!G:G) -> 19005500.29 | L149: =SUMIF('00 Alimenta'!$B:$B,'00 PDC SP'!$F149,'00 Alimenta'!H:H) -> 17628432.4 | M149: =SUMIF('00 Alimenta'!$B:$B,'00 PDC SP'!$F149,'00 Alimenta'!I:I) -> 17628432.4 | N149: 19005500.29
A150: ABA410FE | B150: AB | C150: ABA410 | D150: 25 | E150: FE | F150: 0102021108 | G150: Fatture da emettere v/Regione per mobilità attiva extraregionale | H150: =SUMIF('00 Alimenta'!$B:$B,'00 PDC SP'!$F150,'00 Alimenta'!D:D) -> 0 | I150: =SUMIF('00 Alimenta'!$B:$B,'00 PDC SP'!$F150,'00 Alimenta'!E:E) -> 0 | J150: =SUMIF('00 Alimenta'!$B:$B,'00 PDC SP'!$F150,'00 Alimenta'!F:F) -> 0 | K150: =SUMIF('00 Alimenta'!$B:$B,'00 PDC SP'!$F150,'00 Alimenta'!G:G) -> 0 | L150: =SUMIF('00 Alimenta'!$B:$B,'00 PDC SP'!$F150,'00 Alimenta'!H:H) -> 0 | M150: =SUMIF('00 Alimenta'!$B:$B,'00 PDC SP'!$F150,'00 Alimenta'!I:I) -> 0 | N150: 0
A151: ABA420CR | B151: AB | C151: ABA420 | D151: 25 | E151: CR | F151: 0102021109 | G151: Crediti v/Regione o Provincia Autonoma per acconto quota FSR | H151: =SUMIF('00 Alimenta'!$B:$B,'00 PDC SP'!$F151,'00 Alimenta'!D:D) -> 0 | I151: =SUMIF('00 Alimenta'!$B:$B,'00 PDC SP'!$F151,'00 Alimenta'!E:E) -> 533673541 | J151: =SUMIF('00 Alimenta'!$B:$B,'00 PDC SP'!$F151,'00 Alimenta'!F:F) -> 533673541 | K151: =SUMIF('00 Alimenta'!$B:$B,'00 PDC SP'!$F151,'00 Alimenta'!G:G) -> 0 | L151: =SUMIF('00 Alimenta'!$B:$B,'00 PDC SP'!$F151,'00 Alimenta'!H:H) -> 546891755 | M151: =SUMIF('00 Alimenta'!$B:$B,'00 PDC SP'!$F151,'00 Alimenta'!I:I) -> 546891755 | N151: 0
A152: ABA420FE | B152: AB | C152: ABA420 | D152: 25 | E152: FE | F152: 0102021110 | G152: Fatture da emettere v/Regione per creditiv/Regione o Provincia Autonoma per acconto FSR | H152: =SUMIF('00 Alimenta'!$B:$B,'00 PDC SP'!$F152,'00 Alimenta'!D:D) -> 0 | I152: =SUMIF('00 Alimenta'!$B:$B,'00 PDC SP'!$F152,'00 Alimenta'!E:E) -> 0 | J152: =SUMIF('00 Alimenta'!$B:$B,'00 PDC SP'!$F152,'00 Alimenta'!F:F) -> 0 | K152: =SUMIF('00 Alimenta'!$B:$B,'00 PDC SP'!$F152,'00 Alimenta'!G:G) -> 0 | L152: =SUMIF('00 Alimenta'!$B:$B,'00 PDC SP'!$F152,'00 Alimenta'!H:H) -> 0 | M152: =SUMIF('00 Alimenta'!$B:$B,'00 PDC SP'!$F152,'00 Alimenta'!I:I) -> 0 | N152: 0
A153: ABA430CR | B153: AB | C153: ABA430 | D153: 25 | E153: CR | F153: 0102021111 | G153: Crediti v/Regione o Provincia Autonoma per finanziamento sanitario aggiuntivo corrente LEA | H153: =SUMIF('00 Alimenta'!$B:$B,'00 PDC SP'!$F153,'00 Alimenta'!D:D) -> 8949031.21 | I153: =SUMIF('00 Alimenta'!$B:$B,'00 PDC SP'!$F153,'00 Alimenta'!E:E) -> 4734312.81 | J153: =SUMIF('00 Alimenta'!$B:$B,'00 PDC SP'!$F153,'00 Alimenta'!F:F) -> 1814869.13 | K153: =SUMIF('00 Alimenta'!$B:$B,'00 PDC SP'!$F153,'00 Alimenta'!G:G) -> 11868474.89 | L153: =SUMIF('00 Alimenta'!$B:$B,'00 PDC SP'!$F153,'00 Alimenta'!H:H) -> 5146816.37 | M153: =SUMIF('00 Alimenta'!$B:$B,'00 PDC SP'!$F153,'00 Alimenta'!I:I) -> 6631200.24 | N153: 10384091.02
A154: ABA440CR | B154: AB | C154: ABA440 | D154: 25 | E154: CR | F154: 0102021112 | G154: Crediti v/Regione o Provincia Autonoma per finanziamento sanitario aggiuntivo corrente extra LEA | H154: =SUMIF('00 Alimenta'!$B:$B,'00 PDC SP'!$F154,'00 Alimenta'!D:D) -> 0 | I154: =SUMIF('00 Alimenta'!$B:$B,'00 PDC SP'!$F154,'00 Alimenta'!E:E) -> 0 | J154: =SUMIF('00 Alimenta'!$B:$B,'00 PDC SP'!$F154,'00 Alimenta'!F:F) -> 0 | K154: =SUMIF('00 Alimenta'!$B:$B,'00 PDC SP'!$F154,'00 Alimenta'!G:G) -> 0 | L154: =SUMIF('00 Alimenta'!$B:$B,'00 PDC SP'!$F154,'00 Alimenta'!H:H) -> 0 | M154: =SUMIF('00 Alimenta'!$B:$B,'00 PDC SP'!$F154,'00 Alimenta'!I:I) -> 0 | N154: 0
A155: ABA450CR | B155: AB | C155: ABA450 | D155: 25 | E155: CR | F155: 0102021113 | G155: Crediti v/Regione o Provincia Autonoma per spesa corrente - altro | H155: =SUMIF('00 Alimenta'!$B:$B,'00 PDC SP'!$F155,'00 Alimenta'!D:D) -> 0 | I155: =SUMIF('00 Alimenta'!$B:$B,'00 PDC SP'!$F155,'00 Alimenta'!E:E) -> 0 | J155: =SUMIF('00 Alimenta'!$B:$B,'00 PDC SP'!$F155,'00 Alimenta'!F:F) -> 0 | K155: =SUMIF('00 Alimenta'!$B:$B,'00 PDC SP'!$F155,'00 Alimenta'!G:G) -> 0 | L155: =SUMIF('00 Alimenta'!$B:$B,'00 PDC SP'!$F155,'00 Alimenta'!H:H) -> 0 | M155: =SUMIF('00 Alimenta'!$B:$B,'00 PDC SP'!$F155,'00 Alimenta'!I:I) -> 0 | N155: 0
A156: ABA460CR | B156: AB | C156: ABA460 | D156: 25 | E156: CR | F156: 0102021114 | G156: Crediti v/Regione o Provincia Autonoma per ricerca | H156: =SUMIF('00 Alimenta'!$B:$B,'00 PDC SP'!$F156,'00 Alimenta'!D:D) -> 0 | I156: =SUMIF('00 Alimenta'!$B:$B,'00 PDC SP'!$F156,'00 Alimenta'!E:E) -> 0 | J156: =SUMIF('00 Alimenta'!$B:$B,'00 PDC SP'!$F156,'00 Alimenta'!F:F) -> 0 | K156: =SUMIF('00 Alimenta'!$B:$B,'00 PDC SP'!$F156,'00 Alimenta'!G:G) -> 0 | L156: =SUMIF('00 Alimenta'!$B:$B,'00 PDC SP'!$F156,'00 Alimenta'!H:H) -> 0 | M156: =SUMIF('00 Alimenta'!$B:$B,'00 PDC SP'!$F156,'00 Alimenta'!I:I) -> 0 | N156: 0
A157: ABA400CR | B157: AB | C157: ABA400 | D157: 25 | E157: CR | F157: 0102021115 | G157: Netting mobilità intraregionale ante 2007 | H157: =SUMIF('00 Alimenta'!$B:$B,'00 PDC SP'!$F157,'00 Alimenta'!D:D) -> 15592903.99 | I157: =SUMIF('00 Alimenta'!$B:$B,'00 PDC SP'!$F157,'00 Alimenta'!E:E) -> 0 | J157: =SUMIF('00 Alimenta'!$B:$B,'00 PDC SP'!$F157,'00 Alimenta'!F:F) -> 0 | K157: =SUMIF('00 Alimenta'!$B:$B,'00 PDC SP'!$F157,'00 Alimenta'!G:G) -> 15592903.99 | L157: =SUMIF('00 Alimenta'!$B:$B,'00 PDC SP'!$F157,'00 Alimenta'!H:H) -> 0 | M157: =SUMIF('00 Alimenta'!$B:$B,'00 PDC SP'!$F157,'00 Alimenta'!I:I) -> 0 | N157: 15592903.99
A158: ABA410CR | B158: AB | C158: ABA410 | D158: 25 | E158: CR | F158: 0102021116 | G158: Netting mobilità extraregionale ante 2007 | H158: =SUMIF('00 Alimenta'!$B:$B,'00 PDC SP'!$F158,'00 Alimenta'!D:D) -> 0 | I158: =SUMIF('00 Alimenta'!$B:$B,'00 PDC SP'!$F158,'00 Alimenta'!E:E) -> 0 | J158: =SUMIF('00 Alimenta'!$B:$B,'00 PDC SP'!$F158,'00 Alimenta'!F:F) -> 0 | K158: =SUMIF('00 Alimenta'!$B:$B,'00 PDC SP'!$F158,'00 Alimenta'!G:G) -> 0 | L158: =SUMIF('00 Alimenta'!$B:$B,'00 PDC SP'!$F158,'00 Alimenta'!H:H) -> 0 | M158: =SUMIF('00 Alimenta'!$B:$B,'00 PDC SP'!$F158,'00 Alimenta'!I:I) -> 0 | N158: 0
A159: ABA480CR | B159: AB | C159: ABA480 | D159: 49 | E159: CR | F159: 0102021201 | G159: Crediti v/Regione o Provincia Autonoma per finanziamenti per investimenti | H159: =SUMIF('00 Alimenta'!$B:$B,'00 PDC SP'!$F159,'00 Alimenta'!D:D) -> 38255 | I159: =SUMIF('00 Alimenta'!$B:$B,'00 PDC SP'!$F159,'00 Alimenta'!E:E) -> 0 | J159: =SUMIF('00 Alimenta'!$B:$B,'00 PDC SP'!$F159,'00 Alimenta'!F:F) -> 0 | K159: =SUMIF('00 Alimenta'!$B:$B,'00 PDC SP'!$F159,'00 Alimenta'!G:G) -> 38255 | L159: =SUMIF('00 Alimenta'!$B:$B,'00 PDC SP'!$F159,'00 Alimenta'!H:H) -> 0 | M159: =SUMIF('00 Alimenta'!$B:$B,'00 PDC SP'!$F159,'00 Alimenta'!I:I) -> 0 | N159: 38255
A160: ABA490CR | B160: AB | C160: ABA490 | D160: 50 | E160: CR | F160: 0102021202 | G160: Crediti v/Regione o Provincia Autonoma per incremento fondo dotazione | H160: =SUMIF('00 Alimenta'!$B:$B,'00 PDC SP'!$F160,'00 Alimenta'!D:D) -> 0 | I160: =SUMIF('00 Alimenta'!$B:$B,'00 PDC SP'!$F160,'00 Alimenta'!E:E) -> 0 | J160: =SUMIF('00 Alimenta'!$B:$B,'00 PDC SP'!$F160,'00 Alimenta'!F:F) -> 0 | K160: =SUMIF('00 Alimenta'!$B:$B,'00 PDC SP'!$F160,'00 Alimenta'!G:G) -> 0 | L160: =SUMIF('00 Alimenta'!$B:$B,'00 PDC SP'!$F160,'00 Alimenta'!H:H) -> 0 | M160: =SUMIF('00 Alimenta'!$B:$B,'00 PDC SP'!$F160,'00 Alimenta'!I:I) -> 0 | N160: 0
A161: ABA500CR | B161: AB | C161: ABA500 | D161: 51 | E161: CR | F161: 0102021203 | G161: Crediti v/Regione o Provincia Autonoma per ripiano perdite | H161: =SUMIF('00 Alimenta'!$B:$B,'00 PDC SP'!$F161,'00 Alimenta'!D:D) -> 0 | I161: =SUMIF('00 Alimenta'!$B:$B,'00 PDC SP'!$F161,'00 Alimenta'!E:E) -> 30778127.57 | J161: =SUMIF('00 Alimenta'!$B:$B,'00 PDC SP'!$F161,'00 Alimenta'!F:F) -> 9176068 | K161: =SUMIF('00 Alimenta'!$B:$B,'00 PDC SP'!$F161,'00 Alimenta'!G:G) -> 21602059.57 | L161: =SUMIF('00 Alimenta'!$B:$B,'00 PDC SP'!$F161,'00 Alimenta'!H:H) -> 14264710 | M161: =SUMIF('00 Alimenta'!$B:$B,'00 PDC SP'!$F161,'00 Alimenta'!I:I) -> 21602059.57 | N161: 14264710
A162: ABA510CR | B162: AB | C162: ABA510 | D162: 52 | E162: CR | F162: 0102021204 | G162: Crediti v/Regione per copertura debiti al 31/12/2005 | H162: =SUMIF('00 Alimenta'!$B:$B,'00 PDC SP'!$F162,'00 Alimenta'!D:D) -> 0 | I162: =SUMIF('00 Alimenta'!$B:$B,'00 PDC SP'!$F162,'00 Alimenta'!E:E) -> 0 | J162: =SUMIF('00 Alimenta'!$B:$B,'00 PDC SP'!$F162,'00 Alimenta'!F:F) -> 0 | K162: =SUMIF('00 Alimenta'!$B:$B,'00 PDC SP'!$F162,'00 Alimenta'!G:G) -> 0 | L162: =SUMIF('00 Alimenta'!$B:$B,'00 PDC SP'!$F162,'00 Alimenta'!H:H) -> 0 | M162: =SUMIF('00 Alimenta'!$B:$B,'00 PDC SP'!$F162,'00 Alimenta'!I:I) -> 0 | N162: 0
A163: ABA520CR | B163: AB | C163: ABA520 | D163: 49 | E163: CR | F163: 0102021205 | G163: Crediti v/Regione o Provincia Autonoma per ricostituzione risorse da investimenti esercizi precedenti | H163: =SUMIF('00 Alimenta'!$B:$B,'00 PDC SP'!$F163,'00 Alimenta'!D:D) -> 0 | I163: =SUMIF('00 Alimenta'!$B:$B,'00 PDC SP'!$F163,'00 Alimenta'!E:E) -> 0 | J163: =SUMIF('00 Alimenta'!$B:$B,'00 PDC SP'!$F163,'00 Alimenta'!F:F) -> 0 | K163: =SUMIF('00 Alimenta'!$B:$B,'00 PDC SP'!$F163,'00 Alimenta'!G:G) -> 0 | L163: =SUMIF('00 Alimenta'!$B:$B,'00 PDC SP'!$F163,'00 Alimenta'!H:H) -> 0 | M163: =SUMIF('00 Alimenta'!$B:$B,'00 PDC SP'!$F163,'00 Alimenta'!I:I) -> 0 | N163: 0
A164: ABA530CR | B164: AB | C164: ABA530 | D164: 26 | E164: CR | F164: 0102021301 | G164: Crediti v/Comuni | H164: =SUMIF('00 Alimenta'!$B:$B,'00 PDC SP'!$F164,'00 Alimenta'!D:D) -> 104638.16 | I164: =SUMIF('00 Alimenta'!$B:$B,'00 PDC SP'!$F164,'00 Alimenta'!E:E) -> 30692.07 | J164: =SUMIF('00 Alimenta'!$B:$B,'00 PDC SP'!$F164,'00 Alimenta'!F:F) -> 52528.41 | K164: =SUMIF('00 Alimenta'!$B:$B,'00 PDC SP'!$F164,'00 Alimenta'!G:G) -> 82801.82 | L164: =SUMIF('00 Alimenta'!$B:$B,'00 PDC SP'!$F164,'00 Alimenta'!H:H) -> 115218.01 | M164: =SUMIF('00 Alimenta'!$B:$B,'00 PDC SP'!$F164,'00 Alimenta'!I:I) -> 34661.25 | N164: 163358.58
A165: ABA530FE | B165: AB | C165: ABA530 | D165: 26 | E165: FE | F165: 0102021302 | G165: Fatture da emettere v/Comuni | H165: =SUMIF('00 Alimenta'!$B:$B,'00 PDC SP'!$F165,'00 Alimenta'!D:D) -> 1960.74 | I165: =SUMIF('00 Alimenta'!$B:$B,'00 PDC SP'!$F165,'00 Alimenta'!E:E) -> 5505.16 | J165: =SUMIF('00 Alimenta'!$B:$B,'00 PDC SP'!$F165,'00 Alimenta'!F:F) -> 1960.74 | K165: =SUMIF('00 Alimenta'!$B:$B,'00 PDC SP'!$F165,'00 Alimenta'!G:G) -> 5505.16 | L165: =SUMIF('00 Alimenta'!$B:$B,'00 PDC SP'!$F165,'00 Alimenta'!H:H) -> 58770.9 | M165: =SUMIF('00 Alimenta'!$B:$B,'00 PDC SP'!$F165,'00 Alimenta'!I:I) -> 5505.16 | N165: 58770.9
A166: ABA560CR | B166: AB | C166: ABA560 | D166: 27 | E166: CR | F166: 0102021401 | G166: Crediti v/ASL della Regione | H166: =SUMIF('00 Alimenta'!$B:$B,'00 PDC SP'!$F166,'00 Alimenta'!D:D) -> 0 | I166: =SUMIF('00 Alimenta'!$B:$B,'00 PDC SP'!$F166,'00 Alimenta'!E:E) -> 0 | J166: =SUMIF('00 Alimenta'!$B:$B,'00 PDC SP'!$F166,'00 Alimenta'!F:F) -> 0 | K166: =SUMIF('00 Alimenta'!$B:$B,'00 PDC SP'!$F166,'00 Alimenta'!G:G) -> 0 | L166: =SUMIF('00 Alimenta'!$B:$B,'00 PDC SP'!$F166,'00 Alimenta'!H:H) -> 0 | M166: =SUMIF('00 Alimenta'!$B:$B,'00 PDC SP'!$F166,'00 Alimenta'!I:I) -> 0 | N166: 0
A167: ABA560CR | B167: AB | C167: ABA560 | D167: 27 | E167: CR | F167: 0102021402 | G167: Crediti v/ASL Avezzano Sulmona L'Aquila per mobilità in compensazione | H167: =SUMIF('00 Alimenta'!$B:$B,'00 PDC SP'!$F167,'00 Alimenta'!D:D) -> 0 | I167: =SUMIF('00 Alimenta'!$B:$B,'00 PDC SP'!$F167,'00 Alimenta'!E:E) -> 0 | J167: =SUMIF('00 Alimenta'!$B:$B,'00 PDC SP'!$F167,'00 Alimenta'!F:F) -> 0 | K167: =SUMIF('00 Alimenta'!$B:$B,'00 PDC SP'!$F167,'00 Alimenta'!G:G) -> 0 | L167: =SUMIF('00 Alimenta'!$B:$B,'00 PDC SP'!$F167,'00 Alimenta'!H:H) -> 0 | M167: =SUMIF('00 Alimenta'!$B:$B,'00 PDC SP'!$F167,'00 Alimenta'!I:I) -> 0 | N167: 0
A168: ABA560FE | B168: AB | C168: ABA560 | D168: 27 | E168: FE | F168: 0102021403 | G168: Fatture da emettere v/ASL Avezzano Sulmona L'Aquila per mobilità in compensazione | H168: =SUMIF('00 Alimenta'!$B:$B,'00 PDC SP'!$F168,'00 Alimenta'!D:D) -> 0 | I168: =SUMIF('00 Alimenta'!$B:$B,'00 PDC SP'!$F168,'00 Alimenta'!E:E) -> 0 | J168: =SUMIF('00 Alimenta'!$B:$B,'00 PDC SP'!$F168,'00 Alimenta'!F:F) -> 0 | K168: =SUMIF('00 Alimenta'!$B:$B,'00 PDC SP'!$F168,'00 Alimenta'!G:G) -> 0 | L168: =SUMIF('00 Alimenta'!$B:$B,'00 PDC SP'!$F168,'00 Alimenta'!H:H) -> 0 | M168: =SUMIF('00 Alimenta'!$B:$B,'00 PDC SP'!$F168,'00 Alimenta'!I:I) -> 0 | N168: 0
A169: ABA560CR | B169: AB | C169: ABA560 | D169: 27 | E169: CR | F169: 0102021404 | G169: Crediti v/ASL Lanciano Vasto Chieti per mobilità in compensazione | H169: =SUMIF('00 Alimenta'!$B:$B,'00 PDC SP'!$F169,'00 Alimenta'!D:D) -> 0 | I169: =SUMIF('00 Alimenta'!$B:$B,'00 PDC SP'!$F169,'00 Alimenta'!E:E) -> 0 | J169: =SUMIF('00 Alimenta'!$B:$B,'00 PDC SP'!$F169,'00 Alimenta'!F:F) -> 0 | K169: =SUMIF('00 Alimenta'!$B:$B,'00 PDC SP'!$F169,'00 Alimenta'!G:G) -> 0 | L169: =SUMIF('00 Alimenta'!$B:$B,'00 PDC SP'!$F169,'00 Alimenta'!H:H) -> 0 | M169: =SUMIF('00 Alimenta'!$B:$B,'00 PDC SP'!$F169,'00 Alimenta'!I:I) -> 0 | N169: 0
A170: ABA560FE | B170: AB | C170: ABA560 | D170: 27 | E170: FE | F170: 0102021405 | G170: Fatture da emettere v/ASL Lanciano Vasto Chieti per mobilità in compensazione | H170: =SUMIF('00 Alimenta'!$B:$B,'00 PDC SP'!$F170,'00 Alimenta'!D:D) -> 0 | I170: =SUMIF('00 Alimenta'!$B:$B,'00 PDC SP'!$F170,'00 Alimenta'!E:E) -> 0 | J170: =SUMIF('00 Alimenta'!$B:$B,'00 PDC SP'!$F170,'00 Alimenta'!F:F) -> 0 | K170: =SUMIF('00 Alimenta'!$B:$B,'00 PDC SP'!$F170,'00 Alimenta'!G:G) -> 0 | L170: =SUMIF('00 Alimenta'!$B:$B,'00 PDC SP'!$F170,'00 Alimenta'!H:H) -> 0 | M170: =SUMIF('00 Alimenta'!$B:$B,'00 PDC SP'!$F170,'00 Alimenta'!I:I) -> 0 | N170: 0
A171: ABA560CR | B171: AB | C171: ABA560 | D171: 27 | E171: CR | F171: 0102021406 | G171: Crediti v/ASL Pescara per mobilità in compensazione | H171: =SUMIF('00 Alimenta'!$B:$B,'00 PDC SP'!$F171,'00 Alimenta'!D:D) -> 0 | I171: =SUMIF('00 Alimenta'!$B:$B,'00 PDC SP'!$F171,'00 Alimenta'!E:E) -> 0 | J171: =SUMIF('00 Alimenta'!$B:$B,'00 PDC SP'!$F171,'00 Alimenta'!F:F) -> 0 | K171: =SUMIF('00 Alimenta'!$B:$B,'00 PDC SP'!$F171,'00 Alimenta'!G:G) -> 0 | L171: =SUMIF('00 Alimenta'!$B:$B,'00 PDC SP'!$F171,'00 Alimenta'!H:H) -> 0 | M171: =SUMIF('00 Alimenta'!$B:$B,'00 PDC SP'!$F171,'00 Alimenta'!I:I) -> 0 | N171: 0
A172: ABA560FE | B172: AB | C172: ABA560 | D172: 27 | E172: FE | F172: 0102021407 | G172: Fatture da emettere v/ASL Pescara per mobilità in compensazione | H172: =SUMIF('00 Alimenta'!$B:$B,'00 PDC SP'!$F172,'00 Alimenta'!D:D) -> 0 | I172: =SUMIF('00 Alimenta'!$B:$B,'00 PDC SP'!$F172,'00 Alimenta'!E:E) -> 0 | J172: =SUMIF('00 Alimenta'!$B:$B,'00 PDC SP'!$F172,'00 Alimenta'!F:F) -> 0 | K172: =SUMIF('00 Alimenta'!$B:$B,'00 PDC SP'!$F172,'00 Alimenta'!G:G) -> 0 | L172: =SUMIF('00 Alimenta'!$B:$B,'00 PDC SP'!$F172,'00 Alimenta'!H:H) -> 0 | M172: =SUMIF('00 Alimenta'!$B:$B,'00 PDC SP'!$F172,'00 Alimenta'!I:I) -> 0 | N172: 0
A173: ABA560CR | B173: AB | C173: ABA560 | D173: 27 | E173: CR | F173: 0102021408 | G173: Crediti v/ASL Teramo per mobilità in compensazione | H173: =SUMIF('00 Alimenta'!$B:$B,'00 PDC SP'!$F173,'00 Alimenta'!D:D) -> 0 | I173: =SUMIF('00 Alimenta'!$B:$B,'00 PDC SP'!$F173,'00 Alimenta'!E:E) -> 0 | J173: =SUMIF('00 Alimenta'!$B:$B,'00 PDC SP'!$F173,'00 Alimenta'!F:F) -> 0 | K173: =SUMIF('00 Alimenta'!$B:$B,'00 PDC SP'!$F173,'00 Alimenta'!G:G) -> 0 | L173: =SUMIF('00 Alimenta'!$B:$B,'00 PDC SP'!$F173,'00 Alimenta'!H:H) -> 0 | M173: =SUMIF('00 Alimenta'!$B:$B,'00 PDC SP'!$F173,'00 Alimenta'!I:I) -> 0 | N173: 0
A174: ABA560FE | B174: AB | C174: ABA560 | D174: 27 | E174: FE | F174: 0102021409 | G174: Fatture da emettere v/ASL Teramo per mobilità in compensazione | H174: =SUMIF('00 Alimenta'!$B:$B,'00 PDC SP'!$F174,'00 Alimenta'!D:D) -> 0 | I174: =SUMIF('00 Alimenta'!$B:$B,'00 PDC SP'!$F174,'00 Alimenta'!E:E) -> 0 | J174: =SUMIF('00 Alimenta'!$B:$B,'00 PDC SP'!$F174,'00 Alimenta'!F:F) -> 0 | K174: =SUMIF('00 Alimenta'!$B:$B,'00 PDC SP'!$F174,'00 Alimenta'!G:G) -> 0 | L174: =SUMIF('00 Alimenta'!$B:$B,'00 PDC SP'!$F174,'00 Alimenta'!H:H) -> 0 | M174: =SUMIF('00 Alimenta'!$B:$B,'00 PDC SP'!$F174,'00 Alimenta'!I:I) -> 0 | N174: 0
A175: ABA570CR | B175: AB | C175: ABA570 | D175: 27 | E175: CR | F175: 0102021410 | G175: Crediti v/asl Avezzano Sulmona L'Aquila per mobilità non in compensazione | H175: =SUMIF('00 Alimenta'!$B:$B,'00 PDC SP'!$F175,'00 Alimenta'!D:D) -> 0 | I175: =SUMIF('00 Alimenta'!$B:$B,'00 PDC SP'!$F175,'00 Alimenta'!E:E) -> 0 | J175: =SUMIF('00 Alimenta'!$B:$B,'00 PDC SP'!$F175,'00 Alimenta'!F:F) -> 0 | K175: =SUMIF('00 Alimenta'!$B:$B,'00 PDC SP'!$F175,'00 Alimenta'!G:G) -> 0 | L175: =SUMIF('00 Alimenta'!$B:$B,'00 PDC SP'!$F175,'00 Alimenta'!H:H) -> 0 | M175: =SUMIF('00 Alimenta'!$B:$B,'00 PDC SP'!$F175,'00 Alimenta'!I:I) -> 0 | N175: 0
A176: ABA570FE | B176: AB | C176: ABA570 | D176: 27 | E176: FE | F176: 0102021411 | G176: Fatture da emettere v/ASL Avezzano Sulmona L'Aquila per mobilità non in compensazione | H176: =SUMIF('00 Alimenta'!$B:$B,'00 PDC SP'!$F176,'00 Alimenta'!D:D) -> 0 | I176: =SUMIF('00 Alimenta'!$B:$B,'00 PDC SP'!$F176,'00 Alimenta'!E:E) -> 0 | J176: =SUMIF('00 Alimenta'!$B:$B,'00 PDC SP'!$F176,'00 Alimenta'!F:F) -> 0 | K176: =SUMIF('00 Alimenta'!$B:$B,'00 PDC SP'!$F176,'00 Alimenta'!G:G) -> 0 | L176: =SUMIF('00 Alimenta'!$B:$B,'00 PDC SP'!$F176,'00 Alimenta'!H:H) -> 0 | M176: =SUMIF('00 Alimenta'!$B:$B,'00 PDC SP'!$F176,'00 Alimenta'!I:I) -> 0 | N176: 0
A177: ABA570CR | B177: AB | C177: ABA570 | D177: 27 | E177: CR | F177: 0102021412 | G177: Crediti v/ASL Lanciano Vasto Chieti per mobilità non in compensazione | H177: =SUMIF('00 Alimenta'!$B:$B,'00 PDC SP'!$F177,'00 Alimenta'!D:D) -> 0 | I177: =SUMIF('00 Alimenta'!$B:$B,'00 PDC SP'!$F177,'00 Alimenta'!E:E) -> 0 | J177: =SUMIF('00 Alimenta'!$B:$B,'00 PDC SP'!$F177,'00 Alimenta'!F:F) -> 0 | K177: =SUMIF('00 Alimenta'!$B:$B,'00 PDC SP'!$F177,'00 Alimenta'!G:G) -> 0 | L177: =SUMIF('00 Alimenta'!$B:$B,'00 PDC SP'!$F177,'00 Alimenta'!H:H) -> 0 | M177: =SUMIF('00 Alimenta'!$B:$B,'00 PDC SP'!$F177,'00 Alimenta'!I:I) -> 0 | N177: 0
A178: ABA570FE | B178: AB | C178: ABA570 | D178: 27 | E178: FE | F178: 0102021413 | G178: Fatture da emettere v/ASL Lanciano Vasto Chieti per mobilità non in compensazione | H178: =SUMIF('00 Alimenta'!$B:$B,'00 PDC SP'!$F178,'00 Alimenta'!D:D) -> 0 | I178: =SUMIF('00 Alimenta'!$B:$B,'00 PDC SP'!$F178,'00 Alimenta'!E:E) -> 0 | J178: =SUMIF('00 Alimenta'!$B:$B,'00 PDC SP'!$F178,'00 Alimenta'!F:F) -> 0 | K178: =SUMIF('00 Alimenta'!$B:$B,'00 PDC SP'!$F178,'00 Alimenta'!G:G) -> 0 | L178: =SUMIF('00 Alimenta'!$B:$B,'00 PDC SP'!$F178,'00 Alimenta'!H:H) -> 0 | M178: =SUMIF('00 Alimenta'!$B:$B,'00 PDC SP'!$F178,'00 Alimenta'!I:I) -> 0 | N178: 0
A179: ABA570CR | B179: AB | C179: ABA570 | D179: 27 | E179: CR | F179: 0102021414 | G179: Crediti v/ASL Pescara per mobilità non in compensazione | H179: =SUMIF('00 Alimenta'!$B:$B,'00 PDC SP'!$F179,'00 Alimenta'!D:D) -> 0 | I179: =SUMIF('00 Alimenta'!$B:$B,'00 PDC SP'!$F179,'00 Alimenta'!E:E) -> 0 | J179: =SUMIF('00 Alimenta'!$B:$B,'00 PDC SP'!$F179,'00 Alimenta'!F:F) -> 0 | K179: =SUMIF('00 Alimenta'!$B:$B,'00 PDC SP'!$F179,'00 Alimenta'!G:G) -> 0 | L179: =SUMIF('00 Alimenta'!$B:$B,'00 PDC SP'!$F179,'00 Alimenta'!H:H) -> 0 | M179: =SUMIF('00 Alimenta'!$B:$B,'00 PDC SP'!$F179,'00 Alimenta'!I:I) -> 0 | N179: 0
A180: ABA570FE | B180: AB | C180: ABA570 | D180: 27 | E180: FE | F180: 0102021415 | G180: Fatture da emettere v/ASL Pescara per mobilità non in compensazione | H180: =SUMIF('00 Alimenta'!$B:$B,'00 PDC SP'!$F180,'00 Alimenta'!D:D) -> 0 | I180: =SUMIF('00 Alimenta'!$B:$B,'00 PDC SP'!$F180,'00 Alimenta'!E:E) -> 0 | J180: =SUMIF('00 Alimenta'!$B:$B,'00 PDC SP'!$F180,'00 Alimenta'!F:F) -> 0 | K180: =SUMIF('00 Alimenta'!$B:$B,'00 PDC SP'!$F180,'00 Alimenta'!G:G) -> 0 | L180: =SUMIF('00 Alimenta'!$B:$B,'00 PDC SP'!$F180,'00 Alimenta'!H:H) -> 0 | M180: =SUMIF('00 Alimenta'!$B:$B,'00 PDC SP'!$F180,'00 Alimenta'!I:I) -> 0 | N180: 0
A181: ABA570CR | B181: AB | C181: ABA570 | D181: 27 | E181: CR | F181: 0102021416 | G181: Crediti v/ASL Teramo per mobilità non in compensazione | H181: =SUMIF('00 Alimenta'!$B:$B,'00 PDC SP'!$F181,'00 Alimenta'!D:D) -> 0 | I181: =SUMIF('00 Alimenta'!$B:$B,'00 PDC SP'!$F181,'00 Alimenta'!E:E) -> 0 | J181: =SUMIF('00 Alimenta'!$B:$B,'00 PDC SP'!$F181,'00 Alimenta'!F:F) -> 0 | K181: =SUMIF('00 Alimenta'!$B:$B,'00 PDC SP'!$F181,'00 Alimenta'!G:G) -> 0 | L181: =SUMIF('00 Alimenta'!$B:$B,'00 PDC SP'!$F181,'00 Alimenta'!H:H) -> 0 | M181: =SUMIF('00 Alimenta'!$B:$B,'00 PDC SP'!$F181,'00 Alimenta'!I:I) -> 0 | N181: 0
A182: ABA570FE | B182: AB | C182: ABA570 | D182: 27 | E182: FE | F182: 0102021417 | G182: Fatture da emettere v/ASL Teramo per mobilità non in compensazione | H182: =SUMIF('00 Alimenta'!$B:$B,'00 PDC SP'!$F182,'00 Alimenta'!D:D) -> 0 | I182: =SUMIF('00 Alimenta'!$B:$B,'00 PDC SP'!$F182,'00 Alimenta'!E:E) -> 0 | J182: =SUMIF('00 Alimenta'!$B:$B,'00 PDC SP'!$F182,'00 Alimenta'!F:F) -> 0 | K182: =SUMIF('00 Alimenta'!$B:$B,'00 PDC SP'!$F182,'00 Alimenta'!G:G) -> 0 | L182: =SUMIF('00 Alimenta'!$B:$B,'00 PDC SP'!$F182,'00 Alimenta'!H:H) -> 0 | M182: =SUMIF('00 Alimenta'!$B:$B,'00 PDC SP'!$F182,'00 Alimenta'!I:I) -> 0 | N182: 0
A183: ABA580CR | B183: AB | C183: ABA580 | D183: 27 | E183: CR | F183: 0102021418 | G183: Crediti v/ASL Avezzano Sulmona L'Aquila per altre prestazioni | H183: =SUMIF('00 Alimenta'!$B:$B,'00 PDC SP'!$F183,'00 Alimenta'!D:D) -> 402921.36 | I183: =SUMIF('00 Alimenta'!$B:$B,'00 PDC SP'!$F183,'00 Alimenta'!E:E) -> 336718.25 | J183: =SUMIF('00 Alimenta'!$B:$B,'00 PDC SP'!$F183,'00 Alimenta'!F:F) -> 62226.18 | K183: =SUMIF('00 Alimenta'!$B:$B,'00 PDC SP'!$F183,'00 Alimenta'!G:G) -> 677413.43 | L183: =SUMIF('00 Alimenta'!$B:$B,'00 PDC SP'!$F183,'00 Alimenta'!H:H) -> 4655668.13 | M183: =SUMIF('00 Alimenta'!$B:$B,'00 PDC SP'!$F183,'00 Alimenta'!I:I) -> 4847041.6 | N183: 486039.96
A184: ABA580FE | B184: AB | C184: ABA580 | D184: 27 | E184: FE | F184: 0102021419 | G184: Fatture da emettere v/ASL Avezzano Sulmona L'Aquila per altre prestazioni | H184: =SUMIF('00 Alimenta'!$B:$B,'00 PDC SP'!$F184,'00 Alimenta'!D:D) -> 53218.85 | I184: =SUMIF('00 Alimenta'!$B:$B,'00 PDC SP'!$F184,'00 Alimenta'!E:E) -> 18535.41 | J184: =SUMIF('00 Alimenta'!$B:$B,'00 PDC SP'!$F184,'00 Alimenta'!F:F) -> 53218.85 | K184: =SUMIF('00 Alimenta'!$B:$B,'00 PDC SP'!$F184,'00 Alimenta'!G:G) -> 18535.41 | L184: =SUMIF('00 Alimenta'!$B:$B,'00 PDC SP'!$F184,'00 Alimenta'!H:H) -> 8143.77 | M184: =SUMIF('00 Alimenta'!$B:$B,'00 PDC SP'!$F184,'00 Alimenta'!I:I) -> 18535.41 | N184: 8143.77
A185: ABA580CR | B185: AB | C185: ABA580 | D185: 27 | E185: CR | F185: 0102021420 | G185: Crediti v/ASL Lanciano Vasto Chieti per altre prestazioni | H185: =SUMIF('00 Alimenta'!$B:$B,'00 PDC SP'!$F185,'00 Alimenta'!D:D) -> 169755.63 | I185: =SUMIF('00 Alimenta'!$B:$B,'00 PDC SP'!$F185,'00 Alimenta'!E:E) -> 113434.63 | J185: =SUMIF('00 Alimenta'!$B:$B,'00 PDC SP'!$F185,'00 Alimenta'!F:F) -> 1305.1 | K185: =SUMIF('00 Alimenta'!$B:$B,'00 PDC SP'!$F185,'00 Alimenta'!G:G) -> 281885.16 | L185: =SUMIF('00 Alimenta'!$B:$B,'00 PDC SP'!$F185,'00 Alimenta'!H:H) -> 127601.11 | M185: =SUMIF('00 Alimenta'!$B:$B,'00 PDC SP'!$F185,'00 Alimenta'!I:I) -> 175640.8 | N185: 233845.47
A186: ABA580FE | B186: AB | C186: ABA580 | D186: 27 | E186: FE | F186: 0102021421 | G186: Fatture da emettere v/ASL Lanciano Vasto Chieti per altre prestazioni | H186: =SUMIF('00 Alimenta'!$B:$B,'00 PDC SP'!$F186,'00 Alimenta'!D:D) -> 53059.69 | I186: =SUMIF('00 Alimenta'!$B:$B,'00 PDC SP'!$F186,'00 Alimenta'!E:E) -> 5700.13 | J186: =SUMIF('00 Alimenta'!$B:$B,'00 PDC SP'!$F186,'00 Alimenta'!F:F) -> 53059.69 | K186: =SUMIF('00 Alimenta'!$B:$B,'00 PDC SP'!$F186,'00 Alimenta'!G:G) -> 5700.13 | L186: =SUMIF('00 Alimenta'!$B:$B,'00 PDC SP'!$F186,'00 Alimenta'!H:H) -> 1282.71 | M186: =SUMIF('00 Alimenta'!$B:$B,'00 PDC SP'!$F186,'00 Alimenta'!I:I) -> 5700.13 | N186: 1282.71
A187: ABA580CR | B187: AB | C187: ABA580 | D187: 27 | E187: CR | F187: 0102021422 | G187: Crediti v/ASL Pescara per altre prestazioni | H187: =SUMIF('00 Alimenta'!$B:$B,'00 PDC SP'!$F187,'00 Alimenta'!D:D) -> 0 | I187: =SUMIF('00 Alimenta'!$B:$B,'00 PDC SP'!$F187,'00 Alimenta'!E:E) -> 0 | J187: =SUMIF('00 Alimenta'!$B:$B,'00 PDC SP'!$F187,'00 Alimenta'!F:F) -> 0 | K187: =SUMIF('00 Alimenta'!$B:$B,'00 PDC SP'!$F187,'00 Alimenta'!G:G) -> 0 | L187: =SUMIF('00 Alimenta'!$B:$B,'00 PDC SP'!$F187,'00 Alimenta'!H:H) -> 0 | M187: =SUMIF('00 Alimenta'!$B:$B,'00 PDC SP'!$F187,'00 Alimenta'!I:I) -> 0 | N187: 0
A188: ABA580FE | B188: AB | C188: ABA580 | D188: 27 | E188: FE | F188: 0102021423 | G188: Fatture da emettere v/ASL Pescara per altre prestazioni | H188: =SUMIF('00 Alimenta'!$B:$B,'00 PDC SP'!$F188,'00 Alimenta'!D:D) -> 0 | I188: =SUMIF('00 Alimenta'!$B:$B,'00 PDC SP'!$F188,'00 Alimenta'!E:E) -> 0 | J188: =SUMIF('00 Alimenta'!$B:$B,'00 PDC SP'!$F188,'00 Alimenta'!F:F) -> 0 | K188: =SUMIF('00 Alimenta'!$B:$B,'00 PDC SP'!$F188,'00 Alimenta'!G:G) -> 0 | L188: =SUMIF('00 Alimenta'!$B:$B,'00 PDC SP'!$F188,'00 Alimenta'!H:H) -> 0 | M188: =SUMIF('00 Alimenta'!$B:$B,'00 PDC SP'!$F188,'00 Alimenta'!I:I) -> 0 | N188: 0
A189: ABA580CR | B189: AB | C189: ABA580 | D189: 27 | E189: CR | F189: 0102021424 | G189: Crediti v/ASL Teramo per altre prestazioni | H189: =SUMIF('00 Alimenta'!$B:$B,'00 PDC SP'!$F189,'00 Alimenta'!D:D) -> 3993311.28 | I189: =SUMIF('00 Alimenta'!$B:$B,'00 PDC SP'!$F189,'00 Alimenta'!E:E) -> 18039.36 | J189: =SUMIF('00 Alimenta'!$B:$B,'00 PDC SP'!$F189,'00 Alimenta'!F:F) -> 5653.6 | K189: =SUMIF('00 Alimenta'!$B:$B,'00 PDC SP'!$F189,'00 Alimenta'!G:G) -> 4005697.04 | L189: =SUMIF('00 Alimenta'!$B:$B,'00 PDC SP'!$F189,'00 Alimenta'!H:H) -> 62418.61 | M189: =SUMIF('00 Alimenta'!$B:$B,'00 PDC SP'!$F189,'00 Alimenta'!I:I) -> 212668.34 | N189: 3855447.31
A190: ABA580FE | B190: AB | C190: ABA580 | D190: 27 | E190: FE | F190: 0102021425 | G190: Fatture da emettere v/ASL Teramo per altre prestazioni | H190: =SUMIF('00 Alimenta'!$B:$B,'00 PDC SP'!$F190,'00 Alimenta'!D:D) -> 868.42 | I190: =SUMIF('00 Alimenta'!$B:$B,'00 PDC SP'!$F190,'00 Alimenta'!E:E) -> 563.75 | J190: =SUMIF('00 Alimenta'!$B:$B,'00 PDC SP'!$F190,'00 Alimenta'!F:F) -> 868.42 | K190: =SUMIF('00 Alimenta'!$B:$B,'00 PDC SP'!$F190,'00 Alimenta'!G:G) -> 563.75 | L190: =SUMIF('00 Alimenta'!$B:$B,'00 PDC SP'!$F190,'00 Alimenta'!H:H) -> 5559.81 | M190: =SUMIF('00 Alimenta'!$B:$B,'00 PDC SP'!$F190,'00 Alimenta'!I:I) -> 563.75 | N190: 5559.81
A191: ABA590CR | B191: AB | C191: ABA590 | D191: 27 | E191: CR | F191: 0102021501 | G191: Acconto quota FSR da distribuire | H191: =SUMIF('00 Alimenta'!$B:$B,'00 PDC SP'!$F191,'00 Alimenta'!D:D) -> 0 | I191: =SUMIF('00 Alimenta'!$B:$B,'00 PDC SP'!$F191,'00 Alimenta'!E:E) -> 0 | J191: =SUMIF('00 Alimenta'!$B:$B,'00 PDC SP'!$F191,'00 Alimenta'!F:F) -> 0 | K191: =SUMIF('00 Alimenta'!$B:$B,'00 PDC SP'!$F191,'00 Alimenta'!G:G) -> 0 | L191: =SUMIF('00 Alimenta'!$B:$B,'00 PDC SP'!$F191,'00 Alimenta'!H:H) -> 0 | M191: =SUMIF('00 Alimenta'!$B:$B,'00 PDC SP'!$F191,'00 Alimenta'!I:I) -> 0 | N191: 0
A192: ABA600CR | B192: AB | C192: ABA600 | D192: 27 | E192: CR | F192: 0102021601 | G192: Crediti v/Aziende sanitarie pubbliche Extraregione | H192: =SUMIF('00 Alimenta'!$B:$B,'00 PDC SP'!$F192,'00 Alimenta'!D:D) -> 138252.07 | I192: =SUMIF('00 Alimenta'!$B:$B,'00 PDC SP'!$F192,'00 Alimenta'!E:E) -> 192761.59 | J192: =SUMIF('00 Alimenta'!$B:$B,'00 PDC SP'!$F192,'00 Alimenta'!F:F) -> 177714.87 | K192: =SUMIF('00 Alimenta'!$B:$B,'00 PDC SP'!$F192,'00 Alimenta'!G:G) -> 153298.79 | L192: =SUMIF('00 Alimenta'!$B:$B,'00 PDC SP'!$F192,'00 Alimenta'!H:H) -> 161597.98 | M192: =SUMIF('00 Alimenta'!$B:$B,'00 PDC SP'!$F192,'00 Alimenta'!I:I) -> 186310.75 | N192: 128586.02
A193: ABA600FE | B193: AB | C193: ABA600 | D193: 27 | E193: FE | F193: 0102021602 | G193: Fatture da emettere v/Aziende Sanitarie Pubbliche Extraregione | H193: =SUMIF('00 Alimenta'!$B:$B,'00 PDC SP'!$F193,'00 Alimenta'!D:D) -> 38052.37 | I193: =SUMIF('00 Alimenta'!$B:$B,'00 PDC SP'!$F193,'00 Alimenta'!E:E) -> 47833.03 | J193: =SUMIF('00 Alimenta'!$B:$B,'00 PDC SP'!$F193,'00 Alimenta'!F:F) -> 38052.37 | K193: =SUMIF('00 Alimenta'!$B:$B,'00 PDC SP'!$F193,'00 Alimenta'!G:G) -> 47833.03 | L193: =SUMIF('00 Alimenta'!$B:$B,'00 PDC SP'!$F193,'00 Alimenta'!H:H) -> 85649.52 | M193: =SUMIF('00 Alimenta'!$B:$B,'00 PDC SP'!$F193,'00 Alimenta'!I:I) -> 47833.03 | N193: 85649.52
A194: ABA620CR | B194: AB | C194: ABA620 | D194: 28 | E194: CR | F194: 0102021701 | G194: Crediti v/ARTA | H194: =SUMIF('00 Alimenta'!$B:$B,'00 PDC SP'!$F194,'00 Alimenta'!D:D) -> 5931.31 | I194: =SUMIF('00 Alimenta'!$B:$B,'00 PDC SP'!$F194,'00 Alimenta'!E:E) -> 0 | J194: =SUMIF('00 Alimenta'!$B:$B,'00 PDC SP'!$F194,'00 Alimenta'!F:F) -> 0 | K194: =SUMIF('00 Alimenta'!$B:$B,'00 PDC SP'!$F194,'00 Alimenta'!G:G) -> 5931.31 | L194: =SUMIF('00 Alimenta'!$B:$B,'00 PDC SP'!$F194,'00 Alimenta'!H:H) -> 0 | M194: =SUMIF('00 Alimenta'!$B:$B,'00 PDC SP'!$F194,'00 Alimenta'!I:I) -> 0 | N194: 5931.31
A195: ABA620FE | B195: AB | C195: ABA620 | D195: 28 | E195: FE | F195: 0102021702 | G195: Fatture da emettere v/ARTA | H195: =SUMIF('00 Alimenta'!$B:$B,'00 PDC SP'!$F195,'00 Alimenta'!D:D) -> 0 | I195: =SUMIF('00 Alimenta'!$B:$B,'00 PDC SP'!$F195,'00 Alimenta'!E:E) -> 0 | J195: =SUMIF('00 Alimenta'!$B:$B,'00 PDC SP'!$F195,'00 Alimenta'!F:F) -> 0 | K195: =SUMIF('00 Alimenta'!$B:$B,'00 PDC SP'!$F195,'00 Alimenta'!G:G) -> 0 | L195: =SUMIF('00 Alimenta'!$B:$B,'00 PDC SP'!$F195,'00 Alimenta'!H:H) -> 0 | M195: =SUMIF('00 Alimenta'!$B:$B,'00 PDC SP'!$F195,'00 Alimenta'!I:I) -> 0 | N195: 0
A196: ABA620CR | B196: AB | C196: ABA620 | D196: 28 | E196: CR | F196: 0102021703 | G196: Crediti v/Società controllate e collegate (enti regionali) | H196: =SUMIF('00 Alimenta'!$B:$B,'00 PDC SP'!$F196,'00 Alimenta'!D:D) -> 0 | I196: =SUMIF('00 Alimenta'!$B:$B,'00 PDC SP'!$F196,'00 Alimenta'!E:E) -> 0 | J196: =SUMIF('00 Alimenta'!$B:$B,'00 PDC SP'!$F196,'00 Alimenta'!F:F) -> 0 | K196: =SUMIF('00 Alimenta'!$B:$B,'00 PDC SP'!$F196,'00 Alimenta'!G:G) -> 0 | L196: =SUMIF('00 Alimenta'!$B:$B,'00 PDC SP'!$F196,'00 Alimenta'!H:H) -> 0 | M196: =SUMIF('00 Alimenta'!$B:$B,'00 PDC SP'!$F196,'00 Alimenta'!I:I) -> 0 | N196: 0
A197: ABA620FE | B197: AB | C197: ABA620 | D197: 28 | E197: FE | F197: 0102021704 | G197: Fatture da emetterev/Società controllate e collegate | H197: =SUMIF('00 Alimenta'!$B:$B,'00 PDC SP'!$F197,'00 Alimenta'!D:D) -> 0 | I197: =SUMIF('00 Alimenta'!$B:$B,'00 PDC SP'!$F197,'00 Alimenta'!E:E) -> 0 | J197: =SUMIF('00 Alimenta'!$B:$B,'00 PDC SP'!$F197,'00 Alimenta'!F:F) -> 0 | K197: =SUMIF('00 Alimenta'!$B:$B,'00 PDC SP'!$F197,'00 Alimenta'!G:G) -> 0 | L197: =SUMIF('00 Alimenta'!$B:$B,'00 PDC SP'!$F197,'00 Alimenta'!H:H) -> 0 | M197: =SUMIF('00 Alimenta'!$B:$B,'00 PDC SP'!$F197,'00 Alimenta'!I:I) -> 0 | N197: 0
A198: ABA620CR | B198: AB | C198: ABA620 | D198: 28 | E198: CR | F198: 0102021705 | G198: Crediti v/enti regionali | H198: =SUMIF('00 Alimenta'!$B:$B,'00 PDC SP'!$F198,'00 Alimenta'!D:D) -> 0 | I198: =SUMIF('00 Alimenta'!$B:$B,'00 PDC SP'!$F198,'00 Alimenta'!E:E) -> 0 | J198: =SUMIF('00 Alimenta'!$B:$B,'00 PDC SP'!$F198,'00 Alimenta'!F:F) -> 0 | K198: =SUMIF('00 Alimenta'!$B:$B,'00 PDC SP'!$F198,'00 Alimenta'!G:G) -> 0 | L198: =SUMIF('00 Alimenta'!$B:$B,'00 PDC SP'!$F198,'00 Alimenta'!H:H) -> 0 | M198: =SUMIF('00 Alimenta'!$B:$B,'00 PDC SP'!$F198,'00 Alimenta'!I:I) -> 0 | N198: 0
A199: =IF(E199="",C199,C199&E199) -> ABA620FE | B199: =LEFT(C199,2) -> AB | C199: ABA620 | D199: 28 | E199: FE | F199: 0102021706 | G199: Fatture da emettere v/enti regionali | H199: =SUMIF('00 Alimenta'!$B:$B,'00 PDC SP'!$F199,'00 Alimenta'!D:D) -> 0 | I199: =SUMIF('00 Alimenta'!$B:$B,'00 PDC SP'!$F199,'00 Alimenta'!E:E) -> 0 | J199: =SUMIF('00 Alimenta'!$B:$B,'00 PDC SP'!$F199,'00 Alimenta'!F:F) -> 0 | K199: =SUMIF('00 Alimenta'!$B:$B,'00 PDC SP'!$F199,'00 Alimenta'!G:G) -> 0 | L199: =SUMIF('00 Alimenta'!$B:$B,'00 PDC SP'!$F199,'00 Alimenta'!H:H) -> 0 | M199: =SUMIF('00 Alimenta'!$B:$B,'00 PDC SP'!$F199,'00 Alimenta'!I:I) -> 0 | N199: =K199+L199-M199 -> 0
A200: ABA630CR | B200: AB | C200: ABA630 | D200: 28 | E200: CR | F200: 0102021801 | G200: Crediti v/sperimentazioni gestionali | H200: =SUMIF('00 Alimenta'!$B:$B,'00 PDC SP'!$F200,'00 Alimenta'!D:D) -> 0 | I200: =SUMIF('00 Alimenta'!$B:$B,'00 PDC SP'!$F200,'00 Alimenta'!E:E) -> 0 | J200: =SUMIF('00 Alimenta'!$B:$B,'00 PDC SP'!$F200,'00 Alimenta'!F:F) -> 0 | K200: =SUMIF('00 Alimenta'!$B:$B,'00 PDC SP'!$F200,'00 Alimenta'!G:G) -> 0 | L200: =SUMIF('00 Alimenta'!$B:$B,'00 PDC SP'!$F200,'00 Alimenta'!H:H) -> 0 | M200: =SUMIF('00 Alimenta'!$B:$B,'00 PDC SP'!$F200,'00 Alimenta'!I:I) -> 0 | N200: 0
A201: ABA630FE | B201: AB | C201: ABA630 | D201: 28 | E201: FE | F201: 0102021802 | G201: Fatture da emettere v/sperimentazioni gestionali | H201: =SUMIF('00 Alimenta'!$B:$B,'00 PDC SP'!$F201,'00 Alimenta'!D:D) -> 0 | I201: =SUMIF('00 Alimenta'!$B:$B,'00 PDC SP'!$F201,'00 Alimenta'!E:E) -> 0 | J201: =SUMIF('00 Alimenta'!$B:$B,'00 PDC SP'!$F201,'00 Alimenta'!F:F) -> 0 | K201: =SUMIF('00 Alimenta'!$B:$B,'00 PDC SP'!$F201,'00 Alimenta'!G:G) -> 0 | L201: =SUMIF('00 Alimenta'!$B:$B,'00 PDC SP'!$F201,'00 Alimenta'!H:H) -> 0 | M201: =SUMIF('00 Alimenta'!$B:$B,'00 PDC SP'!$F201,'00 Alimenta'!I:I) -> 0 | N201: 0
A202: ABA640CR | B202: AB | C202: ABA640 | D202: 28 | E202: CR | F202: 0102021901 | G202: Crediti v/altre partecipate | H202: =SUMIF('00 Alimenta'!$B:$B,'00 PDC SP'!$F202,'00 Alimenta'!D:D) -> 0 | I202: =SUMIF('00 Alimenta'!$B:$B,'00 PDC SP'!$F202,'00 Alimenta'!E:E) -> 0 | J202: =SUMIF('00 Alimenta'!$B:$B,'00 PDC SP'!$F202,'00 Alimenta'!F:F) -> 0 | K202: =SUMIF('00 Alimenta'!$B:$B,'00 PDC SP'!$F202,'00 Alimenta'!G:G) -> 0 | L202: =SUMIF('00 Alimenta'!$B:$B,'00 PDC SP'!$F202,'00 Alimenta'!H:H) -> 0 | M202: =SUMIF('00 Alimenta'!$B:$B,'00 PDC SP'!$F202,'00 Alimenta'!I:I) -> 0 | N202: 0
... 500 more rows

Sheet 00 SP
A2: CODICE | B2: DESCRIZIONE | D2: CODICE | E2: RF | F2: ='00 PDC SP'!H4 -> Esercizio 2015 | G2: ='00 PDC SP'!I4 -> Incrementi 2016 | H2: ='00 PDC SP'!J4 -> Decrementi 2016 | I2: ='00 PDC SP'!K4 -> Esercizio 2016 | J2: ='00 PDC SP'!L4 -> Incrementi 2017 | K2: ='00 PDC SP'!M4 -> Decrementi 2017 | L2: ='00 PDC SP'!N4 -> Esercizio 2017
A3: AAZ999 | B3: A) IMMOBILIZZAZIONI | C3: S | D3: AAZ999 | F3: =F4+F31+F68 -> 109716131.6 | G3: 270885.69 | H3: 355037.94 | I3: 109631979.3 | J3: -911643.55 | K3: 410876.02 | L3: 108309459.8
A4: AAA000 | B4: A.I) IMMOBILIZZAZIONI IMMATERIALI | C4: S | D4: AAA000 | F4: =F5+F8+F11+F16+F17+F26 -> 351077.71 | G4: 75729.51 | H4: 0 | I4: 426807.22 | J4: 73289.2 | K4: 7129.38 | L4: 492967.04
A5: AAA010 | B5: A.I.1) Costi di impianto e di ampliamento | C5: S | D5: AAA010 | F5: =SUM(F6:F7) -> 0 | G5: 0 | H5: 0 | I5: 0 | J5: 0 | K5: 0 | L5: 0
A6: AAA020 | B6: A.I.1.a) Costi di impianto e di ampliamento | D6: AAA020 | E6: 34 | F6: =SUMIF('00 PDC SP'!$C:$C,'00 SP'!$D6,'00 PDC SP'!H:H) -> 0 | G6: =SUMIF('00 PDC SP'!$C:$C,'00 SP'!$D6,'00 PDC SP'!I:I) -> 0 | H6: =SUMIF('00 PDC SP'!$C:$C,'00 SP'!$D6,'00 PDC SP'!J:J) -> 0 | I6: =SUMIF('00 PDC SP'!$C:$C,'00 SP'!$D6,'00 PDC SP'!K:K) -> 0 | J6: =SUMIF('00 PDC SP'!$C:$C,'00 SP'!$D6,'00 PDC SP'!L:L) -> 0 | K6: =SUMIF('00 PDC SP'!$C:$C,'00 SP'!$D6,'00 PDC SP'!M:M) -> 0 | L6: =SUMIF('00 PDC SP'!$C:$C,'00 SP'!$D6,'00 PDC SP'!N:N) -> 0
A7: AAA030 | B7: A.I.1.b) F.do Amm.to costi di impianto e di ampliamento | D7: AAA030 | E7: 4 | F7: =SUMIF('00 PDC SP'!$C:$C,'00 SP'!$D7,'00 PDC SP'!H:H) -> 0 | G7: =SUMIF('00 PDC SP'!$C:$C,'00 SP'!$D7,'00 PDC SP'!I:I) -> 0 | H7: =SUMIF('00 PDC SP'!$C:$C,'00 SP'!$D7,'00 PDC SP'!J:J) -> 0 | I7: =SUMIF('00 PDC SP'!$C:$C,'00 SP'!$D7,'00 PDC SP'!K:K) -> 0 | J7: =SUMIF('00 PDC SP'!$C:$C,'00 SP'!$D7,'00 PDC SP'!L:L) -> 0 | K7: =SUMIF('00 PDC SP'!$C:$C,'00 SP'!$D7,'00 PDC SP'!M:M) -> 0 | L7: =SUMIF('00 PDC SP'!$C:$C,'00 SP'!$D7,'00 PDC SP'!N:N) -> 0
A8: AAA040 | B8: A.I.2) Costi di ricerca e sviluppo | C8: S | D8: AAA040 | F8: =SUM(F9:F10) -> 0 | G8: 0 | H8: 0 | I8: 0 | J8: 0 | K8: 0 | L8: 0
A9: AAA050 | B9: A.I.2.a) Costi di ricerca e sviluppo | D9: AAA050 | E9: 35 | F9: =SUMIF('00 PDC SP'!$C:$C,'00 SP'!$D9,'00 PDC SP'!H:H) -> 0 | G9: =SUMIF('00 PDC SP'!$C:$C,'00 SP'!$D9,'00 PDC SP'!I:I) -> 0 | H9: =SUMIF('00 PDC SP'!$C:$C,'00 SP'!$D9,'00 PDC SP'!J:J) -> 0 | I9: =SUMIF('00 PDC SP'!$C:$C,'00 SP'!$D9,'00 PDC SP'!K:K) -> 0 | J9: =SUMIF('00 PDC SP'!$C:$C,'00 SP'!$D9,'00 PDC SP'!L:L) -> 0 | K9: =SUMIF('00 PDC SP'!$C:$C,'00 SP'!$D9,'00 PDC SP'!M:M) -> 0 | L9: =SUMIF('00 PDC SP'!$C:$C,'00 SP'!$D9,'00 PDC SP'!N:N) -> 0
A10: AAA060 | B10: A.I.2.b) F.do Amm.to costi di ricerca e sviluppo | D10: AAA060 | E10: 4 | F10: =SUMIF('00 PDC SP'!$C:$C,'00 SP'!$D10,'00 PDC SP'!H:H) -> 0 | G10: =SUMIF('00 PDC SP'!$C:$C,'00 SP'!$D10,'00 PDC SP'!I:I) -> 0 | H10: =SUMIF('00 PDC SP'!$C:$C,'00 SP'!$D10,'00 PDC SP'!J:J) -> 0 | I10: =SUMIF('00 PDC SP'!$C:$C,'00 SP'!$D10,'00 PDC SP'!K:K) -> 0 | J10: =SUMIF('00 PDC SP'!$C:$C,'00 SP'!$D10,'00 PDC SP'!L:L) -> 0 | K10: =SUMIF('00 PDC SP'!$C:$C,'00 SP'!$D10,'00 PDC SP'!M:M) -> 0 | L10: =SUMIF('00 PDC SP'!$C:$C,'00 SP'!$D10,'00 PDC SP'!N:N) -> 0
A11: AAA070 | B11: A.I.3) Diritti di brevetto e diritti di utilizzazione delle opere d'ingegno | C11: S | D11: AAA070 | F11: =SUM(F12:F15) -> 0 | G11: 0 | H11: 0 | I11: 0 | J11: 0 | K11: 0 | L11: 0
A12: AAA080 | B12: A.I.3.a) Diritti di brevetto e diritti di utilizzazione delle opere d'ingegno - derivanti dall'attività di ricerca | D12: AAA080 | E12: 36 | F12: =SUMIF('00 PDC SP'!$C:$C,'00 SP'!$D12,'00 PDC SP'!H:H) -> 0 | G12: =SUMIF('00 PDC SP'!$C:$C,'00 SP'!$D12,'00 PDC SP'!I:I) -> 0 | H12: =SUMIF('00 PDC SP'!$C:$C,'00 SP'!$D12,'00 PDC SP'!J:J) -> 0 | I12: =SUMIF('00 PDC SP'!$C:$C,'00 SP'!$D12,'00 PDC SP'!K:K) -> 0 | J12: =SUMIF('00 PDC SP'!$C:$C,'00 SP'!$D12,'00 PDC SP'!L:L) -> 0 | K12: =SUMIF('00 PDC SP'!$C:$C,'00 SP'!$D12,'00 PDC SP'!M:M) -> 0 | L12: =SUMIF('00 PDC SP'!$C:$C,'00 SP'!$D12,'00 PDC SP'!N:N) -> 0
A13: AAA090 | B13: A.I.3.b) F.do Amm.to diritti di brevetto e diritti di utilizzazione delle opere d'ingegno - derivanti dall'attività di ricerca | D13: AAA090 | E13: 4 | F13: =SUMIF('00 PDC SP'!$C:$C,'00 SP'!$D13,'00 PDC SP'!H:H) -> 0 | G13: =SUMIF('00 PDC SP'!$C:$C,'00 SP'!$D13,'00 PDC SP'!I:I) -> 0 | H13: =SUMIF('00 PDC SP'!$C:$C,'00 SP'!$D13,'00 PDC SP'!J:J) -> 0 | I13: =SUMIF('00 PDC SP'!$C:$C,'00 SP'!$D13,'00 PDC SP'!K:K) -> 0 | J13: =SUMIF('00 PDC SP'!$C:$C,'00 SP'!$D13,'00 PDC SP'!L:L) -> 0 | K13: =SUMIF('00 PDC SP'!$C:$C,'00 SP'!$D13,'00 PDC SP'!M:M) -> 0 | L13: =SUMIF('00 PDC SP'!$C:$C,'00 SP'!$D13,'00 PDC SP'!N:N) -> 0
A14: AAA100 | B14: A.I.3.c) Diritti di brevetto e diritti di utilizzazione delle opere d'ingegno - altri | D14: AAA100 | E14: 36 | F14: =SUMIF('00 PDC SP'!$C:$C,'00 SP'!$D14,'00 PDC SP'!H:H) -> 0 | G14: =SUMIF('00 PDC SP'!$C:$C,'00 SP'!$D14,'00 PDC SP'!I:I) -> 0 | H14: =SUMIF('00 PDC SP'!$C:$C,'00 SP'!$D14,'00 PDC SP'!J:J) -> 0 | I14: =SUMIF('00 PDC SP'!$C:$C,'00 SP'!$D14,'00 PDC SP'!K:K) -> 0 | J14: =SUMIF('00 PDC SP'!$C:$C,'00 SP'!$D14,'00 PDC SP'!L:L) -> 0 | K14: =SUMIF('00 PDC SP'!$C:$C,'00 SP'!$D14,'00 PDC SP'!M:M) -> 0 | L14: =SUMIF('00 PDC SP'!$C:$C,'00 SP'!$D14,'00 PDC SP'!N:N) -> 0
A15: AAA110 | B15: A.I.3.d) F.do Amm.to diritti di brevetto e diritti di utilizzazione delle opere d'ingegno - altri | D15: AAA110 | E15: 4 | F15: =SUMIF('00 PDC SP'!$C:$C,'00 SP'!$D15,'00 PDC SP'!H:H) -> 0 | G15: =SUMIF('00 PDC SP'!$C:$C,'00 SP'!$D15,'00 PDC SP'!I:I) -> 0 | H15: =SUMIF('00 PDC SP'!$C:$C,'00 SP'!$D15,'00 PDC SP'!J:J) -> 0 | I15: =SUMIF('00 PDC SP'!$C:$C,'00 SP'!$D15,'00 PDC SP'!K:K) -> 0 | J15: =SUMIF('00 PDC SP'!$C:$C,'00 SP'!$D15,'00 PDC SP'!L:L) -> 0 | K15: =SUMIF('00 PDC SP'!$C:$C,'00 SP'!$D15,'00 PDC SP'!M:M) -> 0 | L15: =SUMIF('00 PDC SP'!$C:$C,'00 SP'!$D15,'00 PDC SP'!N:N) -> 0
A16: AAA120 | B16: A.I.4) Immobilizzazioni immateriali in corso e acconti | D16: AAA120 | E16: 37 | F16: =SUMIF('00 PDC SP'!$C:$C,'00 SP'!$D16,'00 PDC SP'!H:H) -> 0 | G16: =SUMIF('00 PDC SP'!$C:$C,'00 SP'!$D16,'00 PDC SP'!I:I) -> 0 | H16: =SUMIF('00 PDC SP'!$C:$C,'00 SP'!$D16,'00 PDC SP'!J:J) -> 0 | I16: =SUMIF('00 PDC SP'!$C:$C,'00 SP'!$D16,'00 PDC SP'!K:K) -> 0 | J16: =SUMIF('00 PDC SP'!$C:$C,'00 SP'!$D16,'00 PDC SP'!L:L) -> 0 | K16: =SUMIF('00 PDC SP'!$C:$C,'00 SP'!$D16,'00 PDC SP'!M:M) -> 0 | L16: =SUMIF('00 PDC SP'!$C:$C,'00 SP'!$D16,'00 PDC SP'!N:N) -> 0
A17: AAA130 | B17: A.I.5) Altre immobilizzazioni immateriali | C17: S | D17: AAA130 | F17: =SUM(F18:F25) -> 351077.71 | G17: 75729.51 | H17: 0 | I17: 426807.22 | J17: 73289.2 | K17: 7129.38 | L17: 492967.04
A18: AAA140 | B18: A.I.5.a) Concessioni, licenze, marchi e diritti simili | D18: AAA140 | E18: 38 | F18: =SUMIF('00 PDC SP'!$C:$C,'00 SP'!$D18,'00 PDC SP'!H:H) -> 1810825.53 | G18: =SUMIF('00 PDC SP'!$C:$C,'00 SP'!$D18,'00 PDC SP'!I:I) -> 181030.9 | H18: =SUMIF('00 PDC SP'!$C:$C,'00 SP'!$D18,'00 PDC SP'!J:J) -> 6424.06 | I18: =SUMIF('00 PDC SP'!$C:$C,'00 SP'!$D18,'00 PDC SP'!K:K) -> 1985432.37 | J18: =SUMIF('00 PDC SP'!$C:$C,'00 SP'!$D18,'00 PDC SP'!L:L) -> 209841.59 | K18: =SUMIF('00 PDC SP'!$C:$C,'00 SP'!$D18,'00 PDC SP'!M:M) -> 7129.38 | L18: =SUMIF('00 PDC SP'!$C:$C,'00 SP'!$D18,'00 PDC SP'!N:N) -> 2188144.58
A19: AAA150 | B19: A.I.5.b) F.do Amm.to concessioni, licenze, marchi e diritti simili | D19: AAA150 | E19: 4 | F19: =SUMIF('00 PDC SP'!$C:$C,'00 SP'!$D19,'00 PDC SP'!H:H) -> -1459747.82 | G19: =SUMIF('00 PDC SP'!$C:$C,'00 SP'!$D19,'00 PDC SP'!I:I) -> -105301.39 | H19: =SUMIF('00 PDC SP'!$C:$C,'00 SP'!$D19,'00 PDC SP'!J:J) -> -6424.06 | I19: =SUMIF('00 PDC SP'!$C:$C,'00 SP'!$D19,'00 PDC SP'!K:K) -> -1558625.15 | J19: =SUMIF('00 PDC SP'!$C:$C,'00 SP'!$D19,'00 PDC SP'!L:L) -> -136552.39 | K19: =SUMIF('00 PDC SP'!$C:$C,'00 SP'!$D19,'00 PDC SP'!M:M) -> 0 | L19: =SUMIF('00 PDC SP'!$C:$C,'00 SP'!$D19,'00 PDC SP'!N:N) -> -1695177.54
A20: AAA160 | B20: A.I.5.c) Migliorie su beni di terzi | D20: AAA160 | E20: 38 | F20: =SUMIF('00 PDC SP'!$C:$C,'00 SP'!$D20,'00 PDC SP'!H:H) -> 0 | G20: =SUMIF('00 PDC SP'!$C:$C,'00 SP'!$D20,'00 PDC SP'!I:I) -> 0 | H20: =SUMIF('00 PDC SP'!$C:$C,'00 SP'!$D20,'00 PDC SP'!J:J) -> 0 | I20: =SUMIF('00 PDC SP'!$C:$C,'00 SP'!$D20,'00 PDC SP'!K:K) -> 0 | J20: =SUMIF('00 PDC SP'!$C:$C,'00 SP'!$D20,'00 PDC SP'!L:L) -> 0 | K20: =SUMIF('00 PDC SP'!$C:$C,'00 SP'!$D20,'00 PDC SP'!M:M) -> 0 | L20: =SUMIF('00 PDC SP'!$C:$C,'00 SP'!$D20,'00 PDC SP'!N:N) -> 0
A21: AAA170 | B21: A.I.5.d) F.do Amm.to migliorie su beni di terzi | D21: AAA170 | E21: 4 | F21: =SUMIF('00 PDC SP'!$C:$C,'00 SP'!$D21,'00 PDC SP'!H:H) -> 0 | G21: =SUMIF('00 PDC SP'!$C:$C,'00 SP'!$D21,'00 PDC SP'!I:I) -> 0 | H21: =SUMIF('00 PDC SP'!$C:$C,'00 SP'!$D21,'00 PDC SP'!J:J) -> 0 | I21: =SUMIF('00 PDC SP'!$C:$C,'00 SP'!$D21,'00 PDC SP'!K:K) -> 0 | J21: =SUMIF('00 PDC SP'!$C:$C,'00 SP'!$D21,'00 PDC SP'!L:L) -> 0 | K21: =SUMIF('00 PDC SP'!$C:$C,'00 SP'!$D21,'00 PDC SP'!M:M) -> 0 | L21: =SUMIF('00 PDC SP'!$C:$C,'00 SP'!$D21,'00 PDC SP'!N:N) -> 0
A22: AAA180 | B22: A.I.5.e) Pubblicità | D22: AAA180 | E22: 38 | F22: =SUMIF('00 PDC SP'!$C:$C,'00 SP'!$D22,'00 PDC SP'!H:H) -> 0 | G22: =SUMIF('00 PDC SP'!$C:$C,'00 SP'!$D22,'00 PDC SP'!I:I) -> 0 | H22: =SUMIF('00 PDC SP'!$C:$C,'00 SP'!$D22,'00 PDC SP'!J:J) -> 0 | I22: =SUMIF('00 PDC SP'!$C:$C,'00 SP'!$D22,'00 PDC SP'!K:K) -> 0 | J22: =SUMIF('00 PDC SP'!$C:$C,'00 SP'!$D22,'00 PDC SP'!L:L) -> 0 | K22: =SUMIF('00 PDC SP'!$C:$C,'00 SP'!$D22,'00 PDC SP'!M:M) -> 0 | L22: =SUMIF('00 PDC SP'!$C:$C,'00 SP'!$D22,'00 PDC SP'!N:N) -> 0
A23: AAA190 | B23: A.I.5.f) F.do Amm.to pubblicità | D23: AAA190 | E23: 4 | F23: =SUMIF('00 PDC SP'!$C:$C,'00 SP'!$D23,'00 PDC SP'!H:H) -> 0 | G23: =SUMIF('00 PDC SP'!$C:$C,'00 SP'!$D23,'00 PDC SP'!I:I) -> 0 | H23: =SUMIF('00 PDC SP'!$C:$C,'00 SP'!$D23,'00 PDC SP'!J:J) -> 0 | I23: =SUMIF('00 PDC SP'!$C:$C,'00 SP'!$D23,'00 PDC SP'!K:K) -> 0 | J23: =SUMIF('00 PDC SP'!$C:$C,'00 SP'!$D23,'00 PDC SP'!L:L) -> 0 | K23: =SUMIF('00 PDC SP'!$C:$C,'00 SP'!$D23,'00 PDC SP'!M:M) -> 0 | L23: =SUMIF('00 PDC SP'!$C:$C,'00 SP'!$D23,'00 PDC SP'!N:N) -> 0
A24: AAA200 | B24: A.I.5.g) Altre immobilizzazioni immateriali | D24: AAA200 | E24: 38 | F24: =SUMIF('00 PDC SP'!$C:$C,'00 SP'!$D24,'00 PDC SP'!H:H) -> 0 | G24: =SUMIF('00 PDC SP'!$C:$C,'00 SP'!$D24,'00 PDC SP'!I:I) -> 0 | H24: =SUMIF('00 PDC SP'!$C:$C,'00 SP'!$D24,'00 PDC SP'!J:J) -> 0 | I24: =SUMIF('00 PDC SP'!$C:$C,'00 SP'!$D24,'00 PDC SP'!K:K) -> 0 | J24: =SUMIF('00 PDC SP'!$C:$C,'00 SP'!$D24,'00 PDC SP'!L:L) -> 0 | K24: =SUMIF('00 PDC SP'!$C:$C,'00 SP'!$D24,'00 PDC SP'!M:M) -> 0 | L24: =SUMIF('00 PDC SP'!$C:$C,'00 SP'!$D24,'00 PDC SP'!N:N) -> 0
A25: AAA210 | B25: A.I.5.h) F.do Amm.to altre immobilizzazioni immateriali | D25: AAA210 | E25: 4 | F25: =SUMIF('00 PDC SP'!$C:$C,'00 SP'!$D25,'00 PDC SP'!H:H) -> 0 | G25: =SUMIF('00 PDC SP'!$C:$C,'00 SP'!$D25,'00 PDC SP'!I:I) -> 0 | H25: =SUMIF('00 PDC SP'!$C:$C,'00 SP'!$D25,'00 PDC SP'!J:J) -> 0 | I25: =SUMIF('00 PDC SP'!$C:$C,'00 SP'!$D25,'00 PDC SP'!K:K) -> 0 | J25: =SUMIF('00 PDC SP'!$C:$C,'00 SP'!$D25,'00 PDC SP'!L:L) -> 0 | K25: =SUMIF('00 PDC SP'!$C:$C,'00 SP'!$D25,'00 PDC SP'!M:M) -> 0 | L25: =SUMIF('00 PDC SP'!$C:$C,'00 SP'!$D25,'00 PDC SP'!N:N) -> 0
A26: AAA220 | B26: A.I.6) Fondo Svalutazione immobilizzazioni immateriali | C26: S | D26: AAA220 | F26: =SUM(F27:F30) -> 0 | G26: 0 | H26: 0 | I26: 0 | J26: 0 | K26: 0 | L26: 0
A27: AAA230 | B27: A.I.6.a) F.do Svalut. Costi di impianto e di ampliamento | D27: AAA230 | E27: 34 | F27: =SUMIF('00 PDC SP'!$C:$C,'00 SP'!$D27,'00 PDC SP'!H:H) -> 0 | G27: =SUMIF('00 PDC SP'!$C:$C,'00 SP'!$D27,'00 PDC SP'!I:I) -> 0 | H27: =SUMIF('00 PDC SP'!$C:$C,'00 SP'!$D27,'00 PDC SP'!J:J) -> 0 | I27: =SUMIF('00 PDC SP'!$C:$C,'00 SP'!$D27,'00 PDC SP'!K:K) -> 0 | J27: =SUMIF('00 PDC SP'!$C:$C,'00 SP'!$D27,'00 PDC SP'!L:L) -> 0 | K27: =SUMIF('00 PDC SP'!$C:$C,'00 SP'!$D27,'00 PDC SP'!M:M) -> 0 | L27: =SUMIF('00 PDC SP'!$C:$C,'00 SP'!$D27,'00 PDC SP'!N:N) -> 0
A28: AAA240 | B28: A.I.6.b) F.do Svalut. Costi di ricerca e sviluppo | D28: AAA240 | E28: 35 | F28: =SUMIF('00 PDC SP'!$C:$C,'00 SP'!$D28,'00 PDC SP'!H:H) -> 0 | G28: =SUMIF('00 PDC SP'!$C:$C,'00 SP'!$D28,'00 PDC SP'!I:I) -> 0 | H28: =SUMIF('00 PDC SP'!$C:$C,'00 SP'!$D28,'00 PDC SP'!J:J) -> 0 | I28: =SUMIF('00 PDC SP'!$C:$C,'00 SP'!$D28,'00 PDC SP'!K:K) -> 0 | J28: =SUMIF('00 PDC SP'!$C:$C,'00 SP'!$D28,'00 PDC SP'!L:L) -> 0 | K28: =SUMIF('00 PDC SP'!$C:$C,'00 SP'!$D28,'00 PDC SP'!M:M) -> 0 | L28: =SUMIF('00 PDC SP'!$C:$C,'00 SP'!$D28,'00 PDC SP'!N:N) -> 0
A29: AAA250 | B29: A.I.6.c) F.do Svalut. Diritti di brevetto e diritti di utilizzazione delle opere d'ingegno | D29: AAA250 | E29: 36 | F29: =SUMIF('00 PDC SP'!$C:$C,'00 SP'!$D29,'00 PDC SP'!H:H) -> 0 | G29: =SUMIF('00 PDC SP'!$C:$C,'00 SP'!$D29,'00 PDC SP'!I:I) -> 0 | H29: =SUMIF('00 PDC SP'!$C:$C,'00 SP'!$D29,'00 PDC SP'!J:J) -> 0 | I29: =SUMIF('00 PDC SP'!$C:$C,'00 SP'!$D29,'00 PDC SP'!K:K) -> 0 | J29: =SUMIF('00 PDC SP'!$C:$C,'00 SP'!$D29,'00 PDC SP'!L:L) -> 0 | K29: =SUMIF('00 PDC SP'!$C:$C,'00 SP'!$D29,'00 PDC SP'!M:M) -> 0 | L29: =SUMIF('00 PDC SP'!$C:$C,'00 SP'!$D29,'00 PDC SP'!N:N) -> 0
A30: AAA260 | B30: A.I.6.d) F.do Svalut. Altre immobilizzazioni immateriali | D30: AAA260 | E30: 38 | F30: =SUMIF('00 PDC SP'!$C:$C,'00 SP'!$D30,'00 PDC SP'!H:H) -> 0 | G30: =SUMIF('00 PDC SP'!$C:$C,'00 SP'!$D30,'00 PDC SP'!I:I) -> 0 | H30: =SUMIF('00 PDC SP'!$C:$C,'00 SP'!$D30,'00 PDC SP'!J:J) -> 0 | I30: =SUMIF('00 PDC SP'!$C:$C,'00 SP'!$D30,'00 PDC SP'!K:K) -> 0 | J30: =SUMIF('00 PDC SP'!$C:$C,'00 SP'!$D30,'00 PDC SP'!L:L) -> 0 | K30: =SUMIF('00 PDC SP'!$C:$C,'00 SP'!$D30,'00 PDC SP'!M:M) -> 0 | L30: =SUMIF('00 PDC SP'!$C:$C,'00 SP'!$D30,'00 PDC SP'!N:N) -> 0
A31: AAA270 | B31: A.II) IMMOBILIZZAZIONI MATERIALI | C31: S | D31: AAA270 | F31: =F32+F35+F42+F45+F48+F51+F54+F55+F58+F59 -> 109352674.2 | G31: 193499.43 | H31: 355037.94 | I31: 109191135.6 | J31: -984932.75 | K31: 403746.64 | L31: 107802456.3
A32: AAA280 | B32: A.II.1) Terreni | C32: S | D32: AAA280 | F32: =SUM(F33:F34) -> 942655.12 | G32: 0 | H32: 0 | I32: 942655.12 | J32: 0 | K32: 0 | L32: 942655.12
A33: AAA290 | B33: A.II.1.a) Terreni disponibili | D33: AAA290 | E33: 39 | F33: =SUMIF('00 PDC SP'!$C:$C,'00 SP'!$D33,'00 PDC SP'!H:H) -> 0 | G33: =SUMIF('00 PDC SP'!$C:$C,'00 SP'!$D33,'00 PDC SP'!I:I) -> 0 | H33: =SUMIF('00 PDC SP'!$C:$C,'00 SP'!$D33,'00 PDC SP'!J:J) -> 0 | I33: =SUMIF('00 PDC SP'!$C:$C,'00 SP'!$D33,'00 PDC SP'!K:K) -> 0 | J33: =SUMIF('00 PDC SP'!$C:$C,'00 SP'!$D33,'00 PDC SP'!L:L) -> 0 | K33: =SUMIF('00 PDC SP'!$C:$C,'00 SP'!$D33,'00 PDC SP'!M:M) -> 0 | L33: =SUMIF('00 PDC SP'!$C:$C,'00 SP'!$D33,'00 PDC SP'!N:N) -> 0
A34: AAA300 | B34: A.II.1.b) Terreni indisponibili | D34: AAA300 | E34: 39 | F34: =SUMIF('00 PDC SP'!$C:$C,'00 SP'!$D34,'00 PDC SP'!H:H) -> 942655.12 | G34: =SUMIF('00 PDC SP'!$C:$C,'00 SP'!$D34,'00 PDC SP'!I:I) -> 0 | H34: =SUMIF('00 PDC SP'!$C:$C,'00 SP'!$D34,'00 PDC SP'!J:J) -> 0 | I34: =SUMIF('00 PDC SP'!$C:$C,'00 SP'!$D34,'00 PDC SP'!K:K) -> 942655.12 | J34: =SUMIF('00 PDC SP'!$C:$C,'00 SP'!$D34,'00 PDC SP'!L:L) -> 0 | K34: =SUMIF('00 PDC SP'!$C:$C,'00 SP'!$D34,'00 PDC SP'!M:M) -> 0 | L34: =SUMIF('00 PDC SP'!$C:$C,'00 SP'!$D34,'00 PDC SP'!N:N) -> 942655.12
A35: AAA310 | B35: A.II.2) Fabbricati | C35: S | D35: AAA310 | F35: =F36+F39 -> 88155358.99 | G35: -4970287.05 | H35: 0 | I35: 83185071.94 | J35: -4970287.05 | K35: 0 | L35: 78214784.89
A36: AAA320 | B36: A.II.2.a) Fabbricati non strumentali (disponibili) | C36: S | D36: AAA320 | F36: =SUM(F37:F38) -> 0 | G36: 0 | H36: 0 | I36: 0 | J36: 0 | K36: 0 | L36: 0
A37: AAA330 | B37: A.II.2.a.1) Fabbricati non strumentali (disponibili) | D37: AAA330 | E37: 40 | F37: =SUMIF('00 PDC SP'!$C:$C,'00 SP'!$D37,'00 PDC SP'!H:H) -> 0 | G37: =SUMIF('00 PDC SP'!$C:$C,'00 SP'!$D37,'00 PDC SP'!I:I) -> 0 | H37: =SUMIF('00 PDC SP'!$C:$C,'00 SP'!$D37,'00 PDC SP'!J:J) -> 0 | I37: =SUMIF('00 PDC SP'!$C:$C,'00 SP'!$D37,'00 PDC SP'!K:K) -> 0 | J37: =SUMIF('00 PDC SP'!$C:$C,'00 SP'!$D37,'00 PDC SP'!L:L) -> 0 | K37: =SUMIF('00 PDC SP'!$C:$C,'00 SP'!$D37,'00 PDC SP'!M:M) -> 0 | L37: =SUMIF('00 PDC SP'!$C:$C,'00 SP'!$D37,'00 PDC SP'!N:N) -> 0
A38: AAA340 | B38: A.II.2.a.2) F.do Amm.to Fabbricati non strumentali (disponibili) | D38: AAA340 | E38: 2 | F38: =SUMIF('00 PDC SP'!$C:$C,'00 SP'!$D38,'00 PDC SP'!H:H) -> 0 | G38: =SUMIF('00 PDC SP'!$C:$C,'00 SP'!$D38,'00 PDC SP'!I:I) -> 0 | H38: =SUMIF('00 PDC SP'!$C:$C,'00 SP'!$D38,'00 PDC SP'!J:J) -> 0 | I38: =SUMIF('00 PDC SP'!$C:$C,'00 SP'!$D38,'00 PDC SP'!K:K) -> 0 | J38: =SUMIF('00 PDC SP'!$C:$C,'00 SP'!$D38,'00 PDC SP'!L:L) -> 0 | K38: =SUMIF('00 PDC SP'!$C:$C,'00 SP'!$D38,'00 PDC SP'!M:M) -> 0 | L38: =SUMIF('00 PDC SP'!$C:$C,'00 SP'!$D38,'00 PDC SP'!N:N) -> 0
A39: AAA350 | B39: A.II.2.b) Fabbricati strumentali (indisponibili) | C39: S | D39: AAA350 | F39: =SUM(F40:F41) -> 88155358.99 | G39: -4970287.05 | H39: 0 | I39: 83185071.94 | J39: -4970287.05 | K39: 0 | L39: 78214784.89
A40: AAA360 | B40: A.II.2.b.1) Fabbricati strumentali (indisponibili) | D40: AAA360 | E40: 40 | F40: =SUMIF('00 PDC SP'!$C:$C,'00 SP'!$D40,'00 PDC SP'!H:H) -> 169096559.2 | G40: =SUMIF('00 PDC SP'!$C:$C,'00 SP'!$D40,'00 PDC SP'!I:I) -> 0 | H40: =SUMIF('00 PDC SP'!$C:$C,'00 SP'!$D40,'00 PDC SP'!J:J) -> 0 | I40: =SUMIF('00 PDC SP'!$C:$C,'00 SP'!$D40,'00 PDC SP'!K:K) -> 169096559.2 | J40: =SUMIF('00 PDC SP'!$C:$C,'00 SP'!$D40,'00 PDC SP'!L:L) -> 0 | K40: =SUMIF('00 PDC SP'!$C:$C,'00 SP'!$D40,'00 PDC SP'!M:M) -> 0 | L40: =SUMIF('00 PDC SP'!$C:$C,'00 SP'!$D40,'00 PDC SP'!N:N) -> 169096559.2
A41: AAA370 | B41: A.II.2.b.2) F.do Amm.to Fabbricati strumentali (indisponibili) | D41: AAA370 | E41: 2 | F41: =SUMIF('00 PDC SP'!$C:$C,'00 SP'!$D41,'00 PDC SP'!H:H) -> -80941200.24 | G41: =SUMIF('00 PDC SP'!$C:$C,'00 SP'!$D41,'00 PDC SP'!I:I) -> -4970287.05 | H41: =SUMIF('00 PDC SP'!$C:$C,'00 SP'!$D41,'00 PDC SP'!J:J) -> 0 | I41: =SUMIF('00 PDC SP'!$C:$C,'00 SP'!$D41,'00 PDC SP'!K:K) -> -85911487.29 | J41: =SUMIF('00 PDC SP'!$C:$C,'00 SP'!$D41,'00 PDC SP'!L:L) -> -4970287.05 | K41: =SUMIF('00 PDC SP'!$C:$C,'00 SP'!$D41,'00 PDC SP'!M:M) -> 0 | L41: =SUMIF('00 PDC SP'!$C:$C,'00 SP'!$D41,'00 PDC SP'!N:N) -> -90881774.34
A42: AAA380 | B42: A.II.3) Impianti e macchinari | C42: S | D42: AAA380 | F42: =SUM(F43:F44) -> 1140880.8 | G42: -73584.51 | H42: 8360 | I42: 1058936.29 | J42: -43083.69 | K42: 171.65 | L42: 1015680.95
A43: AAA390 | B43: A.II.3.a) Impianti e macchinari | D43: AAA390 | E43: 41 | F43: =SUMIF('00 PDC SP'!$C:$C,'00 SP'!$D43,'00 PDC SP'!H:H) -> 5772528.84 | G43: =SUMIF('00 PDC SP'!$C:$C,'00 SP'!$D43,'00 PDC SP'!I:I) -> 183106.44 | H43: =SUMIF('00 PDC SP'!$C:$C,'00 SP'!$D43,'00 PDC SP'!J:J) -> 8604.8 | I43: =SUMIF('00 PDC SP'!$C:$C,'00 SP'!$D43,'00 PDC SP'!K:K) -> 5947030.48 | J43: =SUMIF('00 PDC SP'!$C:$C,'00 SP'!$D43,'00 PDC SP'!L:L) -> 219918.7 | K43: =SUMIF('00 PDC SP'!$C:$C,'00 SP'!$D43,'00 PDC SP'!M:M) -> 171.65 | L43: =SUMIF('00 PDC SP'!$C:$C,'00 SP'!$D43,'00 PDC SP'!N:N) -> 6166777.53
A44: AAA400 | B44: A.II.3.b) F.do Amm.to Impianti e macchinari | D44: AAA400 | E44: 3 | F44: =SUMIF('00 PDC SP'!$C:$C,'00 SP'!$D44,'00 PDC SP'!H:H) -> -4631648.04 | G44: =SUMIF('00 PDC SP'!$C:$C,'00 SP'!$D44,'00 PDC SP'!I:I) -> -256690.95 | H44: =SUMIF('00 PDC SP'!$C:$C,'00 SP'!$D44,'00 PDC SP'!J:J) -> -244.8 | I44: =SUMIF('00 PDC SP'!$C:$C,'00 SP'!$D44,'00 PDC SP'!K:K) -> -4888094.19 | J44: =SUMIF('00 PDC SP'!$C:$C,'00 SP'!$D44,'00 PDC SP'!L:L) -> -263002.39 | K44: =SUMIF('00 PDC SP'!$C:$C,'00 SP'!$D44,'00 PDC SP'!M:M) -> 0 | L44: =SUMIF('00 PDC SP'!$C:$C,'00 SP'!$D44,'00 PDC SP'!N:N) -> -5151096.58
A45: AAA410 | B45: A.II.4) Attrezzature sanitarie e scientifiche | C45: S | D45: AAA410 | F45: =SUM(F46:F47) -> 8905691.97 | G45: 3817933.68 | H45: 5672.39 | I45: 12717953.26 | J45: 1649118.94 | K45: 146622.02 | L45: 14220450.18
A46: AAA420 | B46: A.II.4.a) Attrezzature sanitarie e scientifiche | D46: AAA420 | E46: 42 | F46: =SUMIF('00 PDC SP'!$C:$C,'00 SP'!$D46,'00 PDC SP'!H:H) -> 75106075.78 | G46: =SUMIF('00 PDC SP'!$C:$C,'00 SP'!$D46,'00 PDC SP'!I:I) -> 6743296.67 | H46: =SUMIF('00 PDC SP'!$C:$C,'00 SP'!$D46,'00 PDC SP'!J:J) -> 2797670.18 | I46: =SUMIF('00 PDC SP'!$C:$C,'00 SP'!$D46,'00 PDC SP'!K:K) -> 79051702.27 | J46: =SUMIF('00 PDC SP'!$C:$C,'00 SP'!$D46,'00 PDC SP'!L:L) -> 5812839.07 | K46: =SUMIF('00 PDC SP'!$C:$C,'00 SP'!$D46,'00 PDC SP'!M:M) -> 146692.8 | L46: =SUMIF('00 PDC SP'!$C:$C,'00 SP'!$D46,'00 PDC SP'!N:N) -> 84717848.54
A47: AAA430 | B47: A.II.4.b) F.do Amm.to Attrezzature sanitarie e scientifiche | D47: AAA430 | E47: 3 | F47: =SUMIF('00 PDC SP'!$C:$C,'00 SP'!$D47,'00 PDC SP'!H:H) -> -66200383.81 | G47: =SUMIF('00 PDC SP'!$C:$C,'00 SP'!$D47,'00 PDC SP'!I:I) -> -2925362.99 | H47: =SUMIF('00 PDC SP'!$C:$C,'00 SP'!$D47,'00 PDC SP'!J:J) -> -2791997.79 | I47: =SUMIF('00 PDC SP'!$C:$C,'00 SP'!$D47,'00 PDC SP'!K:K) -> -66333749.01 | J47: =SUMIF('00 PDC SP'!$C:$C,'00 SP'!$D47,'00 PDC SP'!L:L) -> -4163720.13 | K47: =SUMIF('00 PDC SP'!$C:$C,'00 SP'!$D47,'00 PDC SP'!M:M) -> -70.78 | L47: =SUMIF('00 PDC SP'!$C:$C,'00 SP'!$D47,'00 PDC SP'!N:N) -> -70497398.36
A48: AAA440 | B48: A.II.5) Mobili e arredi | C48: S | D48: AAA440 | F48: =SUM(F49:F50) -> 1665305.57 | G48: 11189.65 | H48: 30293.47 | I48: 1646201.75 | J48: -119794.22 | K48: 12215.84 | L48: 1514191.69
A49: AAA450 | B49: A.II.5.a) Mobili e arredi | D49: AAA450 | E49: 43 | F49: =SUMIF('00 PDC SP'!$C:$C,'00 SP'!$D49,'00 PDC SP'!H:H) -> 10177663.42 | G49: =SUMIF('00 PDC SP'!$C:$C,'00 SP'!$D49,'00 PDC SP'!I:I) -> 374325.51 | H49: =SUMIF('00 PDC SP'!$C:$C,'00 SP'!$D49,'00 PDC SP'!J:J) -> 183191.51 | I49: =SUMIF('00 PDC SP'!$C:$C,'00 SP'!$D49,'00 PDC SP'!K:K) -> 10368797.42 | J49: =SUMIF('00 PDC SP'!$C:$C,'00 SP'!$D49,'00 PDC SP'!L:L) -> 241394.07 | K49: =SUMIF('00 PDC SP'!$C:$C,'00 SP'!$D49,'00 PDC SP'!M:M) -> 12215.84 | L49: =SUMIF('00 PDC SP'!$C:$C,'00 SP'!$D49,'00 PDC SP'!N:N) -> 10597975.65
A50: AAA460 | B50: A.II.5.b) F.do Amm.to Mobili e arredi | D50: AAA460 | E50: 3 | F50: =SUMIF('00 PDC SP'!$C:$C,'00 SP'!$D50,'00 PDC SP'!H:H) -> -8512357.85 | G50: =SUMIF('00 PDC SP'!$C:$C,'00 SP'!$D50,'00 PDC SP'!I:I) -> -363135.86 | H50: =SUMIF('00 PDC SP'!$C:$C,'00 SP'!$D50,'00 PDC SP'!J:J) -> -152898.04 | I50: =SUMIF('00 PDC SP'!$C:$C,'00 SP'!$D50,'00 PDC SP'!K:K) -> -8722595.67 | J50: =SUMIF('00 PDC SP'!$C:$C,'00 SP'!$D50,'00 PDC SP'!L:L) -> -361188.29 | K50: =SUMIF('00 PDC SP'!$C:$C,'00 SP'!$D50,'00 PDC SP'!M:M) -> 0 | L50: =SUMIF('00 PDC SP'!$C:$C,'00 SP'!$D50,'00 PDC SP'!N:N) -> -9083783.96
A51: AAA470 | B51: A.II.6) Automezzi | C51: S | D51: AAA470 | F51: =SUM(F52:F53) -> 192421.75 | G51: 41728.25 | H51: 0 | I51: 234150 | J51: 288.8 | K51: 0 | L51: 234438.8
A52: AAA480 | B52: A.II.6.a) Automezzi | D52: AAA480 | E52: 44 | F52: =SUMIF('00 PDC SP'!$C:$C,'00 SP'!$D52,'00 PDC SP'!H:H) -> 1758814.75 | G52: =SUMIF('00 PDC SP'!$C:$C,'00 SP'!$D52,'00 PDC SP'!I:I) -> 144301.6 | H52: =SUMIF('00 PDC SP'!$C:$C,'00 SP'!$D52,'00 PDC SP'!J:J) -> 63157.24 | I52: =SUMIF('00 PDC SP'!$C:$C,'00 SP'!$D52,'00 PDC SP'!K:K) -> 1839959.11 | J52: =SUMIF('00 PDC SP'!$C:$C,'00 SP'!$D52,'00 PDC SP'!L:L) -> 123029.66 | K52: =SUMIF('00 PDC SP'!$C:$C,'00 SP'!$D52,'00 PDC SP'!M:M) -> 0 | L52: =SUMIF('00 PDC SP'!$C:$C,'00 SP'!$D52,'00 PDC SP'!N:N) -> 1962988.77
A53: AAA490 | B53: A.II.6.b) F.do Amm.to Automezzi | D53: AAA490 | E53: 3 | F53: =SUMIF('00 PDC SP'!$C:$C,'00 SP'!$D53,'00 PDC SP'!H:H) -> -1566393 | G53: =SUMIF('00 PDC SP'!$C:$C,'00 SP'!$D53,'00 PDC SP'!I:I) -> -102573.35 | H53: =SUMIF('00 PDC SP'!$C:$C,'00 SP'!$D53,'00 PDC SP'!J:J) -> -63157.24 | I53: =SUMIF('00 PDC SP'!$C:$C,'00 SP'!$D53,'00 PDC SP'!K:K) -> -1605809.11 | J53: =SUMIF('00 PDC SP'!$C:$C,'00 SP'!$D53,'00 PDC SP'!L:L) -> -122740.86 | K53: =SUMIF('00 PDC SP'!$C:$C,'00 SP'!$D53,'00 PDC SP'!M:M) -> 0 | L53: =SUMIF('00 PDC SP'!$C:$C,'00 SP'!$D53,'00 PDC SP'!N:N) -> -1728549.97
A54: AAA500 | B54: A.II.7) Oggetti d'arte | D54: AAA500 | E54: 45 | F54: =SUMIF('00 PDC SP'!$C:$C,'00 SP'!$D54,'00 PDC SP'!H:H) -> 0 | G54: =SUMIF('00 PDC SP'!$C:$C,'00 SP'!$D54,'00 PDC SP'!I:I) -> 0 | H54: =SUMIF('00 PDC SP'!$C:$C,'00 SP'!$D54,'00 PDC SP'!J:J) -> 0 | I54: =SUMIF('00 PDC SP'!$C:$C,'00 SP'!$D54,'00 PDC SP'!K:K) -> 0 | J54: =SUMIF('00 PDC SP'!$C:$C,'00 SP'!$D54,'00 PDC SP'!L:L) -> 0 | K54: =SUMIF('00 PDC SP'!$C:$C,'00 SP'!$D54,'00 PDC SP'!M:M) -> 0 | L54: =SUMIF('00 PDC SP'!$C:$C,'00 SP'!$D54,'00 PDC SP'!N:N) -> 0
A55: AAA510 | B55: A.II.8) Altre immobilizzazioni materiali | C55: S | D55: AAA510 | F55: =SUM(F56:F57) -> 784062.61 | G55: -142631.56 | H55: 159.34 | I55: 641271.71 | J55: 21030.35 | K55: 0 | L55: 662302.06
A56: AAA520 | B56: A.II.8.a) Altre immobilizzazioni materiali | D56: AAA520 | E56: 45 | F56: =SUMIF('00 PDC SP'!$C:$C,'00 SP'!$D56,'00 PDC SP'!H:H) -> 5700637.77 | G56: =SUMIF('00 PDC SP'!$C:$C,'00 SP'!$D56,'00 PDC SP'!I:I) -> 111430.76 | H56: =SUMIF('00 PDC SP'!$C:$C,'00 SP'!$D56,'00 PDC SP'!J:J) -> 157977.75 | I56: =SUMIF('00 PDC SP'!$C:$C,'00 SP'!$D56,'00 PDC SP'!K:K) -> 5654090.78 | J56: =SUMIF('00 PDC SP'!$C:$C,'00 SP'!$D56,'00 PDC SP'!L:L) -> 265917 | K56: =SUMIF('00 PDC SP'!$C:$C,'00 SP'!$D56,'00 PDC SP'!M:M) -> 2012.8 | L56: =SUMIF('00 PDC SP'!$C:$C,'00 SP'!$D56,'00 PDC SP'!N:N) -> 5917994.98
A57: AAA530 | B57: A.II.8.b) F.do Amm.to Altre immobilizzazioni materiali | D57: AAA530 | E57: 3 | F57: =SUMIF('00 PDC SP'!$C:$C,'00 SP'!$D57,'00 PDC SP'!H:H) -> -4916575.16 | G57: =SUMIF('00 PDC SP'!$C:$C,'00 SP'!$D57,'00 PDC SP'!I:I) -> -254062.32 | H57: =SUMIF('00 PDC SP'!$C:$C,'00 SP'!$D57,'00 PDC SP'!J:J) -> -157818.41 | I57: =SUMIF('00 PDC SP'!$C:$C,'00 SP'!$D57,'00 PDC SP'!K:K) -> -5012819.07 | J57: =SUMIF('00 PDC SP'!$C:$C,'00 SP'!$D57,'00 PDC SP'!L:L) -> -244886.65 | K57: =SUMIF('00 PDC SP'!$C:$C,'00 SP'!$D57,'00 PDC SP'!M:M) -> -2012.8 | L57: =SUMIF('00 PDC SP'!$C:$C,'00 SP'!$D57,'00 PDC SP'!N:N) -> -5255692.92
A58: AAA540 | B58: A.II.9) Immobilizzazioni materiali in corso e acconti | D58: AAA540 | E58: 45 | F58: =SUMIF('00 PDC SP'!$C:$C,'00 SP'!$D58,'00 PDC SP'!H:H) -> 7566297.35 | G58: =SUMIF('00 PDC SP'!$C:$C,'00 SP'!$D58,'00 PDC SP'!I:I) -> 1509150.97 | H58: =SUMIF('00 PDC SP'!$C:$C,'00 SP'!$D58,'00 PDC SP'!J:J) -> 310552.74 | I58: =SUMIF('00 PDC SP'!$C:$C,'00 SP'!$D58,'00 PDC SP'!K:K) -> 8764895.58 | J58: =SUMIF('00 PDC SP'!$C:$C,'00 SP'!$D58,'00 PDC SP'!L:L) -> 2477794.12 | K58: =SUMIF('00 PDC SP'!$C:$C,'00 SP'!$D58,'00 PDC SP'!M:M) -> 244737.13 | L58: =SUMIF('00 PDC SP'!$C:$C,'00 SP'!$D58,'00 PDC SP'!N:N) -> 10997952.57
A59: AAA550 | B59: A.II.10) Fondo Svalutazione immobilizzazioni materiali | C59: S | D59: AAA550 | F59: =SUM(F60:F67) -> 0 | G59: 0 | H59: 0 | I59: 0 | J59: 0 | K59: 0 | L59: 0
A60: AAA560 | B60: A.II.10.a) F.do Svalut. Terreni | D60: AAA560 | E60: 39 | F60: =SUMIF('00 PDC SP'!$C:$C,'00 SP'!$D60,'00 PDC SP'!H:H) -> 0 | G60: =SUMIF('00 PDC SP'!$C:$C,'00 SP'!$D60,'00 PDC SP'!I:I) -> 0 | H60: =SUMIF('00 PDC SP'!$C:$C,'00 SP'!$D60,'00 PDC SP'!J:J) -> 0 | I60: =SUMIF('00 PDC SP'!$C:$C,'00 SP'!$D60,'00 PDC SP'!K:K) -> 0 | J60: =SUMIF('00 PDC SP'!$C:$C,'00 SP'!$D60,'00 PDC SP'!L:L) -> 0 | K60: =SUMIF('00 PDC SP'!$C:$C,'00 SP'!$D60,'00 PDC SP'!M:M) -> 0 | L60: =SUMIF('00 PDC SP'!$C:$C,'00 SP'!$D60,'00 PDC SP'!N:N) -> 0
A61: AAA570 | B61: A.II.10.b) F.do Svalut. Fabbricati | D61: AAA570 | E61: 40 | F61: =SUMIF('00 PDC SP'!$C:$C,'00 SP'!$D61,'00 PDC SP'!H:H) -> 0 | G61: =SUMIF('00 PDC SP'!$C:$C,'00 SP'!$D61,'00 PDC SP'!I:I) -> 0 | H61: =SUMIF('00 PDC SP'!$C:$C,'00 SP'!$D61,'00 PDC SP'!J:J) -> 0 | I61: =SUMIF('00 PDC SP'!$C:$C,'00 SP'!$D61,'00 PDC SP'!K:K) -> 0 | J61: =SUMIF('00 PDC SP'!$C:$C,'00 SP'!$D61,'00 PDC SP'!L:L) -> 0 | K61: =SUMIF('00 PDC SP'!$C:$C,'00 SP'!$D61,'00 PDC SP'!M:M) -> 0 | L61: =SUMIF('00 PDC SP'!$C:$C,'00 SP'!$D61,'00 PDC SP'!N:N) -> 0
A62: AAA580 | B62: A.II.10.c) F.do Svalut. Impianti e macchinari | D62: AAA580 | E62: 41 | F62: =SUMIF('00 PDC SP'!$C:$C,'00 SP'!$D62,'00 PDC SP'!H:H) -> 0 | G62: =SUMIF('00 PDC SP'!$C:$C,'00 SP'!$D62,'00 PDC SP'!I:I) -> 0 | H62: =SUMIF('00 PDC SP'!$C:$C,'00 SP'!$D62,'00 PDC SP'!J:J) -> 0 | I62: =SUMIF('00 PDC SP'!$C:$C,'00 SP'!$D62,'00 PDC SP'!K:K) -> 0 | J62: =SUMIF('00 PDC SP'!$C:$C,'00 SP'!$D62,'00 PDC SP'!L:L) -> 0 | K62: =SUMIF('00 PDC SP'!$C:$C,'00 SP'!$D62,'00 PDC SP'!M:M) -> 0 | L62: =SUMIF('00 PDC SP'!$C:$C,'00 SP'!$D62,'00 PDC SP'!N:N) -> 0
A63: AAA590 | B63: A.II.10.d) F.do Svalut. Attrezzature sanitarie e scientifiche | D63: AAA590 | E63: 42 | F63: =SUMIF('00 PDC SP'!$C:$C,'00 SP'!$D63,'00 PDC SP'!H:H) -> 0 | G63: =SUMIF('00 PDC SP'!$C:$C,'00 SP'!$D63,'00 PDC SP'!I:I) -> 0 | H63: =SUMIF('00 PDC SP'!$C:$C,'00 SP'!$D63,'00 PDC SP'!J:J) -> 0 | I63: =SUMIF('00 PDC SP'!$C:$C,'00 SP'!$D63,'00 PDC SP'!K:K) -> 0 | J63: =SUMIF('00 PDC SP'!$C:$C,'00 SP'!$D63,'00 PDC SP'!L:L) -> 0 | K63: =SUMIF('00 PDC SP'!$C:$C,'00 SP'!$D63,'00 PDC SP'!M:M) -> 0 | L63: =SUMIF('00 PDC SP'!$C:$C,'00 SP'!$D63,'00 PDC SP'!N:N) -> 0
A64: AAA600 | B64: A.II.10.e) F.do Svalut. Mobili e arredi | D64: AAA600 | E64: 43 | F64: =SUMIF('00 PDC SP'!$C:$C,'00 SP'!$D64,'00 PDC SP'!H:H) -> 0 | G64: =SUMIF('00 PDC SP'!$C:$C,'00 SP'!$D64,'00 PDC SP'!I:I) -> 0 | H64: =SUMIF('00 PDC SP'!$C:$C,'00 SP'!$D64,'00 PDC SP'!J:J) -> 0 | I64: =SUMIF('00 PDC SP'!$C:$C,'00 SP'!$D64,'00 PDC SP'!K:K) -> 0 | J64: =SUMIF('00 PDC SP'!$C:$C,'00 SP'!$D64,'00 PDC SP'!L:L) -> 0 | K64: =SUMIF('00 PDC SP'!$C:$C,'00 SP'!$D64,'00 PDC SP'!M:M) -> 0 | L64: =SUMIF('00 PDC SP'!$C:$C,'00 SP'!$D64,'00 PDC SP'!N:N) -> 0
A65: AAA610 | B65: A.II.10.f) F.do Svalut. Automezzi | D65: AAA610 | E65: 44 | F65: =SUMIF('00 PDC SP'!$C:$C,'00 SP'!$D65,'00 PDC SP'!H:H) -> 0 | G65: =SUMIF('00 PDC SP'!$C:$C,'00 SP'!$D65,'00 PDC SP'!I:I) -> 0 | H65: =SUMIF('00 PDC SP'!$C:$C,'00 SP'!$D65,'00 PDC SP'!J:J) -> 0 | I65: =SUMIF('00 PDC SP'!$C:$C,'00 SP'!$D65,'00 PDC SP'!K:K) -> 0 | J65: =SUMIF('00 PDC SP'!$C:$C,'00 SP'!$D65,'00 PDC SP'!L:L) -> 0 | K65: =SUMIF('00 PDC SP'!$C:$C,'00 SP'!$D65,'00 PDC SP'!M:M) -> 0 | L65: =SUMIF('00 PDC SP'!$C:$C,'00 SP'!$D65,'00 PDC SP'!N:N) -> 0
A66: AAA620 | B66: A.II.10.g) F.do Svalut. Oggetti d'arte | D66: AAA620 | E66: 45 | F66: =SUMIF('00 PDC SP'!$C:$C,'00 SP'!$D66,'00 PDC SP'!H:H) -> 0 | G66: =SUMIF('00 PDC SP'!$C:$C,'00 SP'!$D66,'00 PDC SP'!I:I) -> 0 | H66: =SUMIF('00 PDC SP'!$C:$C,'00 SP'!$D66,'00 PDC SP'!J:J) -> 0 | I66: =SUMIF('00 PDC SP'!$C:$C,'00 SP'!$D66,'00 PDC SP'!K:K) -> 0 | J66: =SUMIF('00 PDC SP'!$C:$C,'00 SP'!$D66,'00 PDC SP'!L:L) -> 0 | K66: =SUMIF('00 PDC SP'!$C:$C,'00 SP'!$D66,'00 PDC SP'!M:M) -> 0 | L66: =SUMIF('00 PDC SP'!$C:$C,'00 SP'!$D66,'00 PDC SP'!N:N) -> 0
A67: AAA630 | B67: A.II.10.h) F.do Svalut. Altre immobilizzazioni materiali | D67: AAA630 | E67: 45 | F67: =SUMIF('00 PDC SP'!$C:$C,'00 SP'!$D67,'00 PDC SP'!H:H) -> 0 | G67: =SUMIF('00 PDC SP'!$C:$C,'00 SP'!$D67,'00 PDC SP'!I:I) -> 0 | H67: =SUMIF('00 PDC SP'!$C:$C,'00 SP'!$D67,'00 PDC SP'!J:J) -> 0 | I67: =SUMIF('00 PDC SP'!$C:$C,'00 SP'!$D67,'00 PDC SP'!K:K) -> 0 | J67: =SUMIF('00 PDC SP'!$C:$C,'00 SP'!$D67,'00 PDC SP'!L:L) -> 0 | K67: =SUMIF('00 PDC SP'!$C:$C,'00 SP'!$D67,'00 PDC SP'!M:M) -> 0 | L67: =SUMIF('00 PDC SP'!$C:$C,'00 SP'!$D67,'00 PDC SP'!N:N) -> 0
A68: AAA640 | B68: A.III) IMMOBILIZZAZIONI FINANZIARIE | C68: S | D68: AAA640 | F68: =F69+F74 -> 12379.7 | G68: 1656.75 | H68: 0 | I68: 14036.45 | J68: 0 | K68: 0 | L68: 14036.45
A69: AAA650 | B69: A.III.1) Crediti finanziari | C69: S | D69: AAA650 | F69: =SUM(F70:F73) -> 12379.7 | G69: 1656.75 | H69: 0 | I69: 14036.45 | J69: 0 | K69: 0 | L69: 14036.45
A70: AAA660 | B70: A.III.1.a) Crediti finanziari v/Stato | D70: AAA660 | E70: 46 | F70: =SUMIF('00 PDC SP'!$C:$C,'00 SP'!$D70,'00 PDC SP'!H:H) -> 0 | G70: =SUMIF('00 PDC SP'!$C:$C,'00 SP'!$D70,'00 PDC SP'!I:I) -> 0 | H70: =SUMIF('00 PDC SP'!$C:$C,'00 SP'!$D70,'00 PDC SP'!J:J) -> 0 | I70: =SUMIF('00 PDC SP'!$C:$C,'00 SP'!$D70,'00 PDC SP'!K:K) -> 0 | J70: =SUMIF('00 PDC SP'!$C:$C,'00 SP'!$D70,'00 PDC SP'!L:L) -> 0 | K70: =SUMIF('00 PDC SP'!$C:$C,'00 SP'!$D70,'00 PDC SP'!M:M) -> 0 | L70: =SUMIF('00 PDC SP'!$C:$C,'00 SP'!$D70,'00 PDC SP'!N:N) -> 0
A71: AAA670 | B71: A.III.1.b) Crediti finanziari v/Regione | D71: AAA670 | E71: 46 | F71: =SUMIF('00 PDC SP'!$C:$C,'00 SP'!$D71,'00 PDC SP'!H:H) -> 0 | G71: =SUMIF('00 PDC SP'!$C:$C,'00 SP'!$D71,'00 PDC SP'!I:I) -> 0 | H71: =SUMIF('00 PDC SP'!$C:$C,'00 SP'!$D71,'00 PDC SP'!J:J) -> 0 | I71: =SUMIF('00 PDC SP'!$C:$C,'00 SP'!$D71,'00 PDC SP'!K:K) -> 0 | J71: =SUMIF('00 PDC SP'!$C:$C,'00 SP'!$D71,'00 PDC SP'!L:L) -> 0 | K71: =SUMIF('00 PDC SP'!$C:$C,'00 SP'!$D71,'00 PDC SP'!M:M) -> 0 | L71: =SUMIF('00 PDC SP'!$C:$C,'00 SP'!$D71,'00 PDC SP'!N:N) -> 0
A72: AAA680 | B72: A.III.1.c) Crediti finanziari v/partecipate | D72: AAA680 | E72: 46 | F72: =SUMIF('00 PDC SP'!$C:$C,'00 SP'!$D72,'00 PDC SP'!H:H) -> 0 | G72: =SUMIF('00 PDC SP'!$C:$C,'00 SP'!$D72,'00 PDC SP'!I:I) -> 0 | H72: =SUMIF('00 PDC SP'!$C:$C,'00 SP'!$D72,'00 PDC SP'!J:J) -> 0 | I72: =SUMIF('00 PDC SP'!$C:$C,'00 SP'!$D72,'00 PDC SP'!K:K) -> 0 | J72: =SUMIF('00 PDC SP'!$C:$C,'00 SP'!$D72,'00 PDC SP'!L:L) -> 0 | K72: =SUMIF('00 PDC SP'!$C:$C,'00 SP'!$D72,'00 PDC SP'!M:M) -> 0 | L72: =SUMIF('00 PDC SP'!$C:$C,'00 SP'!$D72,'00 PDC SP'!N:N) -> 0
A73: AAA690 | B73: A.III.1.d) Crediti finanziari v/altri | D73: AAA690 | E73: 46 | F73: =SUMIF('00 PDC SP'!$C:$C,'00 SP'!$D73,'00 PDC SP'!H:H) -> 12379.7 | G73: =SUMIF('00 PDC SP'!$C:$C,'00 SP'!$D73,'00 PDC SP'!I:I) -> 1656.75 | H73: =SUMIF('00 PDC SP'!$C:$C,'00 SP'!$D73,'00 PDC SP'!J:J) -> 0 | I73: =SUMIF('00 PDC SP'!$C:$C,'00 SP'!$D73,'00 PDC SP'!K:K) -> 14036.45 | J73: =SUMIF('00 PDC SP'!$C:$C,'00 SP'!$D73,'00 PDC SP'!L:L) -> 0 | K73: =SUMIF('00 PDC SP'!$C:$C,'00 SP'!$D73,'00 PDC SP'!M:M) -> 0 | L73: =SUMIF('00 PDC SP'!$C:$C,'00 SP'!$D73,'00 PDC SP'!N:N) -> 14036.45
A74: AAA700 | B74: A.III.2) Titoli | C74: S | D74: AAA700 | F74: =F75+F76 -> 0 | G74: 0 | H74: 0 | I74: 0 | J74: 0 | K74: 0 | L74: 0
A75: AAA710 | B75: A.III.2.a) Partecipazioni | D75: AAA710 | E75: 47 | F75: =SUMIF('00 PDC SP'!$C:$C,'00 SP'!$D75,'00 PDC SP'!H:H) -> 0 | G75: =SUMIF('00 PDC SP'!$C:$C,'00 SP'!$D75,'00 PDC SP'!I:I) -> 0 | H75: =SUMIF('00 PDC SP'!$C:$C,'00 SP'!$D75,'00 PDC SP'!J:J) -> 0 | I75: =SUMIF('00 PDC SP'!$C:$C,'00 SP'!$D75,'00 PDC SP'!K:K) -> 0 | J75: =SUMIF('00 PDC SP'!$C:$C,'00 SP'!$D75,'00 PDC SP'!L:L) -> 0 | K75: =SUMIF('00 PDC SP'!$C:$C,'00 SP'!$D75,'00 PDC SP'!M:M) -> 0 | L75: =SUMIF('00 PDC SP'!$C:$C,'00 SP'!$D75,'00 PDC SP'!N:N) -> 0
A76: AAA720 | B76: A.III.2.b) Altri titoli | C76: S | D76: AAA720 | F76: =SUM(F77:F80) -> 0 | G76: 0 | H76: 0 | I76: 0 | J76: 0 | K76: 0 | L76: 0
A77: AAA730 | B77: A.III.2.b.1) Titoli di Stato | D77: AAA730 | E77: 47 | F77: =SUMIF('00 PDC SP'!$C:$C,'00 SP'!$D77,'00 PDC SP'!H:H) -> 0 | G77: =SUMIF('00 PDC SP'!$C:$C,'00 SP'!$D77,'00 PDC SP'!I:I) -> 0 | H77: =SUMIF('00 PDC SP'!$C:$C,'00 SP'!$D77,'00 PDC SP'!J:J) -> 0 | I77: =SUMIF('00 PDC SP'!$C:$C,'00 SP'!$D77,'00 PDC SP'!K:K) -> 0 | J77: =SUMIF('00 PDC SP'!$C:$C,'00 SP'!$D77,'00 PDC SP'!L:L) -> 0 | K77: =SUMIF('00 PDC SP'!$C:$C,'00 SP'!$D77,'00 PDC SP'!M:M) -> 0 | L77: =SUMIF('00 PDC SP'!$C:$C,'00 SP'!$D77,'00 PDC SP'!N:N) -> 0
A78: AAA740 | B78: A.III.2.b.2) Altre Obbligazioni | D78: AAA740 | E78: 47 | F78: =SUMIF('00 PDC SP'!$C:$C,'00 SP'!$D78,'00 PDC SP'!H:H) -> 0 | G78: =SUMIF('00 PDC SP'!$C:$C,'00 SP'!$D78,'00 PDC SP'!I:I) -> 0 | H78: =SUMIF('00 PDC SP'!$C:$C,'00 SP'!$D78,'00 PDC SP'!J:J) -> 0 | I78: =SUMIF('00 PDC SP'!$C:$C,'00 SP'!$D78,'00 PDC SP'!K:K) -> 0 | J78: =SUMIF('00 PDC SP'!$C:$C,'00 SP'!$D78,'00 PDC SP'!L:L) -> 0 | K78: =SUMIF('00 PDC SP'!$C:$C,'00 SP'!$D78,'00 PDC SP'!M:M) -> 0 | L78: =SUMIF('00 PDC SP'!$C:$C,'00 SP'!$D78,'00 PDC SP'!N:N) -> 0
A79: AAA750 | B79: A.III.2.b.3) Titoli azionari quotati in Borsa | D79: AAA750 | E79: 47 | F79: =SUMIF('00 PDC SP'!$C:$C,'00 SP'!$D79,'00 PDC SP'!H:H) -> 0 | G79: =SUMIF('00 PDC SP'!$C:$C,'00 SP'!$D79,'00 PDC SP'!I:I) -> 0 | H79: =SUMIF('00 PDC SP'!$C:$C,'00 SP'!$D79,'00 PDC SP'!J:J) -> 0 | I79: =SUMIF('00 PDC SP'!$C:$C,'00 SP'!$D79,'00 PDC SP'!K:K) -> 0 | J79: =SUMIF('00 PDC SP'!$C:$C,'00 SP'!$D79,'00 PDC SP'!L:L) -> 0 | K79: =SUMIF('00 PDC SP'!$C:$C,'00 SP'!$D79,'00 PDC SP'!M:M) -> 0 | L79: =SUMIF('00 PDC SP'!$C:$C,'00 SP'!$D79,'00 PDC SP'!N:N) -> 0
A80: AAA760 | B80: A.III.2.b.4) Titoli diversi | D80: AAA760 | E80: 47 | F80: =SUMIF('00 PDC SP'!$C:$C,'00 SP'!$D80,'00 PDC SP'!H:H) -> 0 | G80: =SUMIF('00 PDC SP'!$C:$C,'00 SP'!$D80,'00 PDC SP'!I:I) -> 0 | H80: =SUMIF('00 PDC SP'!$C:$C,'00 SP'!$D80,'00 PDC SP'!J:J) -> 0 | I80: =SUMIF('00 PDC SP'!$C:$C,'00 SP'!$D80,'00 PDC SP'!K:K) -> 0 | J80: =SUMIF('00 PDC SP'!$C:$C,'00 SP'!$D80,'00 PDC SP'!L:L) -> 0 | K80: =SUMIF('00 PDC SP'!$C:$C,'00 SP'!$D80,'00 PDC SP'!M:M) -> 0 | L80: =SUMIF('00 PDC SP'!$C:$C,'00 SP'!$D80,'00 PDC SP'!N:N) -> 0
A81: ABZ999 | B81: B) ATTIVO CIRCOLANTE | C81: S | D81: ABZ999 | F81: =F82+F101+F154+F157 -> 268442746.1 | G81: 1881832619 | H81: 1889712646 | I81: 260562718.9 | J81: 2005032561 | K81: 1999341648 | L81: 266253631.1
A82: ABA000 | B82: B.I) RIMANENZE | C82: S | D82: ABA000 | F82: =F83+F93 -> 11433517.44 | G82: 10622628.8 | H82: 11433517.44 | I82: 10622628.8 | J82: 11844723.25 | K82: 10622628.8 | L82: 11844723.25
A83: ABA010 | B83: B.I.1) Rimanenze beni sanitari | C83: S | D83: ABA010 | F83: =SUM(F84:F92) -> 10876803.99 | G83: 10166401.24 | H83: 10876803.99 | I83: 10166401.24 | J83: 11334105.08 | K83: 10166401.24 | L83: 11334105.08
A84: ABA020 | B84: B.I.1.a) Prodotti farmaceutici ed emoderivati | D84: ABA020 | E84: 31 | F84: =SUMIF('00 PDC SP'!$C:$C,'00 SP'!$D84,'00 PDC SP'!H:H) -> 5956314.79 | G84: =SUMIF('00 PDC SP'!$C:$C,'00 SP'!$D84,'00 PDC SP'!I:I) -> 5481808.89 | H84: =SUMIF('00 PDC SP'!$C:$C,'00 SP'!$D84,'00 PDC SP'!J:J) -> 5956314.79 | I84: =SUMIF('00 PDC SP'!$C:$C,'00 SP'!$D84,'00 PDC SP'!K:K) -> 5481808.89 | J84: =SUMIF('00 PDC SP'!$C:$C,'00 SP'!$D84,'00 PDC SP'!L:L) -> 5834132.12 | K84: =SUMIF('00 PDC SP'!$C:$C,'00 SP'!$D84,'00 PDC SP'!M:M) -> 5481808.89 | L84: =SUMIF('00 PDC SP'!$C:$C,'00 SP'!$D84,'00 PDC SP'!N:N) -> 5834132.12
A85: ABA030 | B85: B.I.1.b) Sangue ed emocomponenti | D85: ABA030 | E85: 31 | F85: =SUMIF('00 PDC SP'!$C:$C,'00 SP'!$D85,'00 PDC SP'!H:H) -> 0 | G85: =SUMIF('00 PDC SP'!$C:$C,'00 SP'!$D85,'00 PDC SP'!I:I) -> 0 | H85: =SUMIF('00 PDC SP'!$C:$C,'00 SP'!$D85,'00 PDC SP'!J:J) -> 0 | I85: =SUMIF('00 PDC SP'!$C:$C,'00 SP'!$D85,'00 PDC SP'!K:K) -> 0 | J85: =SUMIF('00 PDC SP'!$C:$C,'00 SP'!$D85,'00 PDC SP'!L:L) -> 0 | K85: =SUMIF('00 PDC SP'!$C:$C,'00 SP'!$D85,'00 PDC SP'!M:M) -> 0 | L85: =SUMIF('00 PDC SP'!$C:$C,'00 SP'!$D85,'00 PDC SP'!N:N) -> 0
A86: ABA040 | B86: B.I.1.c) Dispositivi medici | D86: ABA040 | E86: 31 | F86: =SUMIF('00 PDC SP'!$C:$C,'00 SP'!$D86,'00 PDC SP'!H:H) -> 4637120.13 | G86: =SUMIF('00 PDC SP'!$C:$C,'00 SP'!$D86,'00 PDC SP'!I:I) -> 4404910.21 | H86: =SUMIF('00 PDC SP'!$C:$C,'00 SP'!$D86,'00 PDC SP'!J:J) -> 4637120.13 | I86: =SUMIF('00 PDC SP'!$C:$C,'00 SP'!$D86,'00 PDC SP'!K:K) -> 4404910.21 | J86: =SUMIF('00 PDC SP'!$C:$C,'00 SP'!$D86,'00 PDC SP'!L:L) -> 5139047.93 | K86: =SUMIF('00 PDC SP'!$C:$C,'00 SP'!$D86,'00 PDC SP'!M:M) -> 4404910.21 | L86: =SUMIF('00 PDC SP'!$C:$C,'00 SP'!$D86,'00 PDC SP'!N:N) -> 5139047.93
A87: ABA050 | B87: B.I.1.d) Prodotti dietetici | D87: ABA050 | E87: 31 | F87: =SUMIF('00 PDC SP'!$C:$C,'00 SP'!$D87,'00 PDC SP'!H:H) -> 76695.15 | G87: =SUMIF('00 PDC SP'!$C:$C,'00 SP'!$D87,'00 PDC SP'!I:I) -> 68269.16 | H87: =SUMIF('00 PDC SP'!$C:$C,'00 SP'!$D87,'00 PDC SP'!J:J) -> 76695.15 | I87: =SUMIF('00 PDC SP'!$C:$C,'00 SP'!$D87,'00 PDC SP'!K:K) -> 68269.16 | J87: =SUMIF('00 PDC SP'!$C:$C,'00 SP'!$D87,'00 PDC SP'!L:L) -> 63620.12 | K87: =SUMIF('00 PDC SP'!$C:$C,'00 SP'!$D87,'00 PDC SP'!M:M) -> 68269.16 | L87: =SUMIF('00 PDC SP'!$C:$C,'00 SP'!$D87,'00 PDC SP'!N:N) -> 63620.12
A88: ABA060 | B88: B.I.1.e) Materiali per la profilassi (vaccini) | D88: ABA060 | E88: 31 | F88: =SUMIF('00 PDC SP'!$C:$C,'00 SP'!$D88,'00 PDC SP'!H:H) -> 0 | G88: =SUMIF('00 PDC SP'!$C:$C,'00 SP'!$D88,'00 PDC SP'!I:I) -> 0 | H88: =SUMIF('00 PDC SP'!$C:$C,'00 SP'!$D88,'00 PDC SP'!J:J) -> 0 | I88: =SUMIF('00 PDC SP'!$C:$C,'00 SP'!$D88,'00 PDC SP'!K:K) -> 0 | J88: =SUMIF('00 PDC SP'!$C:$C,'00 SP'!$D88,'00 PDC SP'!L:L) -> 1112.76 | K88: =SUMIF('00 PDC SP'!$C:$C,'00 SP'!$D88,'00 PDC SP'!M:M) -> 0 | L88: =SUMIF('00 PDC SP'!$C:$C,'00 SP'!$D88,'00 PDC SP'!N:N) -> 1112.76
A89: ABA070 | B89: B.I.1.f) Prodotti chimici | D89: ABA070 | E89: 31 | F89: =SUMIF('00 PDC SP'!$C:$C,'00 SP'!$D89,'00 PDC SP'!H:H) -> 0 | G89: =SUMIF('00 PDC SP'!$C:$C,'00 SP'!$D89,'00 PDC SP'!I:I) -> 0 | H89: =SUMIF('00 PDC SP'!$C:$C,'00 SP'!$D89,'00 PDC SP'!J:J) -> 0 | I89: =SUMIF('00 PDC SP'!$C:$C,'00 SP'!$D89,'00 PDC SP'!K:K) -> 0 | J89: =SUMIF('00 PDC SP'!$C:$C,'00 SP'!$D89,'00 PDC SP'!L:L) -> 0 | K89: =SUMIF('00 PDC SP'!$C:$C,'00 SP'!$D89,'00 PDC SP'!M:M) -> 0 | L89: =SUMIF('00 PDC SP'!$C:$C,'00 SP'!$D89,'00 PDC SP'!N:N) -> 0
A90: ABA080 | B90: B.I.1.g) Materiali e prodotti per uso veterinario | D90: ABA080 | E90: 31 | F90: =SUMIF('00 PDC SP'!$C:$C,'00 SP'!$D90,'00 PDC SP'!H:H) -> 192 | G90: =SUMIF('00 PDC SP'!$C:$C,'00 SP'!$D90,'00 PDC SP'!I:I) -> 0 | H90: =SUMIF('00 PDC SP'!$C:$C,'00 SP'!$D90,'00 PDC SP'!J:J) -> 192 | I90: =SUMIF('00 PDC SP'!$C:$C,'00 SP'!$D90,'00 PDC SP'!K:K) -> 0 | J90: =SUMIF('00 PDC SP'!$C:$C,'00 SP'!$D90,'00 PDC SP'!L:L) -> 0 | K90: =SUMIF('00 PDC SP'!$C:$C,'00 SP'!$D90,'00 PDC SP'!M:M) -> 0 | L90: =SUMIF('00 PDC SP'!$C:$C,'00 SP'!$D90,'00 PDC SP'!N:N) -> 0
A91: ABA090 | B91: B.I.1.h) Altri beni e prodotti sanitari | D91: ABA090 | E91: 31 | F91: =SUMIF('00 PDC SP'!$C:$C,'00 SP'!$D91,'00 PDC SP'!H:H) -> 206481.92 | G91: =SUMIF('00 PDC SP'!$C:$C,'00 SP'!$D91,'00 PDC SP'!I:I) -> 211412.98 | H91: =SUMIF('00 PDC SP'!$C:$C,'00 SP'!$D91,'00 PDC SP'!J:J) -> 206481.92 | I91: =SUMIF('00 PDC SP'!$C:$C,'00 SP'!$D91,'00 PDC SP'!K:K) -> 211412.98 | J91: =SUMIF('00 PDC SP'!$C:$C,'00 SP'!$D91,'00 PDC SP'!L:L) -> 296192.15 | K91: =SUMIF('00 PDC SP'!$C:$C,'00 SP'!$D91,'00 PDC SP'!M:M) -> 211412.98 | L91: =SUMIF('00 PDC SP'!$C:$C,'00 SP'!$D91,'00 PDC SP'!N:N) -> 296192.15
A92: ABA100 | B92: B.I.1.i) Acconti per acquisto di beni e prodotti sanitari | D92: ABA100 | E92: 32 | F92: =SUMIF('00 PDC SP'!$C:$C,'00 SP'!$D92,'00 PDC SP'!H:H) -> 0 | G92: =SUMIF('00 PDC SP'!$C:$C,'00 SP'!$D92,'00 PDC SP'!I:I) -> 0 | H92: =SUMIF('00 PDC SP'!$C:$C,'00 SP'!$D92,'00 PDC SP'!J:J) -> 0 | I92: =SUMIF('00 PDC SP'!$C:$C,'00 SP'!$D92,'00 PDC SP'!K:K) -> 0 | J92: =SUMIF('00 PDC SP'!$C:$C,'00 SP'!$D92,'00 PDC SP'!L:L) -> 0 | K92: =SUMIF('00 PDC SP'!$C:$C,'00 SP'!$D92,'00 PDC SP'!M:M) -> 0 | L92: =SUMIF('00 PDC SP'!$C:$C,'00 SP'!$D92,'00 PDC SP'!N:N) -> 0
A93: ABA110 | B93: B.I.2) Rimanenze beni non sanitari | C93: S | D93: ABA110 | F93: =SUM(F94:F100) -> 556713.45 | G93: 456227.56 | H93: 556713.45 | I93: 456227.56 | J93: 510618.17 | K93: 456227.56 | L93: 510618.17
A94: ABA120 | B94: B.I.2.a) Prodotti alimentari | D94: ABA120 | E94: 31 | F94: =SUMIF('00 PDC SP'!$C:$C,'00 SP'!$D94,'00 PDC SP'!H:H) -> 0 | G94: =SUMIF('00 PDC SP'!$C:$C,'00 SP'!$D94,'00 PDC SP'!I:I) -> 0 | H94: =SUMIF('00 PDC SP'!$C:$C,'00 SP'!$D94,'00 PDC SP'!J:J) -> 0 | I94: =SUMIF('00 PDC SP'!$C:$C,'00 SP'!$D94,'00 PDC SP'!K:K) -> 0 | J94: =SUMIF('00 PDC SP'!$C:$C,'00 SP'!$D94,'00 PDC SP'!L:L) -> 0 | K94: =SUMIF('00 PDC SP'!$C:$C,'00 SP'!$D94,'00 PDC SP'!M:M) -> 0 | L94: =SUMIF('00 PDC SP'!$C:$C,'00 SP'!$D94,'00 PDC SP'!N:N) -> 0
A95: ABA130 | B95: B.I.2.b) Materiali di guardaroba, di pulizia, e di convivenza in genere | D95: ABA130 | E95: 31 | F95: =SUMIF('00 PDC SP'!$C:$C,'00 SP'!$D95,'00 PDC SP'!H:H) -> 44097.34 | G95: =SUMIF('00 PDC SP'!$C:$C,'00 SP'!$D95,'00 PDC SP'!I:I) -> 35073.03 | H95: =SUMIF('00 PDC SP'!$C:$C,'00 SP'!$D95,'00 PDC SP'!J:J) -> 44097.34 | I95: =SUMIF('00 PDC SP'!$C:$C,'00 SP'!$D95,'00 PDC SP'!K:K) -> 35073.03 | J95: =SUMIF('00 PDC SP'!$C:$C,'00 SP'!$D95,'00 PDC SP'!L:L) -> 29727.94 | K95: =SUMIF('00 PDC SP'!$C:$C,'00 SP'!$D95,'00 PDC SP'!M:M) -> 35073.03 | L95: =SUMIF('00 PDC SP'!$C:$C,'00 SP'!$D95,'00 PDC SP'!N:N) -> 29727.94
A96: ABA140 | B96: B.I.2.c) Combustibili, carburanti e lubrificanti | D96: ABA140 | E96: 31 | F96: =SUMIF('00 PDC SP'!$C:$C,'00 SP'!$D96,'00 PDC SP'!H:H) -> 364.21 | G96: =SUMIF('00 PDC SP'!$C:$C,'00 SP'!$D96,'00 PDC SP'!I:I) -> 0 | H96: =SUMIF('00 PDC SP'!$C:$C,'00 SP'!$D96,'00 PDC SP'!J:J) -> 364.21 | I96: =SUMIF('00 PDC SP'!$C:$C,'00 SP'!$D96,'00 PDC SP'!K:K) -> 0 | J96: =SUMIF('00 PDC SP'!$C:$C,'00 SP'!$D96,'00 PDC SP'!L:L) -> 0 | K96: =SUMIF('00 PDC SP'!$C:$C,'00 SP'!$D96,'00 PDC SP'!M:M) -> 0 | L96: =SUMIF('00 PDC SP'!$C:$C,'00 SP'!$D96,'00 PDC SP'!N:N) -> 0
A97: ABA150 | B97: B.I.2.d) Supporti informatici e cancelleria | D97: ABA150 | E97: 31 | F97: =SUMIF('00 PDC SP'!$C:$C,'00 SP'!$D97,'00 PDC SP'!H:H) -> 365742.64 | G97: =SUMIF('00 PDC SP'!$C:$C,'00 SP'!$D97,'00 PDC SP'!I:I) -> 333136.13 | H97: =SUMIF('00 PDC SP'!$C:$C,'00 SP'!$D97,'00 PDC SP'!J:J) -> 365742.64 | I97: =SUMIF('00 PDC SP'!$C:$C,'00 SP'!$D97,'00 PDC SP'!K:K) -> 333136.13 | J97: =SUMIF('00 PDC SP'!$C:$C,'00 SP'!$D97,'00 PDC SP'!L:L) -> 362290.35 | K97: =SUMIF('00 PDC SP'!$C:$C,'00 SP'!$D97,'00 PDC SP'!M:M) -> 333136.13 | L97: =SUMIF('00 PDC SP'!$C:$C,'00 SP'!$D97,'00 PDC SP'!N:N) -> 362290.35
A98: ABA160 | B98: B.I.2.e) Materiale per la manutenzione | D98: ABA160 | E98: 31 | F98: =SUMIF('00 PDC SP'!$C:$C,'00 SP'!$D98,'00 PDC SP'!H:H) -> 143063.65 | G98: =SUMIF('00 PDC SP'!$C:$C,'00 SP'!$D98,'00 PDC SP'!I:I) -> 85148.94 | H98: =SUMIF('00 PDC SP'!$C:$C,'00 SP'!$D98,'00 PDC SP'!J:J) -> 143063.65 | I98: =SUMIF('00 PDC SP'!$C:$C,'00 SP'!$D98,'00 PDC SP'!K:K) -> 85148.94 | J98: =SUMIF('00 PDC SP'!$C:$C,'00 SP'!$D98,'00 PDC SP'!L:L) -> 117370.14 | K98: =SUMIF('00 PDC SP'!$C:$C,'00 SP'!$D98,'00 PDC SP'!M:M) -> 85148.94 | L98: =SUMIF('00 PDC SP'!$C:$C,'00 SP'!$D98,'00 PDC SP'!N:N) -> 117370.14
A99: ABA170 | B99: B.I.2.f) Altri beni e prodotti non sanitari | D99: ABA170 | E99: 31 | F99: =SUMIF('00 PDC SP'!$C:$C,'00 SP'!$D99,'00 PDC SP'!H:H) -> 3445.61 | G99: =SUMIF('00 PDC SP'!$C:$C,'00 SP'!$D99,'00 PDC SP'!I:I) -> 2869.46 | H99: =SUMIF('00 PDC SP'!$C:$C,'00 SP'!$D99,'00 PDC SP'!J:J) -> 3445.61 | I99: =SUMIF('00 PDC SP'!$C:$C,'00 SP'!$D99,'00 PDC SP'!K:K) -> 2869.46 | J99: =SUMIF('00 PDC SP'!$C:$C,'00 SP'!$D99,'00 PDC SP'!L:L) -> 1229.74 | K99: =SUMIF('00 PDC SP'!$C:$C,'00 SP'!$D99,'00 PDC SP'!M:M) -> 2869.46 | L99: =SUMIF('00 PDC SP'!$C:$C,'00 SP'!$D99,'00 PDC SP'!N:N) -> 1229.74
A100: ABA180 | B100: B.I.2.g) Acconti per acquisto di beni e prodotti non sanitari | D100: ABA180 | E100: 32 | F100: =SUMIF('00 PDC SP'!$C:$C,'00 SP'!$D100,'00 PDC SP'!H:H) -> 0 | G100: =SUMIF('00 PDC SP'!$C:$C,'00 SP'!$D100,'00 PDC SP'!I:I) -> 0 | H100: =SUMIF('00 PDC SP'!$C:$C,'00 SP'!$D100,'00 PDC SP'!J:J) -> 0 | I100: =SUMIF('00 PDC SP'!$C:$C,'00 SP'!$D100,'00 PDC SP'!K:K) -> 0 | J100: =SUMIF('00 PDC SP'!$C:$C,'00 SP'!$D100,'00 PDC SP'!L:L) -> 0 | K100: =SUMIF('00 PDC SP'!$C:$C,'00 SP'!$D100,'00 PDC SP'!M:M) -> 0 | L100: =SUMIF('00 PDC SP'!$C:$C,'00 SP'!$D100,'00 PDC SP'!N:N) -> 0
A101: ABA190 | B101: B.II) CREDITI | C101: S | D101: ABA190 | F101: =F102+F117+F135+F136+F143+F147+F148 -> 162311955.8 | G101: 1308466259 | H101: 1249318016 | I101: 221460198.9 | J101: 1317339060 | K101: 1357196933 | L101: 181602325.3
A102: ABA200 | B102: B.II.1) Crediti v/Stato | C102: S | D102: ABA200 | F102: =SUM(F103:F111)+F116 -> 10866.88 | G102: 123337.75 | H102: 30151.63 | I102: 104053 | J102: 12202.45 | K102: 18172.71 | L102: 98082.74
A103: ABA210 | B103: B.II.1.a) Crediti v/Stato per spesa corrente - Integrazione a norma del D.L.vo 56/2000 | D103: ABA210 | E103: 21 | F103: =SUMIF('00 PDC SP'!$C:$C,'00 SP'!$D103,'00 PDC SP'!H:H) -> 0 | G103: =SUMIF('00 PDC SP'!$C:$C,'00 SP'!$D103,'00 PDC SP'!I:I) -> 19655.01 | H103: =SUMIF('00 PDC SP'!$C:$C,'00 SP'!$D103,'00 PDC SP'!J:J) -> 13684.75 | I103: =SUMIF('00 PDC SP'!$C:$C,'00 SP'!$D103,'00 PDC SP'!K:K) -> 5970.26 | J103: =SUMIF('00 PDC SP'!$C:$C,'00 SP'!$D103,'00 PDC SP'!L:L) -> 12202.45 | K103: =SUMIF('00 PDC SP'!$C:$C,'00 SP'!$D103,'00 PDC SP'!M:M) -> 18172.71 | L103: =SUMIF('00 PDC SP'!$C:$C,'00 SP'!$D103,'00 PDC SP'!N:N) -> 0
A104: ABA220 | B104: B.II.1.b) Crediti v/Stato per spesa corrente - FSN | D104: ABA220 | E104: 21 | F104: =SUMIF('00 PDC SP'!$C:$C,'00 SP'!$D104,'00 PDC SP'!H:H) -> 0 | G104: =SUMIF('00 PDC SP'!$C:$C,'00 SP'!$D104,'00 PDC SP'!I:I) -> 0 | H104: =SUMIF('00 PDC SP'!$C:$C,'00 SP'!$D104,'00 PDC SP'!J:J) -> 0 | I104: =SUMIF('00 PDC SP'!$C:$C,'00 SP'!$D104,'00 PDC SP'!K:K) -> 0 | J104: =SUMIF('00 PDC SP'!$C:$C,'00 SP'!$D104,'00 PDC SP'!L:L) -> 0 | K104: =SUMIF('00 PDC SP'!$C:$C,'00 SP'!$D104,'00 PDC SP'!M:M) -> 0 | L104: =SUMIF('00 PDC SP'!$C:$C,'00 SP'!$D104,'00 PDC SP'!N:N) -> 0
A105: ABA230 | B105: B.II.1.c) Crediti v/Stato per mobilità attiva extraregionale | D105: ABA230 | E105: 21 | F105: =SUMIF('00 PDC SP'!$C:$C,'00 SP'!$D105,'00 PDC SP'!H:H) -> 0 | G105: =SUMIF('00 PDC SP'!$C:$C,'00 SP'!$D105,'00 PDC SP'!I:I) -> 0 | H105: =SUMIF('00 PDC SP'!$C:$C,'00 SP'!$D105,'00 PDC SP'!J:J) -> 0 | I105: =SUMIF('00 PDC SP'!$C:$C,'00 SP'!$D105,'00 PDC SP'!K:K) -> 0 | J105: =SUMIF('00 PDC SP'!$C:$C,'00 SP'!$D105,'00 PDC SP'!L:L) -> 0 | K105: =SUMIF('00 PDC SP'!$C:$C,'00 SP'!$D105,'00 PDC SP'!M:M) -> 0 | L105: =SUMIF('00 PDC SP'!$C:$C,'00 SP'!$D105,'00 PDC SP'!N:N) -> 0
A106: ABA240 | B106: B.II.1.d) Crediti v/Stato per mobilità attiva internazionale | D106: ABA240 | E106: 21 | F106: =SUMIF('00 PDC SP'!$C:$C,'00 SP'!$D106,'00 PDC SP'!H:H) -> 0 | G106: =SUMIF('00 PDC SP'!$C:$C,'00 SP'!$D106,'00 PDC SP'!I:I) -> 0 | H106: =SUMIF('00 PDC SP'!$C:$C,'00 SP'!$D106,'00 PDC SP'!J:J) -> 0 | I106: =SUMIF('00 PDC SP'!$C:$C,'00 SP'!$D106,'00 PDC SP'!K:K) -> 0 | J106: =SUMIF('00 PDC SP'!$C:$C,'00 SP'!$D106,'00 PDC SP'!L:L) -> 0 | K106: =SUMIF('00 PDC SP'!$C:$C,'00 SP'!$D106,'00 PDC SP'!M:M) -> 0 | L106: =SUMIF('00 PDC SP'!$C:$C,'00 SP'!$D106,'00 PDC SP'!N:N) -> 0
A107: ABA250 | B107: B.II.1.e) Crediti v/Stato per acconto quota fabbisogno sanitario regionale standard | D107: ABA250 | E107: 21 | F107: =SUMIF('00 PDC SP'!$C:$C,'00 SP'!$D107,'00 PDC SP'!H:H) -> 0 | G107: =SUMIF('00 PDC SP'!$C:$C,'00 SP'!$D107,'00 PDC SP'!I:I) -> 0 | H107: =SUMIF('00 PDC SP'!$C:$C,'00 SP'!$D107,'00 PDC SP'!J:J) -> 0 | I107: =SUMIF('00 PDC SP'!$C:$C,'00 SP'!$D107,'00 PDC SP'!K:K) -> 0 | J107: =SUMIF('00 PDC SP'!$C:$C,'00 SP'!$D107,'00 PDC SP'!L:L) -> 0 | K107: =SUMIF('00 PDC SP'!$C:$C,'00 SP'!$D107,'00 PDC SP'!M:M) -> 0 | L107: =SUMIF('00 PDC SP'!$C:$C,'00 SP'!$D107,'00 PDC SP'!N:N) -> 0
A108: ABA260 | B108: B.II.1.f) Crediti v/Stato per finanziamento sanitario aggiuntivo corrente | D108: ABA260 | E108: 21 | F108: =SUMIF('00 PDC SP'!$C:$C,'00 SP'!$D108,'00 PDC SP'!H:H) -> 0 | G108: =SUMIF('00 PDC SP'!$C:$C,'00 SP'!$D108,'00 PDC SP'!I:I) -> 0 | H108: =SUMIF('00 PDC SP'!$C:$C,'00 SP'!$D108,'00 PDC SP'!J:J) -> 0 | I108: =SUMIF('00 PDC SP'!$C:$C,'00 SP'!$D108,'00 PDC SP'!K:K) -> 0 | J108: =SUMIF('00 PDC SP'!$C:$C,'00 SP'!$D108,'00 PDC SP'!L:L) -> 0 | K108: =SUMIF('00 PDC SP'!$C:$C,'00 SP'!$D108,'00 PDC SP'!M:M) -> 0 | L108: =SUMIF('00 PDC SP'!$C:$C,'00 SP'!$D108,'00 PDC SP'!N:N) -> 0
A109: ABA270 | B109: B.II.1.g) Crediti v/Stato per spesa corrente - altro | D109: ABA270 | E109: 21 | F109: =SUMIF('00 PDC SP'!$C:$C,'00 SP'!$D109,'00 PDC SP'!H:H) -> 566.88 | G109: =SUMIF('00 PDC SP'!$C:$C,'00 SP'!$D109,'00 PDC SP'!I:I) -> 0 | H109: =SUMIF('00 PDC SP'!$C:$C,'00 SP'!$D109,'00 PDC SP'!J:J) -> 566.88 | I109: =SUMIF('00 PDC SP'!$C:$C,'00 SP'!$D109,'00 PDC SP'!K:K) -> 0 | J109: =SUMIF('00 PDC SP'!$C:$C,'00 SP'!$D109,'00 PDC SP'!L:L) -> 0 | K109: =SUMIF('00 PDC SP'!$C:$C,'00 SP'!$D109,'00 PDC SP'!M:M) -> 0 | L109: =SUMIF('00 PDC SP'!$C:$C,'00 SP'!$D109,'00 PDC SP'!N:N) -> 0
A110: ABA280 | B110: B.II.1.h) Crediti v/Stato per finanziamenti per investimenti | D110: ABA280 | E110: 48 | F110: =SUMIF('00 PDC SP'!$C:$C,'00 SP'!$D110,'00 PDC SP'!H:H) -> 0 | G110: =SUMIF('00 PDC SP'!$C:$C,'00 SP'!$D110,'00 PDC SP'!I:I) -> 0 | H110: =SUMIF('00 PDC SP'!$C:$C,'00 SP'!$D110,'00 PDC SP'!J:J) -> 0 | I110: =SUMIF('00 PDC SP'!$C:$C,'00 SP'!$D110,'00 PDC SP'!K:K) -> 0 | J110: =SUMIF('00 PDC SP'!$C:$C,'00 SP'!$D110,'00 PDC SP'!L:L) -> 0 | K110: =SUMIF('00 PDC SP'!$C:$C,'00 SP'!$D110,'00 PDC SP'!M:M) -> 0 | L110: =SUMIF('00 PDC SP'!$C:$C,'00 SP'!$D110,'00 PDC SP'!N:N) -> 0
A111: ABA290 | B111: B.II.1.i) Crediti v/Stato per ricerca | C111: S | D111: ABA290 | F111: =SUM(F112:F115) -> 10300 | G111: 10220 | H111: 15900 | I111: 4620 | J111: 0 | K111: 0 | L111: 4620
A112: ABA300 | B112: B.II.1.i.1) Crediti v/Stato per ricerca corrente - Ministero della Salute | D112: ABA300 | E112: 21 | F112: =SUMIF('00 PDC SP'!$C:$C,'00 SP'!$D112,'00 PDC SP'!H:H) -> 0 | G112: =SUMIF('00 PDC SP'!$C:$C,'00 SP'!$D112,'00 PDC SP'!I:I) -> 0 | H112: =SUMIF('00 PDC SP'!$C:$C,'00 SP'!$D112,'00 PDC SP'!J:J) -> 0 | I112: =SUMIF('00 PDC SP'!$C:$C,'00 SP'!$D112,'00 PDC SP'!K:K) -> 0 | J112: =SUMIF('00 PDC SP'!$C:$C,'00 SP'!$D112,'00 PDC SP'!L:L) -> 0 | K112: =SUMIF('00 PDC SP'!$C:$C,'00 SP'!$D112,'00 PDC SP'!M:M) -> 0 | L112: =SUMIF('00 PDC SP'!$C:$C,'00 SP'!$D112,'00 PDC SP'!N:N) -> 0
A113: ABA310 | B113: B.II.1.i.2) Crediti v/Stato per ricerca finalizzata - Ministero della Salute | D113: ABA310 | E113: 21 | F113: =SUMIF('00 PDC SP'!$C:$C,'00 SP'!$D113,'00 PDC SP'!H:H) -> 10300 | G113: =SUMIF('00 PDC SP'!$C:$C,'00 SP'!$D113,'00 PDC SP'!I:I) -> 10220 | H113: =SUMIF('00 PDC SP'!$C:$C,'00 SP'!$D113,'00 PDC SP'!J:J) -> 15900 | I113: =SUMIF('00 PDC SP'!$C:$C,'00 SP'!$D113,'00 PDC SP'!K:K) -> 4620 | J113: =SUMIF('00 PDC SP'!$C:$C,'00 SP'!$D113,'00 PDC SP'!L:L) -> 0 | K113: =SUMIF('00 PDC SP'!$C:$C,'00 SP'!$D113,'00 PDC SP'!M:M) -> 0 | L113: =SUMIF('00 PDC SP'!$C:$C,'00 SP'!$D113,'00 PDC SP'!N:N) -> 4620
A114: ABA320 | B114: B.II.1.i.3) Crediti v/Stato per ricerca - altre Amministrazioni centrali | D114: ABA320 | E114: 21 | F114: =SUMIF('00 PDC SP'!$C:$C,'00 SP'!$D114,'00 PDC SP'!H:H) -> 0 | G114: =SUMIF('00 PDC SP'!$C:$C,'00 SP'!$D114,'00 PDC SP'!I:I) -> 0 | H114: =SUMIF('00 PDC SP'!$C:$C,'00 SP'!$D114,'00 PDC SP'!J:J) -> 0 | I114: =SUMIF('00 PDC SP'!$C:$C,'00 SP'!$D114,'00 PDC SP'!K:K) -> 0 | J114: =SUMIF('00 PDC SP'!$C:$C,'00 SP'!$D114,'00 PDC SP'!L:L) -> 0 | K114: =SUMIF('00 PDC SP'!$C:$C,'00 SP'!$D114,'00 PDC SP'!M:M) -> 0 | L114: =SUMIF('00 PDC SP'!$C:$C,'00 SP'!$D114,'00 PDC SP'!N:N) -> 0
A115: ABA330 | B115: B.II.1.i.4) Crediti v/Stato per ricerca - finanziamenti per investimenti | D115: ABA330 | E115: 21 | F115: =SUMIF('00 PDC SP'!$C:$C,'00 SP'!$D115,'00 PDC SP'!H:H) -> 0 | G115: =SUMIF('00 PDC SP'!$C:$C,'00 SP'!$D115,'00 PDC SP'!I:I) -> 0 | H115: =SUMIF('00 PDC SP'!$C:$C,'00 SP'!$D115,'00 PDC SP'!J:J) -> 0 | I115: =SUMIF('00 PDC SP'!$C:$C,'00 SP'!$D115,'00 PDC SP'!K:K) -> 0 | J115: =SUMIF('00 PDC SP'!$C:$C,'00 SP'!$D115,'00 PDC SP'!L:L) -> 0 | K115: =SUMIF('00 PDC SP'!$C:$C,'00 SP'!$D115,'00 PDC SP'!M:M) -> 0 | L115: =SUMIF('00 PDC SP'!$C:$C,'00 SP'!$D115,'00 PDC SP'!N:N) -> 0
A116: ABA340 | B116: B.II.1.l) Crediti v/prefetture | D116: ABA340 | E116: 21 | F116: =SUMIF('00 PDC SP'!$C:$C,'00 SP'!$D116,'00 PDC SP'!H:H) -> 0 | G116: =SUMIF('00 PDC SP'!$C:$C,'00 SP'!$D116,'00 PDC SP'!I:I) -> 93462.74 | H116: =SUMIF('00 PDC SP'!$C:$C,'00 SP'!$D116,'00 PDC SP'!J:J) -> 0 | I116: =SUMIF('00 PDC SP'!$C:$C,'00 SP'!$D116,'00 PDC SP'!K:K) -> 93462.74 | J116: =SUMIF('00 PDC SP'!$C:$C,'00 SP'!$D116,'00 PDC SP'!L:L) -> 0 | K116: =SUMIF('00 PDC SP'!$C:$C,'00 SP'!$D116,'00 PDC SP'!M:M) -> 0 | L116: =SUMIF('00 PDC SP'!$C:$C,'00 SP'!$D116,'00 PDC SP'!N:N) -> 93462.74
A117: ABA350 | B117: B.II.2) Crediti v/Regione o Provincia Autonoma | C117: S | D117: ABA350 | F117: =F118+F129 -> 157978850.6 | G117: 1284040974 | H117: 1226145808 | I117: 215874017.3 | J117: 1293654186 | K117: 1333105859 | L117: 176422344.8
A118: ABA360 | B118: B.II.2.a) Crediti v/Regione o Provincia Autonoma per spesa corrente | C118: S | D118: ABA360 | F118: =SUM(F119:F128) -> 157940595.6 | G118: 1253262847 | H118: 1216969740 | I118: 194233702.7 | J118: 1279389476 | K118: 1311503799 | L118: 162119379.8
A119: ABA370 | B119: B.II.2.a.1) Crediti v/Regione o Provincia Autonoma per spesa corrente - IRAP | D119: ABA370 | E119: 25 | F119: =SUMIF('00 PDC SP'!$C:$C,'00 SP'!$D119,'00 PDC SP'!H:H) -> 0 | G119: =SUMIF('00 PDC SP'!$C:$C,'00 SP'!$D119,'00 PDC SP'!I:I) -> 0 | H119: =SUMIF('00 PDC SP'!$C:$C,'00 SP'!$D119,'00 PDC SP'!J:J) -> 0 | I119: =SUMIF('00 PDC SP'!$C:$C,'00 SP'!$D119,'00 PDC SP'!K:K) -> 0 | J119: =SUMIF('00 PDC SP'!$C:$C,'00 SP'!$D119,'00 PDC SP'!L:L) -> 0 | K119: =SUMIF('00 PDC SP'!$C:$C,'00 SP'!$D119,'00 PDC SP'!M:M) -> 0 | L119: =SUMIF('00 PDC SP'!$C:$C,'00 SP'!$D119,'00 PDC SP'!N:N) -> 0
A120: ABA380 | B120: B.II.2.a.2) Crediti v/Regione o Provincia Autonoma per spesa corrente - Addizionale IRPEF | D120: ABA380 | E120: 25 | F120: =SUMIF('00 PDC SP'!$C:$C,'00 SP'!$D120,'00 PDC SP'!H:H) -> 0 | G120: =SUMIF('00 PDC SP'!$C:$C,'00 SP'!$D120,'00 PDC SP'!I:I) -> 0 | H120: =SUMIF('00 PDC SP'!$C:$C,'00 SP'!$D120,'00 PDC SP'!J:J) -> 0 | I120: =SUMIF('00 PDC SP'!$C:$C,'00 SP'!$D120,'00 PDC SP'!K:K) -> 0 | J120: =SUMIF('00 PDC SP'!$C:$C,'00 SP'!$D120,'00 PDC SP'!L:L) -> 0 | K120: =SUMIF('00 PDC SP'!$C:$C,'00 SP'!$D120,'00 PDC SP'!M:M) -> 0 | L120: =SUMIF('00 PDC SP'!$C:$C,'00 SP'!$D120,'00 PDC SP'!N:N) -> 0
A121: ABA390 | B121: B.II.2.a.3) Crediti v/Regione o Provincia Autonoma per quota FSR | D121: ABA390 | E121: 25 | F121: =SUMIF('00 PDC SP'!$C:$C,'00 SP'!$D121,'00 PDC SP'!H:H) -> 112678943.3 | G121: =SUMIF('00 PDC SP'!$C:$C,'00 SP'!$D121,'00 PDC SP'!I:I) -> 620609320.6 | H121: =SUMIF('00 PDC SP'!$C:$C,'00 SP'!$D121,'00 PDC SP'!J:J) -> 586865386.7 | I121: =SUMIF('00 PDC SP'!$C:$C,'00 SP'!$D121,'00 PDC SP'!K:K) -> 146422877.2 | J121: =SUMIF('00 PDC SP'!$C:$C,'00 SP'!$D121,'00 PDC SP'!L:L) -> 611234256.9 | K121: =SUMIF('00 PDC SP'!$C:$C,'00 SP'!$D121,'00 PDC SP'!M:M) -> 641777089 | L121: =SUMIF('00 PDC SP'!$C:$C,'00 SP'!$D121,'00 PDC SP'!N:N) -> 115880045.1
A122: ABA400 | B122: B.II.2.a.4) Crediti v/Regione o Provincia Autonoma per mobilità attiva intraregionale | D122: ABA400 | E122: 25 | F122: =SUMIF('00 PDC SP'!$C:$C,'00 SP'!$D122,'00 PDC SP'!H:H) -> 17307120.76 | G122: =SUMIF('00 PDC SP'!$C:$C,'00 SP'!$D122,'00 PDC SP'!I:I) -> 94245672.53 | H122: =SUMIF('00 PDC SP'!$C:$C,'00 SP'!$D122,'00 PDC SP'!J:J) -> 94615942.91 | I122: =SUMIF('00 PDC SP'!$C:$C,'00 SP'!$D122,'00 PDC SP'!K:K) -> 16936850.38 | J122: =SUMIF('00 PDC SP'!$C:$C,'00 SP'!$D122,'00 PDC SP'!L:L) -> 98488215.59 | K122: =SUMIF('00 PDC SP'!$C:$C,'00 SP'!$D122,'00 PDC SP'!M:M) -> 98575322.59 | L122: =SUMIF('00 PDC SP'!$C:$C,'00 SP'!$D122,'00 PDC SP'!N:N) -> 16849743.38
A123: ABA410 | B123: B.II.2.a.5) Crediti v/Regione o Provincia Autonoma per mobilità attiva extraregionale | D123: ABA410 | E123: 25 | F123: =SUMIF('00 PDC SP'!$C:$C,'00 SP'!$D123,'00 PDC SP'!H:H) -> 19005500.29 | G123: =SUMIF('00 PDC SP'!$C:$C,'00 SP'!$D123,'00 PDC SP'!I:I) -> 0 | H123: =SUMIF('00 PDC SP'!$C:$C,'00 SP'!$D123,'00 PDC SP'!J:J) -> 0 | I123: =SUMIF('00 PDC SP'!$C:$C,'00 SP'!$D123,'00 PDC SP'!K:K) -> 19005500.29 | J123: =SUMIF('00 PDC SP'!$C:$C,'00 SP'!$D123,'00 PDC SP'!L:L) -> 17628432.4 | K123: =SUMIF('00 PDC SP'!$C:$C,'00 SP'!$D123,'00 PDC SP'!M:M) -> 17628432.4 | L123: =SUMIF('00 PDC SP'!$C:$C,'00 SP'!$D123,'00 PDC SP'!N:N) -> 19005500.29
A124: ABA420 | B124: B.II.2.a.6) Crediti v/Regione o Provincia Autonoma per acconto quota FSR | D124: ABA420 | E124: 25 | F124: =SUMIF('00 PDC SP'!$C:$C,'00 SP'!$D124,'00 PDC SP'!H:H) -> 0 | G124: =SUMIF('00 PDC SP'!$C:$C,'00 SP'!$D124,'00 PDC SP'!I:I) -> 533673541 | H124: =SUMIF('00 PDC SP'!$C:$C,'00 SP'!$D124,'00 PDC SP'!J:J) -> 533673541 | I124: =SUMIF('00 PDC SP'!$C:$C,'00 SP'!$D124,'00 PDC SP'!K:K) -> 0 | J124: =SUMIF('00 PDC SP'!$C:$C,'00 SP'!$D124,'00 PDC SP'!L:L) -> 546891755 | K124: =SUMIF('00 PDC SP'!$C:$C,'00 SP'!$D124,'00 PDC SP'!M:M) -> 546891755 | L124: =SUMIF('00 PDC SP'!$C:$C,'00 SP'!$D124,'00 PDC SP'!N:N) -> 0
A125: ABA430 | B125: B.II.2.a.7) Crediti v/Regione o Provincia Autonoma per finanziamento sanitario aggiuntivo corrente LEA | D125: ABA430 | E125: 25 | F125: =SUMIF('00 PDC SP'!$C:$C,'00 SP'!$D125,'00 PDC SP'!H:H) -> 8949031.21 | G125: =SUMIF('00 PDC SP'!$C:$C,'00 SP'!$D125,'00 PDC SP'!I:I) -> 4734312.81 | H125: =SUMIF('00 PDC SP'!$C:$C,'00 SP'!$D125,'00 PDC SP'!J:J) -> 1814869.13 | I125: =SUMIF('00 PDC SP'!$C:$C,'00 SP'!$D125,'00 PDC SP'!K:K) -> 11868474.89 | J125: =SUMIF('00 PDC SP'!$C:$C,'00 SP'!$D125,'00 PDC SP'!L:L) -> 5146816.37 | K125: =SUMIF('00 PDC SP'!$C:$C,'00 SP'!$D125,'00 PDC SP'!M:M) -> 6631200.24 | L125: =SUMIF('00 PDC SP'!$C:$C,'00 SP'!$D125,'00 PDC SP'!N:N) -> 10384091.02
A126: ABA440 | B126: B.II.2.a.8) Crediti v/Regione o Provincia Autonoma per finanziamento sanitario aggiuntivo corrente extra LEA | D126: ABA440 | E126: 25 | F126: =SUMIF('00 PDC SP'!$C:$C,'00 SP'!$D126,'00 PDC SP'!H:H) -> 0 | G126: =SUMIF('00 PDC SP'!$C:$C,'00 SP'!$D126,'00 PDC SP'!I:I) -> 0 | H126: =SUMIF('00 PDC SP'!$C:$C,'00 SP'!$D126,'00 PDC SP'!J:J) -> 0 | I126: =SUMIF('00 PDC SP'!$C:$C,'00 SP'!$D126,'00 PDC SP'!K:K) -> 0 | J126: =SUMIF('00 PDC SP'!$C:$C,'00 SP'!$D126,'00 PDC SP'!L:L) -> 0 | K126: =SUMIF('00 PDC SP'!$C:$C,'00 SP'!$D126,'00 PDC SP'!M:M) -> 0 | L126: =SUMIF('00 PDC SP'!$C:$C,'00 SP'!$D126,'00 PDC SP'!N:N) -> 0
A127: ABA450 | B127: B.II.2.a.9) Crediti v/Regione o Provincia Autonoma per spesa corrente - altro | D127: ABA450 | E127: 25 | F127: =SUMIF('00 PDC SP'!$C:$C,'00 SP'!$D127,'00 PDC SP'!H:H) -> 0 | G127: =SUMIF('00 PDC SP'!$C:$C,'00 SP'!$D127,'00 PDC SP'!I:I) -> 0 | H127: =SUMIF('00 PDC SP'!$C:$C,'00 SP'!$D127,'00 PDC SP'!J:J) -> 0 | I127: =SUMIF('00 PDC SP'!$C:$C,'00 SP'!$D127,'00 PDC SP'!K:K) -> 0 | J127: =SUMIF('00 PDC SP'!$C:$C,'00 SP'!$D127,'00 PDC SP'!L:L) -> 0 | K127: =SUMIF('00 PDC SP'!$C:$C,'00 SP'!$D127,'00 PDC SP'!M:M) -> 0 | L127: =SUMIF('00 PDC SP'!$C:$C,'00 SP'!$D127,'00 PDC SP'!N:N) -> 0
A128: ABA460 | B128: B.II.2.a.10) Crediti v/Regione o Provincia Autonoma per ricerca | D128: ABA460 | E128: 25 | F128: =SUMIF('00 PDC SP'!$C:$C,'00 SP'!$D128,'00 PDC SP'!H:H) -> 0 | G128: =SUMIF('00 PDC SP'!$C:$C,'00 SP'!$D128,'00 PDC SP'!I:I) -> 0 | H128: =SUMIF('00 PDC SP'!$C:$C,'00 SP'!$D128,'00 PDC SP'!J:J) -> 0 | I128: =SUMIF('00 PDC SP'!$C:$C,'00 SP'!$D128,'00 PDC SP'!K:K) -> 0 | J128: =SUMIF('00 PDC SP'!$C:$C,'00 SP'!$D128,'00 PDC SP'!L:L) -> 0 | K128: =SUMIF('00 PDC SP'!$C:$C,'00 SP'!$D128,'00 PDC SP'!M:M) -> 0 | L128: =SUMIF('00 PDC SP'!$C:$C,'00 SP'!$D128,'00 PDC SP'!N:N) -> 0
A129: ABA470 | B129: B.II.2.b) Crediti v/Regione o Provincia Autonoma per versamenti a patrimonio netto | C129: S | D129: ABA470 | F129: =SUM(F130:F134) -> 38255 | G129: 30778127.57 | H129: 9176068 | I129: 21640314.57 | J129: 14264710 | K129: 21602059.57 | L129: 14302965
A130: ABA480 | B130: B.II.2.b.1) Crediti v/Regione o Provincia Autonoma per finanziamenti per investimenti | D130: ABA480 | E130: 49 | F130: =SUMIF('00 PDC SP'!$C:$C,'00 SP'!$D130,'00 PDC SP'!H:H) -> 38255 | G130: =SUMIF('00 PDC SP'!$C:$C,'00 SP'!$D130,'00 PDC SP'!I:I) -> 0 | H130: =SUMIF('00 PDC SP'!$C:$C,'00 SP'!$D130,'00 PDC SP'!J:J) -> 0 | I130: =SUMIF('00 PDC SP'!$C:$C,'00 SP'!$D130,'00 PDC SP'!K:K) -> 38255 | J130: =SUMIF('00 PDC SP'!$C:$C,'00 SP'!$D130,'00 PDC SP'!L:L) -> 0 | K130: =SUMIF('00 PDC SP'!$C:$C,'00 SP'!$D130,'00 PDC SP'!M:M) -> 0 | L130: =SUMIF('00 PDC SP'!$C:$C,'00 SP'!$D130,'00 PDC SP'!N:N) -> 38255
A131: ABA490 | B131: B.II.2.b.2) Crediti v/Regione o Provincia Autonoma per incremento fondo dotazione | D131: ABA490 | E131: 50 | F131: =SUMIF('00 PDC SP'!$C:$C,'00 SP'!$D131,'00 PDC SP'!H:H) -> 0 | G131: =SUMIF('00 PDC SP'!$C:$C,'00 SP'!$D131,'00 PDC SP'!I:I) -> 0 | H131: =SUMIF('00 PDC SP'!$C:$C,'00 SP'!$D131,'00 PDC SP'!J:J) -> 0 | I131: =SUMIF('00 PDC SP'!$C:$C,'00 SP'!$D131,'00 PDC SP'!K:K) -> 0 | J131: =SUMIF('00 PDC SP'!$C:$C,'00 SP'!$D131,'00 PDC SP'!L:L) -> 0 | K131: =SUMIF('00 PDC SP'!$C:$C,'00 SP'!$D131,'00 PDC SP'!M:M) -> 0 | L131: =SUMIF('00 PDC SP'!$C:$C,'00 SP'!$D131,'00 PDC SP'!N:N) -> 0
A132: ABA500 | B132: B.II.2.b.3) Crediti v/Regione o Provincia Autonoma per ripiano perdite | D132: ABA500 | E132: 51 | F132: =SUMIF('00 PDC SP'!$C:$C,'00 SP'!$D132,'00 PDC SP'!H:H) -> 0 | G132: =SUMIF('00 PDC SP'!$C:$C,'00 SP'!$D132,'00 PDC SP'!I:I) -> 30778127.57 | H132: =SUMIF('00 PDC SP'!$C:$C,'00 SP'!$D132,'00 PDC SP'!J:J) -> 9176068 | I132: =SUMIF('00 PDC SP'!$C:$C,'00 SP'!$D132,'00 PDC SP'!K:K) -> 21602059.57 | J132: =SUMIF('00 PDC SP'!$C:$C,'00 SP'!$D132,'00 PDC SP'!L:L) -> 14264710 | K132: =SUMIF('00 PDC SP'!$C:$C,'00 SP'!$D132,'00 PDC SP'!M:M) -> 21602059.57 | L132: =SUMIF('00 PDC SP'!$C:$C,'00 SP'!$D132,'00 PDC SP'!N:N) -> 14264710
A133: ABA510 | B133: B.II.2.b.4) Crediti v/Regione per copertura debiti al 31/12/2005 | D133: ABA510 | E133: 52 | F133: =SUMIF('00 PDC SP'!$C:$C,'00 SP'!$D133,'00 PDC SP'!H:H) -> 0 | G133: =SUMIF('00 PDC SP'!$C:$C,'00 SP'!$D133,'00 PDC SP'!I:I) -> 0 | H133: =SUMIF('00 PDC SP'!$C:$C,'00 SP'!$D133,'00 PDC SP'!J:J) -> 0 | I133: =SUMIF('00 PDC SP'!$C:$C,'00 SP'!$D133,'00 PDC SP'!K:K) -> 0 | J133: =SUMIF('00 PDC SP'!$C:$C,'00 SP'!$D133,'00 PDC SP'!L:L) -> 0 | K133: =SUMIF('00 PDC SP'!$C:$C,'00 SP'!$D133,'00 PDC SP'!M:M) -> 0 | L133: =SUMIF('00 PDC SP'!$C:$C,'00 SP'!$D133,'00 PDC SP'!N:N) -> 0
A134: ABA520 | B134: B.II.2.b.5) Crediti v/Regione o Provincia Autonoma per ricostituzione risorse da investimenti esercizi precedenti | D134: ABA520 | E134: 49 | F134: =SUMIF('00 PDC SP'!$C:$C,'00 SP'!$D134,'00 PDC SP'!H:H) -> 0 | G134: =SUMIF('00 PDC SP'!$C:$C,'00 SP'!$D134,'00 PDC SP'!I:I) -> 0 | H134: =SUMIF('00 PDC SP'!$C:$C,'00 SP'!$D134,'00 PDC SP'!J:J) -> 0 | I134: =SUMIF('00 PDC SP'!$C:$C,'00 SP'!$D134,'00 PDC SP'!K:K) -> 0 | J134: =SUMIF('00 PDC SP'!$C:$C,'00 SP'!$D134,'00 PDC SP'!L:L) -> 0 | K134: =SUMIF('00 PDC SP'!$C:$C,'00 SP'!$D134,'00 PDC SP'!M:M) -> 0 | L134: =SUMIF('00 PDC SP'!$C:$C,'00 SP'!$D134,'00 PDC SP'!N:N) -> 0
A135: ABA530 | B135: B.II.3) Crediti v/Comuni | D135: ABA530 | E135: 26 | F135: =SUMIF('00 PDC SP'!$C:$C,'00 SP'!$D135,'00 PDC SP'!H:H) -> 106598.9 | G135: =SUMIF('00 PDC SP'!$C:$C,'00 SP'!$D135,'00 PDC SP'!I:I) -> 36197.23 | H135: =SUMIF('00 PDC SP'!$C:$C,'00 SP'!$D135,'00 PDC SP'!J:J) -> 54489.15 | I135: =SUMIF('00 PDC SP'!$C:$C,'00 SP'!$D135,'00 PDC SP'!K:K) -> 88306.98 | J135: =SUMIF('00 PDC SP'!$C:$C,'00 SP'!$D135,'00 PDC SP'!L:L) -> 172187.78 | K135: =SUMIF('00 PDC SP'!$C:$C,'00 SP'!$D135,'00 PDC SP'!M:M) -> 40166.41 | L135: =SUMIF('00 PDC SP'!$C:$C,'00 SP'!$D135,'00 PDC SP'!N:N) -> 220328.35
A136: ABA540 | B136: B.II.4) Crediti v/Aziende sanitarie pubbliche | C136: S | D136: ABA540 | F136: =F137+F141+F142 -> 1589512.97 | G136: 733586.15 | H136: 392099.08 | I136: 1931000.04 | J136: 5107921.64 | K136: 5494293.81 | L136: 1544627.87
A137: ABA550 | B137: B.II.4.a) Crediti v/Aziende sanitarie pubbliche della Regione | C137: S | D137: ABA550 | F137: =SUM(F138:F140) -> 1413208.53 | G137: 492991.53 | H137: 176331.84 | I137: 1729868.22 | J137: 4860674.14 | K137: 5260150.03 | L137: 1330392.33
A138: ABA560 | B138: B.II.4.a.1) Crediti v/Aziende sanitarie pubbliche della Regione - per mobilità in compensazione | D138: ABA560 | E138: 27 | F138: =SUMIF('00 PDC SP'!$C:$C,'00 SP'!$D138,'00 PDC SP'!H:H) -> 0 | G138: =SUMIF('00 PDC SP'!$C:$C,'00 SP'!$D138,'00 PDC SP'!I:I) -> 0 | H138: =SUMIF('00 PDC SP'!$C:$C,'00 SP'!$D138,'00 PDC SP'!J:J) -> 0 | I138: =SUMIF('00 PDC SP'!$C:$C,'00 SP'!$D138,'00 PDC SP'!K:K) -> 0 | J138: =SUMIF('00 PDC SP'!$C:$C,'00 SP'!$D138,'00 PDC SP'!L:L) -> 0 | K138: =SUMIF('00 PDC SP'!$C:$C,'00 SP'!$D138,'00 PDC SP'!M:M) -> 0 | L138: =SUMIF('00 PDC SP'!$C:$C,'00 SP'!$D138,'00 PDC SP'!N:N) -> 0
A139: ABA570 | B139: B.II.4.a.2) Crediti v/Aziende sanitarie pubbliche della Regione - per mobilità non in compensazione | D139: ABA570 | E139: 27 | F139: =SUMIF('00 PDC SP'!$C:$C,'00 SP'!$D139,'00 PDC SP'!H:H) -> 0 | G139: =SUMIF('00 PDC SP'!$C:$C,'00 SP'!$D139,'00 PDC SP'!I:I) -> 0 | H139: =SUMIF('00 PDC SP'!$C:$C,'00 SP'!$D139,'00 PDC SP'!J:J) -> 0 | I139: =SUMIF('00 PDC SP'!$C:$C,'00 SP'!$D139,'00 PDC SP'!K:K) -> 0 | J139: =SUMIF('00 PDC SP'!$C:$C,'00 SP'!$D139,'00 PDC SP'!L:L) -> 0 | K139: =SUMIF('00 PDC SP'!$C:$C,'00 SP'!$D139,'00 PDC SP'!M:M) -> 0 | L139: =SUMIF('00 PDC SP'!$C:$C,'00 SP'!$D139,'00 PDC SP'!N:N) -> 0
A140: ABA580 | B140: B.II.4.a.3) Crediti v/Aziende sanitarie pubbliche della Regione - per altre prestazioni | D140: ABA580 | E140: 27 | F140: =SUMIF('00 PDC SP'!$C:$C,'00 SP'!$D140,'00 PDC SP'!H:H) -> 1413208.53 | G140: =SUMIF('00 PDC SP'!$C:$C,'00 SP'!$D140,'00 PDC SP'!I:I) -> 492991.53 | H140: =SUMIF('00 PDC SP'!$C:$C,'00 SP'!$D140,'00 PDC SP'!J:J) -> 176331.84 | I140: =SUMIF('00 PDC SP'!$C:$C,'00 SP'!$D140,'00 PDC SP'!K:K) -> 1729868.22 | J140: =SUMIF('00 PDC SP'!$C:$C,'00 SP'!$D140,'00 PDC SP'!L:L) -> 4860674.14 | K140: =SUMIF('00 PDC SP'!$C:$C,'00 SP'!$D140,'00 PDC SP'!M:M) -> 5260150.03 | L140: =SUMIF('00 PDC SP'!$C:$C,'00 SP'!$D140,'00 PDC SP'!N:N) -> 1330392.33
A141: ABA590 | B141: B.II.4.b) Acconto quota FSR da distribuire | D141: ABA590 | E141: 27 | F141: =SUMIF('00 PDC SP'!$C:$C,'00 SP'!$D141,'00 PDC SP'!H:H) -> 0 | G141: =SUMIF('00 PDC SP'!$C:$C,'00 SP'!$D141,'00 PDC SP'!I:I) -> 0 | H141: =SUMIF('00 PDC SP'!$C:$C,'00 SP'!$D141,'00 PDC SP'!J:J) -> 0 | I141: =SUMIF('00 PDC SP'!$C:$C,'00 SP'!$D141,'00 PDC SP'!K:K) -> 0 | J141: =SUMIF('00 PDC SP'!$C:$C,'00 SP'!$D141,'00 PDC SP'!L:L) -> 0 | K141: =SUMIF('00 PDC SP'!$C:$C,'00 SP'!$D141,'00 PDC SP'!M:M) -> 0 | L141: =SUMIF('00 PDC SP'!$C:$C,'00 SP'!$D141,'00 PDC SP'!N:N) -> 0
A142: ABA600 | B142: B.II.4.c) Crediti v/Aziende sanitarie pubbliche Extraregione | D142: ABA600 | E142: 27 | F142: =SUMIF('00 PDC SP'!$C:$C,'00 SP'!$D142,'00 PDC SP'!H:H) -> 176304.44 | G142: =SUMIF('00 PDC SP'!$C:$C,'00 SP'!$D142,'00 PDC SP'!I:I) -> 240594.62 | H142: =SUMIF('00 PDC SP'!$C:$C,'00 SP'!$D142,'00 PDC SP'!J:J) -> 215767.24 | I142: =SUMIF('00 PDC SP'!$C:$C,'00 SP'!$D142,'00 PDC SP'!K:K) -> 201131.82 | J142: =SUMIF('00 PDC SP'!$C:$C,'00 SP'!$D142,'00 PDC SP'!L:L) -> 247247.5 | K142: =SUMIF('00 PDC SP'!$C:$C,'00 SP'!$D142,'00 PDC SP'!M:M) -> 234143.78 | L142: =SUMIF('00 PDC SP'!$C:$C,'00 SP'!$D142,'00 PDC SP'!N:N) -> 214235.54
A143: ABA610 | B143: B.II.5) Crediti v/società partecipate e/o enti dipendenti della Regione | C143: S | D143: ABA610 | F143: =SUM(F144:F146) -> 5931.31 | G143: 0 | H143: 0 | I143: 5931.31 | J143: 0 | K143: 0 | L143: 5931.31
A144: ABA620 | B144: B.II.5.a) Crediti v/enti regionali | D144: ABA620 | E144: 28 | F144: =SUMIF('00 PDC SP'!$C:$C,'00 SP'!$D144,'00 PDC SP'!H:H) -> 5931.31 | G144: =SUMIF('00 PDC SP'!$C:$C,'00 SP'!$D144,'00 PDC SP'!I:I) -> 0 | H144: =SUMIF('00 PDC SP'!$C:$C,'00 SP'!$D144,'00 PDC SP'!J:J) -> 0 | I144: =SUMIF('00 PDC SP'!$C:$C,'00 SP'!$D144,'00 PDC SP'!K:K) -> 5931.31 | J144: =SUMIF('00 PDC SP'!$C:$C,'00 SP'!$D144,'00 PDC SP'!L:L) -> 0 | K144: =SUMIF('00 PDC SP'!$C:$C,'00 SP'!$D144,'00 PDC SP'!M:M) -> 0 | L144: =SUMIF('00 PDC SP'!$C:$C,'00 SP'!$D144,'00 PDC SP'!N:N) -> 5931.31
A145: ABA630 | B145: B.II.5.b) Crediti v/sperimentazioni gestionali | D145: ABA630 | E145: 28 | F145: =SUMIF('00 PDC SP'!$C:$C,'00 SP'!$D145,'00 PDC SP'!H:H) -> 0 | G145: =SUMIF('00 PDC SP'!$C:$C,'00 SP'!$D145,'00 PDC SP'!I:I) -> 0 | H145: =SUMIF('00 PDC SP'!$C:$C,'00 SP'!$D145,'00 PDC SP'!J:J) -> 0 | I145: =SUMIF('00 PDC SP'!$C:$C,'00 SP'!$D145,'00 PDC SP'!K:K) -> 0 | J145: =SUMIF('00 PDC SP'!$C:$C,'00 SP'!$D145,'00 PDC SP'!L:L) -> 0 | K145: =SUMIF('00 PDC SP'!$C:$C,'00 SP'!$D145,'00 PDC SP'!M:M) -> 0 | L145: =SUMIF('00 PDC SP'!$C:$C,'00 SP'!$D145,'00 PDC SP'!N:N) -> 0
A146: ABA640 | B146: B.II.5.c) Crediti v/altre partecipate | D146: ABA640 | E146: 28 | F146: =SUMIF('00 PDC SP'!$C:$C,'00 SP'!$D146,'00 PDC SP'!H:H) -> 0 | G146: =SUMIF('00 PDC SP'!$C:$C,'00 SP'!$D146,'00 PDC SP'!I:I) -> 0 | H146: =SUMIF('00 PDC SP'!$C:$C,'00 SP'!$D146,'00 PDC SP'!J:J) -> 0 | I146: =SUMIF('00 PDC SP'!$C:$C,'00 SP'!$D146,'00 PDC SP'!K:K) -> 0 | J146: =SUMIF('00 PDC SP'!$C:$C,'00 SP'!$D146,'00 PDC SP'!L:L) -> 0 | K146: =SUMIF('00 PDC SP'!$C:$C,'00 SP'!$D146,'00 PDC SP'!M:M) -> 0 | L146: =SUMIF('00 PDC SP'!$C:$C,'00 SP'!$D146,'00 PDC SP'!N:N) -> 0
A147: ABA650 | B147: B.II.6) Crediti v/Erario | D147: ABA650 | E147: 29 | F147: =SUMIF('00 PDC SP'!$C:$C,'00 SP'!$D147,'00 PDC SP'!H:H) -> 42960.66 | G147: =SUMIF('00 PDC SP'!$C:$C,'00 SP'!$D147,'00 PDC SP'!I:I) -> 437198.5 | H147: =SUMIF('00 PDC SP'!$C:$C,'00 SP'!$D147,'00 PDC SP'!J:J) -> 468152 | I147: =SUMIF('00 PDC SP'!$C:$C,'00 SP'!$D147,'00 PDC SP'!K:K) -> 12007.16 | J147: =SUMIF('00 PDC SP'!$C:$C,'00 SP'!$D147,'00 PDC SP'!L:L) -> 496878.45 | K147: =SUMIF('00 PDC SP'!$C:$C,'00 SP'!$D147,'00 PDC SP'!M:M) -> 500676.57 | L147: =SUMIF('00 PDC SP'!$C:$C,'00 SP'!$D147,'00 PDC SP'!N:N) -> 8209.04
A148: ABA660 | B148: B.II.7) Crediti v/altri | C148: S | D148: ABA660 | F148: =SUM(F149:F153) -> 2577234.51 | G148: 23094964.57 | H148: 22227315.95 | I148: 3444883.13 | J148: 17895683.13 | K148: 18037765.05 | L148: 3302801.21
A149: ABA670 | B149: B.II.7.a) Crediti v/clienti privati | D149: ABA670 | E149: 30 | F149: =SUMIF('00 PDC SP'!$C:$C,'00 SP'!$D149,'00 PDC SP'!H:H) -> 1338523.38 | G149: =SUMIF('00 PDC SP'!$C:$C,'00 SP'!$D149,'00 PDC SP'!I:I) -> 18824821.88 | H149: =SUMIF('00 PDC SP'!$C:$C,'00 SP'!$D149,'00 PDC SP'!J:J) -> 17976805.86 | I149: =SUMIF('00 PDC SP'!$C:$C,'00 SP'!$D149,'00 PDC SP'!K:K) -> 2186539.4 | J149: =SUMIF('00 PDC SP'!$C:$C,'00 SP'!$D149,'00 PDC SP'!L:L) -> 15852276.68 | K149: =SUMIF('00 PDC SP'!$C:$C,'00 SP'!$D149,'00 PDC SP'!M:M) -> 16016405.82 | L149: =SUMIF('00 PDC SP'!$C:$C,'00 SP'!$D149,'00 PDC SP'!N:N) -> 2022410.26
A150: ABA680 | B150: B.II.7.b) Crediti v/gestioni liquidatorie | D150: ABA680 | E150: 30 | F150: =SUMIF('00 PDC SP'!$C:$C,'00 SP'!$D150,'00 PDC SP'!H:H) -> 0 | G150: =SUMIF('00 PDC SP'!$C:$C,'00 SP'!$D150,'00 PDC SP'!I:I) -> 0 | H150: =SUMIF('00 PDC SP'!$C:$C,'00 SP'!$D150,'00 PDC SP'!J:J) -> 0 | I150: =SUMIF('00 PDC SP'!$C:$C,'00 SP'!$D150,'00 PDC SP'!K:K) -> 0 | J150: =SUMIF('00 PDC SP'!$C:$C,'00 SP'!$D150,'00 PDC SP'!L:L) -> 0 | K150: =SUMIF('00 PDC SP'!$C:$C,'00 SP'!$D150,'00 PDC SP'!M:M) -> 0 | L150: =SUMIF('00 PDC SP'!$C:$C,'00 SP'!$D150,'00 PDC SP'!N:N) -> 0
A151: ABA690 | B151: B.II.7.c) Crediti v/altri soggetti pubblici | D151: ABA690 | E151: 30 | F151: =SUMIF('00 PDC SP'!$C:$C,'00 SP'!$D151,'00 PDC SP'!H:H) -> 326902.56 | G151: =SUMIF('00 PDC SP'!$C:$C,'00 SP'!$D151,'00 PDC SP'!I:I) -> 336002.45 | H151: =SUMIF('00 PDC SP'!$C:$C,'00 SP'!$D151,'00 PDC SP'!J:J) -> 285698.33 | I151: =SUMIF('00 PDC SP'!$C:$C,'00 SP'!$D151,'00 PDC SP'!K:K) -> 377206.68 | J151: =SUMIF('00 PDC SP'!$C:$C,'00 SP'!$D151,'00 PDC SP'!L:L) -> 422007.95 | K151: =SUMIF('00 PDC SP'!$C:$C,'00 SP'!$D151,'00 PDC SP'!M:M) -> 404678.64 | L151: =SUMIF('00 PDC SP'!$C:$C,'00 SP'!$D151,'00 PDC SP'!N:N) -> 394535.99
A152: ABA700 | B152: B.II.7.d) Crediti v/altri soggetti pubblici per ricerca | D152: ABA700 | E152: 30 | F152: =SUMIF('00 PDC SP'!$C:$C,'00 SP'!$D152,'00 PDC SP'!H:H) -> 0 | G152: =SUMIF('00 PDC SP'!$C:$C,'00 SP'!$D152,'00 PDC SP'!I:I) -> 0 | H152: =SUMIF('00 PDC SP'!$C:$C,'00 SP'!$D152,'00 PDC SP'!J:J) -> 0 | I152: =SUMIF('00 PDC SP'!$C:$C,'00 SP'!$D152,'00 PDC SP'!K:K) -> 0 | J152: =SUMIF('00 PDC SP'!$C:$C,'00 SP'!$D152,'00 PDC SP'!L:L) -> 0 | K152: =SUMIF('00 PDC SP'!$C:$C,'00 SP'!$D152,'00 PDC SP'!M:M) -> 0 | L152: =SUMIF('00 PDC SP'!$C:$C,'00 SP'!$D152,'00 PDC SP'!N:N) -> 0
A153: ABA710 | B153: B.II.7.e) Altri crediti diversi | D153: ABA710 | E153: 30 | F153: =SUMIF('00 PDC SP'!$C:$C,'00 SP'!$D153,'00 PDC SP'!H:H) -> 911808.57 | G153: =SUMIF('00 PDC SP'!$C:$C,'00 SP'!$D153,'00 PDC SP'!I:I) -> 3934140.24 | H153: =SUMIF('00 PDC SP'!$C:$C,'00 SP'!$D153,'00 PDC SP'!J:J) -> 3964811.76 | I153: =SUMIF('00 PDC SP'!$C:$C,'00 SP'!$D153,'00 PDC SP'!K:K) -> 881137.05 | J153: =SUMIF('00 PDC SP'!$C:$C,'00 SP'!$D153,'00 PDC SP'!L:L) -> 1621398.5 | K153: =SUMIF('00 PDC SP'!$C:$C,'00 SP'!$D153,'00 PDC SP'!M:M) -> 1616680.59 | L153: =SUMIF('00 PDC SP'!$C:$C,'00 SP'!$D153,'00 PDC SP'!N:N) -> 885854.96
A154: ABA720 | B154: B.III) ATTIVITA' FINANZIARIE CHE NON COSTITUISCONO IMMOBILIZZAZIONI | C154: S | D154: ABA720 | F154: =SUM(F155:F156) -> 0 | G154: 0 | H154: 0 | I154: 0 | J154: 0 | K154: 0 | L154: 0
A155: ABA730 | B155: B.III.1) Partecipazioni che non costituiscono immobilizzazioni | D155: ABA730 | E155: 9 | F155: =SUMIF('00 PDC SP'!$C:$C,'00 SP'!$D155,'00 PDC SP'!H:H) -> 0 | G155: =SUMIF('00 PDC SP'!$C:$C,'00 SP'!$D155,'00 PDC SP'!I:I) -> 0 | H155: =SUMIF('00 PDC SP'!$C:$C,'00 SP'!$D155,'00 PDC SP'!J:J) -> 0 | I155: =SUMIF('00 PDC SP'!$C:$C,'00 SP'!$D155,'00 PDC SP'!K:K) -> 0 | J155: =SUMIF('00 PDC SP'!$C:$C,'00 SP'!$D155,'00 PDC SP'!L:L) -> 0 | K155: =SUMIF('00 PDC SP'!$C:$C,'00 SP'!$D155,'00 PDC SP'!M:M) -> 0 | L155: =SUMIF('00 PDC SP'!$C:$C,'00 SP'!$D155,'00 PDC SP'!N:N) -> 0
A156: ABA740 | B156: B.III.2) Altri titoli che non costituiscono immobilizzazioni | D156: ABA740 | E156: 9 | F156: =SUMIF('00 PDC SP'!$C:$C,'00 SP'!$D156,'00 PDC SP'!H:H) -> 0 | G156: =SUMIF('00 PDC SP'!$C:$C,'00 SP'!$D156,'00 PDC SP'!I:I) -> 0 | H156: =SUMIF('00 PDC SP'!$C:$C,'00 SP'!$D156,'00 PDC SP'!J:J) -> 0 | I156: =SUMIF('00 PDC SP'!$C:$C,'00 SP'!$D156,'00 PDC SP'!K:K) -> 0 | J156: =SUMIF('00 PDC SP'!$C:$C,'00 SP'!$D156,'00 PDC SP'!L:L) -> 0 | K156: =SUMIF('00 PDC SP'!$C:$C,'00 SP'!$D156,'00 PDC SP'!M:M) -> 0 | L156: =SUMIF('00 PDC SP'!$C:$C,'00 SP'!$D156,'00 PDC SP'!N:N) -> 0
A157: ABA750 | B157: B.IV) DISPONIBILITA' LIQUIDE | C157: S | D157: ABA750 | F157: =SUM(F158:F161) -> 94697272.82 | G157: 562743731.3 | H157: 628961113 | I157: 28479891.14 | J157: 675848777.7 | K157: 631522086.3 | L157: 72806582.52
A158: ABA760 | B158: B.IV.1) Cassa | D158: ABA760 | E158: 57 | F158: =SUMIF('00 PDC SP'!$C:$C,'00 SP'!$D158,'00 PDC SP'!H:H) -> 15000 | G158: =SUMIF('00 PDC SP'!$C:$C,'00 SP'!$D158,'00 PDC SP'!I:I) -> 51151.06 | H158: =SUMIF('00 PDC SP'!$C:$C,'00 SP'!$D158,'00 PDC SP'!J:J) -> 46151.06 | I158: =SUMIF('00 PDC SP'!$C:$C,'00 SP'!$D158,'00 PDC SP'!K:K) -> 20000 | J158: =SUMIF('00 PDC SP'!$C:$C,'00 SP'!$D158,'00 PDC SP'!L:L) -> 90884.92 | K158: =SUMIF('00 PDC SP'!$C:$C,'00 SP'!$D158,'00 PDC SP'!M:M) -> 90884.92 | L158: =SUMIF('00 PDC SP'!$C:$C,'00 SP'!$D158,'00 PDC SP'!N:N) -> 20000
A159: ABA770 | B159: B.IV.2) Istituto Tesoriere | D159: ABA770 | E159: 57 | F159: =SUMIF('00 PDC SP'!$C:$C,'00 SP'!$D159,'00 PDC SP'!H:H) -> 94407697.02 | G159: =SUMIF('00 PDC SP'!$C:$C,'00 SP'!$D159,'00 PDC SP'!I:I) -> 560795482.8 | H159: =SUMIF('00 PDC SP'!$C:$C,'00 SP'!$D159,'00 PDC SP'!J:J) -> 628313295.5 | I159: =SUMIF('00 PDC SP'!$C:$C,'00 SP'!$D159,'00 PDC SP'!K:K) -> 26889884.4 | J159: =SUMIF('00 PDC SP'!$C:$C,'00 SP'!$D159,'00 PDC SP'!L:L) -> 674025083 | K159: =SUMIF('00 PDC SP'!$C:$C,'00 SP'!$D159,'00 PDC SP'!M:M) -> 631356001 | L159: =SUMIF('00 PDC SP'!$C:$C,'00 SP'!$D159,'00 PDC SP'!N:N) -> 69558966.35
A160: ABA780 | B160: B.IV.3) Tesoreria Unica | D160: ABA780 | E160: 57 | F160: =SUMIF('00 PDC SP'!$C:$C,'00 SP'!$D160,'00 PDC SP'!H:H) -> 0 | G160: =SUMIF('00 PDC SP'!$C:$C,'00 SP'!$D160,'00 PDC SP'!I:I) -> 0 | H160: =SUMIF('00 PDC SP'!$C:$C,'00 SP'!$D160,'00 PDC SP'!J:J) -> 0 | I160: =SUMIF('00 PDC SP'!$C:$C,'00 SP'!$D160,'00 PDC SP'!K:K) -> 0 | J160: =SUMIF('00 PDC SP'!$C:$C,'00 SP'!$D160,'00 PDC SP'!L:L) -> 0 | K160: =SUMIF('00 PDC SP'!$C:$C,'00 SP'!$D160,'00 PDC SP'!M:M) -> 0 | L160: =SUMIF('00 PDC SP'!$C:$C,'00 SP'!$D160,'00 PDC SP'!N:N) -> 0
A161: ABA790 | B161: B.IV.4) Conto corrente postale | D161: ABA790 | E161: 57 | F161: =SUMIF('00 PDC SP'!$C:$C,'00 SP'!$D161,'00 PDC SP'!H:H) -> 274575.8 | G161: =SUMIF('00 PDC SP'!$C:$C,'00 SP'!$D161,'00 PDC SP'!I:I) -> 1897097.44 | H161: =SUMIF('00 PDC SP'!$C:$C,'00 SP'!$D161,'00 PDC SP'!J:J) -> 601666.5 | I161: =SUMIF('00 PDC SP'!$C:$C,'00 SP'!$D161,'00 PDC SP'!K:K) -> 1570006.74 | J161: =SUMIF('00 PDC SP'!$C:$C,'00 SP'!$D161,'00 PDC SP'!L:L) -> 1732809.77 | K161: =SUMIF('00 PDC SP'!$C:$C,'00 SP'!$D161,'00 PDC SP'!M:M) -> 75200.34 | L161: =SUMIF('00 PDC SP'!$C:$C,'00 SP'!$D161,'00 PDC SP'!N:N) -> 3227616.17
A162: ACZ999 | B162: C) RATEI E RISCONTI ATTIVI | C162: S | D162: ACZ999 | F162: =F163+F166 -> 1890279.2 | G162: 1502862.22 | H162: 1890279.2 | I162: 1502862.22 | J162: 8698.51 | K162: 1502862.22 | L162: 8698.51
A163: ACA000 | B163: C.I) RATEI ATTIVI | C163: S | D163: ACA000 | F163: =SUM(F164:F165) -> 0 | G163: 0 | H163: 0 | I163: 0 | J163: 0 | K163: 0 | L163: 0
A164: ACA010 | B164: C.I.1) Ratei attivi | D164: ACA010 | E164: 33 | F164: =SUMIF('00 PDC SP'!$C:$C,'00 SP'!$D164,'00 PDC SP'!H:H) -> 0 | G164: =SUMIF('00 PDC SP'!$C:$C,'00 SP'!$D164,'00 PDC SP'!I:I) -> 0 | H164: =SUMIF('00 PDC SP'!$C:$C,'00 SP'!$D164,'00 PDC SP'!J:J) -> 0 | I164: =SUMIF('00 PDC SP'!$C:$C,'00 SP'!$D164,'00 PDC SP'!K:K) -> 0 | J164: =SUMIF('00 PDC SP'!$C:$C,'00 SP'!$D164,'00 PDC SP'!L:L) -> 0 | K164: =SUMIF('00 PDC SP'!$C:$C,'00 SP'!$D164,'00 PDC SP'!M:M) -> 0 | L164: =SUMIF('00 PDC SP'!$C:$C,'00 SP'!$D164,'00 PDC SP'!N:N) -> 0
A165: ACA020 | B165: C.I.2) Ratei attivi v/Aziende sanitarie pubbliche della Regione | D165: ACA020 | E165: 33 | F165: =SUMIF('00 PDC SP'!$C:$C,'00 SP'!$D165,'00 PDC SP'!H:H) -> 0 | G165: =SUMIF('00 PDC SP'!$C:$C,'00 SP'!$D165,'00 PDC SP'!I:I) -> 0 | H165: =SUMIF('00 PDC SP'!$C:$C,'00 SP'!$D165,'00 PDC SP'!J:J) -> 0 | I165: =SUMIF('00 PDC SP'!$C:$C,'00 SP'!$D165,'00 PDC SP'!K:K) -> 0 | J165: =SUMIF('00 PDC SP'!$C:$C,'00 SP'!$D165,'00 PDC SP'!L:L) -> 0 | K165: =SUMIF('00 PDC SP'!$C:$C,'00 SP'!$D165,'00 PDC SP'!M:M) -> 0 | L165: =SUMIF('00 PDC SP'!$C:$C,'00 SP'!$D165,'00 PDC SP'!N:N) -> 0
A166: ACA030 | B166: C.II) RISCONTI ATTIVI | C166: S | D166: ACA030 | F166: =SUM(F167:F168) -> 1890279.2 | G166: 1502862.22 | H166: 1890279.2 | I166: 1502862.22 | J166: 8698.51 | K166: 1502862.22 | L166: 8698.51
A167: ACA040 | B167: C.II.1) Risconti attivi | D167: ACA040 | E167: 33 | F167: =SUMIF('00 PDC SP'!$C:$C,'00 SP'!$D167,'00 PDC SP'!H:H) -> 1890279.2 | G167: =SUMIF('00 PDC SP'!$C:$C,'00 SP'!$D167,'00 PDC SP'!I:I) -> 1502862.22 | H167: =SUMIF('00 PDC SP'!$C:$C,'00 SP'!$D167,'00 PDC SP'!J:J) -> 1890279.2 | I167: =SUMIF('00 PDC SP'!$C:$C,'00 SP'!$D167,'00 PDC SP'!K:K) -> 1502862.22 | J167: =SUMIF('00 PDC SP'!$C:$C,'00 SP'!$D167,'00 PDC SP'!L:L) -> 8698.51 | K167: =SUMIF('00 PDC SP'!$C:$C,'00 SP'!$D167,'00 PDC SP'!M:M) -> 1502862.22 | L167: =SUMIF('00 PDC SP'!$C:$C,'00 SP'!$D167,'00 PDC SP'!N:N) -> 8698.51
A168: ACA050 | B168: C.II.2) Risconti attivi v/Aziende sanitarie pubbliche della Regione | D168: ACA050 | E168: 33 | F168: =SUMIF('00 PDC SP'!$C:$C,'00 SP'!$D168,'00 PDC SP'!H:H) -> 0 | G168: =SUMIF('00 PDC SP'!$C:$C,'00 SP'!$D168,'00 PDC SP'!I:I) -> 0 | H168: =SUMIF('00 PDC SP'!$C:$C,'00 SP'!$D168,'00 PDC SP'!J:J) -> 0 | I168: =SUMIF('00 PDC SP'!$C:$C,'00 SP'!$D168,'00 PDC SP'!K:K) -> 0 | J168: =SUMIF('00 PDC SP'!$C:$C,'00 SP'!$D168,'00 PDC SP'!L:L) -> 0 | K168: =SUMIF('00 PDC SP'!$C:$C,'00 SP'!$D168,'00 PDC SP'!M:M) -> 0 | L168: =SUMIF('00 PDC SP'!$C:$C,'00 SP'!$D168,'00 PDC SP'!N:N) -> 0
A169: ADZ999 | B169: D) CONTI D'ORDINE | C169: S | D169: ADZ999 | F169: =SUM(F170:F173) -> 986370 | G169: 0 | H169: 986370 | I169: 0 | J169: 0 | K169: 0 | L169: 0
A170: ADA000 | B170: D.I) CANONI DI LEASING ANCORA DA PAGARE | D170: ADA000 | F170: =SUMIF('00 PDC SP'!$C:$C,'00 SP'!$D170,'00 PDC SP'!H:H) -> 986370 | G170: =SUMIF('00 PDC SP'!$C:$C,'00 SP'!$D170,'00 PDC SP'!I:I) -> 0 | H170: =SUMIF('00 PDC SP'!$C:$C,'00 SP'!$D170,'00 PDC SP'!J:J) -> 986370 | I170: =SUMIF('00 PDC SP'!$C:$C,'00 SP'!$D170,'00 PDC SP'!K:K) -> 0 | J170: =SUMIF('00 PDC SP'!$C:$C,'00 SP'!$D170,'00 PDC SP'!L:L) -> 0 | K170: =SUMIF('00 PDC SP'!$C:$C,'00 SP'!$D170,'00 PDC SP'!M:M) -> 0 | L170: =SUMIF('00 PDC SP'!$C:$C,'00 SP'!$D170,'00 PDC SP'!N:N) -> 0
A171: ADA010 | B171: D.II) DEPOSITI CAUZIONALI | D171: ADA010 | F171: =SUMIF('00 PDC SP'!$C:$C,'00 SP'!$D171,'00 PDC SP'!H:H) -> 0 | G171: =SUMIF('00 PDC SP'!$C:$C,'00 SP'!$D171,'00 PDC SP'!I:I) -> 0 | H171: =SUMIF('00 PDC SP'!$C:$C,'00 SP'!$D171,'00 PDC SP'!J:J) -> 0 | I171: =SUMIF('00 PDC SP'!$C:$C,'00 SP'!$D171,'00 PDC SP'!K:K) -> 0 | J171: =SUMIF('00 PDC SP'!$C:$C,'00 SP'!$D171,'00 PDC SP'!L:L) -> 0 | K171: =SUMIF('00 PDC SP'!$C:$C,'00 SP'!$D171,'00 PDC SP'!M:M) -> 0 | L171: =SUMIF('00 PDC SP'!$C:$C,'00 SP'!$D171,'00 PDC SP'!N:N) -> 0
A172: ADA020 | B172: D.III) BENI IN COMODATO | D172: ADA020 | F172: =SUMIF('00 PDC SP'!$C:$C,'00 SP'!$D172,'00 PDC SP'!H:H) -> 0 | G172: =SUMIF('00 PDC SP'!$C:$C,'00 SP'!$D172,'00 PDC SP'!I:I) -> 0 | H172: =SUMIF('00 PDC SP'!$C:$C,'00 SP'!$D172,'00 PDC SP'!J:J) -> 0 | I172: =SUMIF('00 PDC SP'!$C:$C,'00 SP'!$D172,'00 PDC SP'!K:K) -> 0 | J172: =SUMIF('00 PDC SP'!$C:$C,'00 SP'!$D172,'00 PDC SP'!L:L) -> 0 | K172: =SUMIF('00 PDC SP'!$C:$C,'00 SP'!$D172,'00 PDC SP'!M:M) -> 0 | L172: =SUMIF('00 PDC SP'!$C:$C,'00 SP'!$D172,'00 PDC SP'!N:N) -> 0
A173: ADA030 | B173: D.IV) ALTRI CONTI D'ORDINE | D173: ADA030 | F173: =SUMIF('00 PDC SP'!$C:$C,'00 SP'!$D173,'00 PDC SP'!H:H) -> 0 | G173: =SUMIF('00 PDC SP'!$C:$C,'00 SP'!$D173,'00 PDC SP'!I:I) -> 0 | H173: =SUMIF('00 PDC SP'!$C:$C,'00 SP'!$D173,'00 PDC SP'!J:J) -> 0 | I173: =SUMIF('00 PDC SP'!$C:$C,'00 SP'!$D173,'00 PDC SP'!K:K) -> 0 | J173: =SUMIF('00 PDC SP'!$C:$C,'00 SP'!$D173,'00 PDC SP'!L:L) -> 0 | K173: =SUMIF('00 PDC SP'!$C:$C,'00 SP'!$D173,'00 PDC SP'!M:M) -> 0 | L173: =SUMIF('00 PDC SP'!$C:$C,'00 SP'!$D173,'00 PDC SP'!N:N) -> 0
A174: PAZ999 | B174: A) PATRIMONIO NETTO | C174: S | D174: PAZ999 | F174: =F175+F176+F185+F186+F192+F196+F197 -> 108817121.2 | G174: 73216573.4 | H174: 71086503.62 | I174: 110947191 | J174: 66014604.99 | K174: 68477454.54 | L174: 108484341.5
A175: PAA000 | B175: A.I) FONDO DI DOTAZIONE | D175: PAA000 | E175: 53 | F175: =SUMIF('00 PDC SP'!$C:$C,'00 SP'!$D175,'00 PDC SP'!H:H) -> 0 | G175: =SUMIF('00 PDC SP'!$C:$C,'00 SP'!$D175,'00 PDC SP'!I:I) -> 0 | H175: =SUMIF('00 PDC SP'!$C:$C,'00 SP'!$D175,'00 PDC SP'!J:J) -> 0 | I175: =SUMIF('00 PDC SP'!$C:$C,'00 SP'!$D175,'00 PDC SP'!K:K) -> 0 | J175: =SUMIF('00 PDC SP'!$C:$C,'00 SP'!$D175,'00 PDC SP'!L:L) -> 0 | K175: =SUMIF('00 PDC SP'!$C:$C,'00 SP'!$D175,'00 PDC SP'!M:M) -> 0 | L175: =SUMIF('00 PDC SP'!$C:$C,'00 SP'!$D175,'00 PDC SP'!N:N) -> 0
A176: PAA010 | B176: A.II) FINANZIAMENTI PER INVESTIMENTI | C176: S | D176: PAA010 | F176: =F177+F178+F182+F183+F184 -> 121852216 | G176: 8909799.11 | H176: 8451109.42 | I176: 122310905.7 | J176: 6628571.39 | K176: 9776707.08 | L176: 119162770
A177: PAA020 | B177: A.II.1) Finanziamenti per beni di prima dotazione | D177: PAA020 | E177: 5 | F177: =SUMIF('00 PDC SP'!$C:$C,'00 SP'!$D177,'00 PDC SP'!H:H) -> 70863817.6 | G177: =SUMIF('00 PDC SP'!$C:$C,'00 SP'!$D177,'00 PDC SP'!I:I) -> 0 | H177: =SUMIF('00 PDC SP'!$C:$C,'00 SP'!$D177,'00 PDC SP'!J:J) -> 3577467.93 | I177: =SUMIF('00 PDC SP'!$C:$C,'00 SP'!$D177,'00 PDC SP'!K:K) -> 67286349.67 | J177: =SUMIF('00 PDC SP'!$C:$C,'00 SP'!$D177,'00 PDC SP'!L:L) -> 0 | K177: =SUMIF('00 PDC SP'!$C:$C,'00 SP'!$D177,'00 PDC SP'!M:M) -> 3577467.93 | L177: =SUMIF('00 PDC SP'!$C:$C,'00 SP'!$D177,'00 PDC SP'!N:N) -> 63708881.74
A178: PAA030 | B178: A.II.2) Finanziamenti da Stato per investimenti | C178: S | D178: PAA030 | F178: =SUM(F179:F181) -> 0 | G178: 0 | H178: 0 | I178: 0 | J178: 0 | K178: 0 | L178: 0
A179: PAA040 | B179: A.II.2.a) Finanziamenti da Stato per investimenti - ex art. 20 legge 67/88 | D179: PAA040 | E179: 5 | F179: =SUMIF('00 PDC SP'!$C:$C,'00 SP'!$D179,'00 PDC SP'!H:H) -> 0 | G179: =SUMIF('00 PDC SP'!$C:$C,'00 SP'!$D179,'00 PDC SP'!I:I) -> 0 | H179: =SUMIF('00 PDC SP'!$C:$C,'00 SP'!$D179,'00 PDC SP'!J:J) -> 0 | I179: =SUMIF('00 PDC SP'!$C:$C,'00 SP'!$D179,'00 PDC SP'!K:K) -> 0 | J179: =SUMIF('00 PDC SP'!$C:$C,'00 SP'!$D179,'00 PDC SP'!L:L) -> 0 | K179: =SUMIF('00 PDC SP'!$C:$C,'00 SP'!$D179,'00 PDC SP'!M:M) -> 0 | L179: =SUMIF('00 PDC SP'!$C:$C,'00 SP'!$D179,'00 PDC SP'!N:N) -> 0
A180: PAA050 | B180: A.II.2.b) Finanziamenti da Stato per investimenti - ricerca | D180: PAA050 | E180: 5 | F180: =SUMIF('00 PDC SP'!$C:$C,'00 SP'!$D180,'00 PDC SP'!H:H) -> 0 | G180: =SUMIF('00 PDC SP'!$C:$C,'00 SP'!$D180,'00 PDC SP'!I:I) -> 0 | H180: =SUMIF('00 PDC SP'!$C:$C,'00 SP'!$D180,'00 PDC SP'!J:J) -> 0 | I180: =SUMIF('00 PDC SP'!$C:$C,'00 SP'!$D180,'00 PDC SP'!K:K) -> 0 | J180: =SUMIF('00 PDC SP'!$C:$C,'00 SP'!$D180,'00 PDC SP'!L:L) -> 0 | K180: =SUMIF('00 PDC SP'!$C:$C,'00 SP'!$D180,'00 PDC SP'!M:M) -> 0 | L180: =SUMIF('00 PDC SP'!$C:$C,'00 SP'!$D180,'00 PDC SP'!N:N) -> 0
A181: PAA060 | B181: A.II.2.c) Finanziamenti da Stato per investimenti - altro | D181: PAA060 | E181: 5 | F181: =SUMIF('00 PDC SP'!$C:$C,'00 SP'!$D181,'00 PDC SP'!H:H) -> 0 | G181: =SUMIF('00 PDC SP'!$C:$C,'00 SP'!$D181,'00 PDC SP'!I:I) -> 0 | H181: =SUMIF('00 PDC SP'!$C:$C,'00 SP'!$D181,'00 PDC SP'!J:J) -> 0 | I181: =SUMIF('00 PDC SP'!$C:$C,'00 SP'!$D181,'00 PDC SP'!K:K) -> 0 | J181: =SUMIF('00 PDC SP'!$C:$C,'00 SP'!$D181,'00 PDC SP'!L:L) -> 0 | K181: =SUMIF('00 PDC SP'!$C:$C,'00 SP'!$D181,'00 PDC SP'!M:M) -> 0 | L181: =SUMIF('00 PDC SP'!$C:$C,'00 SP'!$D181,'00 PDC SP'!N:N) -> 0
A182: PAA070 | B182: A.II.3) Finanziamenti da Regione per investimenti | D182: PAA070 | E182: 5 | F182: =SUMIF('00 PDC SP'!$C:$C,'00 SP'!$D182,'00 PDC SP'!H:H) -> 40355049.81 | G182: =SUMIF('00 PDC SP'!$C:$C,'00 SP'!$D182,'00 PDC SP'!I:I) -> 122240 | H182: =SUMIF('00 PDC SP'!$C:$C,'00 SP'!$D182,'00 PDC SP'!J:J) -> 1574332.01 | I182: =SUMIF('00 PDC SP'!$C:$C,'00 SP'!$D182,'00 PDC SP'!K:K) -> 38902957.8 | J182: =SUMIF('00 PDC SP'!$C:$C,'00 SP'!$D182,'00 PDC SP'!L:L) -> 122252.5 | K182: =SUMIF('00 PDC SP'!$C:$C,'00 SP'!$D182,'00 PDC SP'!M:M) -> 1468544.84 | L182: =SUMIF('00 PDC SP'!$C:$C,'00 SP'!$D182,'00 PDC SP'!N:N) -> 37556665.46
A183: PAA080 | B183: A.II.4) Finanziamenti da altri soggetti pubblici per investimenti | D183: PAA080 | E183: 5 | F183: =SUMIF('00 PDC SP'!$C:$C,'00 SP'!$D183,'00 PDC SP'!H:H) -> 0 | G183: =SUMIF('00 PDC SP'!$C:$C,'00 SP'!$D183,'00 PDC SP'!I:I) -> 0 | H183: =SUMIF('00 PDC SP'!$C:$C,'00 SP'!$D183,'00 PDC SP'!J:J) -> 0 | I183: =SUMIF('00 PDC SP'!$C:$C,'00 SP'!$D183,'00 PDC SP'!K:K) -> 0 | J183: =SUMIF('00 PDC SP'!$C:$C,'00 SP'!$D183,'00 PDC SP'!L:L) -> 0 | K183: =SUMIF('00 PDC SP'!$C:$C,'00 SP'!$D183,'00 PDC SP'!M:M) -> 0 | L183: =SUMIF('00 PDC SP'!$C:$C,'00 SP'!$D183,'00 PDC SP'!N:N) -> 0
A184: PAA090 | B184: A.II.5) Finanziamenti per investimenti da rettifica contributi in conto esercizio | D184: PAA090 | E184: 5 | F184: =SUMIF('00 PDC SP'!$C:$C,'00 SP'!$D184,'00 PDC SP'!H:H) -> 10633348.64 | G184: =SUMIF('00 PDC SP'!$C:$C,'00 SP'!$D184,'00 PDC SP'!I:I) -> 8787559.11 | H184: =SUMIF('00 PDC SP'!$C:$C,'00 SP'!$D184,'00 PDC SP'!J:J) -> 3299309.48 | I184: =SUMIF('00 PDC SP'!$C:$C,'00 SP'!$D184,'00 PDC SP'!K:K) -> 16121598.27 | J184: =SUMIF('00 PDC SP'!$C:$C,'00 SP'!$D184,'00 PDC SP'!L:L) -> 6506318.89 | K184: =SUMIF('00 PDC SP'!$C:$C,'00 SP'!$D184,'00 PDC SP'!M:M) -> 4730694.31 | L184: =SUMIF('00 PDC SP'!$C:$C,'00 SP'!$D184,'00 PDC SP'!N:N) -> 17897222.85
A185: PAA100 | B185: A.III) RISERVE DA DONAZIONI E LASCITI VINCOLATI AD INVESTIMENTI | D185: PAA100 | E185: 53 | F185: =SUMIF('00 PDC SP'!$C:$C,'00 SP'!$D185,'00 PDC SP'!H:H) -> 205856.51 | G185: =SUMIF('00 PDC SP'!$C:$C,'00 SP'!$D185,'00 PDC SP'!I:I) -> 20519.15 | H185: =SUMIF('00 PDC SP'!$C:$C,'00 SP'!$D185,'00 PDC SP'!J:J) -> 55380.81 | I185: =SUMIF('00 PDC SP'!$C:$C,'00 SP'!$D185,'00 PDC SP'!K:K) -> 170994.85 | J185: =SUMIF('00 PDC SP'!$C:$C,'00 SP'!$D185,'00 PDC SP'!L:L) -> 78486.47 | K185: =SUMIF('00 PDC SP'!$C:$C,'00 SP'!$D185,'00 PDC SP'!M:M) -> 48286.07 | L185: =SUMIF('00 PDC SP'!$C:$C,'00 SP'!$D185,'00 PDC SP'!N:N) -> 201195.25
A186: PAA110 | B186: A.IV) ALTRE RISERVE | C186: S | D186: PAA110 | F186: =SUM(F187:F191) -> 0 | G186: 2730000 | H186: 0 | I186: 2730000 | J186: 0 | K186: 0 | L186: 2730000
A187: PAA120 | B187: A.IV.1) Riserve da rivalutazioni | D187: PAA120 | E187: 6 | F187: =SUMIF('00 PDC SP'!$C:$C,'00 SP'!$D187,'00 PDC SP'!H:H) -> 0 | G187: =SUMIF('00 PDC SP'!$C:$C,'00 SP'!$D187,'00 PDC SP'!I:I) -> 0 | H187: =SUMIF('00 PDC SP'!$C:$C,'00 SP'!$D187,'00 PDC SP'!J:J) -> 0 | I187: =SUMIF('00 PDC SP'!$C:$C,'00 SP'!$D187,'00 PDC SP'!K:K) -> 0 | J187: =SUMIF('00 PDC SP'!$C:$C,'00 SP'!$D187,'00 PDC SP'!L:L) -> 0 | K187: =SUMIF('00 PDC SP'!$C:$C,'00 SP'!$D187,'00 PDC SP'!M:M) -> 0 | L187: =SUMIF('00 PDC SP'!$C:$C,'00 SP'!$D187,'00 PDC SP'!N:N) -> 0
A188: PAA130 | B188: A.IV.2) Riserve da plusvalenze da reinvestire | D188: PAA130 | E188: 6 | F188: =SUMIF('00 PDC SP'!$C:$C,'00 SP'!$D188,'00 PDC SP'!H:H) -> 0 | G188: =SUMIF('00 PDC SP'!$C:$C,'00 SP'!$D188,'00 PDC SP'!I:I) -> 0 | H188: =SUMIF('00 PDC SP'!$C:$C,'00 SP'!$D188,'00 PDC SP'!J:J) -> 0 | I188: =SUMIF('00 PDC SP'!$C:$C,'00 SP'!$D188,'00 PDC SP'!K:K) -> 0 | J188: =SUMIF('00 PDC SP'!$C:$C,'00 SP'!$D188,'00 PDC SP'!L:L) -> 0 | K188: =SUMIF('00 PDC SP'!$C:$C,'00 SP'!$D188,'00 PDC SP'!M:M) -> 0 | L188: =SUMIF('00 PDC SP'!$C:$C,'00 SP'!$D188,'00 PDC SP'!N:N) -> 0
A189: PAA140 | B189: A.IV.3) Contributi da reinvestire | D189: PAA140 | E189: 6 | F189: =SUMIF('00 PDC SP'!$C:$C,'00 SP'!$D189,'00 PDC SP'!H:H) -> 0 | G189: =SUMIF('00 PDC SP'!$C:$C,'00 SP'!$D189,'00 PDC SP'!I:I) -> 0 | H189: =SUMIF('00 PDC SP'!$C:$C,'00 SP'!$D189,'00 PDC SP'!J:J) -> 0 | I189: =SUMIF('00 PDC SP'!$C:$C,'00 SP'!$D189,'00 PDC SP'!K:K) -> 0 | J189: =SUMIF('00 PDC SP'!$C:$C,'00 SP'!$D189,'00 PDC SP'!L:L) -> 0 | K189: =SUMIF('00 PDC SP'!$C:$C,'00 SP'!$D189,'00 PDC SP'!M:M) -> 0 | L189: =SUMIF('00 PDC SP'!$C:$C,'00 SP'!$D189,'00 PDC SP'!N:N) -> 0
A190: PAA150 | B190: A.IV.4) Riserve da utili di esercizio destinati ad investimenti | D190: PAA150 | E190: 6 | F190: =SUMIF('00 PDC SP'!$C:$C,'00 SP'!$D190,'00 PDC SP'!H:H) -> 0 | G190: =SUMIF('00 PDC SP'!$C:$C,'00 SP'!$D190,'00 PDC SP'!I:I) -> 0 | H190: =SUMIF('00 PDC SP'!$C:$C,'00 SP'!$D190,'00 PDC SP'!J:J) -> 0 | I190: =SUMIF('00 PDC SP'!$C:$C,'00 SP'!$D190,'00 PDC SP'!K:K) -> 0 | J190: =SUMIF('00 PDC SP'!$C:$C,'00 SP'!$D190,'00 PDC SP'!L:L) -> 0 | K190: =SUMIF('00 PDC SP'!$C:$C,'00 SP'!$D190,'00 PDC SP'!M:M) -> 0 | L190: =SUMIF('00 PDC SP'!$C:$C,'00 SP'!$D190,'00 PDC SP'!N:N) -> 0
A191: PAA160 | B191: A.IV.5) Riserve diverse | D191: PAA160 | E191: 6 | F191: =SUMIF('00 PDC SP'!$C:$C,'00 SP'!$D191,'00 PDC SP'!H:H) -> 0 | G191: =SUMIF('00 PDC SP'!$C:$C,'00 SP'!$D191,'00 PDC SP'!I:I) -> 2730000 | H191: =SUMIF('00 PDC SP'!$C:$C,'00 SP'!$D191,'00 PDC SP'!J:J) -> 0 | I191: =SUMIF('00 PDC SP'!$C:$C,'00 SP'!$D191,'00 PDC SP'!K:K) -> 2730000 | J191: =SUMIF('00 PDC SP'!$C:$C,'00 SP'!$D191,'00 PDC SP'!L:L) -> 0 | K191: =SUMIF('00 PDC SP'!$C:$C,'00 SP'!$D191,'00 PDC SP'!M:M) -> 0 | L191: =SUMIF('00 PDC SP'!$C:$C,'00 SP'!$D191,'00 PDC SP'!N:N) -> 2730000
A192: PAA170 | B192: A.V) CONTRIBUTI PER RIPIANO PERDITE | C192: S | D192: PAA170 | F192: =SUM(F193:F195) -> 0 | G192: 30778127.57 | H192: 0 | I192: 30778127.57 | J192: 14264710 | K192: 30778127.57 | L192: 14264710
A193: PAA180 | B193: A.V.1) Contributi per copertura debiti al 31/12/2005 | D193: PAA180 | E193: 53 | F193: =SUMIF('00 PDC SP'!$C:$C,'00 SP'!$D193,'00 PDC SP'!H:H) -> 0 | G193: =SUMIF('00 PDC SP'!$C:$C,'00 SP'!$D193,'00 PDC SP'!I:I) -> 0 | H193: =SUMIF('00 PDC SP'!$C:$C,'00 SP'!$D193,'00 PDC SP'!J:J) -> 0 | I193: =SUMIF('00 PDC SP'!$C:$C,'00 SP'!$D193,'00 PDC SP'!K:K) -> 0 | J193: =SUMIF('00 PDC SP'!$C:$C,'00 SP'!$D193,'00 PDC SP'!L:L) -> 0 | K193: =SUMIF('00 PDC SP'!$C:$C,'00 SP'!$D193,'00 PDC SP'!M:M) -> 0 | L193: =SUMIF('00 PDC SP'!$C:$C,'00 SP'!$D193,'00 PDC SP'!N:N) -> 0
A194: PAA190 | B194: A.V.2) Contributi per ricostituzione risorse da investimenti esercizi precedenti | D194: PAA190 | E194: 53 | F194: =SUMIF('00 PDC SP'!$C:$C,'00 SP'!$D194,'00 PDC SP'!H:H) -> 0 | G194: =SUMIF('00 PDC SP'!$C:$C,'00 SP'!$D194,'00 PDC SP'!I:I) -> 0 | H194: =SUMIF('00 PDC SP'!$C:$C,'00 SP'!$D194,'00 PDC SP'!J:J) -> 0 | I194: =SUMIF('00 PDC SP'!$C:$C,'00 SP'!$D194,'00 PDC SP'!K:K) -> 0 | J194: =SUMIF('00 PDC SP'!$C:$C,'00 SP'!$D194,'00 PDC SP'!L:L) -> 0 | K194: =SUMIF('00 PDC SP'!$C:$C,'00 SP'!$D194,'00 PDC SP'!M:M) -> 0 | L194: =SUMIF('00 PDC SP'!$C:$C,'00 SP'!$D194,'00 PDC SP'!N:N) -> 0
A195: PAA200 | B195: A.V.3) Altro | D195: PAA200 | E195: 53 | F195: =SUMIF('00 PDC SP'!$C:$C,'00 SP'!$D195,'00 PDC SP'!H:H) -> 0 | G195: =SUMIF('00 PDC SP'!$C:$C,'00 SP'!$D195,'00 PDC SP'!I:I) -> 30778127.57 | H195: =SUMIF('00 PDC SP'!$C:$C,'00 SP'!$D195,'00 PDC SP'!J:J) -> 0 | I195: =SUMIF('00 PDC SP'!$C:$C,'00 SP'!$D195,'00 PDC SP'!K:K) -> 30778127.57 | J195: =SUMIF('00 PDC SP'!$C:$C,'00 SP'!$D195,'00 PDC SP'!L:L) -> 14264710 | K195: =SUMIF('00 PDC SP'!$C:$C,'00 SP'!$D195,'00 PDC SP'!M:M) -> 30778127.57 | L195: =SUMIF('00 PDC SP'!$C:$C,'00 SP'!$D195,'00 PDC SP'!N:N) -> 14264710
A196: PAA210 | B196: A.VI) UTILI (PERDITE) PORTATI A NUOVO | D196: PAA210 | E196: 53 | F196: =SUMIF('00 PDC SP'!$C:$C,'00 SP'!$D196,'00 PDC SP'!H:H) -> 17537176.26 | G196: =SUMIF('00 PDC SP'!$C:$C,'00 SP'!$D196,'00 PDC SP'!I:I) -> 0 | H196: =SUMIF('00 PDC SP'!$C:$C,'00 SP'!$D196,'00 PDC SP'!J:J) -> 48315303.83 | I196: =SUMIF('00 PDC SP'!$C:$C,'00 SP'!$D196,'00 PDC SP'!K:K) -> -30778127.57 | J196: =SUMIF('00 PDC SP'!$C:$C,'00 SP'!$D196,'00 PDC SP'!L:L) -> 30778127.57 | K196: =SUMIF('00 PDC SP'!$C:$C,'00 SP'!$D196,'00 PDC SP'!M:M) -> 14264709.56 | L196: =SUMIF('00 PDC SP'!$C:$C,'00 SP'!$D196,'00 PDC SP'!N:N) -> -14264709.56
A197: PAA220 | B197: A.VII) UTILE (PERDITA) D'ESERCIZIO | D197: PAA220 | E197: 53 | F197: =SUMIF('00 PDC SP'!$C:$C,'00 SP'!$D197,'00 PDC SP'!H:H) -> -30778127.57 | G197: =SUMIF('00 PDC SP'!$C:$C,'00 SP'!$D197,'00 PDC SP'!I:I) -> 30778127.57 | H197: =SUMIF('00 PDC SP'!$C:$C,'00 SP'!$D197,'00 PDC SP'!J:J) -> 14264709.56 | I197: =SUMIF('00 PDC SP'!$C:$C,'00 SP'!$D197,'00 PDC SP'!K:K) -> -14264709.56 | J197: =SUMIF('00 PDC SP'!$C:$C,'00 SP'!$D197,'00 PDC SP'!L:L) -> 14264709.56 | K197: =SUMIF('00 PDC SP'!$C:$C,'00 SP'!$D197,'00 PDC SP'!M:M) -> 13609624.26 | L197: =SUMIF('00 PDC SP'!$C:$C,'00 SP'!$D197,'00 PDC SP'!N:N) -> -13609624.26
A198: PBZ999 | B198: B) FONDI PER RISCHI E ONERI | C198: S | D198: PBZ999 | F198: =F199+F200+F206+F214+F219 -> 75376839.63 | G198: 11690370.41 | H198: 16080461.81 | I198: 70986748.23 | J198: 27369043.7 | K198: 12603218.6 | L198: 85752573.33
A199: PBA000 | B199: B.I) FONDI PER IMPOSTE, ANCHE DIFFERITE | D199: PBA000 | E199: 11 | F199: =SUMIF('00 PDC SP'!$C:$C,'00 SP'!$D199,'00 PDC SP'!H:H)*-1 -> 205513.69 | G199: =SUMIF('00 PDC SP'!$C:$C,'00 SP'!$D199,'00 PDC SP'!I:I)*-1 -> 0 | H199: =SUMIF('00 PDC SP'!$C:$C,'00 SP'!$D199,'00 PDC SP'!J:J)*-1 -> 205513.69 | I199: =SUMIF('00 PDC SP'!$C:$C,'00 SP'!$D199,'00 PDC SP'!K:K)*-1 -> 0 | J199: =SUMIF('00 PDC SP'!$C:$C,'00 SP'!$D199,'00 PDC SP'!L:L)*-1 -> 0 | K199: =SUMIF('00 PDC SP'!$C:$C,'00 SP'!$D199,'00 PDC SP'!M:M)*-1 -> 0 | L199: =SUMIF('00 PDC SP'!$C:$C,'00 SP'!$D199,'00 PDC SP'!N:N)*-1 -> 0
A200: PBA010 | B200: B.II) FONDI PER RISCHI | C200: S | D200: PBA010 | F200: =SUM(F201:F205) -> 42169594.19 | G200: =SUM(G201:G205) -> 6356376.8 | H200: 11995588.65 | I200: 36530382.34 | J200: 17313713.75 | K200: 7504037.58 | L200: 46340058.51
A201: PBA020 | B201: B.II.1) Fondo rischi per cause civili ed oneri processuali | D201: PBA020 | E201: 11 | F201: =SUMIF('00 PDC SP'!$C:$C,'00 SP'!$D201,'00 PDC SP'!H:H)*-1 -> 7400000 | G201: =SUMIF('00 PDC SP'!$C:$C,'00 SP'!$D201,'00 PDC SP'!I:I)*-1 -> 2008370.76 | H201: =SUMIF('00 PDC SP'!$C:$C,'00 SP'!$D201,'00 PDC SP'!J:J)*-1 -> 2258370.76 | I201: =SUMIF('00 PDC SP'!$C:$C,'00 SP'!$D201,'00 PDC SP'!K:K)*-1 -> 7150000 | J201: =SUMIF('00 PDC SP'!$C:$C,'00 SP'!$D201,'00 PDC SP'!L:L)*-1 -> 9280260.16 | K201: =SUMIF('00 PDC SP'!$C:$C,'00 SP'!$D201,'00 PDC SP'!M:M)*-1 -> 165038.16 | L201: =SUMIF('00 PDC SP'!$C:$C,'00 SP'!$D201,'00 PDC SP'!N:N)*-1 -> 16265222
... 84 more rows

Sheet 01 Rendiconto Finanziario
D2: Rendiconto Finanziario | F2: ='00 SP'!L2 -> Esercizio 2017 | G2: ='00 SP'!I2 -> Esercizio 2016 | I2: NOTE
D4: OPERAZIONI DI GESTIONE REDDITUALE
A5: 1 | B5: SP | C5: 1 | D5: (+) | E5: risultato di esercizio | F5: =SUMIF('00 PDC SP'!$D:$D,'01 Rendiconto Finanziario'!$A5,'00 PDC SP'!N:N)*'01 Rendiconto Finanziario'!$C5 -> -13609624.26 | G5: =SUMIF('00 PDC SP'!$D:$D,'01 Rendiconto Finanziario'!$A5,'00 PDC SP'!K:K)*'01 Rendiconto Finanziario'!$C5 -> -14264709.56
D6: Voci che non hanno effetto sulla liquidità: costi e ricavi non monetari
A7: 2 | B7: VP | C7: -1 | D7: (+) | E7: ammortamenti fabbricati | F7: =(SUMIF('00 PDC SP'!$D:$D,'01 Rendiconto Finanziario'!$A7,'00 PDC SP'!L:L)-SUMIF('00 PDC SP'!$D:$D,'01 Rendiconto Finanziario'!$A7,'00 PDC SP'!M:M))*'01 Rendiconto Finanziario'!$C7 -> 4970287.05 | G7: =(SUMIF('00 PDC SP'!$D:$D,'01 Rendiconto Finanziario'!$A7,'00 PDC SP'!I:I)-SUMIF('00 PDC SP'!$D:$D,'01 Rendiconto Finanziario'!$A7,'00 PDC SP'!J:J))*'01 Rendiconto Finanziario'!$C7 -> 4970287.05
A8: 3 | B8: VP | C8: -1 | D8: (+) | E8: ammortamenti altre immobilizzazioni materiali | F8: =(SUMIF('00 PDC SP'!$D:$D,'01 Rendiconto Finanziario'!$A8,'00 PDC SP'!L:L)-SUMIF('00 PDC SP'!$D:$D,'01 Rendiconto Finanziario'!$A8,'00 PDC SP'!M:M))*'01 Rendiconto Finanziario'!$C8 -> 5153454.74 | G8: =(SUMIF('00 PDC SP'!$D:$D,'01 Rendiconto Finanziario'!$A8,'00 PDC SP'!I:I)-SUMIF('00 PDC SP'!$D:$D,'01 Rendiconto Finanziario'!$A8,'00 PDC SP'!J:J))*'01 Rendiconto Finanziario'!C8 -> 735709.19
A9: 4 | B9: VP | C9: -1 | D9: (+) | E9: ammortamenti immobilizzazioni immateriali | F9: =(SUMIF('00 PDC SP'!$D:$D,'01 Rendiconto Finanziario'!$A9,'00 PDC SP'!L:L)-SUMIF('00 PDC SP'!$D:$D,'01 Rendiconto Finanziario'!$A9,'00 PDC SP'!M:M))*'01 Rendiconto Finanziario'!$C9 -> 136552.39 | G9: =(SUMIF('00 PDC SP'!$D:$D,'01 Rendiconto Finanziario'!$A9,'00 PDC SP'!I:I)-SUMIF('00 PDC SP'!$D:$D,'01 Rendiconto Finanziario'!$A9,'00 PDC SP'!J:J))*'01 Rendiconto Finanziario'!C9 -> 98877.33
D10: Ammortamenti | F10: =SUM(F7:F9) -> 10260294.18 | G10: =SUM(G7:G9) -> 5804873.57
A11: 5 | B11: DP | C11: -1 | D11: (-) | E11: Utilizzo finanziamenti per investimenti | F11: =(SUMIF('00 PDC SP'!$D:$D,'01 Rendiconto Finanziario'!$A11,'00 PDC SP'!M:M))*'01 Rendiconto Finanziario'!$C11 -> -9776707.08 | G11: =(SUMIF('00 PDC SP'!$D:$D,'01 Rendiconto Finanziario'!$A11,'00 PDC SP'!J:J))*'01 Rendiconto Finanziario'!C11 -> -8451109.42
A12: 6 | B12: DP | C12: -1 | D12: (-) | E12: Utilizzo fondi riserva: investimenti, incentivi al personale, successioni e donaz., plusvalenze da reinvestire | F12: 0 | G12: =(SUMIF('00 PDC SP'!$D:$D,'01 Rendiconto Finanziario'!$A12,'00 PDC SP'!J:J))*'01 Rendiconto Finanziario'!C12 -> 0
D13: Utilizzo contributi in c/capitale e fondi riserva | F13: =SUM(F11:F12) -> -9776707.08 | G13: =SUM(G11:G12) -> -8451109.42
A14: 7 | B14: IP | C14: -1 | D14: (+) | E14: accantonamenti SUMAI | F14: =(SUMIF('00 PDC SP'!$D:$D,'01 Rendiconto Finanziario'!$A14,'00 PDC SP'!L:L))*'01 Rendiconto Finanziario'!$C14 -> 223015.56 | G14: =(SUMIF('00 PDC SP'!$D:$D,'01 Rendiconto Finanziario'!$A14,'00 PDC SP'!I:I))*'01 Rendiconto Finanziario'!C14 -> 225172.71
A15: 7 | B15: DP | C15: 1 | D15: (-) | E15: pagamenti SUMAI | F15: =(SUMIF('00 PDC SP'!$D:$D,'01 Rendiconto Finanziario'!$A15,'00 PDC SP'!M:M))*'01 Rendiconto Finanziario'!$C15 -> -217866.17 | G15: =(SUMIF('00 PDC SP'!$D:$D,'01 Rendiconto Finanziario'!$A15,'00 PDC SP'!J:J))*'01 Rendiconto Finanziario'!C15 -> -112162.58
A16: 8 | B16: IP | C16: -1 | D16: (+) | E16: accantonamenti TFR | F16: =(SUMIF('00 PDC SP'!$D:$D,'01 Rendiconto Finanziario'!$A16,'00 PDC SP'!L:L))*'01 Rendiconto Finanziario'!$C16 -> 0 | G16: =(SUMIF('00 PDC SP'!$D:$D,'01 Rendiconto Finanziario'!$A16,'00 PDC SP'!J:J))*'01 Rendiconto Finanziario'!C16 -> 0
A17: 8 | B17: DP | C17: 1 | D17: (-) | E17: pagamenti TFR | F17: =(SUMIF('00 PDC SP'!$D:$D,'01 Rendiconto Finanziario'!$A17,'00 PDC SP'!M:M))*'01 Rendiconto Finanziario'!$C17 -> 0 | G17: =(SUMIF('00 PDC SP'!$D:$D,'01 Rendiconto Finanziario'!$A17,'00 PDC SP'!J:J))*'01 Rendiconto Finanziario'!C17 -> 0
D18: - Premio operosità medici SUMAI + TFR | F18: =SUM(F14:F17) -> 5149.39 | G18: =SUM(G14:G17) -> 113010.13
A19: 9 | B19: VA | C19: 1 | D19: (+/-) | E19: Rivalutazioni/svalutazioni di attività finanziarie | F19: =(SUMIF('00 PDC SP'!$D:$D,'01 Rendiconto Finanziario'!$A19,'00 PDC SP'!L:L)-SUMIF('00 PDC SP'!$D:$D,'01 Rendiconto Finanziario'!$A19,'00 PDC SP'!M:M))*'01 Rendiconto Finanziario'!$C19 -> 0 | G19: =(SUMIF('00 PDC SP'!$D:$D,'01 Rendiconto Finanziario'!$A19,'00 PDC SP'!I:I)-SUMIF('00 PDC SP'!$D:$D,'01 Rendiconto Finanziario'!$A19,'00 PDC SP'!J:J))*'01 Rendiconto Finanziario'!C19 -> 0
A20: 10 | B20: IP | C20: -1 | D20: (+) | E20: accantonamenti a fondi svalutazioni | F20: =(SUMIF('00 PDC SP'!$D:$D,'01 Rendiconto Finanziario'!$A20,'00 PDC SP'!L:L))*'01 Rendiconto Finanziario'!$C20 -> 300000 | G20: =(SUMIF('00 PDC SP'!$D:$D,'01 Rendiconto Finanziario'!$A20,'00 PDC SP'!I:I))*'01 Rendiconto Finanziario'!C20 -> 0
A21: 10 | B21: DP | C21: 1 | D21: (-) | E21: utilizzo fondi svalutazioni (*) | F21: =(SUMIF('00 PDC SP'!$D:$D,'01 Rendiconto Finanziario'!$A21,'00 PDC SP'!M:M))*'01 Rendiconto Finanziario'!$C21 -> 0 | G21: =(SUMIF('00 PDC SP'!$D:$D,'01 Rendiconto Finanziario'!$A21,'00 PDC SP'!J:J))*'01 Rendiconto Finanziario'!C21 -> 0
D22: - Fondi svalutazione di attività | F22: =SUM(F19:F21) -> 300000 | G22: =SUM(G19:G21) -> 0
A23: 11 | B23: IP | C23: -1 | D23: (+) | E23: accantonamenti a fondi per rischi e oneri | F23: =(SUMIF('00 PDC SP'!$D:$D,'01 Rendiconto Finanziario'!$A23,'00 PDC SP'!L:L))*'01 Rendiconto Finanziario'!$C23 -> 27369043.7 | G23: =(SUMIF('00 PDC SP'!$D:$D,'01 Rendiconto Finanziario'!$A23,'00 PDC SP'!I:I))*'01 Rendiconto Finanziario'!C23 -> 11690370.41
A24: 11 | B24: DP | C24: 1 | D24: (-) | E24: utilizzo fondi per rischi e oneri | F24: =(SUMIF('00 PDC SP'!$D:$D,'01 Rendiconto Finanziario'!$A24,'00 PDC SP'!M:M))*'01 Rendiconto Finanziario'!$C24 -> -12603218.6 | G24: =(SUMIF('00 PDC SP'!$D:$D,'01 Rendiconto Finanziario'!$A24,'00 PDC SP'!J:J))*'01 Rendiconto Finanziario'!C24 -> -16080461.81
D25: - Fondo per rischi ed oneri futuri | F25: =SUM(F23:F24) -> 14765825.1 | G25: =SUM(G23:G24) -> -4390091.4
D26: TOTALE Flusso di CCN della gestione corrente | F26: =F5+F10+F13+F18+F22+F25 -> 1944937.33 | G26: =G5+G10+G13+G18+G22+G25 -> -21188026.68
A27: 12 | B27: VP | C27: -1 | D27: (+)/(-) | E27: aumento/diminuzione debiti verso regione e provincia autonoma, esclusa la variazione relativa a debiti per acquisto di beni strumentali | F27: =((SUMIF('00 PDC SP'!$D:$D,'01 Rendiconto Finanziario'!$A27,'00 PDC SP'!L:L)-SUMIF('00 PDC SP'!$D:$D,'01 Rendiconto Finanziario'!$A27,'00 PDC SP'!M:M))*'01 Rendiconto Finanziario'!C27) -> -689 | G27: =((SUMIF('00 PDC SP'!$D:$D,'01 Rendiconto Finanziario'!$A27,'00 PDC SP'!I:I)-SUMIF('00 PDC SP'!$D:$D,'01 Rendiconto Finanziario'!$A27,'00 PDC SP'!J:J))*'01 Rendiconto Finanziario'!C27) -> -9570786.18
A28: 13 | B28: VP | C28: -1 | D28: (+)/(-) | E28: aumento/diminuzione debiti verso comune | F28: =((SUMIF('00 PDC SP'!$D:$D,'01 Rendiconto Finanziario'!$A28,'00 PDC SP'!L:L)-SUMIF('00 PDC SP'!$D:$D,'01 Rendiconto Finanziario'!$A28,'00 PDC SP'!M:M))*'01 Rendiconto Finanziario'!C28) -> 0 | G28: =(SUMIF('00 PDC SP'!$D:$D,'01 Rendiconto Finanziario'!$A28,'00 PDC SP'!I:I)-SUMIF('00 PDC SP'!$D:$D,'01 Rendiconto Finanziario'!$A28,'00 PDC SP'!J:J))*'01 Rendiconto Finanziario'!C28 -> 0
A29: 14 | B29: VP | C29: -1 | D29: (+)/(-) | E29: aumento/diminuzione debiti verso aziende sanitarie pubbliche | F29: =((SUMIF('00 PDC SP'!$D:$D,'01 Rendiconto Finanziario'!$A29,'00 PDC SP'!L:L)-SUMIF('00 PDC SP'!$D:$D,'01 Rendiconto Finanziario'!$A29,'00 PDC SP'!M:M))*'01 Rendiconto Finanziario'!C29) -> 199235.53 | G29: =(SUMIF('00 PDC SP'!$D:$D,'01 Rendiconto Finanziario'!$A29,'00 PDC SP'!I:I)-SUMIF('00 PDC SP'!$D:$D,'01 Rendiconto Finanziario'!$A29,'00 PDC SP'!J:J))*'01 Rendiconto Finanziario'!C29 -> 78863.76
A30: 15 | B30: VP | C30: -1 | D30: (+)/(-) | E30: aumento/diminuzione debiti verso arpa | F30: =((SUMIF('00 PDC SP'!$D:$D,'01 Rendiconto Finanziario'!$A30,'00 PDC SP'!L:L)-SUMIF('00 PDC SP'!$D:$D,'01 Rendiconto Finanziario'!$A30,'00 PDC SP'!M:M))*'01 Rendiconto Finanziario'!C30) -> 0 | G30: =(SUMIF('00 PDC SP'!$D:$D,'01 Rendiconto Finanziario'!$A30,'00 PDC SP'!I:I)-SUMIF('00 PDC SP'!$D:$D,'01 Rendiconto Finanziario'!$A30,'00 PDC SP'!J:J))*'01 Rendiconto Finanziario'!C30 -> -7311.52
A31: 16 | B31: VP | C31: -1 | D31: (+)/(-) | E31: aumento/diminuzione debiti verso fornitori | F31: =((SUMIF('00 PDC SP'!$D:$D,'01 Rendiconto Finanziario'!$A31,'00 PDC SP'!L:L)-SUMIF('00 PDC SP'!$D:$D,'01 Rendiconto Finanziario'!$A31,'00 PDC SP'!M:M))*'01 Rendiconto Finanziario'!C31)-F91 -> -8017760.13 | G31: =((SUMIF('00 PDC SP'!$D:$D,'01 Rendiconto Finanziario'!$A31,'00 PDC SP'!I:I)-SUMIF('00 PDC SP'!$D:$D,'01 Rendiconto Finanziario'!$A31,'00 PDC SP'!J:J))*'01 Rendiconto Finanziario'!C31)-G91 -> 3369939.96 | I31: IMPOSTATA FORMULA DI SOTTRAZIONE VS CODICE DI AGGREGAZIONE 58
A32: 17 | B32: VP | C32: -1 | D32: (+)/(-) | E32: aumento/diminuzione debiti tributari | F32: =((SUMIF('00 PDC SP'!$D:$D,'01 Rendiconto Finanziario'!$A32,'00 PDC SP'!L:L)-SUMIF('00 PDC SP'!$D:$D,'01 Rendiconto Finanziario'!$A32,'00 PDC SP'!M:M))*'01 Rendiconto Finanziario'!C32) -> -1298784.59 | G32: =(SUMIF('00 PDC SP'!$D:$D,'01 Rendiconto Finanziario'!$A32,'00 PDC SP'!I:I)-SUMIF('00 PDC SP'!$D:$D,'01 Rendiconto Finanziario'!$A32,'00 PDC SP'!J:J))*'01 Rendiconto Finanziario'!C32 -> 18500.29
A33: 18 | B33: VP | C33: -1 | D33: (+)/(-) | E33: aumento/diminuzione debiti verso istituti di previdenza | F33: =((SUMIF('00 PDC SP'!$D:$D,'01 Rendiconto Finanziario'!$A33,'00 PDC SP'!L:L)-SUMIF('00 PDC SP'!$D:$D,'01 Rendiconto Finanziario'!$A33,'00 PDC SP'!M:M))*'01 Rendiconto Finanziario'!C33) -> 125982.9 | G33: =(SUMIF('00 PDC SP'!$D:$D,'01 Rendiconto Finanziario'!$A33,'00 PDC SP'!I:I)-SUMIF('00 PDC SP'!$D:$D,'01 Rendiconto Finanziario'!$A33,'00 PDC SP'!J:J))*'01 Rendiconto Finanziario'!C33 -> 134706.39
A34: 19 | B34: VP | C34: -1 | D34: (+)/(-) | E34: aumento/diminuzione altri debiti | F34: =((SUMIF('00 PDC SP'!$D:$D,'01 Rendiconto Finanziario'!$A34,'00 PDC SP'!L:L)-SUMIF('00 PDC SP'!$D:$D,'01 Rendiconto Finanziario'!$A34,'00 PDC SP'!M:M))*'01 Rendiconto Finanziario'!C34) -> -1493585.72 | G34: =(SUMIF('00 PDC SP'!$D:$D,'01 Rendiconto Finanziario'!$A34,'00 PDC SP'!I:I)-SUMIF('00 PDC SP'!$D:$D,'01 Rendiconto Finanziario'!$A34,'00 PDC SP'!J:J))*'01 Rendiconto Finanziario'!C34 -> -228497.67
D35: (+)/(-) | E35: aumento/diminuzione debiti (escl. forn. di immob. e C/C bancari e istituto tesoriere) | F35: =SUM(F27:F34) -> -10485601.01 | G35: =SUM(G27:G34) -> -6204584.97
A36: 20 | B36: VP | C36: -1 | D36: (+)/(-) | E36: aumento/diminuzione ratei e risconti passivi | F36: =((SUMIF('00 PDC SP'!$D:$D,'01 Rendiconto Finanziario'!$A36,'00 PDC SP'!L:L)-SUMIF('00 PDC SP'!$D:$D,'01 Rendiconto Finanziario'!$A36,'00 PDC SP'!M:M))*'01 Rendiconto Finanziario'!C36) -> 0 | G36: =(SUMIF('00 PDC SP'!$D:$D,'01 Rendiconto Finanziario'!$A36,'00 PDC SP'!I:I)-SUMIF('00 PDC SP'!$D:$D,'01 Rendiconto Finanziario'!$A36,'00 PDC SP'!J:J))*'01 Rendiconto Finanziario'!C36 -> 0
A37: 21 | B37: VA | C37: -1 | D37: (+)/(-) | E37: diminuzione/aumento crediti parte corrente v/Stato quote indistinte | F37: =((SUMIF('00 PDC SP'!$D:$D,'01 Rendiconto Finanziario'!$A37,'00 PDC SP'!L:L)-SUMIF('00 PDC SP'!$D:$D,'01 Rendiconto Finanziario'!$A37,'00 PDC SP'!M:M))*'01 Rendiconto Finanziario'!C37)-F38 -> 5970.26 | G37: =((SUMIF('00 PDC SP'!$D:$D,'01 Rendiconto Finanziario'!$A37,'00 PDC SP'!I:I)-SUMIF('00 PDC SP'!$D:$D,'01 Rendiconto Finanziario'!$A37,'00 PDC SP'!J:J))*'01 Rendiconto Finanziario'!C37)-G38 -> -93186.12 | I37: IMPOSTATA FORMULA DI SOTTRAZIONE VS CODICE DI AGGREGAZIONE 22
A38: 22 | B38: VA | C38: -1 | D38: (+)/(-) | E38: diminuzione/aumento crediti parte corrente v/Stato quote vincolate | F38: =((SUMIF('00 PDC SP'!$D:$D,'01 Rendiconto Finanziario'!$A38,'00 PDC SP'!L:L)-SUMIF('00 PDC SP'!$D:$D,'01 Rendiconto Finanziario'!$A38,'00 PDC SP'!M:M))*'01 Rendiconto Finanziario'!C38) -> 0 | G38: =(SUMIF('00 PDC SP'!$D:$D,'01 Rendiconto Finanziario'!$A38,'00 PDC SP'!I:I)-SUMIF('00 PDC SP'!$D:$D,'01 Rendiconto Finanziario'!$A38,'00 PDC SP'!J:J))*'01 Rendiconto Finanziario'!C38 -> 0 | I38: CODICE 22 - DA INSERIRE MANUALMENTE
A39: 23 | B39: VA | C39: -1 | D39: (+)/(-) | E39: diminuzione/aumento crediti parte corrente v/Regione per gettito addizionali Irpef e Irap | F39: =((SUMIF('00 PDC SP'!$D:$D,'01 Rendiconto Finanziario'!$A39,'00 PDC SP'!L:L)-SUMIF('00 PDC SP'!$D:$D,'01 Rendiconto Finanziario'!$A39,'00 PDC SP'!M:M))*'01 Rendiconto Finanziario'!C39) -> 0 | G39: =(SUMIF('00 PDC SP'!$D:$D,'01 Rendiconto Finanziario'!$A39,'00 PDC SP'!I:I)-SUMIF('00 PDC SP'!$D:$D,'01 Rendiconto Finanziario'!$A39,'00 PDC SP'!J:J))*'01 Rendiconto Finanziario'!C39 -> 0 | I39: CODICE 23 - DA INSERIRE MANUALMENTE
A40: 23 | B40: VA | C40: -1 | D40: (+)/(-) | E40: diminuzione/aumento crediti parte corrente v/Regione per partecipazioni regioni a Statuto speciale | F40: =((SUMIF('00 PDC SP'!$D:$D,'01 Rendiconto Finanziario'!$A40,'00 PDC SP'!L:L)-SUMIF('00 PDC SP'!$D:$D,'01 Rendiconto Finanziario'!$A40,'00 PDC SP'!M:M))*'01 Rendiconto Finanziario'!C40) -> 0 | G40: =(SUMIF('00 PDC SP'!$D:$D,'01 Rendiconto Finanziario'!$A40,'00 PDC SP'!I:I)-SUMIF('00 PDC SP'!$D:$D,'01 Rendiconto Finanziario'!$A40,'00 PDC SP'!J:J))*'01 Rendiconto Finanziario'!C40 -> 0 | I40: CODICE 23 - DA INSERIRE MANUALMENTE
A41: 23 | B41: VA | C41: -1 | D41: (+)/(-) | E41: diminuzione/aumento crediti parte corrente v/Regione - vincolate per partecipazioni regioni a Statuto speciale | F41: =((SUMIF('00 PDC SP'!$D:$D,'01 Rendiconto Finanziario'!$A41,'00 PDC SP'!L:L)-SUMIF('00 PDC SP'!$D:$D,'01 Rendiconto Finanziario'!$A41,'00 PDC SP'!M:M))*'01 Rendiconto Finanziario'!C41) -> 0 | G41: =(SUMIF('00 PDC SP'!$D:$D,'01 Rendiconto Finanziario'!$A41,'00 PDC SP'!I:I)-SUMIF('00 PDC SP'!$D:$D,'01 Rendiconto Finanziario'!$A41,'00 PDC SP'!J:J))*'01 Rendiconto Finanziario'!C41 -> 0 | I41: CODICE 23 - DA INSERIRE MANUALMENTE
A42: 23 | B42: VA | C42: -1 | D42: (+)/(-) | E42: diminuzione/aumento crediti parte corrente v/Regione - gettito fiscalità regionale | F42: =((SUMIF('00 PDC SP'!$D:$D,'01 Rendiconto Finanziario'!$A42,'00 PDC SP'!L:L)-SUMIF('00 PDC SP'!$D:$D,'01 Rendiconto Finanziario'!$A42,'00 PDC SP'!M:M))*'01 Rendiconto Finanziario'!C42) -> 0 | G42: =(SUMIF('00 PDC SP'!$D:$D,'01 Rendiconto Finanziario'!$A42,'00 PDC SP'!I:I)-SUMIF('00 PDC SP'!$D:$D,'01 Rendiconto Finanziario'!$A42,'00 PDC SP'!J:J))*'01 Rendiconto Finanziario'!C42 -> 0 | I42: CODICE 23 - DA INSERIRE MANUALMENTE
A43: 23 | B43: VA | C43: -1 | D43: (+)/(-) | E43: diminuzione/aumento crediti parte corrente v/Regione - altri contributi extrafondo | F43: =((SUMIF('00 PDC SP'!$D:$D,'01 Rendiconto Finanziario'!$A43,'00 PDC SP'!L:L)-SUMIF('00 PDC SP'!$D:$D,'01 Rendiconto Finanziario'!$A43,'00 PDC SP'!M:M))*'01 Rendiconto Finanziario'!C43) -> 0 | G43: =(SUMIF('00 PDC SP'!$D:$D,'01 Rendiconto Finanziario'!$A43,'00 PDC SP'!I:I)-SUMIF('00 PDC SP'!$D:$D,'01 Rendiconto Finanziario'!$A43,'00 PDC SP'!J:J))*'01 Rendiconto Finanziario'!C43 -> 0 | I43: CODICE 23 - DA INSERIRE MANUALMENTE
A44: 25 | B44: VA | C44: -1 | D44: (+)/(-) | E44: diminuzione/aumento crediti parte corrente v/Regione | F44: =((SUMIF('00 PDC SP'!$D:$D,'01 Rendiconto Finanziario'!$A44,'00 PDC SP'!L:L)-SUMIF('00 PDC SP'!$D:$D,'01 Rendiconto Finanziario'!$A44,'00 PDC SP'!M:M))*'01 Rendiconto Finanziario'!C44)-(F39+F40+F41+F42+F43) -> 32114322.95 | G44: =((SUMIF('00 PDC SP'!$D:$D,'01 Rendiconto Finanziario'!$A44,'00 PDC SP'!I:I)-SUMIF('00 PDC SP'!$D:$D,'01 Rendiconto Finanziario'!$A44,'00 PDC SP'!J:J))*'01 Rendiconto Finanziario'!C44)-(G39+G40+G41+G42+G43) -> -36293107.13 | I44: IMPOSTATA FORMULA DI SOTTRAZIONE VS CODICE DI AGGREGAZIONE 23
A45: 26 | B45: VA | C45: -1 | D45: (+)/(-) | E45: diminuzione/aumento crediti parte corrente v/Comune | F45: =((SUMIF('00 PDC SP'!$D:$D,'01 Rendiconto Finanziario'!$A45,'00 PDC SP'!L:L)-SUMIF('00 PDC SP'!$D:$D,'01 Rendiconto Finanziario'!$A45,'00 PDC SP'!M:M))*'01 Rendiconto Finanziario'!C45) -> -132021.37 | G45: =(SUMIF('00 PDC SP'!$D:$D,'01 Rendiconto Finanziario'!$A45,'00 PDC SP'!I:I)-SUMIF('00 PDC SP'!$D:$D,'01 Rendiconto Finanziario'!$A45,'00 PDC SP'!J:J))*'01 Rendiconto Finanziario'!C45 -> 18291.92
A46: 27 | B46: VA | C46: -1 | D46: (+)/(-) | E46: diminuzione/aumento crediti parte corrente v/Asl-Ao | F46: =((SUMIF('00 PDC SP'!$D:$D,'01 Rendiconto Finanziario'!$A46,'00 PDC SP'!L:L)-SUMIF('00 PDC SP'!$D:$D,'01 Rendiconto Finanziario'!$A46,'00 PDC SP'!M:M))*'01 Rendiconto Finanziario'!C46) -> 386372.17 | G46: =(SUMIF('00 PDC SP'!$D:$D,'01 Rendiconto Finanziario'!$A46,'00 PDC SP'!I:I)-SUMIF('00 PDC SP'!$D:$D,'01 Rendiconto Finanziario'!$A46,'00 PDC SP'!J:J))*'01 Rendiconto Finanziario'!C46 -> -341487.07
A47: 28 | B47: VA | C47: -1 | D47: (+)/(-) | E47: diminuzione/aumento crediti parte corrente v/ARPA | F47: =((SUMIF('00 PDC SP'!$D:$D,'01 Rendiconto Finanziario'!$A47,'00 PDC SP'!L:L)-SUMIF('00 PDC SP'!$D:$D,'01 Rendiconto Finanziario'!$A47,'00 PDC SP'!M:M))*'01 Rendiconto Finanziario'!C47) -> 0 | G47: =(SUMIF('00 PDC SP'!$D:$D,'01 Rendiconto Finanziario'!$A47,'00 PDC SP'!I:I)-SUMIF('00 PDC SP'!$D:$D,'01 Rendiconto Finanziario'!$A47,'00 PDC SP'!J:J))*'01 Rendiconto Finanziario'!C47 -> 0
A48: 29 | B48: VA | C48: -1 | D48: (+)/(-) | E48: diminuzione/aumento crediti parte corrente v/Erario | F48: =((SUMIF('00 PDC SP'!$D:$D,'01 Rendiconto Finanziario'!$A48,'00 PDC SP'!L:L)-SUMIF('00 PDC SP'!$D:$D,'01 Rendiconto Finanziario'!$A48,'00 PDC SP'!M:M))*'01 Rendiconto Finanziario'!C48) -> 3798.12 | G48: =(SUMIF('00 PDC SP'!$D:$D,'01 Rendiconto Finanziario'!$A48,'00 PDC SP'!I:I)-SUMIF('00 PDC SP'!$D:$D,'01 Rendiconto Finanziario'!$A48,'00 PDC SP'!J:J))*'01 Rendiconto Finanziario'!C48 -> 30953.5
A49: 30 | B49: VA | C49: -1 | D49: (+)/(-) | E49: diminuzione/aumento crediti parte corrente v/Altri | F49: =((SUMIF('00 PDC SP'!$D:$D,'01 Rendiconto Finanziario'!$A49,'00 PDC SP'!L:L)-SUMIF('00 PDC SP'!$D:$D,'01 Rendiconto Finanziario'!$A49,'00 PDC SP'!M:M))*'01 Rendiconto Finanziario'!C49) -> -157918.08 | G49: =(SUMIF('00 PDC SP'!$D:$D,'01 Rendiconto Finanziario'!$A49,'00 PDC SP'!I:I)-SUMIF('00 PDC SP'!$D:$D,'01 Rendiconto Finanziario'!$A49,'00 PDC SP'!J:J))*'01 Rendiconto Finanziario'!C49 -> -867648.62
D50: (+)/(-) | E50: diminuzione/aumento di crediti | F50: =SUM(F37:F49) -> 32220524.05 | G50: =SUM(G37:G49) -> -37546183.52
A51: 31 | B51: VA | C51: -1 | D51: (+)/(-) | E51: diminuzione/aumento del magazzino | F51: =((SUMIF('00 PDC SP'!$D:$D,'01 Rendiconto Finanziario'!$A51,'00 PDC SP'!L:L)-SUMIF('00 PDC SP'!$D:$D,'01 Rendiconto Finanziario'!$A51,'00 PDC SP'!M:M))*'01 Rendiconto Finanziario'!C51) -> -1222094.45 | G51: =(SUMIF('00 PDC SP'!$D:$D,'01 Rendiconto Finanziario'!$A51,'00 PDC SP'!I:I)-SUMIF('00 PDC SP'!$D:$D,'01 Rendiconto Finanziario'!$A51,'00 PDC SP'!J:J))*'01 Rendiconto Finanziario'!C51 -> 810888.64
A52: 32 | B52: VA | C52: -1 | D52: (+)/(-) | E52: diminuzione/aumento di acconti a fornitori per magazzino | F52: =((SUMIF('00 PDC SP'!$D:$D,'01 Rendiconto Finanziario'!$A52,'00 PDC SP'!L:L)-SUMIF('00 PDC SP'!$D:$D,'01 Rendiconto Finanziario'!$A52,'00 PDC SP'!M:M))*'01 Rendiconto Finanziario'!C52) -> 0 | G52: =(SUMIF('00 PDC SP'!$D:$D,'01 Rendiconto Finanziario'!$A52,'00 PDC SP'!I:I)-SUMIF('00 PDC SP'!$D:$D,'01 Rendiconto Finanziario'!$A52,'00 PDC SP'!J:J))*'01 Rendiconto Finanziario'!C52 -> 0
D53: (+)/(-) | E53: diminuzione/aumento rimanenze | F53: =SUM(F51:F52) -> -1222094.45 | G53: =SUM(G51:G52) -> 810888.64
A54: 33 | B54: VA | C54: -1 | D54: (+)/(-) | E54: diminuzione/aumento ratei e risconti attivi | F54: =((SUMIF('00 PDC SP'!$D:$D,'01 Rendiconto Finanziario'!$A54,'00 PDC SP'!L:L)-SUMIF('00 PDC SP'!$D:$D,'01 Rendiconto Finanziario'!$A54,'00 PDC SP'!M:M))*'01 Rendiconto Finanziario'!C54) -> 1494163.71 | G54: =(SUMIF('00 PDC SP'!$D:$D,'01 Rendiconto Finanziario'!$A54,'00 PDC SP'!I:I)-SUMIF('00 PDC SP'!$D:$D,'01 Rendiconto Finanziario'!$A54,'00 PDC SP'!J:J))*'01 Rendiconto Finanziario'!C54 -> 387416.98
D55: A - Totale operazioni di gestione reddituale | F55: =F26+F35+F36+F50+F53+F54 -> 23951929.63 | G55: =G26+G35+G36+G50+G53+G54 -> -63740489.55
D56: ATTIVITA' DI INVESTIMENTO
A57: 34 | B57: IA | C57: -1 | D57: (-) | E57: Acquisto costi di impianto e di ampliamento | F57: =((SUMIF('00 PDC SP'!$D:$D,'01 Rendiconto Finanziario'!$A57,'00 PDC SP'!L:L)))*'01 Rendiconto Finanziario'!C57 -> 0 | G57: =(SUMIF('00 PDC SP'!$D:$D,'01 Rendiconto Finanziario'!$A57,'00 PDC SP'!I:I))*'01 Rendiconto Finanziario'!C57 -> 0
A58: 35 | B58: IA | C58: -1 | D58: (-) | E58: Acquisto costi di ricerca e sviluppo | F58: =((SUMIF('00 PDC SP'!$D:$D,'01 Rendiconto Finanziario'!$A58,'00 PDC SP'!L:L)))*'01 Rendiconto Finanziario'!C58 -> 0 | G58: =(SUMIF('00 PDC SP'!$D:$D,'01 Rendiconto Finanziario'!$A58,'00 PDC SP'!I:I))*'01 Rendiconto Finanziario'!C58 -> 0
A59: 36 | B59: IA | C59: -1 | D59: (-) | E59: Acquisto Diritti di brevetto e diritti di utilizzazione delle opere d'ingegno | F59: =((SUMIF('00 PDC SP'!$D:$D,'01 Rendiconto Finanziario'!$A59,'00 PDC SP'!L:L)))*'01 Rendiconto Finanziario'!C59 -> 0 | G59: =(SUMIF('00 PDC SP'!$D:$D,'01 Rendiconto Finanziario'!$A59,'00 PDC SP'!I:I))*'01 Rendiconto Finanziario'!C59 -> 0
A60: 37 | B60: IA | C60: -1 | D60: (-) | E60: Acquisto immobilizzazioni immateriali in corso | F60: =((SUMIF('00 PDC SP'!$D:$D,'01 Rendiconto Finanziario'!$A60,'00 PDC SP'!L:L)))*'01 Rendiconto Finanziario'!C60 -> 0 | G60: =(SUMIF('00 PDC SP'!$D:$D,'01 Rendiconto Finanziario'!$A60,'00 PDC SP'!I:I))*'01 Rendiconto Finanziario'!C60 -> 0
A61: 38 | B61: IA | C61: -1 | D61: (-) | E61: Acquisto altre immobilizzazioni immateriali | F61: =((SUMIF('00 PDC SP'!$D:$D,'01 Rendiconto Finanziario'!$A61,'00 PDC SP'!L:L)))*'01 Rendiconto Finanziario'!C61 -> -209841.59 | G61: =(SUMIF('00 PDC SP'!$D:$D,'01 Rendiconto Finanziario'!$A61,'00 PDC SP'!I:I))*'01 Rendiconto Finanziario'!C61 -> -181030.9
D62: (-) | E62: Acquisto immobilizzazioni immateriali | F62: =SUM(F57:F61) -> -209841.59 | G62: =SUM(G57:G61) -> -181030.9
A63: 34 | B63: DA | C63: 1 | D63: (+) | E63: Valore netto contabile costi di impianto e di ampliamento dismessi | F63: =((SUMIF('00 PDC SP'!$D:$D,'01 Rendiconto Finanziario'!$A63,'00 PDC SP'!M:M)))*'01 Rendiconto Finanziario'!C63 -> 0 | G63: =(SUMIF('00 PDC SP'!$D:$D,'01 Rendiconto Finanziario'!$A63,'00 PDC SP'!J:J))*'01 Rendiconto Finanziario'!C63 -> 0
A64: 35 | B64: DA | C64: 1 | D64: (+) | E64: Valore netto contabile costi di ricerca e sviluppo dismessi | F64: =((SUMIF('00 PDC SP'!$D:$D,'01 Rendiconto Finanziario'!$A64,'00 PDC SP'!M:M)))*'01 Rendiconto Finanziario'!C64 -> 0 | G64: =(SUMIF('00 PDC SP'!$D:$D,'01 Rendiconto Finanziario'!$A64,'00 PDC SP'!J:J))*'01 Rendiconto Finanziario'!C64 -> 0
A65: 36 | B65: DA | C65: 1 | D65: (+) | E65: Valore netto contabile Diritti di brevetto e diritti di utilizzazione delle opere d'ingegno dismessi | F65: =((SUMIF('00 PDC SP'!$D:$D,'01 Rendiconto Finanziario'!$A65,'00 PDC SP'!M:M)))*'01 Rendiconto Finanziario'!C65 -> 0 | G65: =(SUMIF('00 PDC SP'!$D:$D,'01 Rendiconto Finanziario'!$A65,'00 PDC SP'!J:J))*'01 Rendiconto Finanziario'!C65 -> 0
A66: 37 | B66: DA | C66: 1 | D66: (+) | E66: Valore netto contabile immobilizzazioni immateriali in corso dismesse | F66: =((SUMIF('00 PDC SP'!$D:$D,'01 Rendiconto Finanziario'!$A66,'00 PDC SP'!M:M)))*'01 Rendiconto Finanziario'!C66 -> 0 | G66: =(SUMIF('00 PDC SP'!$D:$D,'01 Rendiconto Finanziario'!$A66,'00 PDC SP'!J:J))*'01 Rendiconto Finanziario'!C66 -> 0
A67: 38 | B67: DA | C67: 1 | D67: (+) | E67: Valore netto contabile altre immobilizzazioni immateriali dismesse | F67: =((SUMIF('00 PDC SP'!$D:$D,'01 Rendiconto Finanziario'!$A67,'00 PDC SP'!M:M)))*'01 Rendiconto Finanziario'!C67 -> 7129.38 | G67: =(SUMIF('00 PDC SP'!$D:$D,'01 Rendiconto Finanziario'!$A67,'00 PDC SP'!J:J))*'01 Rendiconto Finanziario'!C67 -> 6424.06
D68: (+) | E68: Valore netto contabile Immobilizzazioni Immateriali dismesse | F68: =SUM(F63:F67) -> 7129.38 | G68: =SUM(G63:G67) -> 6424.06
A69: 39 | B69: IA | C69: -1 | D69: (-) | E69: Acquisto terreni | F69: =((SUMIF('00 PDC SP'!$D:$D,'01 Rendiconto Finanziario'!$A69,'00 PDC SP'!L:L)))*'01 Rendiconto Finanziario'!C69 -> 0 | G69: =(SUMIF('00 PDC SP'!$D:$D,'01 Rendiconto Finanziario'!$A69,'00 PDC SP'!I:I))*'01 Rendiconto Finanziario'!C69 -> 0
A70: 40 | B70: IA | C70: -1 | D70: (-) | E70: Acquisto fabbricati | F70: =((SUMIF('00 PDC SP'!$D:$D,'01 Rendiconto Finanziario'!$A70,'00 PDC SP'!L:L)))*'01 Rendiconto Finanziario'!C70 -> 0 | G70: =(SUMIF('00 PDC SP'!$D:$D,'01 Rendiconto Finanziario'!$A70,'00 PDC SP'!I:I))*'01 Rendiconto Finanziario'!C70 -> 0
A71: 41 | B71: IA | C71: -1 | D71: (-) | E71: Acquisto impianti e macchinari | F71: =((SUMIF('00 PDC SP'!$D:$D,'01 Rendiconto Finanziario'!$A71,'00 PDC SP'!L:L)))*'01 Rendiconto Finanziario'!C71 -> -219918.7 | G71: =(SUMIF('00 PDC SP'!$D:$D,'01 Rendiconto Finanziario'!$A71,'00 PDC SP'!I:I))*'01 Rendiconto Finanziario'!C71 -> -183106.44
A72: 42 | B72: IA | C72: -1 | D72: (-) | E72: Acquisto attrezzature sanitarie e scientifiche | F72: =((SUMIF('00 PDC SP'!$D:$D,'01 Rendiconto Finanziario'!$A72,'00 PDC SP'!L:L)))*'01 Rendiconto Finanziario'!C72 -> -5812839.07 | G72: =(SUMIF('00 PDC SP'!$D:$D,'01 Rendiconto Finanziario'!$A72,'00 PDC SP'!I:I))*'01 Rendiconto Finanziario'!C72 -> -6743296.67
A73: 43 | B73: IA | C73: -1 | D73: (-) | E73: Acquisto mobili e arredi | F73: =((SUMIF('00 PDC SP'!$D:$D,'01 Rendiconto Finanziario'!$A73,'00 PDC SP'!L:L)))*'01 Rendiconto Finanziario'!C73 -> -241394.07 | G73: =(SUMIF('00 PDC SP'!$D:$D,'01 Rendiconto Finanziario'!$A73,'00 PDC SP'!I:I))*'01 Rendiconto Finanziario'!C73 -> -374325.51
A74: 44 | B74: IA | C74: -1 | D74: (-) | E74: Acquisto automezzi | F74: =((SUMIF('00 PDC SP'!$D:$D,'01 Rendiconto Finanziario'!$A74,'00 PDC SP'!L:L)))*'01 Rendiconto Finanziario'!C74 -> -123029.66 | G74: =(SUMIF('00 PDC SP'!$D:$D,'01 Rendiconto Finanziario'!$A74,'00 PDC SP'!I:I))*'01 Rendiconto Finanziario'!C74 -> -144301.6
A75: 45 | B75: IA | C75: -1 | D75: (-) | E75: Acquisto altri beni materiali | F75: =((SUMIF('00 PDC SP'!$D:$D,'01 Rendiconto Finanziario'!$A75,'00 PDC SP'!L:L)))*'01 Rendiconto Finanziario'!C75 -> -2743711.12 | G75: =(SUMIF('00 PDC SP'!$D:$D,'01 Rendiconto Finanziario'!$A75,'00 PDC SP'!I:I))*'01 Rendiconto Finanziario'!C75 -> -1620581.73
D76: (-) | E76: Acquisto Immobilizzazioni Materiali | F76: =SUM(F69:F75) -> -9140892.62 | G76: =SUM(G69:G75) -> -9065611.95
A77: 39 | B77: DA | C77: 1 | D77: (+) | E77: Valore netto contabile terreni dismessi | F77: =((SUMIF('00 PDC SP'!$D:$D,'01 Rendiconto Finanziario'!$A77,'00 PDC SP'!M:M)))*'01 Rendiconto Finanziario'!C77 -> 0 | G77: =(SUMIF('00 PDC SP'!$D:$D,'01 Rendiconto Finanziario'!$A77,'00 PDC SP'!J:J))*'01 Rendiconto Finanziario'!C77 -> 0
A78: 40 | B78: DA | C78: 1 | D78: (+) | E78: Valore netto contabile fabbricati dismessi | F78: =((SUMIF('00 PDC SP'!$D:$D,'01 Rendiconto Finanziario'!$A78,'00 PDC SP'!M:M)))*'01 Rendiconto Finanziario'!C78 -> 0 | G78: =(SUMIF('00 PDC SP'!$D:$D,'01 Rendiconto Finanziario'!$A78,'00 PDC SP'!J:J))*'01 Rendiconto Finanziario'!C78 -> 0
A79: 41 | B79: DA | C79: 1 | D79: (+) | E79: Valore netto contabile impianti e macchinari dismessi | F79: =((SUMIF('00 PDC SP'!$D:$D,'01 Rendiconto Finanziario'!$A79,'00 PDC SP'!M:M)))*'01 Rendiconto Finanziario'!C79 -> 171.65 | G79: =(SUMIF('00 PDC SP'!$D:$D,'01 Rendiconto Finanziario'!$A79,'00 PDC SP'!J:J))*'01 Rendiconto Finanziario'!C79 -> 8604.8
A80: 42 | B80: DA | C80: 1 | D80: (+) | E80: Valore netto contabile attrezzature sanitarie e scientifiche dismesse | F80: =((SUMIF('00 PDC SP'!$D:$D,'01 Rendiconto Finanziario'!$A80,'00 PDC SP'!M:M)))*'01 Rendiconto Finanziario'!C80 -> 146692.8 | G80: =(SUMIF('00 PDC SP'!$D:$D,'01 Rendiconto Finanziario'!$A80,'00 PDC SP'!J:J))*'01 Rendiconto Finanziario'!C80 -> 2797670.18
A81: 43 | B81: DA | C81: 1 | D81: (+) | E81: Valore netto contabile mobili e arredi dismessi | F81: =((SUMIF('00 PDC SP'!$D:$D,'01 Rendiconto Finanziario'!$A81,'00 PDC SP'!M:M)))*'01 Rendiconto Finanziario'!C81 -> 12215.84 | G81: =(SUMIF('00 PDC SP'!$D:$D,'01 Rendiconto Finanziario'!$A81,'00 PDC SP'!J:J))*'01 Rendiconto Finanziario'!C81 -> 183191.51
A82: 44 | B82: DA | C82: 1 | D82: (+) | E82: Valore netto contabile automezzi dismessi | F82: =((SUMIF('00 PDC SP'!$D:$D,'01 Rendiconto Finanziario'!$A82,'00 PDC SP'!M:M)))*'01 Rendiconto Finanziario'!C82 -> 0 | G82: =(SUMIF('00 PDC SP'!$D:$D,'01 Rendiconto Finanziario'!$A82,'00 PDC SP'!J:J))*'01 Rendiconto Finanziario'!C82 -> 63157.24
A83: 45 | B83: DA | C83: 1 | D83: (+) | E83: Valore netto contabile altri beni materiali dismessi | F83: =((SUMIF('00 PDC SP'!$D:$D,'01 Rendiconto Finanziario'!$A83,'00 PDC SP'!M:M)))*'01 Rendiconto Finanziario'!C83 -> 246749.93 | G83: =(SUMIF('00 PDC SP'!$D:$D,'01 Rendiconto Finanziario'!$A83,'00 PDC SP'!J:J))*'01 Rendiconto Finanziario'!C83 -> 468530.49
D84: (+) | E84: Valore netto contabile Immobilizzazioni Materiali dismesse | F84: =SUM(F77:F83) -> 405830.22 | G84: =SUM(G77:G83) -> 3521154.22
A85: 46 | B85: IA | C85: -1 | D85: (-) | E85: Acquisto crediti finanziari | F85: =((SUMIF('00 PDC SP'!$D:$D,'01 Rendiconto Finanziario'!$A85,'00 PDC SP'!L:L)))*'01 Rendiconto Finanziario'!C85 -> 0 | G85: =(SUMIF('00 PDC SP'!$D:$D,'01 Rendiconto Finanziario'!$A85,'00 PDC SP'!I:I))*'01 Rendiconto Finanziario'!C85 -> -1656.75
A86: 47 | B86: IA | C86: -1 | D86: (-) | E86: Acquisto titoli | F86: =((SUMIF('00 PDC SP'!$D:$D,'01 Rendiconto Finanziario'!$A86,'00 PDC SP'!L:L)))*'01 Rendiconto Finanziario'!C86 -> 0 | G86: =(SUMIF('00 PDC SP'!$D:$D,'01 Rendiconto Finanziario'!$A86,'00 PDC SP'!I:I))*'01 Rendiconto Finanziario'!C86 -> 0 | K86: 2014 | L86: 2734481
D87: (-) | E87: Acquisto Immobilizzazioni Finanziarie | F87: =SUM(F85:F86) -> 0 | G87: =SUM(G85:G86) -> -1656.75 | K87: 2013 | L87: 1682776
A88: 46 | B88: DA | C88: 1 | D88: (+) | E88: Valore netto contabile crediti finanziari dismessi | F88: =((SUMIF('00 PDC SP'!$D:$D,'01 Rendiconto Finanziario'!$A88,'00 PDC SP'!M:M)))*'01 Rendiconto Finanziario'!C88 -> 0 | G88: =(SUMIF('00 PDC SP'!$D:$D,'01 Rendiconto Finanziario'!$A88,'00 PDC SP'!J:J))*'01 Rendiconto Finanziario'!C88 -> 0 | L88: =L86-L87 -> 1051705
A89: 47 | B89: DA | C89: 1 | D89: (+) | E89: Valore netto contabile titoli dismessi | F89: =((SUMIF('00 PDC SP'!$D:$D,'01 Rendiconto Finanziario'!$A89,'00 PDC SP'!M:M)))*'01 Rendiconto Finanziario'!C89 -> 0 | G89: =(SUMIF('00 PDC SP'!$D:$D,'01 Rendiconto Finanziario'!$A89,'00 PDC SP'!J:J))*'01 Rendiconto Finanziario'!C89 -> 0
D90: (+) | E90: Valore netto contabile Immobilizzazioni Finanziarie dismesse | F90: =SUM(F88:F89) -> 0 | G90: =SUM(G88:G89) -> 0
A91: 58 | B91: VP | C91: -1 | D91: (+/-) | E91: Aumento/Diminuzione debiti v/fornitori di immobilizzazioni | F91: 1051705 | G91: 0 | I91: CODICE 58 - DA INSERIRE MANUALMENTE
D92: B - Totale attività di investimento | F92: =F62+F68+F76+F84+F87+F90+F91+0.0000001416 -> -7886069.61 | G92: =G62+G68+G76+G84+G87+G90+G91 -> -5720721.32
D93: ATTIVITA' DI FINANZIAMENTO
A94: 48 | B94: VA | C94: -1 | D94: (+)/(-) | E94: diminuzione/aumento crediti vs Stato (finanziamenti per investimenti) | F94: =((SUMIF('00 PDC SP'!$D:$D,'01 Rendiconto Finanziario'!$A94,'00 PDC SP'!L:L)-SUMIF('00 PDC SP'!$D:$D,'01 Rendiconto Finanziario'!$A94,'00 PDC SP'!M:M))*'01 Rendiconto Finanziario'!C94) -> 0 | G94: =(SUMIF('00 PDC SP'!$D:$D,'01 Rendiconto Finanziario'!$A94,'00 PDC SP'!I:I)-SUMIF('00 PDC SP'!$D:$D,'01 Rendiconto Finanziario'!$A94,'00 PDC SP'!J:J))*'01 Rendiconto Finanziario'!C94 -> 0
A95: 49 | B95: VA | C95: -1 | D95: (+)/(-) | E95: diminuzione/aumento crediti vs Regione (finanziamenti per investimenti) | F95: =((SUMIF('00 PDC SP'!$D:$D,'01 Rendiconto Finanziario'!$A95,'00 PDC SP'!L:L)-SUMIF('00 PDC SP'!$D:$D,'01 Rendiconto Finanziario'!$A95,'00 PDC SP'!M:M))*'01 Rendiconto Finanziario'!C95) -> 0 | G95: =(SUMIF('00 PDC SP'!$D:$D,'01 Rendiconto Finanziario'!$A95,'00 PDC SP'!I:I)-SUMIF('00 PDC SP'!$D:$D,'01 Rendiconto Finanziario'!$A95,'00 PDC SP'!J:J))*'01 Rendiconto Finanziario'!C95 -> 0
A96: 50 | B96: VA | C96: -1 | D96: (+)/(-) | E96: diminuzione/aumento crediti vs Regione (aumento fondo di dotazione) | F96: =((SUMIF('00 PDC SP'!$D:$D,'01 Rendiconto Finanziario'!$A96,'00 PDC SP'!L:L)-SUMIF('00 PDC SP'!$D:$D,'01 Rendiconto Finanziario'!$A96,'00 PDC SP'!M:M))*'01 Rendiconto Finanziario'!C96) -> 0 | G96: =(SUMIF('00 PDC SP'!$D:$D,'01 Rendiconto Finanziario'!$A96,'00 PDC SP'!I:I)-SUMIF('00 PDC SP'!$D:$D,'01 Rendiconto Finanziario'!$A96,'00 PDC SP'!J:J))*'01 Rendiconto Finanziario'!C96 -> 0
A97: 51 | B97: VA | C97: -1 | D97: (+)/(-) | E97: diminuzione/aumento crediti vs Regione (ripiano perdite) | F97: =((SUMIF('00 PDC SP'!$D:$D,'01 Rendiconto Finanziario'!$A97,'00 PDC SP'!L:L)-SUMIF('00 PDC SP'!$D:$D,'01 Rendiconto Finanziario'!$A97,'00 PDC SP'!M:M))*'01 Rendiconto Finanziario'!C97) -> 7337349.57 | G97: =(SUMIF('00 PDC SP'!$D:$D,'01 Rendiconto Finanziario'!$A97,'00 PDC SP'!I:I)-SUMIF('00 PDC SP'!$D:$D,'01 Rendiconto Finanziario'!$A97,'00 PDC SP'!J:J))*'01 Rendiconto Finanziario'!C97 -> -21602059.57
A98: 52 | B98: VA | C98: -1 | D98: (+)/(-) | E98: diminuzione/aumento crediti vs Regione (copertura debiti al 31.12.2005) | F98: =((SUMIF('00 PDC SP'!$D:$D,'01 Rendiconto Finanziario'!$A98,'00 PDC SP'!L:L)-SUMIF('00 PDC SP'!$D:$D,'01 Rendiconto Finanziario'!$A98,'00 PDC SP'!M:M))*'01 Rendiconto Finanziario'!C98) -> 0 | G98: =(SUMIF('00 PDC SP'!$D:$D,'01 Rendiconto Finanziario'!$A98,'00 PDC SP'!I:I)-SUMIF('00 PDC SP'!$D:$D,'01 Rendiconto Finanziario'!$A98,'00 PDC SP'!J:J))*'01 Rendiconto Finanziario'!C98 -> 0
D99: (+) | E99: aumento fondo di dotazione | F99: =SUM(F94:F98) -> 7337349.57 | G99: =SUM(G94:G98) -> -21602059.57
A100: 5 | B100: IP | C100: 1 | D100: (+) | E100: aumento contributi in c/capitale da regione e da altri | F100: =(SUMIF('00 PDC SP'!$D:$D,'01 Rendiconto Finanziario'!$A100,'00 PDC SP'!L:L))*'01 Rendiconto Finanziario'!C100 -> 6628571.39 | G100: =(SUMIF('00 PDC SP'!$D:$D,'01 Rendiconto Finanziario'!$A100,'00 PDC SP'!I:I))*'01 Rendiconto Finanziario'!C100 -> 8909799.11
A101: 6 | B101: IP | C101: 1 | D101: (+) | E101: aumento fondi riserva: investimenti, incentivi al personale, successioni e donaz., plusvalenze da reinvestire | F101: 0 | G101: =(SUMIF('00 PDC SP'!$D:$D,'01 Rendiconto Finanziario'!$A101,'00 PDC SP'!I:I))*'01 Rendiconto Finanziario'!C101 -> 2730000
A102: 53 | B102: VP | C102: 1 | D102: (+)/(-) | E102: altri aumenti/diminuzioni al patrimonio netto (*) | F102: =((SUMIF('00 PDC SP'!$D:$D,'01 Rendiconto Finanziario'!$A102,'00 PDC SP'!L:L)-SUMIF('00 PDC SP'!$D:$D,'01 Rendiconto Finanziario'!$A102,'00 PDC SP'!M:M))*'01 Rendiconto Finanziario'!C102)-F5 -> 14294910.4 | G102: =((SUMIF('00 PDC SP'!$D:$D,'01 Rendiconto Finanziario'!$A102,'00 PDC SP'!I:I)-SUMIF('00 PDC SP'!$D:$D,'01 Rendiconto Finanziario'!$A102,'00 PDC SP'!J:J))*'01 Rendiconto Finanziario'!C102)-G5 -> 13206089.65
D103: (+)/(-) | E103: aumenti/diminuzioni nette contabili al patrimonio netto | F103: =SUM(F100:F102) -> 20923481.79 | G103: =SUM(G100:G102) -> 24845888.76
A104: 54 | B104: VA | C104: -1 | D104: (+)/(-) | E104: aumenti/diminuzione debiti C/C bancari e istituto tesoriere (*) | F104: =((SUMIF('00 PDC SP'!$D:$D,'01 Rendiconto Finanziario'!$A104,'00 PDC SP'!L:L)-SUMIF('00 PDC SP'!$D:$D,'01 Rendiconto Finanziario'!$A104,'00 PDC SP'!M:M))*'01 Rendiconto Finanziario'!C104) -> 0 | G104: =(SUMIF('00 PDC SP'!$D:$D,'01 Rendiconto Finanziario'!$A104,'00 PDC SP'!I:I)-SUMIF('00 PDC SP'!$D:$D,'01 Rendiconto Finanziario'!$A104,'00 PDC SP'!J:J))*'01 Rendiconto Finanziario'!C104 -> 0
A105: 55 | B105: IP | C105: 1 | D105: (+) | E105: assunzione nuovi mutui (*) | F105: =((SUMIF('00 PDC SP'!$D:$D,'01 Rendiconto Finanziario'!$A105,'00 PDC SP'!L:L))*'01 Rendiconto Finanziario'!C105) -> 0 | G105: =(SUMIF('00 PDC SP'!$D:$D,'01 Rendiconto Finanziario'!$A105,'00 PDC SP'!I:I))*'01 Rendiconto Finanziario'!C105 -> 0
A106: 56 | B106: DP | C106: -1 | D106: (-) | E106: mutui quota capitale rimborsata | F106: =((SUMIF('00 PDC SP'!$D:$D,'01 Rendiconto Finanziario'!$A106,'00 PDC SP'!M:M))*'01 Rendiconto Finanziario'!C106) -> 0 | G106: =(SUMIF('00 PDC SP'!$D:$D,'01 Rendiconto Finanziario'!$A106,'00 PDC SP'!J:J))*'01 Rendiconto Finanziario'!C106 -> 0
D107: C - Totale attività di finanziamento | F107: =F99+F103+F104+F105+F106 -> 28260831.36 | G107: =G99+G103+G104+G105+G106 -> 3243829.19
D108: FLUSSO DI CASSA COMPLESSIVO (A+B+C+) | F108: =F55+F92+F107 -> 44326691.38 | G108: =G55+G92+G107 -> -66217381.68
A109: 57 | B109: VA | C109: 1 | D109: Delta liquidità tra inizio e fine esercizio (al netto dei conti bancari passivi) | F109: =((SUMIF('00 PDC SP'!$D:$D,'01 Rendiconto Finanziario'!$A109,'00 PDC SP'!L:L)-SUMIF('00 PDC SP'!$D:$D,'01 Rendiconto Finanziario'!$A109,'00 PDC SP'!M:M))*'01 Rendiconto Finanziario'!C109) -> 44326691.38 | G109: =(SUMIF('00 PDC SP'!$D:$D,'01 Rendiconto Finanziario'!$A109,'00 PDC SP'!I:I)-SUMIF('00 PDC SP'!$D:$D,'01 Rendiconto Finanziario'!$A109,'00 PDC SP'!J:J))*'01 Rendiconto Finanziario'!C109 -> -66217381.68
D110: Squadratura tra il valore delle disponibilità liquide nello SP e il valore del flusso di cassa complessivo | F110: =F108-F109 -> 3.87430191e-07 | G110: =G108-G109 -> 1.937150955e-07
E112: LEGENDA
D113: SP | E113: Saldo Stato Patrimoniale
D114: IP | E114: Passività - Incrementi
D115: DP | E115: Passività - Decrementi
D116: VA | E116: Attività - Variazione Saldo
D117: VP | E117: Passività - Variazione Saldo
D118: IA | E118: Attività - Incrementi
D119: DA | E119: Attività - Decrementi

Sheet Personale
A1: Dati sull'occupazione al 31.12 XX
A3: PERSONALE DIPENDENTE (Conto Annuale)
B4: T1A | C4: T1C | D4: T1A | E4: T1C
A5: Tipologia di personale | B5: Personale in comando al 31/12/X-1 ad altri enti | C5: Personale in comando al 31/12/X-1 da altri enti | D5: Personale in comando al 31/12/X ad altri enti | E5: Personale in comando al 31/12/X da altri enti
A6: RUOLO SANITARIO
A7: Dirigenza
A8: - Medico veterinaria | B8: 1 | C8: 1 | E8: 1
A9: - Sanitaria
A10: Comparto
A11: - Categoria Ds
A12: - Categoria D | B12: 3 | C12: 7 | D12: 1 | E12: 10
A13: - Categoria C
A14: - Categoria Bs
A15: RUOLO PROFESSIONALE
A16: Dirigenza
A17: Livello dirigenziale
A18: Comparto
A19: - Categoria D
A20: RUOLO TECNICO
A21: Dirigenza
A22: Livello dirigenziale
A23: Comparto
A24: - Categoria Ds
A25: - Categoria D
A26: - Categoria C
A27: - Categoria Bs | E27: 1
A28: - Categoria B
A29: - Categoria A
A30: RUOLO AMMINISTRATIVO
A31: Dirigenza
A32: Livello dirigenziale
A33: Comparto
A34: - Categoria Ds | C34: 1
A35: - Categoria D | B35: 1
A36: - Categoria C
A37: - Categoria Bs
A38: - Categoria B
A39: - Categoria A

Sheet Universitario (hidden)
A2: PERSONALE UNIVERSITARIO (Conto Annuale T1B)
A3: Tipologia di personale | B3: Personale al 31/12/X-1 | C3: di cui Personale a tempo parziale al 31/12/X-1 | D3: Personale al 31/12/X | E3: di cui Personale a tempo parziale al 31/12/X
A4: RUOLO SANITARIO
A5: Dirigenza
A6: Comparto
A7: RUOLO PROFESSIONALE
A8: Dirigenza
A9: Comparto
A10: RUOLO TECNICO
A11: Dirigenza
A12: Comparto
A13: RUOLO AMMINISTRATIVO
A14: Dirigenza
A15: Comparto

Sheet Altro contratto (hidden)
A2: PERSONALE CON ALTRO CONTRATTO - FORMAZIONE LAVORO (Conto Annuale T2)
A3: Tipologia di personale | B3: Uomini-anno anno X -1 | C3: Uomini-anno anno X
A4: RUOLO SANITARIO
A5: Dirigenza
A6: - Medico - Veterinari
A7: - Sanitaria non medica
A8: Comparto
A9: RUOLO PROFESSIONALE
A10: Dirigenza
A11: Comparto
A12: RUOLO TECNICO
A13: Dirigenza
A14: Comparto
A15: RUOLO AMMINISTRATIVO
A16: Dirigenza
A17: Comparto
A19: PERSONALE CON ALTRO CONTRATTO - CONTRATTO DI SOMMINISTRAZIONE (Conto Annuale T2)
A20: Tipologia di personale | B20: Uomini-anno anno X -1 | C20: Uomini-anno anno X
A21: RUOLO SANITARIO
A22: Dirigenza
A23: - Medico - Veterinari
A24: - Sanitaria non medica
A25: Comparto
A26: RUOLO PROFESSIONALE
A27: Dirigenza
A28: Comparto
A29: RUOLO TECNICO
A30: Dirigenza
A31: Comparto
A32: RUOLO AMMINISTRATIVO
A33: Dirigenza
A34: Comparto
A36: PERSONALE CON ALTRO CONTRATTO - LSU (Conto Annuale T2)
A37: Tipologia di personale | B37: Uomini-anno anno X -1 | C37: Uomini-anno anno X
A38: RUOLO SANITARIO
A39: Dirigenza
A40: - Medico - Veterinari
A41: - Sanitaria non medica
A42: Comparto
A43: RUOLO PROFESSIONALE
A44: Dirigenza
A45: Comparto
A46: RUOLO TECNICO
A47: Dirigenza
A48: Comparto
A49: RUOLO AMMINISTRATIVO
A50: Dirigenza
A51: Comparto
A53: PERSONALE IN CONVENZIONE (FLS 12 quadro E per MMG e PLS)
A54: Tipologia di personale | B54: Personale al 31/12/ X-1 | C54: Personale al 31/12/ X
A55: MEDICINA DI BASE
A56: MMG
A57: PLS
A58: Continuità assistenziale
A59: Altro

Sheet Tab 1-2-3-4
D1: 4.4 Immobilizzazioni materiali e immateriali
D3: Tab. 1 – Dettagli e movimentazioni delle immobilizzazioni immateriali
D4: CODICE MOD. SP | E4: IMMOBILIZZAZIONI IMMATERIALI | G4: Costo storico | H4: ESERCIZI PRECEDENTI | L4: MOVIMENTI DELL'ESERCIZIO | T4: Valore Netto Contabile
A5: Costo Storico | B5: F.do Amm.to | C5: F.do Svalutaz | H5: Rivalutaz. (+) | I5: Svalutaz. (-) | J5: Fondo Amm.to (-) | K5: Valore netto iniz. | L5: Giroconti e Riclass. (+/-) | M5: Rivalutaz. (+) | N5: Svalutaz. (-) | O5: Acquisizioni e costruzioni in economia | P5: Manuten. increment. | Q5: Interessi capital. | R5: Dismiss. (valore netto) (-) | S5: Ammort. (-) | V5: Valore SP | W5: Diff | X5: Ctrl
A6: AAA020 | B6: AAA030 | C6: AAA230 | D6: AAA010 | E6: Costi d'impianto e di ampliamento | G6: =SUMIF('00 SP'!$A:$A,'Tab 1-2-3-4'!A6,'00 SP'!I:I) -> 0 | H6: =SUMIF('00 SP'!A:A,'Tab 1-2-3-4'!C6,'00 SP'!H:H)*-1 -> 0 | I6: =SUMIF('00 SP'!A:A,'Tab 1-2-3-4'!C6,'00 SP'!G:G) -> 0 | J6: =SUMIF('00 SP'!A:A,'Tab 1-2-3-4'!B6,'00 SP'!I:I) -> 0 | K6: =G6+H6+I6+J6 -> 0 | L6: 0 | M6: =SUMIF('00 SP'!A:A,'Tab 1-2-3-4'!C6,'00 SP'!K:K)*-1 -> 0 | N6: =SUMIF('00 SP'!A:A,'Tab 1-2-3-4'!C6,'00 SP'!J:J) -> 0 | O6: =SUMIF('00 SP'!A:A,A6,'00 SP'!J:J)-SUMIF('00 SP'!A:A,A6,'00 SP'!K:K)-(P6+Q6+L6) -> 0 | P6: 0 | Q6: 0 | R6: 0 | S6: =(SUMIF('00 SP'!A:A,'Tab 1-2-3-4'!B6,'00 SP'!J:J)-SUMIF('00 SP'!A:A,B6,'00 SP'!K:K)-R6) -> 0 | T6: =K6+L6+M6+N6+O6+P6+Q6+R6+S6 -> 0 | V6: =SUMIF('00 SP'!A:A,'Tab 1-2-3-4'!D6,'00 SP'!L:L) -> 0 | W6: =T6-V6 -> 0 | X6: =IF(W6=0,"OK","CTRL") -> OK
E7: di cui soggetti a sterilizzazione | K7: 0 | T7: 0
A8: AAA050 | B8: AAA060 | C8: AAA240 | D8: AAA040 | E8: Costi di ricerca e sviluppo | G8: =SUMIF('00 SP'!$A:$A,'Tab 1-2-3-4'!A8,'00 SP'!I:I) -> 0 | H8: =SUMIF('00 SP'!A:A,'Tab 1-2-3-4'!C8,'00 SP'!H:H)*-1 -> 0 | I8: =SUMIF('00 SP'!A:A,'Tab 1-2-3-4'!C8,'00 SP'!G:G) -> 0 | J8: =SUMIF('00 SP'!A:A,'Tab 1-2-3-4'!B8,'00 SP'!I:I) -> 0 | K8: 0 | L8: 0 | M8: =SUMIF('00 SP'!A:A,'Tab 1-2-3-4'!C8,'00 SP'!K:K)*-1 -> 0 | N8: =SUMIF('00 SP'!A:A,'Tab 1-2-3-4'!C8,'00 SP'!J:J) -> 0 | O8: =SUMIF('00 SP'!A:A,A8,'00 SP'!J:J)-SUMIF('00 SP'!A:A,A8,'00 SP'!K:K)-(P8+Q8+L8) -> 0 | P8: 0 | Q8: 0 | R8: 0 | S8: =(SUMIF('00 SP'!A:A,'Tab 1-2-3-4'!B8,'00 SP'!J:J)-SUMIF('00 SP'!A:A,B8,'00 SP'!K:K)-R8) -> 0 | T8: 0 | V8: =SUMIF('00 SP'!A:A,'Tab 1-2-3-4'!D8,'00 SP'!L:L) -> 0 | W8: =T8-V8 -> 0 | X8: =IF(W8=0,"OK","CTRL") -> OK
E9: di cui soggetti a sterilizzazione | K9: 0 | T9: 0
